Workbook

Sheet Cover

Sheet Report - Summary
A1: =IF(OR(K11="Overhead recovery not equal to target",K12="Overhead recovery not equal to target"),"Errors","Ok") -> Ok
B2: Summary Opex
B4: $, nominal | C4: FY18 | D4: FY19 | E4: FY20 | F4: FY21 | G4: FY22 | H4: FY23 | I4: FY24
B5: Bulk contract | C5: =INDIRECT("'Calc - Opex " &C4&"'!$AC$4") -> 1965539.275 | D5: 2002884.521 | E5: =INDIRECT("'Calc - Opex " &E4&"'!$AC$4") -> 1964307.412 | F5: =INDIRECT("'Calc - Opex " &F4&"'!$AC$4") -> 1924045.232 | G5: 1890823.346 | H5: 1925011.028 | I5: 1969590.961
B6: Bulk materials | C6: =INDIRECT("'Calc - Opex " &C4&"'!$AM$4") -> 174151.5261 | D6: 455667.2407 | E6: =INDIRECT("'Calc - Opex " &E4&"'!$AM$4") -> 425416.9871 | F6: =INDIRECT("'Calc - Opex " &F4&"'!$AM$4") -> 393423.024 | G6: 362544.4523 | H6: 364931.0865 | I6: 371920.899
B7: Spot labour | C7: =INDIRECT("'Calc - Opex " &C4&"'!$AX$4") -> 3712876.777 | D7: 3819226.653 | E7: =INDIRECT("'Calc - Opex " &E4&"'!$AX$4") -> 3605160.466 | F7: =INDIRECT("'Calc - Opex " &F4&"'!$AX$4") -> 3397109.422 | G7: 3254535.234 | H7: 3337385.968 | I7: 3447110.35
B8: Spot materials | C8: =INDIRECT("'Calc - Opex " &C4&"'!$BF$4") -> 239437.9298 | D8: 243987.2504 | E8: =INDIRECT("'Calc - Opex " &E4&"'!$BF$4") -> 242066.1821 | F8: =INDIRECT("'Calc - Opex " &F4&"'!$BF$4") -> 239871.5569 | G8: 238026.5709 | H8: 242557.1851 | I8: 248030.0584
B9: EWP costs | C9: =INDIRECT("'Calc - Opex " &C4&"'!$BJ$4") -> 1392570.099 | D9: 1419028.93 | E9: =INDIRECT("'Calc - Opex " &E4&"'!$BJ$4") -> 1335093.222 | F9: =INDIRECT("'Calc - Opex " &F4&"'!$BJ$4") -> 1250080.131 | G9: 1185182.651 | H9: 1199935.622 | I9: 1225437.572
B10: Connections | C10: =INDIRECT("'Calc - Opex " &C4&"'!$BL$4") -> 2728792.042 | D10: 2780639.091 | E10: =INDIRECT("'Calc - Opex " &E4&"'!$BL$4") -> 2848066.104 | F10: =INDIRECT("'Calc - Opex " &F4&"'!$BL$4") -> 2917128.137 | G10: 2987864.838 | H10: 3060316.815 | I10: 3134525.662
B11: Overheads | C11: =INDIRECT("'Calc - Opex " &C4&"'!$BP$4") -> 2398162.483 | D11: 2451890.64 | E11: =INDIRECT("'Calc - Opex " &E4&"'!$BP$4") -> 2382980.844 | F11: =INDIRECT("'Calc - Opex " &F4&"'!$BP$4") -> 2314727.491 | G11: 2268376.394 | H11: 2316666.833 | I11: 2377607.789 | K11: =IF(NPV(NominalVanillaWACC,E11:I11)=NPV(NominalVanillaWACC,'Input - General'!J69:N69),"Overheads recovered", "Overhead recovery not equal to target") -> Overheads recovered
B12: CAM | C12: =INDIRECT("'Calc - Opex " &C4&"'!$BT$4") -> 1438897.41 | D12: 1471134.303 | E12: =INDIRECT("'Calc - Opex " &E4&"'!$BT$4") -> 1429788.427 | F12: =INDIRECT("'Calc - Opex " &F4&"'!$BT$4") -> 1388836.417 | G12: 1361025.761 | H12: 1390000.022 | I12: 1426564.594 | K12: =IF(NPV(NominalVanillaWACC,E12:I12)=NPV(NominalVanillaWACC,'Input - General'!J70:N70),"Overheads recovered", "Overhead recovery not equal to target") -> Overheads recovered
B13: Total | C13: =INDIRECT("'Calc - Opex " &C4&"'!$K$4") -> 14050427.54 | D13: 14644458.63 | E13: =INDIRECT("'Calc - Opex " &E4&"'!$K$4") -> 14232879.64 | F13: =INDIRECT("'Calc - Opex " &F4&"'!$K$4") -> 13825221.41 | G13: 13548379.25 | H13: 13836804.56 | I13: 14200787.89
C15: =C4 -> FY18 | D15: FY19 | E15: FY20 | F15: FY21 | G15: FY22 | H15: FY23 | I15: FY24
B16: CPI | C16: =CPIFY18 -> 0.01951870655 | D16: =CPIFY19 -> 0.019 | E16: =CPIFY20 -> 0.02424874658 | F16: =CPIFY21 -> 0.02424874658 | G16: =CPIFY22 -> 0.02424874658 | H16: =CPIFY23 -> 0.02424874658 | I16: =CPIFY24 -> 0.02424874658
B17: Indexation | C17: =D17/(1+D16) -> 0.9813542689 | D17: 1 | E17: =D17*(1+E16) -> 1.024248747 | F17: 1.049085495 | G17: 1.074524503 | H17: 1.100580376 | I17: 1.12726807
B19: $, FY19 | C19: FY18 | D19: FY19 | E19: FY20 | F19: FY21 | G19: FY22 | H19: FY23 | I19: FY24 | J19: Total
B20: Bulk contract | C20: =C5/C$17 -> 2002884.521 | D20: 2002884.521 | E20: 1917803.091 | F20: 1834021.385 | G20: 1759683.786 | H20: 1749087.182 | I20: 1747225.006 | J20: =SUM(E20:I20) -> 9007820.45
B21: Bulk materials | C21: 177460.4051 | D21: 455667.2407 | E21: 415345.3822 | F21: 375015.2165 | G21: 337399.8929 | H21: 331580.5865 | I21: 329931.1928 | J21: 1789272.271
B22: Spot labour | C22: 3783421.436 | D22: 3819226.653 | E22: 3519809.497 | F22: 3238162.608 | G22: 3028814.349 | H22: 3032387.313 | I22: 3057933.105 | J22: 15877106.87
B23: Spot materials | C23: 243987.2504 | D23: 243987.2504 | E23: 236335.3462 | F23: 228648.2447 | G23: 221518.0484 | H23: 220390.2509 | I23: 220027.5737 | J23: 1126919.464
B24: EWP costs | C24: 1419028.93 | D24: 1419028.93 | E24: 1303485.337 | F24: 1191590.33 | G24: 1102983.364 | H24: 1090275.32 | I24: 1087086.209 | J24: 5775420.559
B25: Connections | C25: 2780639.091 | D25: 2780639.091 | E25: 2780639.091 | F25: 2780639.091 | G25: 2780639.091 | H25: 2780639.091 | I25: 2780639.091 | J25: 13903195.46
B26: Overheads | C26: 2443727.57 | D26: 2451890.64 | E26: 2326564.569 | F26: 2206424.073 | G26: 2111051.342 | H26: 2104950.155 | I26: 2109176.913 | J26: =SUM(E26:I26) -> 10858167.05
B27: CAM | C27: 1466236.461 | D27: 1471134.303 | E27: 1395938.664 | F27: 1323854.37 | G27: 1266630.735 | H27: 1262970.023 | I27: =I12/I$17 -> 1265506.078 | J27: 6514899.871
B28: Total | C28: =SUM(C20:C27) -> 14317385.67 | D28: 14644458.63 | E28: 13895920.98 | F28: 13178355.32 | G28: 12608720.61 | H28: 12572279.92 | I28: 12597525.17 | J28: 64852802

Sheet Report - Tariffs
A1: ='Report - Summary'!$A$1 -> Ok
B2: ='Calc - Tariff Smoothing'!B2 -> Maintenance charges per component
D4: Prices ($ nominal) | E4: ='Calc - Tariff Smoothing'!R10 -> 0 | F4: ='Calc - Tariff Smoothing'!S10 -> 0 | G4: ='Calc - Tariff Smoothing'!T10 -> 0 | H4: ='Calc - Tariff Smoothing'!U10 -> 0
B5: ='Calc - Tariff Smoothing'!C11 -> Description | C5: ='Calc - Tariff Smoothing'!D11 -> Type | D5: ='Calc - Tariff Smoothing'!Q11 -> FY20 | E5: ='Calc - Tariff Smoothing'!R11 -> FY21 | F5: ='Calc - Tariff Smoothing'!S11 -> FY22 | G5: ='Calc - Tariff Smoothing'!T11 -> FY23 | H5: ='Calc - Tariff Smoothing'!U11 -> FY24
B7: ='Calc - Tariff Smoothing'!C13 -> O/U | C7: ='Calc - Tariff Smoothing'!D13 -> Connection | D7: ='Calc - Tariff Smoothing'!Q13*(1+INDIRECT("CPI"&D$5)) -> 106.0115241 | E7: =D7*(1+INDIRECT("CPI"&E$5)) -> 108.5821707 | F7: =E7*(1+INDIRECT("CPI"&F$5)) -> 111.2151523 | G7: 113.9119803 | H7: 116.674203
B8: ='Calc - Tariff Smoothing'!C14 -> OH | C8: ='Calc - Tariff Smoothing'!D14 -> Connection | D8: ='Calc - Tariff Smoothing'!Q14*(1+INDIRECT("CPI"&D$5)) -> 0 | E8: =D8*(1+INDIRECT("CPI"&E$5)) -> 0 | F8: 0 | G8: 0 | H8: 0
B9: ='Calc - Tariff Smoothing'!C15 -> OH2 | C9: ='Calc - Tariff Smoothing'!D15 -> Connection | D9: ='Calc - Tariff Smoothing'!Q15*(1+INDIRECT("CPI"&D$5)) -> 0 | E9: =D9*(1+INDIRECT("CPI"&E$5)) -> 0 | F9: 0 | G9: 0 | H9: 0
B10: ='Calc - Tariff Smoothing'!C16 -> OHS | C10: ='Calc - Tariff Smoothing'!D16 -> Connection | D10: ='Calc - Tariff Smoothing'!Q16*(1+INDIRECT("CPI"&D$5)) -> 0 | E10: =D10*(1+INDIRECT("CPI"&E$5)) -> 0 | F10: 0 | G10: 0 | H10: 0
B11: ='Calc - Tariff Smoothing'!C17 -> UG2 | C11: ='Calc - Tariff Smoothing'!D17 -> Connection | D11: ='Calc - Tariff Smoothing'!Q17*(1+INDIRECT("CPI"&D$5)) -> 0 | E11: =D11*(1+INDIRECT("CPI"&E$5)) -> 0 | F11: 0 | G11: 0 | H11: 0
B12: ='Calc - Tariff Smoothing'!C18 -> UGR1 | C12: ='Calc - Tariff Smoothing'!D18 -> Connection | D12: ='Calc - Tariff Smoothing'!Q18*(1+INDIRECT("CPI"&D$5)) -> 97.17477382 | E12: =D12*(1+INDIRECT("CPI"&E$5)) -> 99.53114029 | F12: 101.9446457 | G12: 104.4166756 | H12: 106.9486491
B13: ='Calc - Tariff Smoothing'!C19 -> UGR2 | C13: ='Calc - Tariff Smoothing'!D19 -> Connection | D13: ='Calc - Tariff Smoothing'!Q19*(1+INDIRECT("CPI"&D$5)) -> 35.33191727 | E13: =D13*(1+INDIRECT("CPI"&E$5)) -> 36.18867198 | F13: 37.06620191 | G13: 37.96501085 | H13: 38.88561478
B14: ='Calc - Tariff Smoothing'!C20 -> UGS | C14: ='Calc - Tariff Smoothing'!D20 -> Connection | D14: ='Calc - Tariff Smoothing'!Q20*(1+INDIRECT("CPI"&D$5)) -> 0 | E14: =D14*(1+INDIRECT("CPI"&E$5)) -> 0 | F14: 0 | G14: 0 | H14: 0
B15: ='Calc - Tariff Smoothing'!C21 -> UG-SP | C15: ='Calc - Tariff Smoothing'!D21 -> Connection | D15: ='Calc - Tariff Smoothing'!Q21*(1+INDIRECT("CPI"&D$5)) -> 0 | E15: =D15*(1+INDIRECT("CPI"&E$5)) -> 0 | F15: 0 | G15: 0 | H15: 0
B16: ='Calc - Tariff Smoothing'!C22 -> LED TRIAL | C16: ='Calc - Tariff Smoothing'!D22 -> Lamp | D16: ='Calc - Tariff Smoothing'!Q22*(1+INDIRECT("CPI"&D$5)) -> 23.76353242 | E16: =D16*(1+INDIRECT("CPI"&E$5)) -> 24.33976829 | F16: 24.92997716 | G16: 25.53449786 | H16: 26.15367743
B17: ='Calc - Tariff Smoothing'!C23 -> LED1x100 | C17: ='Calc - Tariff Smoothing'!D23 -> Lamp | D17: ='Calc - Tariff Smoothing'!Q23*(1+INDIRECT("CPI"&D$5)) -> 31.59736353 | E17: =D17*(1+INDIRECT("CPI"&E$5)) -> 32.36355999 | F17: 33.14833576 | G17: 33.95214135 | H17: 34.77543822
B18: ='Calc - Tariff Smoothing'!C24 -> LED1x17 | C18: ='Calc - Tariff Smoothing'!D24 -> Lamp | D18: ='Calc - Tariff Smoothing'!Q24*(1+INDIRECT("CPI"&D$5)) -> 23.80420301 | E18: =D18*(1+INDIRECT("CPI"&E$5)) -> 24.38142509 | F18: 24.97264409 | G18: 25.57819941 | H18: 26.19843869
B19: ='Calc - Tariff Smoothing'!C25 -> LED1x18 | C19: ='Calc - Tariff Smoothing'!D25 -> Lamp | D19: ='Calc - Tariff Smoothing'!Q25*(1+INDIRECT("CPI"&D$5)) -> 0 | E19: =D19*(1+INDIRECT("CPI"&E$5)) -> 0 | F19: 0 | G19: 0 | H19: 0
B20: ='Calc - Tariff Smoothing'!C26 -> LED1x20 | C20: ='Calc - Tariff Smoothing'!D26 -> Lamp | D20: ='Calc - Tariff Smoothing'!Q26*(1+INDIRECT("CPI"&D$5)) -> 0 | E20: =D20*(1+INDIRECT("CPI"&E$5)) -> 0 | F20: 0 | G20: 0 | H20: 0
B21: ='Calc - Tariff Smoothing'!C27 -> LED1x200 | C21: ='Calc - Tariff Smoothing'!D27 -> Lamp | D21: ='Calc - Tariff Smoothing'!Q27*(1+INDIRECT("CPI"&D$5)) -> 31.6054257 | E21: =D21*(1+INDIRECT("CPI"&E$5)) -> 32.37181766 | F21: 33.15679366 | G21: 33.96080435 | H21: 34.78431128
B22: ='Calc - Tariff Smoothing'!C28 -> LED1x22 | C22: ='Calc - Tariff Smoothing'!D28 -> Lamp | D22: ='Calc - Tariff Smoothing'!Q28*(1+INDIRECT("CPI"&D$5)) -> 23.76353242 | E22: =D22*(1+INDIRECT("CPI"&E$5)) -> 24.33976829 | F22: 24.92997716 | G22: 25.53449786 | H22: 26.15367743
B23: ='Calc - Tariff Smoothing'!C29 -> LED1x25 GE | C23: ='Calc - Tariff Smoothing'!D29 -> Lamp | D23: ='Calc - Tariff Smoothing'!Q29*(1+INDIRECT("CPI"&D$5)) -> 23.76353242 | E23: =D23*(1+INDIRECT("CPI"&E$5)) -> 24.33976829 | F23: 24.92997716 | G23: 25.53449786 | H23: 26.15367743
B24: ='Calc - Tariff Smoothing'!C30 -> LED1x28 | C24: ='Calc - Tariff Smoothing'!D30 -> Lamp | D24: ='Calc - Tariff Smoothing'!Q30*(1+INDIRECT("CPI"&D$5)) -> 23.80998668 | E24: =D24*(1+INDIRECT("CPI"&E$5)) -> 24.38734902 | F24: 24.97871166 | G24: 25.58441411 | H24: 26.20480409
B25: ='Calc - Tariff Smoothing'!C31 -> LED1x29 | C25: ='Calc - Tariff Smoothing'!D31 -> Lamp | D25: ='Calc - Tariff Smoothing'!Q31*(1+INDIRECT("CPI"&D$5)) -> 23.76353242 | E25: =D25*(1+INDIRECT("CPI"&E$5)) -> 24.33976829 | F25: 24.92997716 | G25: 25.53449786 | H25: 26.15367743
B26: ='Calc - Tariff Smoothing'!C32 -> LED1x298 | C26: ='Calc - Tariff Smoothing'!D32 -> Lamp | D26: ='Calc - Tariff Smoothing'!Q32*(1+INDIRECT("CPI"&D$5)) -> 31.62519124 | E26: =D26*(1+INDIRECT("CPI"&E$5)) -> 32.39206249 | F26: 33.1775294 | G26: 33.98204291 | H26: 34.80606485
B27: ='Calc - Tariff Smoothing'!C33 -> LED1x33 | C27: ='Calc - Tariff Smoothing'!D33 -> Lamp | D27: ='Calc - Tariff Smoothing'!Q33*(1+INDIRECT("CPI"&D$5)) -> 23.84614153 | E27: =D27*(1+INDIRECT("CPI"&E$5)) -> 24.42438057 | F27: 25.01664119 | G27: 25.62326338 | H27: 26.2445954
B28: ='Calc - Tariff Smoothing'!C34 -> LED1x42 | C28: ='Calc - Tariff Smoothing'!D34 -> Lamp | D28: ='Calc - Tariff Smoothing'!Q34*(1+INDIRECT("CPI"&D$5)) -> 23.89221662 | E28: =D28*(1+INDIRECT("CPI"&E$5)) -> 24.47157293 | F28: 25.0649779 | G28: 25.67277219 | H28: 26.29530474
B29: ='Calc - Tariff Smoothing'!C35 -> MBF1x1000 | C29: ='Calc - Tariff Smoothing'!D35 -> Lamp | D29: ='Calc - Tariff Smoothing'!Q35*(1+INDIRECT("CPI"&D$5)) -> 78.77871838 | E29: =D29*(1+INDIRECT("CPI"&E$5)) -> 80.68900355 | F29: 82.64561075 | G29: 84.64966322 | H29: 86.70231145
B30: ='Calc - Tariff Smoothing'!C36 -> MBF1x125 | C30: ='Calc - Tariff Smoothing'!D36 -> Lamp | D30: ='Calc - Tariff Smoothing'!Q36*(1+INDIRECT("CPI"&D$5)) -> 41.62311612 | E30: =D30*(1+INDIRECT("CPI"&E$5)) -> 42.63242451 | F30: 43.66620737 | G30: 44.72505817 | H30: 45.80958477
B31: ='Calc - Tariff Smoothing'!C37 -> MBF1x250 | C31: ='Calc - Tariff Smoothing'!D37 -> Lamp | D31: ='Calc - Tariff Smoothing'!Q37*(1+INDIRECT("CPI"&D$5)) -> 56.35594728 | E31: =D31*(1+INDIRECT("CPI"&E$5)) -> 57.72250837 | F31: 59.12220685 | G31: 60.55584626 | H31: 62.02424963
B32: ='Calc - Tariff Smoothing'!C38 -> MBF1x400 | C32: ='Calc - Tariff Smoothing'!D38 -> Lamp | D32: ='Calc - Tariff Smoothing'!Q38*(1+INDIRECT("CPI"&D$5)) -> 56.35655031 | E32: =D32*(1+INDIRECT("CPI"&E$5)) -> 57.72312602 | F32: 59.12283947 | G32: 60.55649422 | H32: 62.0249133
B33: ='Calc - Tariff Smoothing'!C39 -> MBF1x42 | C33: ='Calc - Tariff Smoothing'!D39 -> Lamp | D33: ='Calc - Tariff Smoothing'!Q39*(1+INDIRECT("CPI"&D$5)) -> 37.11734679 | E33: =D33*(1+INDIRECT("CPI"&E$5)) -> 38.01739592 | F33: 38.93927012 | G33: 39.88349862 | H33: 40.85062347
B34: ='Calc - Tariff Smoothing'!C40 -> MBF1x50 | C34: ='Calc - Tariff Smoothing'!D40 -> Lamp | D34: ='Calc - Tariff Smoothing'!Q40*(1+INDIRECT("CPI"&D$5)) -> 41.72658373 | E34: =D34*(1+INDIRECT("CPI"&E$5)) -> 42.73840108 | F34: 43.77475374 | G34: 44.83623665 | H34: 45.92345919
B35: ='Calc - Tariff Smoothing'!C41 -> MBF1x80 | C35: ='Calc - Tariff Smoothing'!D41 -> Lamp | D35: ='Calc - Tariff Smoothing'!Q41*(1+INDIRECT("CPI"&D$5)) -> 39.53300345 | E35: =D35*(1+INDIRECT("CPI"&E$5)) -> 40.49162923 | F35: 41.47350049 | G35: 42.47918089 | H35: 43.50924778
B36: ='Calc - Tariff Smoothing'!C42 -> MBF2x80 | C36: ='Calc - Tariff Smoothing'!D42 -> Lamp | D36: ='Calc - Tariff Smoothing'!Q42*(1+INDIRECT("CPI"&D$5)) -> 50.34708724 | E36: =D36*(1+INDIRECT("CPI"&E$5)) -> 51.567941 | F36: 52.81839893 | G36: 54.0991789 | H36: 55.41101618
B37: ='Calc - Tariff Smoothing'!C43 -> MBI1x100 | C37: ='Calc - Tariff Smoothing'!D43 -> Lamp | D37: ='Calc - Tariff Smoothing'!Q43*(1+INDIRECT("CPI"&D$5)) -> 56.27877146 | E37: =D37*(1+INDIRECT("CPI"&E$5)) -> 57.64346113 | F37: 59.04124281 | G37: 60.47291894 | H37: 61.93931143
B38: ='Calc - Tariff Smoothing'!C44 -> MBI1x1000 | C38: ='Calc - Tariff Smoothing'!D44 -> Lamp | D38: ='Calc - Tariff Smoothing'!Q44*(1+INDIRECT("CPI"&D$5)) -> 70.0986951 | E38: =D38*(1+INDIRECT("CPI"&E$5)) -> 71.79850059 | F38: 73.53952423 | G38: 75.32276552 | H38: 77.14924817
B39: ='Calc - Tariff Smoothing'!C45 -> MBI1x150 | C39: ='Calc - Tariff Smoothing'!D45 -> Lamp | D39: ='Calc - Tariff Smoothing'!Q45*(1+INDIRECT("CPI"&D$5)) -> 56.18883278 | E39: =D39*(1+INDIRECT("CPI"&E$5)) -> 57.55134154 | F39: 58.94688944 | G39: 60.37627762 | H39: 61.84032668
B40: ='Calc - Tariff Smoothing'!C46 -> MBI1x250 | C40: ='Calc - Tariff Smoothing'!D46 -> Lamp | D40: ='Calc - Tariff Smoothing'!Q46*(1+INDIRECT("CPI"&D$5)) -> 53.85112383 | E40: =D40*(1+INDIRECT("CPI"&E$5)) -> 55.15694609 | F40: 56.4944329 | G40: 57.86435208 | H40: 59.26749009
B41: ='Calc - Tariff Smoothing'!C47 -> MBI1x400 | C41: ='Calc - Tariff Smoothing'!D47 -> Lamp | D41: ='Calc - Tariff Smoothing'!Q47*(1+INDIRECT("CPI"&D$5)) -> 53.77463322 | E41: =D41*(1+INDIRECT("CPI"&E$5)) -> 55.07860068 | F41: 56.41418771 | G41: 57.78216105 | H41: 59.18330603
B42: ='Calc - Tariff Smoothing'!C48 -> MBI1x70 | C42: ='Calc - Tariff Smoothing'!D48 -> Lamp | D42: ='Calc - Tariff Smoothing'!Q48*(1+INDIRECT("CPI"&D$5)) -> 43.07014569 | E42: =D42*(1+INDIRECT("CPI"&E$5)) -> 44.11454274 | F42: 45.1842651 | G42: 46.2799269 | H42: 47.40215712
B43: ='Calc - Tariff Smoothing'!C49 -> MBI1x70 II | C43: ='Calc - Tariff Smoothing'!D49 -> Lamp | D43: ='Calc - Tariff Smoothing'!Q49*(1+INDIRECT("CPI"&D$5)) -> 61.05383303 | E43: =D43*(1+INDIRECT("CPI"&E$5)) -> 62.53431196 | F43: 64.05069064 | G43: 65.60383961 | H43: 67.19465049
B44: ='Calc - Tariff Smoothing'!C50 -> SON1x100 | C44: ='Calc - Tariff Smoothing'!D50 -> Lamp | D44: ='Calc - Tariff Smoothing'!Q50*(1+INDIRECT("CPI"&D$5)) -> 66.23186629 | E44: =D44*(1+INDIRECT("CPI"&E$5)) -> 67.83790603 | F44: 69.48289022 | G44: 71.16776321 | H44: 72.89349227
B45: ='Calc - Tariff Smoothing'!C51 -> SON1x1000 | C45: ='Calc - Tariff Smoothing'!D51 -> Lamp | D45: ='Calc - Tariff Smoothing'!Q51*(1+INDIRECT("CPI"&D$5)) -> 72.6911897 | E45: =D45*(1+INDIRECT("CPI"&E$5)) -> 74.45385994 | F45: 76.25927272 | G45: 78.1084645 | H45: 80.00249686
B46: ='Calc - Tariff Smoothing'!C52 -> SON1x150 | C46: ='Calc - Tariff Smoothing'!D52 -> Lamp | D46: ='Calc - Tariff Smoothing'!Q52*(1+INDIRECT("CPI"&D$5)) -> 63.01750366 | E46: =D46*(1+INDIRECT("CPI"&E$5)) -> 64.54559914 | F46: 66.11074902 | G46: 67.71385182 | H46: 69.35582785
B47: ='Calc - Tariff Smoothing'!C53 -> SON1x150 AR | C47: ='Calc - Tariff Smoothing'!D53 -> Lamp | D47: ='Calc - Tariff Smoothing'!Q53*(1+INDIRECT("CPI"&D$5)) -> 63.02470621 | E47: =D47*(1+INDIRECT("CPI"&E$5)) -> 64.55297634 | F47: 66.1183051 | G47: 67.72159113 | H47: 69.36375483
B48: ='Calc - Tariff Smoothing'!C54 -> SON1x250 | C48: ='Calc - Tariff Smoothing'!D54 -> Lamp | D48: ='Calc - Tariff Smoothing'!Q54*(1+INDIRECT("CPI"&D$5)) -> 64.54667488 | E48: =D48*(1+INDIRECT("CPI"&E$5)) -> 66.11185084 | F48: 67.71498036 | G48: 69.35698376 | H48: 71.03880368
B49: ='Calc - Tariff Smoothing'!C55 -> SON1x250 AR | C49: ='Calc - Tariff Smoothing'!D55 -> Lamp | D49: ='Calc - Tariff Smoothing'!Q55*(1+INDIRECT("CPI"&D$5)) -> 64.55029252 | E49: =D49*(1+INDIRECT("CPI"&E$5)) -> 66.1155562 | F49: 67.71877557 | G49: 69.36087099 | H49: 71.04278518
B50: ='Calc - Tariff Smoothing'!C56 -> SON1x400 | C50: ='Calc - Tariff Smoothing'!D56 -> Lamp | D50: ='Calc - Tariff Smoothing'!Q56*(1+INDIRECT("CPI"&D$5)) -> 65.22202462 | E50: =D50*(1+INDIRECT("CPI"&E$5)) -> 66.80357696 | F50: 68.42347997 | G50: 70.0826636 | H50: 71.78208034
B51: ='Calc - Tariff Smoothing'!C57 -> SON1x400 AR | C51: ='Calc - Tariff Smoothing'!D57 -> Lamp | D51: ='Calc - Tariff Smoothing'!Q57*(1+INDIRECT("CPI"&D$5)) -> 87.61345929 | E51: =D51*(1+INDIRECT("CPI"&E$5)) -> 89.73797586 | F51: 91.9140093 | G51: 94.14280882 | H51: 96.42565393
B52: ='Calc - Tariff Smoothing'!C58 -> SON1x50 | C52: ='Calc - Tariff Smoothing'!D58 -> Lamp | D52: ='Calc - Tariff Smoothing'!Q58*(1+INDIRECT("CPI"&D$5)) -> 48.12938061 | E52: =D52*(1+INDIRECT("CPI"&E$5)) -> 49.29645777 | F52: 50.49183508 | G52: 51.71619879 | H52: 52.97025179
B53: ='Calc - Tariff Smoothing'!C59 -> SON1x600 | C53: ='Calc - Tariff Smoothing'!D59 -> Lamp | D53: ='Calc - Tariff Smoothing'!Q59*(1+INDIRECT("CPI"&D$5)) -> 72.82014227 | E53: =D53*(1+INDIRECT("CPI"&E$5)) -> 74.58593945 | F53: 76.39455499 | G53: 78.24702719 | H53: 80.14441953
B54: ='Calc - Tariff Smoothing'!C60 -> SON1x70 | C54: ='Calc - Tariff Smoothing'!D60 -> Lamp | D54: ='Calc - Tariff Smoothing'!Q60*(1+INDIRECT("CPI"&D$5)) -> 46.4418344 | E54: =D54*(1+INDIRECT("CPI"&E$5)) -> 47.56799068 | F54: 48.72145483 | G54: 49.90288904 | H54: 51.11297155
B55: ='Calc - Tariff Smoothing'!C61 -> SON2x250 | C55: ='Calc - Tariff Smoothing'!D61 -> Lamp | D55: ='Calc - Tariff Smoothing'!Q61*(1+INDIRECT("CPI"&D$5)) -> 92.44871988 | E55: =D55*(1+INDIRECT("CPI"&E$5)) -> 94.69048546 | F55: 96.98661104 | G55: 99.33841479 | H55: 101.7472468
B56: ='Calc - Tariff Smoothing'!C62 -> SON2x400 | C56: ='Calc - Tariff Smoothing'!D62 -> Lamp | D56: ='Calc - Tariff Smoothing'!Q62*(1+INDIRECT("CPI"&D$5)) -> 93.78762904 | E56: =D56*(1+INDIRECT("CPI"&E$5)) -> 96.06186149 | F56: 98.39124122 | G56: 100.7771055 | H56: 103.220824
B57: ='Calc - Tariff Smoothing'!C63 -> SON4x250 | C57: ='Calc - Tariff Smoothing'!D63 -> Lamp | D57: ='Calc - Tariff Smoothing'!Q63*(1+INDIRECT("CPI"&D$5)) -> 143.54539 | E57: =D57*(1+INDIRECT("CPI"&E$5)) -> 147.0261858 | F57: 150.5913865 | G57: 154.2430388 | H57: 157.9832392
B58: ='Calc - Tariff Smoothing'!C64 -> SON4x600 | C58: ='Calc - Tariff Smoothing'!D64 -> Lamp | D58: ='Calc - Tariff Smoothing'!Q64*(1+INDIRECT("CPI"&D$5)) -> 175.9760339 | E58: =D58*(1+INDIRECT("CPI"&E$5)) -> 180.2432322 | F58: 184.6139046 | G58: 189.0905604 | H58: 193.6757695
B59: ='Calc - Tariff Smoothing'!C65 -> TF1x20 | C59: ='Calc - Tariff Smoothing'!D65 -> Lamp | D59: ='Calc - Tariff Smoothing'!Q65*(1+INDIRECT("CPI"&D$5)) -> 42.84552033 | E59: =D59*(1+INDIRECT("CPI"&E$5)) -> 43.8844705 | F59: 44.9486139 | G59: 46.03856145 | H59: 47.15493886
B60: ='Calc - Tariff Smoothing'!C66 -> TF1x40 | C60: ='Calc - Tariff Smoothing'!D66 -> Lamp | D60: ='Calc - Tariff Smoothing'!Q66*(1+INDIRECT("CPI"&D$5)) -> 67.86626964 | E60: =D60*(1+INDIRECT("CPI"&E$5)) -> 69.51194162 | F60: 71.19751907 | G60: 72.92396967 | H60: 74.69228453
B61: ='Calc - Tariff Smoothing'!C67 -> TF1x80 | C61: ='Calc - Tariff Smoothing'!D67 -> Lamp | D61: ='Calc - Tariff Smoothing'!Q67*(1+INDIRECT("CPI"&D$5)) -> 42.54997618 | E61: =D61*(1+INDIRECT("CPI"&E$5)) -> 43.58175977 | F61: 44.63856282 | G61: 45.72099202 | H61: 46.82966877
B62: ='Calc - Tariff Smoothing'!C68 -> TF2x14 T5 | C62: ='Calc - Tariff Smoothing'!D68 -> Lamp | D62: ='Calc - Tariff Smoothing'!Q68*(1+INDIRECT("CPI"&D$5)) -> 43.4318252 | E62: =D62*(1+INDIRECT("CPI"&E$5)) -> 44.48499252 | F62: 45.56369783 | G62: 46.66856039 | H62: 47.80021448
B63: ='Calc - Tariff Smoothing'!C69 -> TF2x20 | C63: ='Calc - Tariff Smoothing'!D69 -> Lamp | D63: ='Calc - Tariff Smoothing'!Q69*(1+INDIRECT("CPI"&D$5)) -> 53.99501596 | E63: =D63*(1+INDIRECT("CPI"&E$5)) -> 55.30432742 | F63: 56.64538804 | G63: 58.0189677 | H63: 59.42585495
B64: ='Calc - Tariff Smoothing'!C70 -> TF2x26 | C64: ='Calc - Tariff Smoothing'!D70 -> Lamp | D64: ='Calc - Tariff Smoothing'!Q70*(1+INDIRECT("CPI"&D$5)) -> 43.08457913 | E64: =D64*(1+INDIRECT("CPI"&E$5)) -> 44.12932617 | F64: 45.19940702 | G64: 46.29543599 | H64: 47.41804228
B65: ='Calc - Tariff Smoothing'!C71 -> TF2x40 | C65: ='Calc - Tariff Smoothing'!D71 -> Lamp | D65: ='Calc - Tariff Smoothing'!Q71*(1+INDIRECT("CPI"&D$5)) -> 43.08457913 | E65: =D65*(1+INDIRECT("CPI"&E$5)) -> 44.12932617 | F65: 45.19940702 | G65: 46.29543599 | H65: 47.41804228
B66: ='Calc - Tariff Smoothing'!C72 -> TF4x20 | C66: ='Calc - Tariff Smoothing'!D72 -> Lamp | D66: ='Calc - Tariff Smoothing'!Q72*(1+INDIRECT("CPI"&D$5)) -> 42.92491105 | E66: =D66*(1+INDIRECT("CPI"&E$5)) -> 43.96578634 | F66: 45.03190155 | G66: 46.12386872 | H66: 47.24231473
B67: ='Calc - Tariff Smoothing'!C73 -> TF4x40 | C67: ='Calc - Tariff Smoothing'!D73 -> Lamp | D67: ='Calc - Tariff Smoothing'!Q73*(1+INDIRECT("CPI"&D$5)) -> 44.53771687 | E67: =D67*(1+INDIRECT("CPI"&E$5)) -> 45.61770068 | F67: 46.72387274 | G67: 47.85686809 | H67: 49.01733716
B68: ='Calc - Tariff Smoothing'!C74 -> TH1x1500 | C68: ='Calc - Tariff Smoothing'!D74 -> Lamp | D68: ='Calc - Tariff Smoothing'!Q74*(1+INDIRECT("CPI"&D$5)) -> 0 | E68: =D68*(1+INDIRECT("CPI"&E$5)) -> 0 | F68: 0 | G68: 0 | H68: 0
B69: ='Calc - Tariff Smoothing'!C75 -> TH1x500 | C69: ='Calc - Tariff Smoothing'!D75 -> Lamp | D69: ='Calc - Tariff Smoothing'!Q75*(1+INDIRECT("CPI"&D$5)) -> 0 | E69: =D69*(1+INDIRECT("CPI"&E$5)) -> 0 | F69: 0 | G69: 0 | H69: 0
B70: ='Calc - Tariff Smoothing'!C76 -> TH1x750 | C70: ='Calc - Tariff Smoothing'!D76 -> Lamp | D70: ='Calc - Tariff Smoothing'!Q76*(1+INDIRECT("CPI"&D$5)) -> 0 | E70: =D70*(1+INDIRECT("CPI"&E$5)) -> 0 | F70: 0 | G70: 0 | H70: 0

Sheet Input - General
A1: ='Report - Summary'!$A$1 -> Ok
B2: Cell colour legend
B4: Inputs - hardcoded value
B5: Derived Inputs - Calculated or referenced to another cell
B6: Derived Inputs - Calculated by goal seek macro | H6: Price $ nominal
B7: General assumptions | D7: Units | F7: Inputs | H7: FY18 | I7: FY19 | J7: FY20 | K7: FY21 | L7: FY22 | M7: FY23 | N7: FY24
B9: CPI (%) | D9: % p.a. | H9: 0.01951870655 | I9: 0.019 | J9: 0.02424874658 | K9: 0.02424874658 | L9: 0.02424874658 | M9: 0.02424874658 | N9: 0.02424874658
B10: Labour real price escalation (%) | D10: % p.a. | H10: 0.005228652534 | I10: 0.009463713656 | J10: 0.003295411671 | K10: 0.006372300302 | L10: 0.01048997352 | M10: 0.01284921866 | N10: 0.01138266369
B11: Labour rate ($/hour) | D11: $/hour | H11: 52.91 | I11: =INDIRECT("PriceLabour"&H$7)*(1+INDIRECT("EscLabour"&I$7))*(1+INDIRECT("CPI"&I$7)) -> 54.42552887 | J11: 55.92898337 | K11: 57.65022955 | L11: 59.66758916 | M11: 61.89972638 | N11: 64.1223862
B12: Labour rate - overtime (1.89 times) ($/hour) | D12: $/hour | F12: 1.89 | H12: =PriceLabourFY18*F12 -> 99.9999 | I12: =PriceLabourFY19*F12 -> 102.8642496 | J12: =PriceLabourFY20*F12 -> 105.7057786 | K12: =PriceLabourFY21*F12 -> 108.9589339 | L12: =PriceLabourFY22*F12 -> 112.7717435 | M12: =PriceLabourFY23*F12 -> 116.9904829 | N12: =PriceLabourFY24*F12 -> 121.1913099
B13: EWP ($/hour) | D13: $/hour | H13: 32.09162584 | I13: =INDIRECT("priceewp"&H7)*(1+INDIRECT("CPI"&I7)) -> 32.70136673 | J13: =INDIRECT("priceewp"&I7)*(1+INDIRECT("CPI"&J7)) -> 33.49433388 | K13: 34.30652949 | L13: 35.13841983 | M13: 35.99048247 | N13: 36.86320656
B14: Average Visor cost | D14: $/unit | H14: 49.71973843 | I14: =INDIRECT("PriceVisor"&H7)*(1+INDIRECT("CPI"&I7)) -> 50.66441346 | J14: =INDIRECT("PriceVisor"&I7)*(1+INDIRECT("CPI"&J7)) -> 51.89296198 | K14: 53.15130127 | L14: 54.4401537 | M14: 55.76025919 | N14: 57.11237559
B15: Average PE cell cost | D15: $/unit | H15: 11.65 | I15: =INDIRECT("PricePECell"&H7)*((1+INDIRECT("CPI"&I7))) -> 11.87135 | J15: =INDIRECT("PricePECell"&I7)*((1+INDIRECT("CPI"&J7))) -> 12.15921536 | K15: 12.45406109 | L15: 12.75605646 | M15: 13.06537484 | N15: 13.3821938
B16: Average miscellaneous materials cost | D16: $/unit | H16: 15 | I16: =INDIRECT("PriceMisc"&H7)*(1+INDIRECT("CPI"&I7)) -> 15.285 | J16: =INDIRECT("PriceMisc"&I7)*(1+INDIRECT("CPI"&J7)) -> 15.65564209 | K16: 16.03527179 | L16: 16.42410703 | M16: 16.82237104 | N16: 17.23029245
B17: Miscellaneous materials costs (SON 400 AR) | D17: $/unit | H17: 140 | I17: =INDIRECT("SON400ARMiscMaterials"&H7) -> 140 | J17: =INDIRECT("SON400ARMiscMaterials"&I7) -> 140 | K17: 140 | L17: 140 | M17: 140 | N17: 140
B18: Miscellaneous failures (SON 400 AR) | D18: % p.a. | F18: 0.125
B19: Nominal Vanilla WACC | D19: % p.a. | F19: 0.0599386
B20: Proportion of work in overtime hours (%) | D20: % p.a. | F20: 0.07
B21: Proportion of work in standard hours (%) | D21: % p.a. | F21: 0.93
B22: Labour oncosts (%) | D22: % p.a. | F22: 0.5223
B23: Corporate Overheads (CAM) | D23: % p.a. | F23: 0.1116752511 | H23: =OverheadsCAM -> 0.1116752511 | I23: 0.1116752511 | J23: 0.1116752511 | K23: 0.1116752511 | L23: 0.1116752511 | M23: 0.1116752511 | N23: 0.1116752511
B24: Overhead cost allocation (Direct + Indirect) (%) | D24: % p.a. | F24: 0.2286905569 | H24: =OverheadsOther -> 0.2286905569 | I24: 0.2286905569 | J24: 0.2286905569 | K24: 0.2286905569 | L24: 0.2286905569 | M24: 0.2286905569 | N24: 0.2286905569
H26: Price $ nominal
B27: Bulk maintenance assumptions | D27: Units | F27: Inputs | H27: FY18 | I27: FY19 | J27: FY20 | K27: FY21 | L27: FY22 | M27: FY23 | N27: FY24
B30: Servicing of Minor Luminaire - Scheduled | D30: Cycle time (Yrs) | F30: 4 | H30: 24.6719008 | I30: =INDIRECT("PriceBulkTask1"&H$27)*(1+ INDIRECT("CPI"&I$27)) -> 25.14066692 | J30: 25.75029658 | K30: 26.37470899 | L30: 27.01426263 | M30: 27.66932463 | N30: 28.34027108
B31: Servicing of Major Luminaire - Scheduled | D31: Cycle time (Yrs) | F31: 4 | H31: 28.738834 | I31: =INDIRECT("PriceBulkTask2"&H$27)*(1+ INDIRECT("CPI"&I$27)) -> 29.28487185 | J31: 29.99499328 | K31: 30.72233427 | L31: 31.46731237 | M31: 32.23035525 | N31: 33.01190097
B32: Servicing of Minor LED Luminaire - Scheduled | D32: Cycle time (Yrs) | F32: 6 | H32: 24.6719008 | I32: =INDIRECT("PriceBulkTask1LED"&H$27)*(1+ INDIRECT("CPI"&I$27)) -> 25.14066692 | J32: 25.75029658 | K32: 26.37470899 | L32: 27.01426263 | M32: 27.66932463 | N32: 28.34027108
B33: Servicing of Major LED Luminaire - Scheduled | D33: Cycle time (Yrs) | F33: 6 | H33: 28.738834 | I33: =INDIRECT("PriceBulkTask2LED"&H$27)*(1+ INDIRECT("CPI"&I$27)) -> 29.28487185 | J33: 29.99499328 | K33: 30.72233427 | L33: 31.46731237 | M33: 32.23035525 | N33: 33.01190097
B34: Replacement of Luminaire Visor | D34: Cycle time (Yrs) | F34: 140.3875791 | H34: 11.48500442 | I34: =INDIRECT("PriceBulkTask3"&H$27)*(1+ INDIRECT("CPI"&I$27)) -> 11.70321951 | J34: 11.98700791 | K34: 12.27767783 | L34: 12.57539613 | M34: 12.88033372 | N34: 13.19266567
B35: Replacement of Photo-electric Cell | D35: Cycle time (Yrs) | F35: 0 | H35: 5.574180491 | I35: =INDIRECT("PriceBulkTask4"&H$27)*(1+ INDIRECT("CPI"&I$27)) -> 5.68008992 | J35: 5.817824981 | K35: 5.958899945 | L35: 6.1033958 | M35: 6.251395498 | N35: 6.402984003
B36: Minor Non-Electrical Repair | D36: Cycle time (Yrs) | F36: 168.6008287 | H36: 24.13954103 | I36: =INDIRECT("PriceBulkTask5"&H$27)*(1+ INDIRECT("CPI"&I$27)) -> 24.59819231 | J36: 25.19466764 | K36: 25.80560675 | L36: 26.43136037 | M36: 27.07228773 | N36: 27.72875677
B37: Apply Temporary Insulation | D37: Cycle time (Yrs) | F37: 49.92515337 | H37: 14.46149856 | I37: =INDIRECT("PriceBulkTask6"&H$27)*(1+ INDIRECT("CPI"&I$27)) -> 14.73626703 | J37: 15.09360304 | K37: 15.45960399 | L37: 15.83448001 | M37: 16.21844631 | N37: 16.6117233
B38: Minor Electrical Work | D38: Cycle time (Yrs) | F38: 66.50340507 | H38: 40.19950453 | I38: =INDIRECT("PriceBulkTask7"&H$27)*(1+ INDIRECT("CPI"&I$27)) -> 40.96329512 | J38: 41.95660368 | K38: 42.97399873 | L38: 44.01606434 | M38: 45.08339873 | N38: 46.17661464
B39: Night Time Traffic Route Luminaire (TRL) Patrol | D39: Cycle time (Yrs) | F39: 16275.6 | H39: 8290.488177 | I39: =INDIRECT("PriceBulkTask8"&H$27)*(1+ INDIRECT("CPI"&I$27)) -> 8448.007453 | J39: 8652.861044 | K39: 8862.682079 | L39: 9077.591011 | M39: 9297.711215 | N39: 9523.169058
B41: Spot maintenance assumptions | D41: Units | F41: Inputs
B44: Number of workers in standard crew | D44: no. of ppl | F44: 2
B45: Additional workers on traffic route | D45: no. of ppl | F45: 1
B46: Time required for average spot lamp replacement (hours) | D46: no. of hrs | F46: =45.4/60 -> 0.7566666667
B47: Time for PE Cell replacement (hours) | D47: no. of hrs | F47: =45.4/60 -> 0.7566666667
B48: Time for other spot maintenance task (hours) | D48: no. of hrs | F48: =45.4/60 -> 0.7566666667
B49: Annual average failure rate for PE cells | D49: % p.a. | F49: 0.0198285774
B50: Annual average failure rates for other components | D50: % p.a. | F50: 0.03256191236
H51: Price $ nominal
B52: Connection maintenance assumptions | D52: Units | F52: Type | H52: FY18 | I52: FY19 | J52: FY20 | K52: FY21 | L52: FY22 | M52: FY23 | N52: FY24
B55: Connection type - "O/U" | D55: $/unit | F55: O/U | H55: 74.36233111 | I55: =H55*(1+INDIRECT("CPI"&I$52)) -> 75.7752154 | J55: =I55*(1+INDIRECT("CPI"&J$52)) -> 77.61266939 | K55: 79.49467934 | L55: 81.42232568 | M55: 83.39671502 | N55: 85.41898083
B56: Connection type - "OH" | D56: $/unit | F56: OH | H56: 0 | I56: =H56*(1+INDIRECT("CPI"&I$52)) -> 0 | J56: 0 | K56: 0 | L56: 0 | M56: 0 | N56: 0
B57: Connection type - "OH2" | D57: $/unit | F57: OH2 | H57: 0 | I57: =H57*(1+INDIRECT("CPI"&I$52)) -> 0 | J57: 0 | K57: 0 | L57: 0 | M57: 0 | N57: 0
B58: Connection type - "OHS" | D58: $/unit | F58: OHS | H58: 0 | I58: =H58*(1+INDIRECT("CPI"&I$52)) -> 0 | J58: 0 | K58: 0 | L58: 0 | M58: 0 | N58: 0
B59: Connection type - "UG2" | D59: $/unit | F59: UG2 | H59: 0 | I59: =H59*(1+INDIRECT("CPI"&I$52)) -> 0 | J59: 0 | K59: 0 | L59: 0 | M59: 0 | N59: 0
B60: Connection type - "UGR1" | D60: $/unit | F60: UGR1 | H60: 68.16374696 | I60: =H60*(1+INDIRECT("CPI"&I$52)) -> 69.45885816 | J60: 71.1431484 | K60: 72.86828058 | L60: 74.63524505 | M60: 76.44505619 | N60: 78.29875299
B61: Connection type - "UGR2" | D61: $/unit | F61: UGR2 | H61: 24.78375584 | I61: =H61*(1+INDIRECT("CPI"&I$52)) -> 25.2546472 | J61: 25.86704074 | K61: 26.49428406 | L61: 27.13673724 | M61: 27.7947691 | N61: 28.46875742
B62: Connection type - "UGS" | D62: $/unit | F62: UGS | H62: 0 | I62: =H62*(1+INDIRECT("CPI"&I$52)) -> 0 | J62: 0 | K62: 0 | L62: 0 | M62: 0 | N62: 0
B63: Connection type - "UG-SP" | D63: $/unit | F63: UG-SP | H63: 0 | I63: =H63*(1+INDIRECT("CPI"&I$52)) -> 0 | J63: 0 | K63: 0 | L63: 0 | M63: 0 | N63: 0
H65: Price $ nominal
B66: Targeted Overheads | D66: Units | H66: FY18 | I66: FY19 | J66: FY20 | K66: FY21 | L66: FY22 | M66: FY23 | N66: FY24 | O66: NPV FY19 (FY20-24)
B69: Overhead pre-CAM change | D69: $ nominal | H69: 2500000 | I69: =H69*(1+INDIRECT("CPI"&I$66)) -> 2547500 | J69: 2650430 | K69: 2393392 | L69: 2188423 | M69: 2177629 | N69: 2183560
B70: CAM impact | D70: $ nominal | H70: 1500000 | I70: 1528500 | J70: 1590258 | K70: 1436035 | L70: 1313054 | M70: 1306577 | N70: 1310136
B71: Unrecovered: Overhead pre-CAM change | D71: $ nominal | H71: ='Report - Summary'!C11-H69 -> -101837.5169 | I71: ='Report - Summary'!D11-I69 -> -95609.3598 | J71: ='Report - Summary'!E11-J69 -> -267449.1562 | K71: ='Report - Summary'!F11-K69 -> -78664.50934 | L71: ='Report - Summary'!G11-L69 -> 79953.39446 | M71: ='Report - Summary'!H11-M69 -> 139037.8325 | N71: ='Report - Summary'!I11-N69 -> 194047.7887 | O71: =NPV(NominalVanillaWACC,J71:N71) -> -1.372901716e-10
B72: Unrecovered: CAM impact | D72: $ nominal | H72: ='Report - Summary'!C12-H70 -> -61102.58992 | I72: ='Report - Summary'!D12-I70 -> -57365.69747 | J72: ='Report - Summary'!E12-J70 -> -160469.573 | K72: ='Report - Summary'!F12-K70 -> -47198.58263 | L72: ='Report - Summary'!G12-L70 -> 47971.76119 | M72: ='Report - Summary'!H12-M70 -> 83423.02242 | N72: ='Report - Summary'!I12-N70 -> 116428.5941 | O72: =NPV(NominalVanillaWACC,J72:N72) -> 3.43225429e-10
B73: Options
B76: Traffic | F76: 1
B77: Non-Traffic | F77: 0

Sheet Input - Inventory
A1: ='Report - Summary'!$A$1 -> Ok
B2: Cell colour legend
B3: Inputs - hardcoded value
B4: Derived Inputs - Calculated or referenced to another cell
P6: Qty of assets being maintained | X6: Price | AF6: Average annual failure under selected bulk cycle | AH6: Number of Spot Tasks
B7: # | C7: Description | D7: Type | E7: Route | F7: Category | G7: Is LED | H7: Lamps (#) | I7: Rate 1 | J7: Rate 2 | K7: Rate 3 | L7: Rate 4 | M7: Rate 5 | N7: Total | P7: FY18 | Q7: FY19 | R7: FY20 | S7: FY21 | T7: FY22 | U7: FY23 | V7: FY24 | X7: FY18 | Y7: FY19 | Z7: FY20 | AA7: FY21 | AB7: FY22 | AC7: FY23 | AD7: FY24 | AH7: FY18 | AI7: FY19 | AJ7: FY20 | AK7: FY21 | AL7: FY22 | AM7: FY23 | AN7: FY24
B9: 1 | C9: O/U | D9: Connection | E9: NonTraffic | F9: n/a | G9: N | H9: 0 | I9: 560 | J9: 16 | K9: 19 | L9: 0 | M9: 0 | N9: =SUM(I9:M9) -> 595 | P9: =I9+J9+L9+M9 -> 576 | Q9: =Count1FY18 -> 576 | R9: 576 | S9: 576 | T9: 576 | U9: 576 | V9: 576
B10: 2 | C10: OH | D10: Connection | E10: NonTraffic | F10: n/a | G10: N | H10: 0 | I10: 193907 | J10: 2255 | K10: 1582 | L10: 1 | M10: 460 | N10: =SUM(I10:M10) -> 198205 | P10: =I10+J10+L10+M10 -> 196623 | Q10: =Count2FY18 -> 196623 | R10: 196623 | S10: 196623 | T10: 196623 | U10: 196623 | V10: 196623
B11: 3 | C11: OH2 | D11: Connection | E11: NonTraffic | F11: n/a | G11: N | H11: 0 | I11: 521 | J11: 197 | K11: 10 | L11: 0 | M11: 0 | N11: 728 | P11: 718 | Q11: =Count3FY18 -> 718 | R11: 718 | S11: 718 | T11: 718 | U11: 718 | V11: 718
B12: 4 | C12: OHS | D12: Connection | E12: NonTraffic | F12: n/a | G12: N | H12: 0 | I12: 8 | J12: 1 | K12: 0 | L12: 0 | M12: 0 | N12: 9 | P12: 9 | Q12: =Count4FY18 -> 9 | R12: 9 | S12: 9 | T12: 9 | U12: 9 | V12: 9
B13: 5 | C13: UG2 | D13: Connection | E13: NonTraffic | F13: n/a | G13: N | H13: 0 | I13: 649 | J13: 485 | K13: 161 | L13: 0 | M13: 0 | N13: 1295 | P13: 1134 | Q13: =Count5FY18 -> 1134 | R13: 1134 | S13: 1134 | T13: 1134 | U13: 1134 | V13: 1134
B14: 6 | C14: UGR1 | D14: Connection | E14: NonTraffic | F14: n/a | G14: N | H14: 0 | I14: 31681 | J14: 0 | K14: 1741 | L14: 0 | M14: 111 | N14: 33533 | P14: 31792 | Q14: =Count6FY18 -> 31792 | R14: 31792 | S14: 31792 | T14: 31792 | U14: 31792 | V14: 31792
B15: 7 | C15: UGR2 | D15: Connection | E15: NonTraffic | F15: n/a | G15: N | H15: 0 | I15: 0 | J15: 20883 | K15: 785 | L15: 54 | M15: 0 | N15: 21722 | P15: 20937 | Q15: =Count7FY18 -> 20937 | R15: 20937 | S15: 20937 | T15: 20937 | U15: 20937 | V15: 20937
B16: 8 | C16: UGS | D16: Connection | E16: NonTraffic | F16: n/a | G16: N | H16: 0 | I16: 30 | J16: 78 | K16: 1 | L16: 0 | M16: 0 | N16: 109 | P16: =I16+J16+L16+M16 -> 108 | Q16: =Count8FY18 -> 108 | R16: 108 | S16: 108 | T16: 108 | U16: 108 | V16: 108
B17: 9 | C17: UG-SP | D17: Connection | E17: NonTraffic | F17: n/a | G17: N | H17: 0 | I17: 6 | J17: 7 | K17: 1185 | L17: 0 | M17: 0 | N17: 1198 | P17: 13 | Q17: =Count9FY18 -> 13 | R17: 13 | S17: 13 | T17: 13 | U17: 13 | V17: 13
B18: 10 | C18: LED TRIAL | D18: Lamp | E18: NonTraffic | F18: Minor | G18: Y | H18: 1 | I18: 67 | J18: 0 | K18: 0 | L18: 0 | M18: 0 | N18: 67 | P18: 67 | Q18: 67 | R18: 67 | S18: 67 | T18: 67 | U18: 67 | V18: 67 | AF18: 0 | AH18: =P18*FailurePECellAnnual+P18*FailureMiscAnnual+P18*$AF18 -> 3.510162814 | AI18: =Q18*FailurePECellAnnual+Q18*FailureMiscAnnual+Q18*$AF18 -> 3.510162814 | AJ18: =R18*FailurePECellAnnual+R18*FailureMiscAnnual+R18*$AF18 -> 3.510162814 | AK18: =S18*FailurePECellAnnual+S18*FailureMiscAnnual+S18*$AF18 -> 3.510162814 | AL18: =T18*FailurePECellAnnual+T18*FailureMiscAnnual+T18*$AF18 -> 3.510162814 | AM18: =U18*FailurePECellAnnual+U18*FailureMiscAnnual+U18*$AF18 -> 3.510162814 | AN18: =V18*FailurePECellAnnual+V18*FailureMiscAnnual+V18*$AF18 -> 3.510162814
B19: 11 | C19: LED1x100 | D19: Lamp | E19: Traffic | F19: Major | G19: Y | H19: 1 | I19: 6 | J19: 0 | K19: 0 | L19: 0 | M19: 0 | N19: 6 | P19: 6 | Q19: 6 | R19: 4982.666667 | S19: 10159 | T19: 15343 | U19: 15554 | V19: 15761 | AF19: 0 | AH19: 0.3143429385 | AI19: 0.3143429385 | AJ19: 261.044347 | AK19: 532.2349854 | AL19: 803.8272843 | AM19: 814.8816777 | AN19: 825.7265091
B20: 12 | C20: LED1x17 | D20: Lamp | E20: NonTraffic | F20: Minor | G20: Y | H20: 1 | I20: 2106 | J20: 88 | K20: 0 | L20: 28 | M20: 571 | N20: 2793 | P20: 2793 | Q20: 2793 | R20: 34068 | S20: 64297 | T20: 89881 | U20: 93783 | V20: 94011 | AF20: 0 | AH20: 146.3266379 | AI20: 146.3266379 | AJ20: 1784.839205 | AK20: 3368.55132 | AL20: 4708.90961 | AM20: 4913.337301 | AN20: 4925.282333
B21: 13 | C21: LED1x18 | D21: Lamp | E21: NonTraffic | F21: Minor | G21: Y | H21: 1 | I21: 0 | J21: 0 | K21: 0 | L21: 0 | M21: 0 | N21: 0 | P21: 0 | Q21: 0 | R21: 0 | S21: 0 | T21: 0 | U21: 0 | V21: 0 | AF21: 0 | AH21: 0 | AI21: 0 | AJ21: 0 | AK21: 0 | AL21: 0 | AM21: 0 | AN21: 0
B22: 14 | C22: LED1x20 | D22: Lamp | E22: NonTraffic | F22: Minor | G22: Y | H22: 1 | I22: 0 | J22: 0 | K22: 0 | L22: 0 | M22: 0 | N22: 0 | P22: 0 | Q22: 0 | R22: 0 | S22: 0 | T22: 0 | U22: 0 | V22: 0 | AF22: 0 | AH22: 0 | AI22: 0 | AJ22: 0 | AK22: 0 | AL22: 0 | AM22: 0 | AN22: 0
B23: 15 | C23: LED1x200 | D23: Lamp | E23: Traffic | F23: Major | G23: Y | H23: 1 | I23: 14 | J23: 0 | K23: 0 | L23: 0 | M23: 0 | N23: 14 | P23: 14 | Q23: 14 | R23: 1795 | S23: 3776 | T23: 5756 | U23: 6164 | V23: 6378 | AF23: 0 | AH23: 0.7334668566 | AI23: 0.7334668566 | AJ23: 94.04092911 | AK23: 197.8264893 | AL23: 301.559659 | AM23: 322.9349789 | AN23: 334.1465437
B24: 16 | C24: LED1x22 | D24: Lamp | E24: NonTraffic | F24: Minor | G24: Y | H24: 1 | I24: 12528 | J24: 1858 | K24: 0 | L24: 8 | M24: 0 | N24: 14394 | P24: 14394 | Q24: 14394 | R24: 14394 | S24: 14394 | T24: 14394 | U24: 14394 | V24: 14394 | AF24: 0 | AH24: 754.1087096 | AI24: 754.1087096 | AJ24: 754.1087096 | AK24: 754.1087096 | AL24: 754.1087096 | AM24: 754.1087096 | AN24: 754.1087096
B25: 17 | C25: LED1x25 GE | D25: Lamp | E25: NonTraffic | F25: Minor | G25: Y | H25: 1 | I25: 3340 | J25: 320 | K25: 1 | L25: 5 | M25: 0 | N25: 3666 | P25: 3665 | Q25: 3665 | R25: 3665 | S25: 3665 | T25: 3665 | U25: 3665 | V25: 3665 | AF25: 0 | AH25: 192.011145 | AI25: 192.011145 | AJ25: 192.011145 | AK25: 192.011145 | AL25: 192.011145 | AM25: 192.011145 | AN25: 192.011145
B26: 18 | C26: LED1x28 | D26: Lamp | E26: NonTraffic | F26: Minor | G26: Y | H26: 1 | I26: 0 | J26: 0 | K26: 0 | L26: 0 | M26: 0 | N26: 0 | P26: 0 | Q26: 0 | R26: 1395 | S26: 2791 | T26: 4186 | U26: 4440 | V26: 4464 | AF26: 0 | AH26: 0 | AI26: 0 | AJ26: 73.08473321 | AK26: 146.2218569 | AL26: 219.3065901 | AM26: 232.6137745 | AN26: 233.8711463
B27: 19 | C27: LED1x29 | D27: Lamp | E27: NonTraffic | F27: Minor | G27: Y | H27: 1 | I27: 14188 | J27: 1356 | K27: 3 | L27: 1 | M27: 0 | N27: 15548 | P27: 15545 | Q27: 15545 | R27: 15545 | S27: 15545 | T27: 15545 | U27: 15545 | V27: 15545 | AF27: 0 | AH27: 814.4101633 | AI27: 814.4101633 | AJ27: 814.4101633 | AK27: 814.4101633 | AL27: 814.4101633 | AM27: 814.4101633 | AN27: 814.4101633
B28: 20 | C28: LED1x298 | D28: Lamp | E28: Traffic | F28: Major | G28: Y | H28: 1 | I28: 0 | J28: 0 | K28: 0 | L28: 0 | M28: 0 | N28: 0 | P28: 0 | Q28: 0 | R28: 52 | S28: 75 | T28: 102 | U28: 152 | V28: 178 | AF28: 0 | AH28: 0 | AI28: 0 | AJ28: 2.724305467 | AK28: 3.929286732 | AL28: 5.343829955 | AM28: 7.963354443 | AN28: 9.325507177
B29: 21 | C29: LED1x33 | D29: Lamp | E29: NonTraffic | F29: Minor | G29: Y | H29: 1 | I29: 0 | J29: 0 | K29: 0 | L29: 0 | M29: 0 | N29: 0 | P29: 0 | Q29: 0 | R29: 5 | S29: 10 | T29: 15 | U29: 25 | V29: 30 | AF29: 0 | AH29: 0 | AI29: 0 | AJ29: 0.2619524488 | AK29: 0.5239048976 | AL29: 0.7858573464 | AM29: 1.309762244 | AN29: 1.571714693
B30: 22 | C30: LED1x42 | D30: Lamp | E30: NonTraffic | F30: Minor | G30: Y | H30: 1 | I30: 4 | J30: 13 | K30: 0 | L30: 0 | M30: 0 | N30: 17 | P30: 17 | Q30: 17 | R30: 17 | S30: 17 | T30: 112 | U30: 207 | V30: 303 | AF30: 0 | AH30: 0.8906383259 | AI30: 0.8906383259 | AJ30: 0.8906383259 | AK30: 0.8906383259 | AL30: 5.867734853 | AM30: 10.84483138 | AN30: 15.8743184
B31: 23 | C31: MBF1x1000 | D31: Lamp | E31: Traffic | F31: Major | G31: N | H31: 1 | I31: 6 | J31: 0 | K31: 1 | L31: 0 | M31: 0 | N31: 7 | P31: 6 | Q31: 6 | R31: 6 | S31: 6 | T31: 6 | U31: 0 | V31: 0 | AF31: 0.08 | AH31: 0.7943429385 | AI31: 0.7943429385 | AJ31: 0.7943429385 | AK31: 0.7943429385 | AL31: 0.7943429385 | AM31: 0 | AN31: 0
B32: 24 | C32: MBF1x125 | D32: Lamp | E32: NonTraffic | F32: Minor | G32: N | H32: 1 | I32: 4123 | J32: 339 | K32: 706 | L32: 0 | M32: 0 | N32: 5168 | P32: 4462 | Q32: 4462 | R32: 3091 | S32: 1719 | T32: 348 | U32: 143 | V32: 143 | AF32: 0.0501 | AH32: 457.3125653 | AI32: 457.3125653 | AJ32: 316.7981038 | AK32: 176.1811519 | AL32: 35.66669044 | AM32: 14.65614004 | AN32: 14.65614004
B33: 25 | C33: MBF1x250 | D33: Lamp | E33: Traffic | F33: Major | G33: N | H33: 1 | I33: 14865 | J33: 166 | K33: 186 | L33: 0 | M33: 0 | N33: 15217 | P33: 15031 | Q33: 15031 | R33: 10054 | S33: 5078 | T33: 101 | U33: 101 | V33: 101 | AF33: 0.0501 | AH33: 1540.534552 | AI33: 1540.534552 | AJ33: 1030.439384 | AK33: 520.446707 | AL33: 10.35153947 | AM33: 10.35153947 | AN33: 10.35153947
B34: 26 | C34: MBF1x400 | D34: Lamp | E34: Traffic | F34: Major | G34: N | H34: 1 | I34: 5393 | J34: 98 | K34: 111 | L34: 0 | M34: 0 | N34: 5602 | P34: 5491 | Q34: 5491 | R34: 3724 | S34: 1957 | T34: 190 | U34: 0 | V34: 0 | AF34: 0.0501 | AH34: 562.7752793 | AI34: 562.7752793 | AJ34: 381.6745839 | AK34: 200.5738885 | AL34: 19.47319305 | AM34: 0 | AN34: 0
B35: 27 | C35: MBF1x42 | D35: Lamp | E35: NonTraffic | F35: Minor | G35: N | H35: 1 | I35: 37582 | J35: 4557 | K35: 10 | L35: 13 | M35: 0 | N35: 42162 | P35: 42152 | Q35: 42152 | R35: 41952 | S35: 41752 | T35: 41552 | U35: 41152 | V35: 40952 | AF35: 0.0353 | AH35: 3696.329524 | AI35: 3696.329524 | AJ35: 3678.791426 | AK35: 3661.253328 | AL35: 3643.71523 | AM35: 3608.639034 | AN35: 3591.100937
B36: 28 | C36: MBF1x50 | D36: Lamp | E36: NonTraffic | F36: Minor | G36: N | H36: 1 | I36: 7080 | J36: 2387 | K36: 51 | L36: 0 | M36: 0 | N36: 9518 | P36: 9467 | Q36: 9467 | R36: 6357 | S36: 3248 | T36: 138 | U36: 0 | V36: 0 | AF36: 0.0501 | AH36: 970.2774665 | AI36: 970.2774665 | AJ36: 651.5320434 | AK36: 332.8891107 | AL36: 14.14368759 | AM36: 0 | AN36: 0
B37: 29 | C37: MBF1x80 | D37: Lamp | E37: NonTraffic | F37: Minor | G37: N | H37: 1 | I37: 62761 | J37: 7467 | K37: 155 | L37: 0 | M37: 0 | N37: 70383 | P37: 70228 | Q37: 70228 | R37: 47982 | S37: 25736 | T37: 3490 | U37: 162 | V37: 162 | AF37: 0.0447 | AH37: 6818.470915 | AI37: 6818.470915 | AJ37: 4658.59588 | AK37: 2498.720844 | AL37: 338.8458093 | AM37: 15.72865934 | AN37: 15.72865934
B38: 30 | C38: MBF2x80 | D38: Lamp | E38: NonTraffic | F38: Minor | G38: N | H38: 2 | I38: 16 | J38: 0 | K38: 0 | L38: 0 | M38: 0 | N38: 16 | P38: 16 | Q38: 16 | R38: 16 | S38: 16 | T38: 13 | U38: 10 | V38: 8 | AF38: 0.08 | AH38: 2.118247836 | AI38: 2.118247836 | AJ38: 2.118247836 | AK38: 2.118247836 | AL38: 1.721076367 | AM38: 1.323904898 | AN38: 1.059123918
B39: 31 | C39: MBI1x100 | D39: Lamp | E39: Traffic | F39: Major | G39: N | H39: 1 | I39: 30 | J39: 0 | K39: 15 | L39: 0 | M39: 0 | N39: 45 | P39: 30 | Q39: 30 | R39: 26 | S39: 22 | T39: 18 | U39: 9 | V39: 5 | AF39: 0.04 | AH39: 2.771714693 | AI39: 2.771714693 | AJ39: 2.402152734 | AK39: 2.032590775 | AL39: 1.663028816 | AM39: 0.8315144078 | AN39: 0.4619524488
B40: 32 | C40: MBI1x1000 | D40: Lamp | E40: Traffic | F40: Major | G40: N | H40: 1 | I40: 13 | J40: 0 | K40: 0 | L40: 0 | M40: 0 | N40: 13 | P40: 13 | Q40: 13 | R40: 6 | S40: 0 | T40: 0 | U40: 0 | V40: 0 | AF40: 0.04 | AH40: 1.201076367 | AI40: 1.201076367 | AJ40: 0.5543429385 | AK40: 0 | AL40: 0 | AM40: 0 | AN40: 0
B41: 33 | C41: MBI1x150 | D41: Lamp | E41: Traffic | F41: Major | G41: N | H41: 1 | I41: 4 | J41: 0 | K41: 0 | L41: 0 | M41: 0 | N41: 4 | P41: 4 | Q41: 4 | R41: 4 | S41: 4 | T41: 4 | U41: 0 | V41: 0 | AF41: 0.04 | AH41: 0.369561959 | AI41: 0.369561959 | AJ41: 0.369561959 | AK41: 0.369561959 | AL41: 0.369561959 | AM41: 0 | AN41: 0
B42: 34 | C42: MBI1x250 | D42: Lamp | E42: Traffic | F42: Major | G42: N | H42: 1 | I42: 54 | J42: 3 | K42: 50 | L42: 0 | M42: 0 | N42: 107 | P42: 57 | Q42: 57 | R42: 53 | S42: 50 | T42: 46 | U42: 38 | V42: 35 | AF42: 0.04 | AH42: 5.266257916 | AI42: 5.266257916 | AJ42: 4.896695957 | AK42: 4.619524488 | AL42: 4.249962529 | AM42: 3.510838611 | AN42: 3.233667141
B43: 35 | C43: MBI1x400 | D43: Lamp | E43: Traffic | F43: Major | G43: N | H43: 1 | I43: 91 | J43: 37 | K43: 63 | L43: 0 | M43: 0 | N43: 191 | P43: 128 | Q43: 128 | R43: 120 | S43: 113 | T43: 105 | U43: 90 | V43: 82 | AF43: 0.04 | AH43: 11.82598269 | AI43: 11.82598269 | AJ43: 11.08685877 | AK43: 10.44012534 | AL43: 9.701001424 | AM43: 8.315144078 | AN43: 7.57602016
B44: 36 | C44: MBI1x70 | D44: Lamp | E44: NonTraffic | F44: Minor | G44: N | H44: 1 | I44: 272 | J44: 19 | K44: 35 | L44: 0 | M44: 0 | N44: 326 | P44: 291 | Q44: 291 | R44: 289 | S44: 287 | T44: 285 | U44: 281 | V44: 279 | AF44: 0.04 | AH44: 26.88563252 | AI44: 26.88563252 | AJ44: 26.70085154 | AK44: 26.51607056 | AL44: 26.33128958 | AM44: 25.96172762 | AN44: 25.77694664
B45: 37 | C45: MBI1x70 II | D45: Lamp | E45: NonTraffic | F45: Minor | G45: N | H45: 1 | I45: 366 | J45: 30 | K45: 0 | L45: 0 | M45: 0 | N45: 396 | P45: 396 | Q45: 396 | R45: 393 | S45: 390 | T45: 387 | U45: 381 | V45: 378 | AF45: 0.04 | AH45: 36.58663394 | AI45: 36.58663394 | AJ45: 36.30946247 | AK45: 36.03229101 | AL45: 35.75511954 | AM45: 35.2007766 | AN45: 34.92360513
B46: 38 | C46: SON1x100 | D46: Lamp | E46: Traffic | F46: Major | G46: N | H46: 1 | I46: 1344 | J46: 80 | K46: 71 | L46: 0 | M46: 0 | N46: 1495 | P46: 1424 | Q46: 1424 | R46: 1424 | S46: 1424 | T46: 1329 | U46: 1234 | V46: 1138 | AF46: 0.06518620254 | AH46: 167.4292098 | AI46: 167.4292098 | AJ46: 167.4292098 | AK46: 167.4292098 | AL46: 156.2594241 | AM46: 145.0896383 | AN46: 133.8022758
B47: 39 | C47: SON1x1000 | D47: Lamp | E47: Traffic | F47: Major | G47: N | H47: 1 | I47: 45 | J47: 4 | K47: 3 | L47: 0 | M47: 0 | N47: 52 | P47: 49 | Q47: 49 | R47: 49 | S47: 49 | T47: 40 | U47: 31 | V47: 23 | AF47: 0.06518620254 | AH47: 5.761257922 | AI47: 5.761257922 | AJ47: 5.761257922 | AK47: 5.761257922 | AL47: 4.703067692 | AM47: 3.644877461 | AN47: 2.704263923
B48: 40 | C48: SON1x150 | D48: Lamp | E48: Traffic | F48: Major | G48: N | H48: 1 | I48: 18788 | J48: 1090 | K48: 150 | L48: 0 | M48: 0 | N48: 20028 | P48: 19878 | Q48: 19878 | R48: 19878 | S48: 19678 | T48: 19478 | U48: 19278 | V48: 19078 | AF48: 0.06518620254 | AH48: 2337.189489 | AI48: 2337.189489 | AJ48: 2337.189489 | AK48: 2313.674151 | AL48: 2290.158813 | AM48: 2266.643474 | AN48: 2243.128136
B49: 41 | C49: SON1x150 AR | D49: Lamp | E49: Traffic | F49: Major | G49: N | H49: 1 | I49: 2384 | J49: 231 | K49: 5 | L49: 0 | M49: 0 | N49: 2620 | P49: 2615 | Q49: 2615 | R49: 2615 | S49: 2615 | T49: 2615 | U49: 2615 | V49: 2615 | AF49: 0.06518620254 | AH49: 307.4630503 | AI49: 307.4630503 | AJ49: 307.4630503 | AK49: 307.4630503 | AL49: 307.4630503 | AM49: 307.4630503 | AN49: 307.4630503
B50: 42 | C50: SON1x250 | D50: Lamp | E50: Traffic | F50: Major | G50: N | H50: 1 | I50: 22184 | J50: 2576 | K50: 580 | L50: 0 | M50: 0 | N50: 25340 | P50: 24760 | Q50: 24760 | R50: 24760 | S50: 24560 | T50: 24360 | U50: 24160 | V50: 23960 | AF50: 0.06518620254 | AH50: =P50*FailurePECellAnnual+P50*FailureMiscAnnual+P50*$AF50 -> 2911.198901 | AI50: =Q50*FailurePECellAnnual+Q50*FailureMiscAnnual+Q50*$AF50 -> 2911.198901 | AJ50: =R50*FailurePECellAnnual+R50*FailureMiscAnnual+R50*$AF50 -> 2911.198901 | AK50: =S50*FailurePECellAnnual+S50*FailureMiscAnnual+S50*$AF50 -> 2887.683563 | AL50: =T50*FailurePECellAnnual+T50*FailureMiscAnnual+T50*$AF50 -> 2864.168224 | AM50: =U50*FailurePECellAnnual+U50*FailureMiscAnnual+U50*$AF50 -> 2840.652886 | AN50: =V50*FailurePECellAnnual+V50*FailureMiscAnnual+V50*$AF50 -> 2817.137547
B51: 43 | C51: SON1x250 AR | D51: Lamp | E51: Traffic | F51: Major | G51: N | H51: 1 | I51: 2953 | J51: 353 | K51: 3 | L51: 0 | M51: 0 | N51: 3309 | P51: 3306 | Q51: 3306 | R51: 3296 | S51: 3286 | T51: 3276 | U51: 3266 | V51: 3256 | AF51: 0.06518620254 | AH51: 388.7085447 | AI51: 388.7085447 | AJ51: 387.5327778 | AK51: 386.3570109 | AL51: 385.181244 | AM51: 384.005477 | AN51: 382.8297101
B52: 44 | C52: SON1x400 | D52: Lamp | E52: Traffic | F52: Major | G52: N | H52: 1 | I52: 1772 | J52: 350 | K52: 267 | L52: 0 | M52: 0 | N52: 2389 | P52: 2122 | Q52: 2122 | R52: 2112 | S52: 2102 | T52: 2092 | U52: 2072 | V52: 2062 | AF52: 0.06518620254 | AH52: 249.497741 | AI52: 249.497741 | AJ52: 248.3219741 | AK52: 247.1462072 | AL52: 245.9704403 | AM52: 243.6189064 | AN52: 242.4431395
B53: 45 | C53: SON1x400 AR | D53: Lamp | E53: Traffic | F53: Major | G53: N | H53: 1 | I53: 224 | J53: 108 | K53: 0 | L53: 0 | M53: 0 | N53: 332 | P53: 332 | Q53: 332 | R53: 332 | S53: 332 | T53: 332 | U53: 332 | V53: 332 | AF53: 0.06518620254 | AH53: 39.03546184 | AI53: 39.03546184 | AJ53: 39.03546184 | AK53: 39.03546184 | AL53: 39.03546184 | AM53: 39.03546184 | AN53: 39.03546184
B54: 46 | C54: SON1x50 | D54: Lamp | E54: NonTraffic | F54: Minor | G54: N | H54: 1 | I54: 460 | J54: 5 | K54: 0 | L54: 0 | M54: 0 | N54: 465 | P54: 465 | Q54: 465 | R54: 459 | S54: 453 | T54: 447 | U54: 435 | V54: 429 | AF54: 0.06518620254 | AH54: 54.67316192 | AI54: 54.67316192 | AJ54: 53.96770176 | AK54: 53.26224161 | AL54: 52.55678146 | AM54: 51.14586115 | AN54: 50.44040099
B55: 47 | C55: SON1x600 | D55: Lamp | E55: Traffic | F55: Major | G55: N | H55: 1 | I55: 1 | J55: 0 | K55: 0 | L55: 0 | M55: 0 | N55: 1 | P55: 1 | Q55: 1 | R55: 1 | S55: 1 | T55: 1 | U55: 1 | V55: 1 | AF55: 0.06518620254 | AH55: 0.1175766923 | AI55: 0.1175766923 | AJ55: 0.1175766923 | AK55: 0.1175766923 | AL55: 0.1175766923 | AM55: 0.1175766923 | AN55: 0.1175766923
B56: 48 | C56: SON1x70 | D56: Lamp | E56: NonTraffic | F56: Minor | G56: N | H56: 1 | I56: 1695 | J56: 310 | K56: 99 | L56: 0 | M56: 0 | N56: 2104 | P56: 2005 | Q56: 2005 | R56: 1985 | S56: 1965 | T56: 1945 | U56: 1905 | V56: 1885 | AF56: 0.06518620254 | AH56: 235.7412681 | AI56: 235.7412681 | AJ56: 233.3897342 | AK56: 231.0382004 | AL56: 228.6866665 | AM56: 223.9835988 | AN56: 221.632065
B57: 49 | C57: SON2x250 | D57: Lamp | E57: Traffic | F57: Major | G57: N | H57: 2 | I57: 28 | J57: 2 | K57: 1 | L57: 0 | M57: 0 | N57: 31 | P57: 30 | Q57: 30 | R57: 30 | S57: 30 | T57: 30 | U57: 30 | V57: 30 | AF57: 0.1261231641 | AH57: 5.355409615 | AI57: 5.355409615 | AJ57: 5.355409615 | AK57: 5.355409615 | AL57: 5.355409615 | AM57: 5.355409615 | AN57: 5.355409615
B58: 50 | C58: SON2x400 | D58: Lamp | E58: Traffic | F58: Major | G58: N | H58: 2 | I58: 4 | J58: 0 | K58: 0 | L58: 0 | M58: 0 | N58: 4 | P58: 4 | Q58: 4 | R58: 4 | S58: 4 | T58: 4 | U58: 4 | V58: 4 | AF58: 0.1261231641 | AH58: 0.7140546153 | AI58: 0.7140546153 | AJ58: 0.7140546153 | AK58: 0.7140546153 | AL58: 0.7140546153 | AM58: 0.7140546153 | AN58: 0.7140546153
B59: 51 | C59: SON4x250 | D59: Lamp | E59: Traffic | F59: Major | G59: N | H59: 4 | I59: 6 | J59: 0 | K59: 0 | L59: 0 | M59: 0 | N59: 6 | P59: 6 | Q59: 6 | R59: 6 | S59: 6 | T59: 6 | U59: 6 | V59: 6 | AF59: 0.2363392756 | AH59: 1.732378592 | AI59: 1.732378592 | AJ59: 1.732378592 | AK59: 1.732378592 | AL59: 1.732378592 | AM59: 1.732378592 | AN59: 1.732378592
B60: 52 | C60: SON4x600 | D60: Lamp | E60: Traffic | F60: Major | G60: N | H60: 4 | I60: 2 | J60: 0 | K60: 0 | L60: 0 | M60: 0 | N60: 2 | P60: 2 | Q60: 2 | R60: 2 | S60: 2 | T60: 2 | U60: 2 | V60: 2 | AF60: 0.2363392756 | AH60: 0.5774595308 | AI60: 0.5774595308 | AJ60: 0.5774595308 | AK60: 0.5774595308 | AL60: 0.5774595308 | AM60: 0.5774595308 | AN60: 0.5774595308
B61: 53 | C61: TF1x20 | D61: Lamp | E61: NonTraffic | F61: Minor | G61: N | H61: 1 | I61: 4 | J61: 0 | K61: 231 | L61: 0 | M61: 0 | N61: 235 | P61: 4 | Q61: 4 | R61: 4 | S61: 4 | T61: 4 | U61: 4 | V61: 4 | AF61: 0.06 | AH61: 0.449561959 | AI61: 0.449561959 | AJ61: 0.449561959 | AK61: 0.449561959 | AL61: 0.449561959 | AM61: 0.449561959 | AN61: 0.449561959
B62: 54 | C62: TF1x40 | D62: Lamp | E62: NonTraffic | F62: Minor | G62: N | H62: 1 | I62: 268 | J62: 24 | K62: 40 | L62: 0 | M62: 0 | N62: 332 | P62: 292 | Q62: 292 | R62: 123 | S62: 0 | T62: 0 | U62: 0 | V62: 0 | AF62: 0.158 | AH62: 61.43402301 | AI62: 61.43402301 | AJ62: 25.87803024 | AK62: 0 | AL62: 0 | AM62: 0 | AN62: 0
B63: 55 | C63: TF1x80 | D63: Lamp | E63: NonTraffic | F63: Minor | G63: N | H63: 1 | I63: 88 | J63: 9 | K63: 9 | L63: 0 | M63: 0 | N63: 106 | P63: 97 | Q63: 97 | R63: 48 | S63: 0 | T63: 0 | U63: 0 | V63: 0 | AF63: 0.06 | AH63: 10.90187751 | AI63: 10.90187751 | AJ63: 5.394743508 | AK63: 0 | AL63: 0 | AM63: 0 | AN63: 0
B64: 56 | C64: TF2x14 T5 | D64: Lamp | E64: NonTraffic | F64: Minor | G64: N | H64: 2 | I64: 222 | J64: 0 | K64: 0 | L64: 0 | M64: 0 | N64: 222 | P64: 222 | Q64: 222 | R64: 222 | S64: 222 | T64: 202 | U64: 182 | V64: 162 | AF64: 0.06 | AH64: 24.95068873 | AI64: 24.95068873 | AJ64: 24.95068873 | AK64: 24.95068873 | AL64: 22.70287893 | AM64: 20.45506914 | AN64: 18.20725934
B65: 57 | C65: TF2x20 | D65: Lamp | E65: NonTraffic | F65: Minor | G65: N | H65: 2 | I65: 9917 | J65: 35 | K65: 110 | L65: 0 | M65: 0 | N65: 10062 | P65: 9952 | Q65: 9952 | R65: 4477 | S65: 0 | T65: 0 | U65: 0 | V65: 0 | AF65: 0.1029 | AH65: 1545.450954 | AI65: 1545.450954 | AJ65: 695.2355226 | AK65: 0 | AL65: 0 | AM65: 0 | AN65: 0
B66: 58 | C66: TF2x26 | D66: Lamp | E66: NonTraffic | F66: Minor | G66: N | H66: 2 | I66: 14 | J66: 0 | K66: 23 | L66: 0 | M66: 0 | N66: 37 | P66: 14 | Q66: 14 | R66: 7 | S66: 0 | T66: 0 | U66: 0 | V66: 0 | AF66: 0.06 | AH66: 1.573466857 | AI66: 1.573466857 | AJ66: 0.7867334283 | AK66: 0 | AL66: 0 | AM66: 0 | AN66: 0
B67: 59 | C67: TF2x40 | D67: Lamp | E67: NonTraffic | F67: Minor | G67: N | H67: 2 | I67: 8 | J67: 6 | K67: 134 | L67: 0 | M67: 0 | N67: 148 | P67: 14 | Q67: 14 | R67: 7 | S67: 0 | T67: 0 | U67: 0 | V67: 0 | AF67: 0.06 | AH67: 1.573466857 | AI67: 1.573466857 | AJ67: 0.7867334283 | AK67: 0 | AL67: 0 | AM67: 0 | AN67: 0
B68: 60 | C68: TF4x20 | D68: Lamp | E68: NonTraffic | F68: Minor | G68: N | H68: 2 | I68: 12 | J68: 0 | K68: 38 | L68: 0 | M68: 0 | N68: 50 | P68: 12 | Q68: 12 | R68: 6 | S68: 0 | T68: 0 | U68: 0 | V68: 0 | AF68: 0.06 | AH68: 1.348685877 | AI68: 1.348685877 | AJ68: 0.6743429385 | AK68: 0 | AL68: 0 | AM68: 0 | AN68: 0
B69: 61 | C69: TF4x40 | D69: Lamp | E69: NonTraffic | F69: Minor | G69: N | H69: 4 | I69: 2 | J69: 0 | K69: 42 | L69: 0 | M69: 0 | N69: 44 | P69: 2 | Q69: 2 | R69: 2 | S69: 2 | T69: 2 | U69: 2 | V69: 2 | AF69: 0.06 | AH69: 0.2247809795 | AI69: 0.2247809795 | AJ69: 0.2247809795 | AK69: 0.2247809795 | AL69: 0.2247809795 | AM69: 0.2247809795 | AN69: 0.2247809795
B70: 62 | C70: TH1x1500 | D70: Lamp | E70: Traffic | F70: Major | G70: N | H70: 1 | I70: 10 | J70: 0 | K70: 12 | L70: 0 | M70: 0 | N70: 22 | P70: 10 | Q70: 10 | R70: 0 | S70: 0 | T70: 0 | U70: 0 | V70: 0 | AF70: 0.06 | AH70: 1.123904898 | AI70: 1.123904898 | AJ70: 0 | AK70: 0 | AL70: 0 | AM70: 0 | AN70: 0
B71: 63 | C71: TH1x500 | D71: Lamp | E71: Traffic | F71: Major | G71: N | H71: 1 | I71: 9 | J71: 0 | K71: 4 | L71: 0 | M71: 0 | N71: 13 | P71: 9 | Q71: 9 | R71: 0 | S71: 0 | T71: 0 | U71: 0 | V71: 0 | AF71: 0.06 | AH71: 1.011514408 | AI71: 1.011514408 | AJ71: 0 | AK71: 0 | AL71: 0 | AM71: 0 | AN71: 0
B72: 64 | C72: TH1x750 | D72: Lamp | E72: Traffic | F72: Major | G72: N | H72: 1 | I72: 8 | J72: 0 | K72: 3 | L72: 0 | M72: 0 | N72: 11 | P72: 8 | Q72: 8 | R72: 0 | S72: 0 | T72: 0 | U72: 0 | V72: 0 | AF72: 0.06 | AH72: 0.8991239181 | AI72: 0.8991239181 | AJ72: 0 | AK72: 0 | AL72: 0 | AM72: 0 | AN72: 0
C74: Non LED | P74: =SUMIFS(P$9:P$72,$G$9:$G$72,"N",ColumnInventoryType,"Lamp") -> 215407 | Q74: 215407 | R74: 175922 | S74: 137113 | T74: 102848 | U74: 97926 | V74: 97134 | AH74: =SUMIFS(AH$9:AH$72,$G$9:$G$72,"N",ColumnInventoryType,"Lamp") -> 22489.65677 | AI74: 22489.65677 | AJ74: 18257.23151 | AK74: 14145.96005 | AL74: 10748.83881 | AM74: 10259.4288 | AN74: 10172.86312
C75: LED | P75: =SUMIFS(P$9:P$72,$G$9:$G$72,"Y",ColumnInventoryType,"Lamp") -> 36501 | Q75: 36501 | R75: 75985.66667 | S75: 114796 | T75: 149066 | U75: 153996 | V75: 154796 | AH75: =SUMIFS(AH$9:AH$72,$G$9:$G$72,"Y",ColumnInventoryType,"Lamp") -> 1912.305267 | AI75: 1912.305267 | AJ75: 3980.926291 | AK75: 6014.218662 | AL75: 7809.640746 | AM75: 8067.925861 | AN75: 8109.838252
C76: Lamp Total | P76: =SUMIFS(P$9:P$72,ColumnInventoryType,"Lamp") -> 251908 | Q76: 251908 | R76: 251907.6667 | S76: 251909 | T76: 251914 | U76: 251922 | V76: 251930 | AH76: =SUMIFS(AH$9:AH$72,ColumnInventoryType,"Lamp") -> 24401.96203 | AI76: 24401.96203 | AJ76: 22238.1578 | AK76: 20160.17871 | AL76: 18558.47955 | AM76: 18327.35466 | AN76: 18282.70138
C77: Connection Total | P77: =SUMIFS(P$9:P$72,ColumnInventoryType,"Connection") -> 251910 | Q77: 251910 | R77: 251910 | S77: 251910 | T77: 251910 | U77: 251910 | V77: 251910 | AH77: =SUMIFS(AH$9:AH$72,ColumnInventoryType,"Connection") -> 0 | AI77: 0 | AJ77: 0 | AK77: 0 | AL77: 0 | AM77: 0 | AN77: 0

Sheet Calc - Tariff Smoothing
A1: ='Report - Summary'!$A$1 -> Ok
B2: Maintenance charges per component
E3: FY20 | F3: FY21 | G3: FY22 | H3: FY23 | I3: FY24
B4: CPI | E4: ='Input - General'!J9 -> 0.02424874658 | F4: ='Input - General'!K9 -> 0.02424874658 | G4: ='Input - General'!L9 -> 0.02424874658 | H4: ='Input - General'!M9 -> 0.02424874658 | I4: ='Input - General'!N9 -> 0.02424874658
B5: CPI Index | E5: =1+E4 -> 1.024248747 | F5: =E5*(1+F4) -> 1.049085495 | G5: =F5*(1+G4) -> 1.074524503 | H5: =G5*(1+H4) -> 1.100580376 | I5: =H5*(1+I4) -> 1.12726807
B7: Nominal Vanilla WACC | E7: =NominalVanillaWACC -> 0.0599386
B8: Real Vanilla WACC | E8: =(1+E7)/(1+E4)-1 -> 0.03484490808
E10: Volumes | K10: Unsmoothed Prices (Real $ FY19) | Q10: Smoothed Prices (Real $ FY19) | W10: Unsmoothed Revenue (Real $ FY19) | AD10: Smoothed Revenue (Real $ FY19) | AK10: NPV Difference
B11: ='Input - Inventory'!B7 -> # | C11: ='Input - Inventory'!C7 -> Description | D11: ='Input - Inventory'!D7 -> Type | E11: FY20 | F11: FY21 | G11: FY22 | H11: FY23 | I11: FY24 | K11: FY20 | L11: FY21 | M11: FY22 | N11: FY23 | O11: FY24 | Q11: FY20 | R11: FY21 | S11: FY22 | T11: FY23 | U11: FY24 | W11: FY20 | X11: FY21 | Y11: FY22 | Z11: FY23 | AA11: FY24 | AB11: NPV | AD11: FY20 | AE11: FY21 | AF11: FY22 | AG11: FY23 | AH11: FY24 | AI11: NPV
B13: ='Input - Inventory'!B9 -> 1 | C13: ='Input - Inventory'!C9 -> O/U | D13: ='Input - Inventory'!D9 -> Connection | E13: ='Input - Inventory'!R9 -> 576 | F13: ='Input - Inventory'!S9 -> 576 | G13: ='Input - Inventory'!T9 -> 576 | H13: ='Input - Inventory'!U9 -> 576 | I13: ='Input - Inventory'!V9 -> 576 | K13: ='Calc - Opex FY20'!I12/E$5 -> 103.5017367 | L13: ='Calc - Opex FY21'!I12/F$5 -> 103.5017367 | M13: ='Calc - Opex FY22'!I12/G$5 -> 103.5017367 | N13: ='Calc - Opex FY23'!I12/H$5 -> 103.5017367 | O13: ='Calc - Opex FY24'!I12/I$5 -> 103.5017367 | Q13: =IFERROR(NPV($E$8,W13:AA13)/NPV($E$8,E13:I13),0) -> 103.5017367 | R13: =Q13 -> 103.5017367 | S13: =R13 -> 103.5017367 | T13: 103.5017367 | U13: 103.5017367 | W13: =E13*K13 -> 59617.00037 | X13: =F13*L13 -> 59617.00037 | Y13: 59617.00037 | Z13: 59617.00037 | AA13: 59617.00037 | AB13: =NPV($E$8,W13:AA13) -> 269292.1512 | AD13: =E13*Q13 -> 59617.00037 | AE13: =F13*R13 -> 59617.00037 | AF13: 59617.00037 | AG13: 59617.00037 | AH13: 59617.00037 | AI13: =NPV($E$8,AD13:AH13) -> 269292.1512 | AK13: =AI13-AB13 -> 0 | AL13: =IFERROR(AK13/AB13,0) -> 0
B14: ='Input - Inventory'!B10 -> 2 | C14: ='Input - Inventory'!C10 -> OH | D14: ='Input - Inventory'!D10 -> Connection | E14: ='Input - Inventory'!R10 -> 196623 | F14: ='Input - Inventory'!S10 -> 196623 | G14: ='Input - Inventory'!T10 -> 196623 | H14: ='Input - Inventory'!U10 -> 196623 | I14: ='Input - Inventory'!V10 -> 196623 | K14: ='Calc - Opex FY20'!I13/E$5 -> 0 | L14: ='Calc - Opex FY21'!I13/F$5 -> 0 | M14: ='Calc - Opex FY22'!I13/G$5 -> 0 | N14: ='Calc - Opex FY23'!I13/H$5 -> 0 | O14: ='Calc - Opex FY24'!I13/I$5 -> 0 | Q14: =IFERROR(NPV($E$8,W14:AA14)/NPV($E$8,E14:I14),0) -> 0 | R14: =Q14 -> 0 | S14: 0 | T14: 0 | U14: 0 | W14: =E14*K14 -> 0 | X14: 0 | Y14: 0 | Z14: 0 | AA14: 0 | AB14: =NPV($E$8,W14:AA14) -> 0 | AD14: =E14*Q14 -> 0 | AE14: 0 | AF14: 0 | AG14: 0 | AH14: 0 | AI14: =NPV($E$8,AD14:AH14) -> 0 | AK14: =AI14-AB14 -> 0 | AL14: =IFERROR(AK14/AB14,0) -> 0
B15: ='Input - Inventory'!B11 -> 3 | C15: ='Input - Inventory'!C11 -> OH2 | D15: ='Input - Inventory'!D11 -> Connection | E15: ='Input - Inventory'!R11 -> 718 | F15: ='Input - Inventory'!S11 -> 718 | G15: ='Input - Inventory'!T11 -> 718 | H15: ='Input - Inventory'!U11 -> 718 | I15: ='Input - Inventory'!V11 -> 718 | K15: ='Calc - Opex FY20'!I14/E$5 -> 0 | L15: ='Calc - Opex FY21'!I14/F$5 -> 0 | M15: ='Calc - Opex FY22'!I14/G$5 -> 0 | N15: ='Calc - Opex FY23'!I14/H$5 -> 0 | O15: ='Calc - Opex FY24'!I14/I$5 -> 0 | Q15: 0 | R15: 0 | S15: 0 | T15: 0 | U15: 0 | W15: 0 | X15: 0 | Y15: 0 | Z15: 0 | AA15: 0 | AB15: 0 | AD15: 0 | AE15: 0 | AF15: 0 | AG15: 0 | AH15: 0 | AI15: 0 | AK15: 0 | AL15: 0
B16: ='Input - Inventory'!B12 -> 4 | C16: ='Input - Inventory'!C12 -> OHS | D16: ='Input - Inventory'!D12 -> Connection | E16: ='Input - Inventory'!R12 -> 9 | F16: ='Input - Inventory'!S12 -> 9 | G16: ='Input - Inventory'!T12 -> 9 | H16: ='Input - Inventory'!U12 -> 9 | I16: ='Input - Inventory'!V12 -> 9 | K16: ='Calc - Opex FY20'!I15/E$5 -> 0 | L16: ='Calc - Opex FY21'!I15/F$5 -> 0 | M16: ='Calc - Opex FY22'!I15/G$5 -> 0 | N16: ='Calc - Opex FY23'!I15/H$5 -> 0 | O16: ='Calc - Opex FY24'!I15/I$5 -> 0 | Q16: 0 | R16: 0 | S16: 0 | T16: 0 | U16: 0 | W16: 0 | X16: 0 | Y16: 0 | Z16: 0 | AA16: 0 | AB16: 0 | AD16: 0 | AE16: 0 | AF16: 0 | AG16: 0 | AH16: 0 | AI16: 0 | AK16: 0 | AL16: 0
B17: ='Input - Inventory'!B13 -> 5 | C17: ='Input - Inventory'!C13 -> UG2 | D17: ='Input - Inventory'!D13 -> Connection | E17: ='Input - Inventory'!R13 -> 1134 | F17: ='Input - Inventory'!S13 -> 1134 | G17: ='Input - Inventory'!T13 -> 1134 | H17: ='Input - Inventory'!U13 -> 1134 | I17: ='Input - Inventory'!V13 -> 1134 | K17: ='Calc - Opex FY20'!I16/E$5 -> 0 | L17: ='Calc - Opex FY21'!I16/F$5 -> 0 | M17: ='Calc - Opex FY22'!I16/G$5 -> 0 | N17: ='Calc - Opex FY23'!I16/H$5 -> 0 | O17: ='Calc - Opex FY24'!I16/I$5 -> 0 | Q17: 0 | R17: 0 | S17: 0 | T17: 0 | U17: 0 | W17: 0 | X17: 0 | Y17: 0 | Z17: 0 | AA17: 0 | AB17: 0 | AD17: 0 | AE17: 0 | AF17: 0 | AG17: 0 | AH17: 0 | AI17: 0 | AK17: 0 | AL17: 0
B18: ='Input - Inventory'!B14 -> 6 | C18: ='Input - Inventory'!C14 -> UGR1 | D18: ='Input - Inventory'!D14 -> Connection | E18: ='Input - Inventory'!R14 -> 31792 | F18: ='Input - Inventory'!S14 -> 31792 | G18: ='Input - Inventory'!T14 -> 31792 | H18: ='Input - Inventory'!U14 -> 31792 | I18: ='Input - Inventory'!V14 -> 31792 | K18: ='Calc - Opex FY20'!I17/E$5 -> 94.87419355 | L18: ='Calc - Opex FY21'!I17/F$5 -> 94.87419355 | M18: ='Calc - Opex FY22'!I17/G$5 -> 94.87419355 | N18: ='Calc - Opex FY23'!I17/H$5 -> 94.87419355 | O18: ='Calc - Opex FY24'!I17/I$5 -> 94.87419355 | Q18: 94.87419355 | R18: 94.87419355 | S18: 94.87419355 | T18: 94.87419355 | U18: 94.87419355 | W18: 3016240.361 | X18: 3016240.361 | Y18: 3016240.361 | Z18: 3016240.361 | AA18: 3016240.361 | AB18: 13624467.02 | AD18: 3016240.361 | AE18: 3016240.361 | AF18: 3016240.361 | AG18: 3016240.361 | AH18: 3016240.361 | AI18: 13624467.02 | AK18: 0 | AL18: 0
B19: ='Input - Inventory'!B15 -> 7 | C19: ='Input - Inventory'!C15 -> UGR2 | D19: ='Input - Inventory'!D15 -> Connection | E19: ='Input - Inventory'!R15 -> 20937 | F19: ='Input - Inventory'!S15 -> 20937 | G19: ='Input - Inventory'!T15 -> 20937 | H19: ='Input - Inventory'!U15 -> 20937 | I19: ='Input - Inventory'!V15 -> 20937 | K19: ='Calc - Opex FY20'!I18/E$5 -> 34.49544594 | L19: ='Calc - Opex FY21'!I18/F$5 -> 34.49544594 | M19: ='Calc - Opex FY22'!I18/G$5 -> 34.49544594 | N19: ='Calc - Opex FY23'!I18/H$5 -> 34.49544594 | O19: ='Calc - Opex FY24'!I18/I$5 -> 34.49544594 | Q19: 34.49544594 | R19: 34.49544594 | S19: 34.49544594 | T19: 34.49544594 | U19: 34.49544594 | W19: 722231.1517 | X19: 722231.1517 | Y19: 722231.1517 | Z19: 722231.1517 | AA19: 722231.1517 | AB19: 3262344.286 | AD19: 722231.1517 | AE19: 722231.1517 | AF19: 722231.1517 | AG19: 722231.1517 | AH19: 722231.1517 | AI19: 3262344.286 | AK19: 0 | AL19: 0
B20: ='Input - Inventory'!B16 -> 8 | C20: ='Input - Inventory'!C16 -> UGS | D20: ='Input - Inventory'!D16 -> Connection | E20: ='Input - Inventory'!R16 -> 108 | F20: ='Input - Inventory'!S16 -> 108 | G20: ='Input - Inventory'!T16 -> 108 | H20: ='Input - Inventory'!U16 -> 108 | I20: ='Input - Inventory'!V16 -> 108 | K20: ='Calc - Opex FY20'!I19/E$5 -> 0 | L20: ='Calc - Opex FY21'!I19/F$5 -> 0 | M20: ='Calc - Opex FY22'!I19/G$5 -> 0 | N20: ='Calc - Opex FY23'!I19/H$5 -> 0 | O20: ='Calc - Opex FY24'!I19/I$5 -> 0 | Q20: 0 | R20: 0 | S20: 0 | T20: 0 | U20: 0 | W20: 0 | X20: 0 | Y20: 0 | Z20: 0 | AA20: 0 | AB20: 0 | AD20: 0 | AE20: 0 | AF20: 0 | AG20: 0 | AH20: 0 | AI20: 0 | AK20: 0 | AL20: 0
B21: ='Input - Inventory'!B17 -> 9 | C21: ='Input - Inventory'!C17 -> UG-SP | D21: ='Input - Inventory'!D17 -> Connection | E21: ='Input - Inventory'!R17 -> 13 | F21: ='Input - Inventory'!S17 -> 13 | G21: ='Input - Inventory'!T17 -> 13 | H21: ='Input - Inventory'!U17 -> 13 | I21: ='Input - Inventory'!V17 -> 13 | K21: ='Calc - Opex FY20'!I20/E$5 -> 0 | L21: ='Calc - Opex FY21'!I20/F$5 -> 0 | M21: ='Calc - Opex FY22'!I20/G$5 -> 0 | N21: ='Calc - Opex FY23'!I20/H$5 -> 0 | O21: ='Calc - Opex FY24'!I20/I$5 -> 0 | Q21: 0 | R21: 0 | S21: 0 | T21: 0 | U21: 0 | W21: 0 | X21: 0 | Y21: 0 | Z21: 0 | AA21: 0 | AB21: 0 | AD21: 0 | AE21: 0 | AF21: 0 | AG21: 0 | AH21: 0 | AI21: 0 | AK21: 0 | AL21: 0
B22: ='Input - Inventory'!B18 -> 10 | C22: ='Input - Inventory'!C18 -> LED TRIAL | D22: ='Input - Inventory'!D18 -> Lamp | E22: ='Input - Inventory'!R18 -> 67 | F22: ='Input - Inventory'!S18 -> 67 | G22: ='Input - Inventory'!T18 -> 67 | H22: ='Input - Inventory'!U18 -> 67 | I22: ='Input - Inventory'!V18 -> 67 | K22: ='Calc - Opex FY20'!I21/E$5 -> 23.02620708 | L22: ='Calc - Opex FY21'!I21/F$5 -> 23.08714431 | M22: ='Calc - Opex FY22'!I21/G$5 -> 23.18809737 | N22: ='Calc - Opex FY23'!I21/H$5 -> 23.31305242 | O22: ='Calc - Opex FY24'!I21/I$5 -> 23.42516796 | Q22: 23.20093873 | R22: 23.20093873 | S22: 23.20093873 | T22: 23.20093873 | U22: 23.20093873 | W22: 1542.755874 | X22: 1546.838668 | Y22: 1553.602524 | Z22: 1561.974512 | AA22: 1569.486253 | AB22: 7021.565231 | AD22: 1554.462895 | AE22: 1554.462895 | AF22: 1554.462895 | AG22: 1554.462895 | AH22: 1554.462895 | AI22: 7021.565231 | AK22: 0 | AL22: 0
B23: ='Input - Inventory'!B19 -> 11 | C23: ='Input - Inventory'!C19 -> LED1x100 | D23: ='Input - Inventory'!D19 -> Lamp | E23: ='Input - Inventory'!R19 -> 4982.666667 | F23: ='Input - Inventory'!S19 -> 10159 | G23: ='Input - Inventory'!T19 -> 15343 | H23: ='Input - Inventory'!U19 -> 15554 | I23: ='Input - Inventory'!V19 -> 15761 | K23: ='Calc - Opex FY20'!I22/E$5 -> 30.52174724 | L23: ='Calc - Opex FY21'!I22/F$5 -> 30.61315307 | M23: ='Calc - Opex FY22'!I22/G$5 -> 30.76458266 | N23: ='Calc - Opex FY23'!I22/H$5 -> 30.95201525 | O23: ='Calc - Opex FY24'!I22/I$5 -> 31.12018856 | Q23: 30.84930652 | R23: 30.84930652 | S23: 30.84930652 | T23: 30.84930652 | U23: 30.84930652 | W23: 152079.6926 | X23: 310999.0221 | Y23: 472020.9918 | Z23: 481427.6451 | AA23: 490485.2918 | AB23: 1696367.148 | AD23: 153711.8113 | AE23: 313398.1049 | AF23: 473320.9099 | AG23: 479830.1135 | AH23: 486215.92 | AI23: 1696367.148 | AK23: 0 | AL23: 0
B24: ='Input - Inventory'!B20 -> 12 | C24: ='Input - Inventory'!C20 -> LED1x17 | D24: ='Input - Inventory'!D20 -> Lamp | E24: ='Input - Inventory'!R20 -> 34068 | F24: ='Input - Inventory'!S20 -> 64297 | G24: ='Input - Inventory'!T20 -> 89881 | H24: ='Input - Inventory'!U20 -> 93783 | I24: ='Input - Inventory'!V20 -> 94011 | K24: ='Calc - Opex FY20'!I23/E$5 -> 23.02620708 | L24: ='Calc - Opex FY21'!I23/F$5 -> 23.08714431 | M24: ='Calc - Opex FY22'!I23/G$5 -> 23.18809737 | N24: ='Calc - Opex FY23'!I23/H$5 -> 23.31305242 | O24: ='Calc - Opex FY24'!I23/I$5 -> 23.42516796 | Q24: 23.24064646 | R24: 23.24064646 | S24: 23.24064646 | T24: 23.24064646 | U24: 23.24064646 | W24: 784456.8229 | X24: 1484434.117 | Y24: 2084169.379 | Z24: 2186367.995 | AA24: 2202223.465 | AB24: 7786878.853 | AD24: 791762.3437 | AE24: 1494303.846 | AF24: 2088892.545 | AG24: 2179577.547 | AH24: 2184876.415 | AI24: 7786878.853 | AK24: 0 | AL24: 0
B25: ='Input - Inventory'!B21 -> 13 | C25: ='Input - Inventory'!C21 -> LED1x18 | D25: ='Input - Inventory'!D21 -> Lamp | E25: ='Input - Inventory'!R21 -> 0 | F25: ='Input - Inventory'!S21 -> 0 | G25: ='Input - Inventory'!T21 -> 0 | H25: ='Input - Inventory'!U21 -> 0 | I25: ='Input - Inventory'!V21 -> 0 | K25: ='Calc - Opex FY20'!I24/E$5 -> 23.02620708 | L25: ='Calc - Opex FY21'!I24/F$5 -> 23.08714431 | M25: ='Calc - Opex FY22'!I24/G$5 -> 23.18809737 | N25: ='Calc - Opex FY23'!I24/H$5 -> 23.31305242 | O25: ='Calc - Opex FY24'!I24/I$5 -> 23.42516796 | Q25: 0 | R25: 0 | S25: 0 | T25: 0 | U25: 0 | W25: 0 | X25: 0 | Y25: 0 | Z25: 0 | AA25: 0 | AB25: 0 | AD25: 0 | AE25: 0 | AF25: 0 | AG25: 0 | AH25: 0 | AI25: 0 | AK25: 0 | AL25: 0
B26: ='Input - Inventory'!B22 -> 14 | C26: ='Input - Inventory'!C22 -> LED1x20 | D26: ='Input - Inventory'!D22 -> Lamp | E26: ='Input - Inventory'!R22 -> 0 | F26: ='Input - Inventory'!S22 -> 0 | G26: ='Input - Inventory'!T22 -> 0 | H26: ='Input - Inventory'!U22 -> 0 | I26: ='Input - Inventory'!V22 -> 0 | K26: ='Calc - Opex FY20'!I25/E$5 -> 23.02620708 | L26: ='Calc - Opex FY21'!I25/F$5 -> 23.08714431 | M26: ='Calc - Opex FY22'!I25/G$5 -> 23.18809737 | N26: ='Calc - Opex FY23'!I25/H$5 -> 23.31305242 | O26: ='Calc - Opex FY24'!I25/I$5 -> 23.42516796 | Q26: 0 | R26: 0 | S26: 0 | T26: 0 | U26: 0 | W26: 0 | X26: 0 | Y26: 0 | Z26: 0 | AA26: 0 | AB26: 0 | AD26: 0 | AE26: 0 | AF26: 0 | AG26: 0 | AH26: 0 | AI26: 0 | AK26: 0 | AL26: 0
B27: ='Input - Inventory'!B23 -> 15 | C27: ='Input - Inventory'!C23 -> LED1x200 | D27: ='Input - Inventory'!D23 -> Lamp | E27: ='Input - Inventory'!R23 -> 1795 | F27: ='Input - Inventory'!S23 -> 3776 | G27: ='Input - Inventory'!T23 -> 5756 | H27: ='Input - Inventory'!U23 -> 6164 | I27: ='Input - Inventory'!V23 -> 6378 | K27: ='Calc - Opex FY20'!I26/E$5 -> 30.52174724 | L27: ='Calc - Opex FY21'!I26/F$5 -> 30.61315307 | M27: ='Calc - Opex FY22'!I26/G$5 -> 30.76458266 | N27: ='Calc - Opex FY23'!I26/H$5 -> 30.95201525 | O27: ='Calc - Opex FY24'!I26/I$5 -> 31.12018856 | Q27: 30.85717781 | R27: 30.85717781 | S27: 30.85717781 | T27: 30.85717781 | U27: 30.85717781 | W27: 54786.53629 | X27: 115595.266 | Y27: 177080.9378 | Z27: 190788.222 | AA27: 198484.5626 | AB27: 654276.7796 | AD27: 55388.63418 | AE27: 116516.7034 | AF27: 177613.9155 | AG27: 190203.644 | AH27: 196807.0801 | AI27: 654276.7796 | AK27: 0 | AL27: 0
B28: ='Input - Inventory'!B24 -> 16 | C28: ='Input - Inventory'!C24 -> LED1x22 | D28: ='Input - Inventory'!D24 -> Lamp | E28: ='Input - Inventory'!R24 -> 14394 | F28: ='Input - Inventory'!S24 -> 14394 | G28: ='Input - Inventory'!T24 -> 14394 | H28: ='Input - Inventory'!U24 -> 14394 | I28: ='Input - Inventory'!V24 -> 14394 | K28: ='Calc - Opex FY20'!I27/E$5 -> 23.02620708 | L28: ='Calc - Opex FY21'!I27/F$5 -> 23.08714431 | M28: ='Calc - Opex FY22'!I27/G$5 -> 23.18809737 | N28: ='Calc - Opex FY23'!I27/H$5 -> 23.31305242 | O28: ='Calc - Opex FY24'!I27/I$5 -> 23.42516796 | Q28: 23.20093873 | R28: 23.20093873 | S28: 23.20093873 | T28: 23.20093873 | U28: 23.20093873 | W28: 331439.2247 | X28: 332316.3551 | Y28: 333769.4735 | Z28: 335568.0766 | AA28: 337181.8676 | AB28: 1508483.73 | AD28: 333954.3121 | AE28: 333954.3121 | AF28: 333954.3121 | AG28: 333954.3121 | AH28: 333954.3121 | AI28: 1508483.73 | AK28: 0 | AL28: 0
B29: ='Input - Inventory'!B25 -> 17 | C29: ='Input - Inventory'!C25 -> LED1x25 GE | D29: ='Input - Inventory'!D25 -> Lamp | E29: ='Input - Inventory'!R25 -> 3665 | F29: ='Input - Inventory'!S25 -> 3665 | G29: ='Input - Inventory'!T25 -> 3665 | H29: ='Input - Inventory'!U25 -> 3665 | I29: ='Input - Inventory'!V25 -> 3665 | K29: ='Calc - Opex FY20'!I28/E$5 -> 23.02620708 | L29: ='Calc - Opex FY21'!I28/F$5 -> 23.08714431 | M29: ='Calc - Opex FY22'!I28/G$5 -> 23.18809737 | N29: ='Calc - Opex FY23'!I28/H$5 -> 23.31305242 | O29: ='Calc - Opex FY24'!I28/I$5 -> 23.42516796 | Q29: 23.20093873 | R29: 23.20093873 | S29: 23.20093873 | T29: 23.20093873 | U29: 23.20093873 | W29: 84391.04896 | X29: 84614.38388 | Y29: 84984.37685 | Z29: 85442.33713 | AA29: 85853.24058 | AB29: 384090.0981 | AD29: 85031.44045 | AE29: 85031.44045 | AF29: 85031.44045 | AG29: 85031.44045 | AH29: 85031.44045 | AI29: 384090.0981 | AK29: 0 | AL29: 0
B30: ='Input - Inventory'!B26 -> 18 | C30: ='Input - Inventory'!C26 -> LED1x28 | D30: ='Input - Inventory'!D26 -> Lamp | E30: ='Input - Inventory'!R26 -> 1395 | F30: ='Input - Inventory'!S26 -> 2791 | G30: ='Input - Inventory'!T26 -> 4186 | H30: ='Input - Inventory'!U26 -> 4440 | I30: ='Input - Inventory'!V26 -> 4464 | K30: ='Calc - Opex FY20'!I29/E$5 -> 23.02620708 | L30: ='Calc - Opex FY21'!I29/F$5 -> 23.08714431 | M30: ='Calc - Opex FY22'!I29/G$5 -> 23.18809737 | N30: ='Calc - Opex FY23'!I29/H$5 -> 23.31305242 | O30: ='Calc - Opex FY24'!I29/I$5 -> 23.42516796 | Q30: 23.24629321 | R30: =Q30 -> 23.24629321 | S30: 23.24629321 | T30: 23.24629321 | U30: 23.24629321 | W30: 32121.55888 | X30: 64436.21976 | Y30: 97065.37558 | Z30: 103509.9528 | AA30: 104569.9498 | AB30: 357164.8 | AD30: 32428.57903 | AE30: 64880.40435 | AF30: 97308.98339 | AG30: 103213.5419 | AH30: 103771.4529 | AI30: 357164.8 | AK30: 0 | AL30: 0
B31: ='Input - Inventory'!B27 -> 19 | C31: ='Input - Inventory'!C27 -> LED1x29 | D31: ='Input - Inventory'!D27 -> Lamp | E31: ='Input - Inventory'!R27 -> 15545 | F31: ='Input - Inventory'!S27 -> 15545 | G31: ='Input - Inventory'!T27 -> 15545 | H31: ='Input - Inventory'!U27 -> 15545 | I31: ='Input - Inventory'!V27 -> 15545 | K31: ='Calc - Opex FY20'!I30/E$5 -> 23.02620708 | L31: ='Calc - Opex FY21'!I30/F$5 -> 23.08714431 | M31: ='Calc - Opex FY22'!I30/G$5 -> 23.18809737 | N31: ='Calc - Opex FY23'!I30/H$5 -> 23.31305242 | O31: ='Calc - Opex FY24'!I30/I$5 -> 23.42516796 | Q31: 23.20093873 | R31: 23.20093873 | S31: 23.20093873 | T31: 23.20093873 | U31: 23.20093873 | W31: 357942.3891 | X31: 358889.6582 | Y31: 360458.9736 | Z31: 362401.3999 | AA31: 364144.236 | AB31: 1629107.933 | AD31: 360658.5926 | AE31: 360658.5926 | AF31: 360658.5926 | AG31: 360658.5926 | AH31: 360658.5926 | AI31: 1629107.933 | AK31: 0 | AL31: 0
B32: ='Input - Inventory'!B28 -> 20 | C32: ='Input - Inventory'!C28 -> LED1x298 | D32: ='Input - Inventory'!D28 -> Lamp | E32: ='Input - Inventory'!R28 -> 52 | F32: ='Input - Inventory'!S28 -> 75 | G32: ='Input - Inventory'!T28 -> 102 | H32: ='Input - Inventory'!U28 -> 152 | I32: ='Input - Inventory'!V28 -> 178 | K32: ='Calc - Opex FY20'!I31/E$5 -> 30.52174724 | L32: ='Calc - Opex FY21'!I31/F$5 -> 30.61315307 | M32: ='Calc - Opex FY22'!I31/G$5 -> 30.76458266 | N32: ='Calc - Opex FY23'!I31/H$5 -> 30.95201525 | O32: ='Calc - Opex FY24'!I31/I$5 -> 31.12018856 | Q32: 30.87647541 | R32: 30.87647541 | S32: 30.87647541 | T32: 30.87647541 | U32: 30.87647541 | W32: 1587.130856 | X32: 2295.98648 | Y32: 3137.987432 | Z32: 4704.706317 | AA32: 5539.393563 | AB32: 15279.07247 | AD32: 1605.576722 | AE32: 2315.735656 | AF32: 3149.400492 | AG32: 4693.224263 | AH32: 5496.012624 | AI32: 15279.07247 | AK32: 0 | AL32: 0
B33: ='Input - Inventory'!B29 -> 21 | C33: ='Input - Inventory'!C29 -> LED1x33 | D33: ='Input - Inventory'!D29 -> Lamp | E33: ='Input - Inventory'!R29 -> 5 | F33: ='Input - Inventory'!S29 -> 10 | G33: ='Input - Inventory'!T29 -> 15 | H33: ='Input - Inventory'!U29 -> 25 | I33: ='Input - Inventory'!V29 -> 30 | K33: ='Calc - Opex FY20'!I32/E$5 -> 23.02620708 | L33: ='Calc - Opex FY21'!I32/F$5 -> 23.08714431 | M33: ='Calc - Opex FY22'!I32/G$5 -> 23.18809737 | N33: ='Calc - Opex FY23'!I32/H$5 -> 23.31305242 | O33: ='Calc - Opex FY24'!I32/I$5 -> 23.42516796 | Q33: =IFERROR(NPV($E$8,W33:AA33)/NPV($E$8,E33:I33),0) -> 23.2815921 | R33: =Q33 -> 23.2815921 | S33: 23.2815921 | T33: 23.2815921 | U33: 23.2815921 | W33: 115.1310354 | X33: 230.8714431 | Y33: 347.8214605 | Z33: 582.8263105 | AA33: 702.7550388 | AB33: 1741.044464 | AD33: 116.4079605 | AE33: 232.815921 | AF33: 349.2238815 | AG33: 582.0398026 | AH33: 698.4477631 | AI33: 1741.044464 | AK33: 0 | AL33: 0
B34: ='Input - Inventory'!B30 -> 22 | C34: ='Input - Inventory'!C30 -> LED1x42 | D34: ='Input - Inventory'!D30 -> Lamp | E34: ='Input - Inventory'!R30 -> 17 | F34: ='Input - Inventory'!S30 -> 17 | G34: ='Input - Inventory'!T30 -> 112 | H34: ='Input - Inventory'!U30 -> 207 | I34: ='Input - Inventory'!V30 -> 303 | K34: ='Calc - Opex FY20'!I33/E$5 -> 23.02620708 | L34: ='Calc - Opex FY21'!I33/F$5 -> 23.08714431 | M34: ='Calc - Opex FY22'!I33/G$5 -> 23.18809737 | N34: ='Calc - Opex FY23'!I33/H$5 -> 23.31305242 | O34: ='Calc - Opex FY24'!I33/I$5 -> 23.42516796 | Q34: 23.32657638 | R34: 23.32657638 | S34: 23.32657638 | T34: 23.32657638 | U34: 23.32657638 | W34: 391.4455204 | X34: 392.4814532 | Y34: 2597.066905 | Z34: 4825.801851 | AA34: 7097.825892 | AB34: 13276.80692 | AD34: =E34*Q34 -> 396.5517985 | AE34: =F34*R34 -> 396.5517985 | AF34: 2612.576555 | AG34: 4828.601311 | AH34: 7067.952644 | AI34: 13276.80692 | AK34: 0 | AL34: 0
B35: ='Input - Inventory'!B31 -> 23 | C35: ='Input - Inventory'!C31 -> MBF1x1000 | D35: ='Input - Inventory'!D31 -> Lamp | E35: ='Input - Inventory'!R31 -> 6 | F35: ='Input - Inventory'!S31 -> 6 | G35: ='Input - Inventory'!T31 -> 6 | H35: ='Input - Inventory'!U31 -> 0 | I35: ='Input - Inventory'!V31 -> 0 | K35: ='Calc - Opex FY20'!I34/E$5 -> 76.63911143 | L35: ='Calc - Opex FY21'!I34/F$5 -> 76.87009349 | M35: ='Calc - Opex FY22'!I34/G$5 -> 77.25275527 | N35: ='Calc - Opex FY23'!I34/H$5 -> 77.72639641 | O35: ='Calc - Opex FY24'!I34/I$5 -> 78.15136947 | Q35: 76.91365856 | R35: 76.91365856 | S35: 76.91365856 | T35: 76.91365856 | U35: 76.91365856 | W35: 459.8346686 | X35: 461.2205609 | Y35: 463.5165316 | Z35: 0 | AA35: 0 | AB35: 1293.28803 | AD35: 461.4819514 | AE35: 461.4819514 | AF35: 461.4819514 | AG35: 0 | AH35: 0 | AI35: 1293.28803 | AK35: 0 | AL35: 0
B36: ='Input - Inventory'!B32 -> 24 | C36: ='Input - Inventory'!C32 -> MBF1x125 | D36: ='Input - Inventory'!D32 -> Lamp | E36: ='Input - Inventory'!R32 -> 3091 | F36: ='Input - Inventory'!S32 -> 1719 | G36: ='Input - Inventory'!T32 -> 348 | H36: ='Input - Inventory'!U32 -> 143 | I36: ='Input - Inventory'!V32 -> 143 | K36: ='Calc - Opex FY20'!I35/E$5 -> 40.5494112 | L36: ='Calc - Opex FY21'!I35/F$5 -> 40.6686215 | M36: ='Calc - Opex FY22'!I35/G$5 -> 40.866114 | N36: ='Calc - Opex FY23'!I35/H$5 -> 41.11056113 | O36: ='Calc - Opex FY24'!I35/I$5 -> 41.32989056 | Q36: 40.63770276 | R36: 40.63770276 | S36: 40.63770276 | T36: 40.63770276 | U36: 40.63770276 | W36: 125338.23 | X36: 69909.36036 | Y36: 14221.40767 | Z36: 5878.810241 | AA36: 5910.174351 | AB36: 209337.3036 | AD36: 125611.1392 | AE36: 69856.21105 | AF36: 14141.92056 | AG36: 5811.191495 | AH36: 5811.191495 | AI36: 209337.3036 | AK36: 0 | AL36: 0
B37: ='Input - Inventory'!B33 -> 25 | C37: ='Input - Inventory'!C33 -> MBF1x250 | D37: ='Input - Inventory'!D33 -> Lamp | E37: ='Input - Inventory'!R33 -> 10054 | F37: ='Input - Inventory'!S33 -> 5078 | G37: ='Input - Inventory'!T33 -> 101 | H37: ='Input - Inventory'!U33 -> 101 | I37: ='Input - Inventory'!V33 -> 101 | K37: ='Calc - Opex FY20'!I36/E$5 -> 54.94939885 | L37: ='Calc - Opex FY21'!I36/F$5 -> 55.12821429 | M37: ='Calc - Opex FY22'!I36/G$5 -> 55.42445304 | N37: ='Calc - Opex FY23'!I36/H$5 -> 55.79112373 | O37: ='Calc - Opex FY24'!I36/I$5 -> 56.12011789 | Q37: 55.02173908 | R37: 55.02173908 | S37: 55.02173908 | T37: 55.02173908 | U37: 55.02173908 | W37: 552461.256 | X37: 279941.0722 | Y37: 5597.869757 | Z37: 5634.903497 | AA37: 5668.131907 | AB37: 810005.9688 | AD37: 553188.5647 | AE37: 279400.391 | AF37: 5557.195647 | AG37: 5557.195647 | AH37: 5557.195647 | AI37: 810005.9688 | AK37: 0 | AL37: 0
B38: ='Input - Inventory'!B34 -> 26 | C38: ='Input - Inventory'!C34 -> MBF1x400 | D38: ='Input - Inventory'!D34 -> Lamp | E38: ='Input - Inventory'!R34 -> 3724 | F38: ='Input - Inventory'!S34 -> 1957 | G38: ='Input - Inventory'!T34 -> 190 | H38: ='Input - Inventory'!U34 -> 0 | I38: ='Input - Inventory'!V34 -> 0 | K38: ='Calc - Opex FY20'!I37/E$5 -> 54.94939885 | L38: ='Calc - Opex FY21'!I37/F$5 -> 55.12821429 | M38: ='Calc - Opex FY22'!I37/G$5 -> 55.42445304 | N38: ='Calc - Opex FY23'!I37/H$5 -> 55.79112373 | O38: ='Calc - Opex FY24'!I37/I$5 -> 56.12011789 | Q38: 55.02232783 | R38: 55.02232783 | S38: 55.02232783 | T38: 55.02232783 | U38: 55.02232783 | W38: 204631.5613 | X38: 107885.9154 | Y38: 10530.64608 | Z38: 0 | AA38: 0 | AB38: 307986.4411 | AD38: 204903.1488 | AE38: 107678.6956 | AF38: 10454.24229 | AG38: 0 | AH38: 0 | AI38: 307986.4411 | AK38: 0 | AL38: 0
B39: ='Input - Inventory'!B35 -> 27 | C39: ='Input - Inventory'!C35 -> MBF1x42 | D39: ='Input - Inventory'!D35 -> Lamp | E39: ='Input - Inventory'!R35 -> 41952 | F39: ='Input - Inventory'!S35 -> 41752 | G39: ='Input - Inventory'!T35 -> 41552 | H39: ='Input - Inventory'!U35 -> 41152 | I39: ='Input - Inventory'!V35 -> 40952 | K39: ='Calc - Opex FY20'!I38/E$5 -> 35.94829724 | L39: ='Calc - Opex FY21'!I38/F$5 -> 36.05029314 | M39: ='Calc - Opex FY22'!I38/G$5 -> 36.219267 | N39: ='Calc - Opex FY23'!I38/H$5 -> 36.42841507 | O39: ='Calc - Opex FY24'!I38/I$5 -> 36.61607254 | Q39: 36.23860601 | R39: 36.23860601 | S39: 36.23860601 | T39: 36.23860601 | U39: 36.23860601 | W39: 1508102.966 | X39: 1505171.839 | Y39: 1504982.982 | Z39: 1499102.137 | AA39: 1499501.403 | AB39: 6791507.261 | AD39: 1520281.999 | AE39: 1513034.278 | AF39: 1505786.557 | AG39: 1491291.115 | AH39: 1484043.393 | AI39: 6791507.261 | AK39: 0 | AL39: 0
B40: ='Input - Inventory'!B36 -> 28 | C40: ='Input - Inventory'!C36 -> MBF1x50 | D40: ='Input - Inventory'!D36 -> Lamp | E40: ='Input - Inventory'!R36 -> 6357 | F40: ='Input - Inventory'!S36 -> 3248 | G40: ='Input - Inventory'!T36 -> 138 | H40: ='Input - Inventory'!U36 -> 0 | I40: ='Input - Inventory'!V36 -> 0 | K40: ='Calc - Opex FY20'!I39/E$5 -> 40.69560491 | L40: ='Calc - Opex FY21'!I39/F$5 -> 40.81481521 | M40: ='Calc - Opex FY22'!I39/G$5 -> 41.01230771 | N40: ='Calc - Opex FY23'!I39/H$5 -> 41.25675484 | O40: ='Calc - Opex FY24'!I39/I$5 -> 41.47608427 | Q40: =IFERROR(NPV($E$8,W40:AA40)/NPV($E$8,E40:I40),0) -> 40.73872081 | R40: 40.73872081 | S40: 40.73872081 | T40: 40.73872081 | U40: 40.73872081 | W40: 258701.9604 | X40: 132566.5198 | Y40: 5659.698464 | Z40: 0 | AA40: 0 | AB40: 378887.4256 | AD40: 258976.0482 | AE40: 132319.3652 | AF40: 5621.943472 | AG40: 0 | AH40: 0 | AI40: 378887.4256 | AK40: 0 | AL40: 0
B41: ='Input - Inventory'!B37 -> 29 | C41: ='Input - Inventory'!C37 -> MBF1x80 | D41: ='Input - Inventory'!D37 -> Lamp | E41: ='Input - Inventory'!R37 -> 47982 | F41: ='Input - Inventory'!S37 -> 25736 | G41: ='Input - Inventory'!T37 -> 3490 | H41: ='Input - Inventory'!U37 -> 162 | I41: ='Input - Inventory'!V37 -> 162 | K41: ='Calc - Opex FY20'!I40/E$5 -> 38.54512932 | L41: ='Calc - Opex FY21'!I40/F$5 -> 38.65805868 | M41: ='Calc - Opex FY22'!I40/G$5 -> 38.84514573 | N41: ='Calc - Opex FY23'!I40/H$5 -> 39.07671348 | O41: ='Calc - Opex FY24'!I40/I$5 -> 39.28448693 | Q41: 38.59707281 | R41: 38.59707281 | S41: 38.59707281 | T41: 38.59707281 | U41: 38.59707281 | W41: 1849472.395 | X41: 994903.7983 | Y41: 135569.5586 | Z41: 6330.427583 | AA41: 6364.086882 | AB41: 2849442.679 | AD41: 1851964.748 | AE41: 993334.2659 | AF41: 134703.7841 | AG41: 6252.725796 | AH41: 6252.725796 | AI41: 2849442.679 | AK41: 0 | AL41: 0
B42: ='Input - Inventory'!B38 -> 30 | C42: ='Input - Inventory'!C38 -> MBF2x80 | D42: ='Input - Inventory'!D38 -> Lamp | E42: ='Input - Inventory'!R38 -> 16 | F42: ='Input - Inventory'!S38 -> 16 | G42: ='Input - Inventory'!T38 -> 13 | H42: ='Input - Inventory'!U38 -> 10 | I42: ='Input - Inventory'!V38 -> 8 | K42: ='Calc - Opex FY20'!I41/E$5 -> 48.80412125 | L42: ='Calc - Opex FY21'!I41/F$5 -> 48.95810929 | M42: ='Calc - Opex FY22'!I41/G$5 -> 49.21321714 | N42: ='Calc - Opex FY23'!I41/H$5 -> 49.5289779 | O42: ='Calc - Opex FY24'!I41/I$5 -> 49.81229327 | Q42: 49.15513678 | R42: 49.15513678 | S42: 49.15513678 | T42: 49.15513678 | U42: 49.15513678 | W42: 780.86594 | X42: 783.3297486 | Y42: 639.7718228 | Z42: 495.289779 | AA42: 398.4983462 | AB42: 2830.987474 | AD42: 786.4821886 | AE42: 786.4821886 | AF42: 639.0167782 | AG42: 491.5513678 | AH42: 393.2410943 | AI42: 2830.987474 | AK42: 0 | AL42: 0
B43: ='Input - Inventory'!B39 -> 31 | C43: ='Input - Inventory'!C39 -> MBI1x100 | D43: ='Input - Inventory'!D39 -> Lamp | E43: ='Input - Inventory'!R39 -> 26 | F43: ='Input - Inventory'!S39 -> 22 | G43: ='Input - Inventory'!T39 -> 18 | H43: ='Input - Inventory'!U39 -> 9 | I43: ='Input - Inventory'!V39 -> 5 | K43: ='Calc - Opex FY20'!I42/E$5 -> 54.66698453 | L43: ='Calc - Opex FY21'!I42/F$5 -> 54.82817848 | M43: ='Calc - Opex FY22'!I42/G$5 -> 55.09522416 | N43: ='Calc - Opex FY23'!I42/H$5 -> 55.42576103 | O43: ='Calc - Opex FY24'!I42/I$5 -> 55.72233421 | Q43: 54.94639037 | R43: 54.94639037 | S43: 54.94639037 | T43: 54.94639037 | U43: 54.94639037 | W43: 1421.341598 | X43: 1206.219927 | Y43: 991.7140349 | Z43: 498.8318492 | AA43: 278.6116711 | AB43: 4064.434107 | AD43: 1428.60615 | AE43: 1208.820588 | AF43: 989.0350266 | AG43: 494.5175133 | AH43: 274.7319518 | AI43: 4064.434107 | AK43: 0 | AL43: 0
B44: ='Input - Inventory'!B40 -> 32 | C44: ='Input - Inventory'!C40 -> MBI1x1000 | D44: ='Input - Inventory'!D40 -> Lamp | E44: ='Input - Inventory'!R40 -> 6 | F44: ='Input - Inventory'!S40 -> 0 | G44: ='Input - Inventory'!T40 -> 0 | H44: ='Input - Inventory'!U40 -> 0 | I44: ='Input - Inventory'!V40 -> 0 | K44: ='Calc - Opex FY20'!I43/E$5 -> 68.43913193 | L44: ='Calc - Opex FY21'!I43/F$5 -> 68.60032588 | M44: ='Calc - Opex FY22'!I43/G$5 -> 68.86737156 | N44: ='Calc - Opex FY23'!I43/H$5 -> 69.19790842 | O44: ='Calc - Opex FY24'!I43/I$5 -> 69.49448161 | Q44: 68.43913193 | R44: 68.43913193 | S44: 68.43913193 | T44: 68.43913193 | U44: 68.43913193 | W44: 410.6347916 | X44: 0 | Y44: 0 | Z44: 0 | AA44: 0 | AB44: 396.8080515 | AD44: 410.6347916 | AE44: 0 | AF44: 0 | AG44: 0 | AH44: 0 | AI44: 396.8080515 | AK44: 0 | AL44: 0
B45: ='Input - Inventory'!B41 -> 33 | C45: ='Input - Inventory'!C41 -> MBI1x150 | D45: ='Input - Inventory'!D41 -> Lamp | E45: ='Input - Inventory'!R41 -> 4 | F45: ='Input - Inventory'!S41 -> 4 | G45: ='Input - Inventory'!T41 -> 4 | H45: ='Input - Inventory'!U41 -> 0 | I45: ='Input - Inventory'!V41 -> 0 | K45: ='Calc - Opex FY20'!I44/E$5 -> 54.66698453 | L45: ='Calc - Opex FY21'!I44/F$5 -> 54.82817848 | M45: ='Calc - Opex FY22'!I44/G$5 -> 55.09522416 | N45: ='Calc - Opex FY23'!I44/H$5 -> 55.42576103 | O45: ='Calc - Opex FY24'!I44/I$5 -> 55.72233421 | Q45: 54.85858095 | R45: 54.85858095 | S45: 54.85858095 | T45: 54.85858095 | U45: 54.85858095 | W45: 218.6679381 | X45: 219.3127139 | Y45: 220.3808967 | Z45: 0 | AA45: 0 | AB45: 614.9574941 | AD45: 219.4343238 | AE45: 219.4343238 | AF45: 219.4343238 | AG45: 0 | AH45: 0 | AI45: 614.9574941 | AK45: 0 | AL45: 0
B46: ='Input - Inventory'!B42 -> 34 | C46: ='Input - Inventory'!C42 -> MBI1x250 | D46: ='Input - Inventory'!D42 -> Lamp | E46: ='Input - Inventory'!R42 -> 53 | F46: ='Input - Inventory'!S42 -> 50 | G46: ='Input - Inventory'!T42 -> 46 | H46: ='Input - Inventory'!U42 -> 38 | I46: ='Input - Inventory'!V42 -> 35 | K46: ='Calc - Opex FY20'!I45/E$5 -> 52.17249828 | L46: ='Calc - Opex FY21'!I45/F$5 -> 52.33369223 | M46: ='Calc - Opex FY22'!I45/G$5 -> 52.60073791 | N46: ='Calc - Opex FY23'!I45/H$5 -> 52.93127477 | O46: ='Calc - Opex FY24'!I45/I$5 -> 53.22784796 | Q46: 52.57621648 | R46: =Q46 -> 52.57621648 | S46: 52.57621648 | T46: 52.57621648 | U46: 52.57621648 | W46: 2765.142409 | X46: 2616.684611 | Y46: 2419.633944 | Z46: 2011.388441 | AA46: 1862.974679 | AB46: 10622.43372 | AD46: 2786.539474 | AE46: 2628.810824 | AF46: 2418.505958 | AG46: 1997.896226 | AH46: 1840.167577 | AI46: 10622.43372 | AK46: 0 | AL46: 0
B47: ='Input - Inventory'!B43 -> 35 | C47: ='Input - Inventory'!C43 -> MBI1x400 | D47: ='Input - Inventory'!D43 -> Lamp | E47: ='Input - Inventory'!R43 -> 120 | F47: ='Input - Inventory'!S43 -> 113 | G47: ='Input - Inventory'!T43 -> 105 | H47: ='Input - Inventory'!U43 -> 90 | I47: ='Input - Inventory'!V43 -> 82 | K47: ='Calc - Opex FY20'!I46/E$5 -> 52.09177057 | L47: ='Calc - Opex FY21'!I46/F$5 -> 52.25296452 | M47: ='Calc - Opex FY22'!I46/G$5 -> 52.5200102 | N47: ='Calc - Opex FY23'!I46/H$5 -> 52.85054706 | O47: ='Calc - Opex FY24'!I46/I$5 -> 53.14712025 | Q47: 52.50153676 | R47: 52.50153676 | S47: 52.50153676 | T47: 52.50153676 | U47: 52.50153676 | W47: 6251.012468 | X47: 5904.58499 | Y47: 5514.601071 | Z47: 4756.549236 | AA47: 4358.06386 | AB47: 24349.93371 | AD47: 6300.184412 | AE47: 5932.673654 | AF47: 5512.66136 | AG47: 4725.138309 | AH47: 4305.126015 | AI47: 24349.93371 | AK47: 0 | AL47: 0
B48: ='Input - Inventory'!B44 -> 36 | C48: ='Input - Inventory'!C44 -> MBI1x70 | D48: ='Input - Inventory'!D44 -> Lamp | E48: ='Input - Inventory'!R44 -> 289 | F48: ='Input - Inventory'!S44 -> 287 | G48: ='Input - Inventory'!T44 -> 285 | H48: ='Input - Inventory'!U44 -> 281 | I48: ='Input - Inventory'!V44 -> 279 | K48: ='Calc - Opex FY20'!I47/E$5 -> 41.7456477 | L48: ='Calc - Opex FY21'!I47/F$5 -> 41.85311034 | M48: ='Calc - Opex FY22'!I47/G$5 -> 42.03114079 | N48: ='Calc - Opex FY23'!I47/H$5 -> 42.2514987 | O48: ='Calc - Opex FY24'!I47/I$5 -> 42.44921416 | Q48: 42.05047439 | R48: 42.05047439 | S48: 42.05047439 | T48: 42.05047439 | U48: 42.05047439 | W48: 12064.49219 | X48: 12011.84267 | Y48: 11978.87513 | Z48: 11872.67113 | AA48: 11843.33075 | AB48: 54015.71562 | AD48: 12152.5871 | AE48: 12068.48615 | AF48: 11984.3852 | AG48: 11816.1833 | AH48: 11732.08236 | AI48: 54015.71562 | AK48: 0 | AL48: 0
B49: ='Input - Inventory'!B45 -> 37 | C49: ='Input - Inventory'!C45 -> MBI1x70 II | D49: ='Input - Inventory'!D45 -> Lamp | E49: ='Input - Inventory'!R45 -> 393 | F49: ='Input - Inventory'!S45 -> 390 | G49: ='Input - Inventory'!T45 -> 387 | H49: ='Input - Inventory'!U45 -> 381 | I49: ='Input - Inventory'!V45 -> 378 | K49: ='Calc - Opex FY20'!I48/E$5 -> 59.30392472 | L49: ='Calc - Opex FY21'!I48/F$5 -> 59.41138735 | M49: ='Calc - Opex FY22'!I48/G$5 -> 59.58941781 | N49: ='Calc - Opex FY23'!I48/H$5 -> 59.80977572 | O49: ='Calc - Opex FY24'!I48/I$5 -> 60.00749117 | Q49: 59.60840395 | R49: 59.60840395 | S49: 59.60840395 | T49: 59.60840395 | U49: 59.60840395 | W49: 23306.44241 | X49: 23170.44107 | Y49: 23061.10469 | Z49: 22787.52455 | AA49: 22682.83166 | AB49: 103949.733 | AD49: 23426.10275 | AE49: 23247.27754 | AF49: 23068.45233 | AG49: 22710.80191 | AH49: 22531.97669 | AI49: 103949.733 | AK49: 0 | AL49: 0
B50: ='Input - Inventory'!B46 -> 38 | C50: ='Input - Inventory'!C46 -> SON1x100 | D50: ='Input - Inventory'!D46 -> Lamp | E50: ='Input - Inventory'!R46 -> 1424 | F50: ='Input - Inventory'!S46 -> 1424 | G50: ='Input - Inventory'!T46 -> 1329 | H50: ='Input - Inventory'!U46 -> 1234 | I50: ='Input - Inventory'!V46 -> 1138 | K50: ='Calc - Opex FY20'!I49/E$5 -> 64.11616711 | L50: ='Calc - Opex FY21'!I49/F$5 -> 64.32130349 | M50: ='Calc - Opex FY22'!I49/G$5 -> 64.66114743 | N50: ='Calc - Opex FY23'!I49/H$5 -> 65.08179063 | O50: ='Calc - Opex FY24'!I49/I$5 -> 65.45921145 | Q50: 64.663849 | R50: 64.663849 | S50: 64.663849 | T50: 64.663849 | U50: 64.663849 | W50: 91301.42196 | X50: 91593.53617 | Y50: 85934.66494 | Z50: 80310.92964 | AA50: 74492.58263 | AB50: 384095.3992 | AD50: 92081.32097 | AE50: 92081.32097 | AF50: 85938.25532 | AG50: 79795.18966 | AH50: 73587.46016 | AI50: 384095.3992 | AK50: 0 | AL50: 0
B51: ='Input - Inventory'!B47 -> 39 | C51: ='Input - Inventory'!C47 -> SON1x1000 | D51: ='Input - Inventory'!D47 -> Lamp | E51: ='Input - Inventory'!R47 -> 49 | F51: ='Input - Inventory'!S47 -> 49 | G51: ='Input - Inventory'!T47 -> 40 | H51: ='Input - Inventory'!U47 -> 31 | I51: ='Input - Inventory'!V47 -> 23 | K51: ='Calc - Opex FY20'!I50/E$5 -> 70.50794082 | L51: ='Calc - Opex FY21'!I50/F$5 -> 70.7130772 | M51: ='Calc - Opex FY22'!I50/G$5 -> 71.05292115 | N51: ='Calc - Opex FY23'!I50/H$5 -> 71.47356434 | O51: ='Calc - Opex FY24'!I50/I$5 -> 71.85098516 | Q51: 70.97025009 | R51: 70.97025009 | S51: 70.97025009 | T51: 70.97025009 | U51: 70.97025009 | W51: 3454.8891 | X51: 3464.940783 | Y51: 2842.116846 | Z51: 2215.680495 | AA51: 1652.572659 | AB51: 12463.12565 | AD51: 3477.542254 | AE51: 3477.542254 | AF51: 2838.810004 | AG51: 2200.077753 | AH51: 1632.315752 | AI51: 12463.12565 | AK51: 0 | AL51: 0
B52: ='Input - Inventory'!B48 -> 40 | C52: ='Input - Inventory'!C48 -> SON1x150 | D52: ='Input - Inventory'!D48 -> Lamp | E52: ='Input - Inventory'!R48 -> 19878 | F52: ='Input - Inventory'!S48 -> 19678 | G52: ='Input - Inventory'!T48 -> 19478 | H52: ='Input - Inventory'!U48 -> 19278 | I52: ='Input - Inventory'!V48 -> 19078 | K52: ='Calc - Opex FY20'!I51/E$5 -> 60.94440843 | L52: ='Calc - Opex FY21'!I51/F$5 -> 61.14954481 | M52: ='Calc - Opex FY22'!I51/G$5 -> 61.48938876 | N52: ='Calc - Opex FY23'!I51/H$5 -> 61.91003195 | O52: ='Calc - Opex FY24'!I51/I$5 -> 62.28745277 | Q52: 61.52558534 | R52: 61.52558534 | S52: 61.52558534 | T52: 61.52558534 | U52: 61.52558534 | W52: 1211452.951 | X52: 1203300.743 | Y52: 1197690.314 | Z52: 1193501.596 | AA52: 1188320.024 | AB52: 5417000.883 | AD52: 1223005.585 | AE52: 1210700.468 | AF52: 1198395.351 | AG52: 1186090.234 | AH52: 1173785.117 | AI52: 5417000.883 | AK52: 0 | AL52: 0
B53: ='Input - Inventory'!B49 -> 41 | C53: ='Input - Inventory'!C49 -> SON1x150 AR | D53: ='Input - Inventory'!D49 -> Lamp | E53: ='Input - Inventory'!R49 -> 2615 | F53: ='Input - Inventory'!S49 -> 2615 | G53: ='Input - Inventory'!T49 -> 2615 | H53: ='Input - Inventory'!U49 -> 2615 | I53: ='Input - Inventory'!V49 -> 2615 | K53: ='Calc - Opex FY20'!I52/E$5 -> 60.94440843 | L53: ='Calc - Opex FY21'!I52/F$5 -> 61.14954481 | M53: ='Calc - Opex FY22'!I52/G$5 -> 61.48938876 | N53: ='Calc - Opex FY23'!I52/H$5 -> 61.91003195 | O53: ='Calc - Opex FY24'!I52/I$5 -> 62.28745277 | Q53: 61.53261736 | R53: 61.53261736 | S53: 61.53261736 | T53: 61.53261736 | U53: 61.53261736 | W53: 159369.628 | X53: 159906.0597 | Y53: 160794.7516 | Z53: 161894.7336 | AA53: 162881.689 | AB53: 726826.3386 | AD53: 160907.7944 | AE53: 160907.7944 | AF53: 160907.7944 | AG53: 160907.7944 | AH53: 160907.7944 | AI53: 726826.3386 | AK53: 0 | AL53: 0
B54: ='Input - Inventory'!B50 -> 42 | C54: ='Input - Inventory'!C50 -> SON1x250 | D54: ='Input - Inventory'!D50 -> Lamp | E54: ='Input - Inventory'!R50 -> 24760 | F54: ='Input - Inventory'!S50 -> 24560 | G54: ='Input - Inventory'!T50 -> 24360 | H54: ='Input - Inventory'!U50 -> 24160 | I54: ='Input - Inventory'!V50 -> 23960 | K54: ='Calc - Opex FY20'!I53/E$5 -> 62.43596853 | L54: ='Calc - Opex FY21'!I53/F$5 -> 62.64110491 | M54: ='Calc - Opex FY22'!I53/G$5 -> 62.98094885 | N54: ='Calc - Opex FY23'!I53/H$5 -> 63.40159205 | O54: ='Calc - Opex FY24'!I53/I$5 -> 63.77901287 | Q54: 63.01855394 | R54: 63.01855394 | S54: 63.01855394 | T54: 63.01855394 | U54: 63.01855394 | W54: 1545914.581 | X54: 1538465.537 | Y54: 1534215.914 | Z54: 1531782.464 | AA54: 1528145.148 | AB54: 6938144.758 | AD54: 1560339.395 | AE54: 1547735.685 | AF54: 1535131.974 | AG54: 1522528.263 | AH54: 1509924.552 | AI54: 6938144.758 | AK54: 0 | AL54: 0
B55: ='Input - Inventory'!B51 -> 43 | C55: ='Input - Inventory'!C51 -> SON1x250 AR | D55: ='Input - Inventory'!D51 -> Lamp | E55: ='Input - Inventory'!R51 -> 3296 | F55: ='Input - Inventory'!S51 -> 3286 | G55: ='Input - Inventory'!T51 -> 3276 | H55: ='Input - Inventory'!U51 -> 3266 | I55: ='Input - Inventory'!V51 -> 3256 | K55: ='Calc - Opex FY20'!I54/E$5 -> 62.43596853 | L55: ='Calc - Opex FY21'!I54/F$5 -> 62.64110491 | M55: ='Calc - Opex FY22'!I54/G$5 -> 62.98094885 | N55: ='Calc - Opex FY23'!I54/H$5 -> 63.40159205 | O55: ='Calc - Opex FY24'!I54/I$5 -> 63.77901287 | Q55: 63.02208593 | R55: 63.02208593 | S55: 63.02208593 | T55: 63.02208593 | U55: 63.02208593 | W55: 205788.9523 | X55: 205838.6707 | Y55: 206325.5884 | Z55: 207069.5996 | AA55: 207664.4659 | AB55: 932783.8097 | AD55: 207720.7952 | AE55: 207090.5744 | AF55: 206460.3535 | AG55: 205830.1326 | AH55: 205199.9118 | AI55: 932783.8097 | AK55: 0 | AL55: 0
B56: ='Input - Inventory'!B52 -> 44 | C56: ='Input - Inventory'!C52 -> SON1x400 | D56: ='Input - Inventory'!D52 -> Lamp | E56: ='Input - Inventory'!R52 -> 2112 | F56: ='Input - Inventory'!S52 -> 2102 | G56: ='Input - Inventory'!T52 -> 2092 | H56: ='Input - Inventory'!U52 -> 2072 | I56: ='Input - Inventory'!V52 -> 2062 | K56: ='Calc - Opex FY20'!I55/E$5 -> 63.09400974 | L56: ='Calc - Opex FY21'!I55/F$5 -> 63.29914613 | M56: ='Calc - Opex FY22'!I55/G$5 -> 63.63899007 | N56: ='Calc - Opex FY23'!I55/H$5 -> 64.05963327 | O56: ='Calc - Opex FY24'!I55/I$5 -> 64.43705409 | Q56: 63.67791499 | R56: 63.67791499 | S56: 63.67791499 | T56: 63.67791499 | U56: 63.67791499 | W56: 133254.5486 | X56: 133054.8052 | Y56: 133132.7672 | Z56: 132731.5601 | AA56: 132869.2055 | AB56: 600838.4982 | AD56: 134487.7565 | AE56: 133850.9773 | AF56: 133214.1982 | AG56: 131940.6399 | AH56: 131303.8607 | AI56: 600838.4982 | AK56: 0 | AL56: 0
B57: ='Input - Inventory'!B53 -> 45 | C57: ='Input - Inventory'!C53 -> SON1x400 AR | D57: ='Input - Inventory'!D53 -> Lamp | E57: ='Input - Inventory'!R53 -> 332 | F57: ='Input - Inventory'!S53 -> 332 | G57: ='Input - Inventory'!T53 -> 332 | H57: ='Input - Inventory'!U53 -> 332 | I57: ='Input - Inventory'!V53 -> 332 | K57: ='Calc - Opex FY20'!I56/E$5 -> 85.99367499 | L57: ='Calc - Opex FY21'!I56/F$5 -> 85.64630548 | M57: ='Calc - Opex FY22'!I56/G$5 -> 85.44672391 | N57: ='Calc - Opex FY23'!I56/H$5 -> 85.34071232 | O57: ='Calc - Opex FY24'!I56/I$5 -> 85.20394673 | Q57: 85.53923994 | R57: 85.53923994 | S57: 85.53923994 | T57: 85.53923994 | U57: 85.53923994 | W57: 28549.9001 | X57: 28434.57342 | Y57: 28368.31234 | Z57: 28333.11649 | AA57: 28287.71031 | AB57: 128279.4371 | AD57: 28399.02766 | AE57: 28399.02766 | AF57: 28399.02766 | AG57: 28399.02766 | AH57: 28399.02766 | AI57: 128279.4371 | AK57: 0 | AL57: 0
B58: ='Input - Inventory'!B54 -> 46 | C58: ='Input - Inventory'!C54 -> SON1x50 | D58: ='Input - Inventory'!D54 -> Lamp | E58: ='Input - Inventory'!R54 -> 459 | F58: ='Input - Inventory'!S54 -> 453 | G58: ='Input - Inventory'!T54 -> 447 | H58: ='Input - Inventory'!U54 -> 435 | I58: ='Input - Inventory'!V54 -> 429 | K58: ='Calc - Opex FY20'!I57/E$5 -> 46.60587274 | L58: ='Calc - Opex FY21'!I57/F$5 -> 46.74263033 | M58: ='Calc - Opex FY22'!I57/G$5 -> 46.96919296 | N58: ='Calc - Opex FY23'!I57/H$5 -> 47.24962176 | O58: ='Calc - Opex FY24'!I57/I$5 -> 47.50123564 | Q58: 46.98993362 | R58: 46.98993362 | S58: 46.98993362 | T58: 46.98993362 | U58: 46.98993362 | W58: 21392.09559 | X58: 21174.41154 | Y58: 20995.22925 | Z58: 20553.58546 | AA58: 20378.03009 | AB58: 94481.88084 | AD58: 21568.37953 | AE58: 21286.43993 | AF58: 21004.50033 | AG58: 20440.62112 | AH58: 20158.68152 | AI58: 94481.88084 | AK58: 0 | AL58: 0
B59: ='Input - Inventory'!B55 -> 47 | C59: ='Input - Inventory'!C55 -> SON1x600 | D59: ='Input - Inventory'!D55 -> Lamp | E59: ='Input - Inventory'!R55 -> 1 | F59: ='Input - Inventory'!S55 -> 1 | G59: ='Input - Inventory'!T55 -> 1 | H59: ='Input - Inventory'!U55 -> 1 | I59: ='Input - Inventory'!V55 -> 1 | K59: ='Calc - Opex FY20'!I58/E$5 -> 70.50794082 | L59: ='Calc - Opex FY21'!I58/F$5 -> 70.7130772 | M59: ='Calc - Opex FY22'!I58/G$5 -> 71.05292115 | N59: ='Calc - Opex FY23'!I58/H$5 -> 71.47356434 | O59: ='Calc - Opex FY24'!I58/I$5 -> 71.85098516 | Q59: 71.09614975 | R59: 71.09614975 | S59: 71.09614975 | T59: 71.09614975 | U59: 71.09614975 | W59: 70.50794082 | X59: 70.7130772 | Y59: 71.05292115 | Z59: 71.47356434 | AA59: 71.85098516 | AB59: 321.143885 | AD59: 71.09614975 | AE59: 71.09614975 | AF59: 71.09614975 | AG59: 71.09614975 | AH59: 71.09614975 | AI59: 321.143885 | AK59: 0 | AL59: 0
B60: ='Input - Inventory'!B56 -> 48 | C60: ='Input - Inventory'!C56 -> SON1x70 | D60: ='Input - Inventory'!D56 -> Lamp | E60: ='Input - Inventory'!R56 -> 1985 | F60: ='Input - Inventory'!S56 -> 1965 | G60: ='Input - Inventory'!T56 -> 1945 | H60: ='Input - Inventory'!U56 -> 1905 | I60: ='Input - Inventory'!V56 -> 1885 | K60: ='Calc - Opex FY20'!I59/E$5 -> 44.95638275 | L60: ='Calc - Opex FY21'!I59/F$5 -> 45.09314034 | M60: ='Calc - Opex FY22'!I59/G$5 -> 45.31970297 | N60: ='Calc - Opex FY23'!I59/H$5 -> 45.60013177 | O60: ='Calc - Opex FY24'!I59/I$5 -> 45.85174565 | Q60: 45.3423395 | R60: 45.3423395 | S60: 45.3423395 | T60: 45.3423395 | U60: 45.3423395 | W60: 89238.41976 | X60: 88608.02077 | Y60: 88146.82228 | Z60: 86868.25102 | AA60: 86430.54054 | AB60: 397086.8796 | AD60: 90004.54391 | AE60: 89097.69712 | AF60: 88190.85033 | AG60: 86377.15675 | AH60: 85470.30996 | AI60: 397086.8796 | AK60: 0 | AL60: 0
B61: ='Input - Inventory'!B57 -> 49 | C61: ='Input - Inventory'!C57 -> SON2x250 | D61: ='Input - Inventory'!D57 -> Lamp | E61: ='Input - Inventory'!R57 -> 30 | F61: ='Input - Inventory'!S57 -> 30 | G61: ='Input - Inventory'!T57 -> 30 | H61: ='Input - Inventory'!U57 -> 30 | I61: ='Input - Inventory'!V57 -> 30 | K61: ='Calc - Opex FY20'!I60/E$5 -> 89.36696492 | L61: ='Calc - Opex FY21'!I60/F$5 -> 89.67841819 | M61: ='Calc - Opex FY22'!I60/G$5 -> 90.19439447 | N61: ='Calc - Opex FY23'!I60/H$5 -> 90.83304616 | O61: ='Calc - Opex FY24'!I60/I$5 -> 91.40607444 | Q61: 90.26002735 | R61: 90.26002735 | S61: 90.26002735 | T61: 90.26002735 | U61: 90.26002735 | W61: 2681.008948 | X61: 2690.352546 | Y61: 2705.831834 | Z61: 2724.991385 | AA61: 2742.182233 | AB61: 12231.23444 | AD61: 2707.80082 | AE61: 2707.80082 | AF61: 2707.80082 | AG61: 2707.80082 | AH61: 2707.80082 | AI61: 12231.23444 | AK61: 0 | AL61: 0
B62: ='Input - Inventory'!B58 -> 50 | C62: ='Input - Inventory'!C58 -> SON2x400 | D62: ='Input - Inventory'!D58 -> Lamp | E62: ='Input - Inventory'!R58 -> 4 | F62: ='Input - Inventory'!S58 -> 4 | G62: ='Input - Inventory'!T58 -> 4 | H62: ='Input - Inventory'!U58 -> 4 | I62: ='Input - Inventory'!V58 -> 4 | K62: ='Calc - Opex FY20'!I61/E$5 -> 90.67417585 | L62: ='Calc - Opex FY21'!I61/F$5 -> 90.98562913 | M62: ='Calc - Opex FY22'!I61/G$5 -> 91.5016054 | N62: ='Calc - Opex FY23'!I61/H$5 -> 92.1402571 | O62: ='Calc - Opex FY24'!I61/I$5 -> 92.71328537 | Q62: 91.56723828 | R62: =Q62 -> 91.56723828 | S62: 91.56723828 | T62: 91.56723828 | U62: 91.56723828 | W62: 362.6967034 | X62: 363.9425165 | Y62: 366.0064216 | Z62: 368.5610284 | AA62: 370.8531415 | AB62: 1654.450135 | AD62: 366.2689531 | AE62: 366.2689531 | AF62: 366.2689531 | AG62: 366.2689531 | AH62: 366.2689531 | AI62: 1654.450135 | AK62: 0 | AL62: 0
B63: ='Input - Inventory'!B59 -> 51 | C63: ='Input - Inventory'!C59 -> SON4x250 | D63: ='Input - Inventory'!D59 -> Lamp | E63: ='Input - Inventory'!R59 -> 6 | F63: ='Input - Inventory'!S59 -> 6 | G63: ='Input - Inventory'!T59 -> 6 | H63: ='Input - Inventory'!U59 -> 6 | I63: ='Input - Inventory'!V59 -> 6 | K63: ='Calc - Opex FY20'!I62/E$5 -> 138.7025528 | L63: ='Calc - Opex FY21'!I62/F$5 -> 139.2063004 | M63: ='Calc - Opex FY22'!I62/G$5 -> 140.0408456 | N63: ='Calc - Opex FY23'!I62/H$5 -> 141.0738072 | O63: ='Calc - Opex FY24'!I62/I$5 -> 142.0006289 | Q63: 140.1470009 | R63: 140.1470009 | S63: 140.1470009 | T63: 140.1470009 | U63: 140.1470009 | W63: 832.2153167 | X63: 835.2378025 | Y63: 840.2450736 | Z63: 846.4428434 | AA63: 852.0037733 | AB63: 3798.294491 | AD63: 840.8820052 | AE63: 840.8820052 | AF63: 840.8820052 | AG63: 840.8820052 | AH63: 840.8820052 | AI63: 3798.294491 | AK63: 0 | AL63: 0
B64: ='Input - Inventory'!B60 -> 52 | C64: ='Input - Inventory'!C60 -> SON4x600 | D64: ='Input - Inventory'!D60 -> Lamp | E64: ='Input - Inventory'!R60 -> 2 | F64: ='Input - Inventory'!S60 -> 2 | G64: ='Input - Inventory'!T60 -> 2 | H64: ='Input - Inventory'!U60 -> 2 | I64: ='Input - Inventory'!V60 -> 2 | K64: ='Calc - Opex FY20'!I63/E$5 -> 170.3654121 | L64: ='Calc - Opex FY21'!I63/F$5 -> 170.8691597 | M64: ='Calc - Opex FY22'!I63/G$5 -> 171.7037049 | N64: ='Calc - Opex FY23'!I63/H$5 -> 172.7366665 | O64: ='Calc - Opex FY24'!I63/I$5 -> 173.6634882 | Q64: 171.8098601 | R64: 171.8098601 | S64: 171.8098601 | T64: 171.8098601 | U64: 171.8098601 | W64: 340.7308241 | X64: 341.7383194 | Y64: 343.4074097 | Z64: 345.473333 | AA64: 347.3269763 | AB64: 1552.142729 | AD64: 343.6197203 | AE64: 343.6197203 | AF64: 343.6197203 | AG64: 343.6197203 | AH64: 343.6197203 | AI64: 1552.142729 | AK64: 0 | AL64: 0
B65: ='Input - Inventory'!B61 -> 53 | C65: ='Input - Inventory'!C61 -> TF1x20 | D65: ='Input - Inventory'!D61 -> Lamp | E65: ='Input - Inventory'!R61 -> 4 | F65: ='Input - Inventory'!S61 -> 4 | G65: ='Input - Inventory'!T61 -> 4 | H65: ='Input - Inventory'!U61 -> 4 | I65: ='Input - Inventory'!V61 -> 4 | K65: ='Calc - Opex FY20'!I64/E$5 -> 41.45632459 | L65: ='Calc - Opex FY21'!I64/F$5 -> 41.58704992 | M65: ='Calc - Opex FY22'!I64/G$5 -> 41.80361908 | N65: ='Calc - Opex FY23'!I64/H$5 -> 42.07167841 | O65: ='Calc - Opex FY24'!I64/I$5 -> 42.31219383 | Q65: 41.83116697 | R65: 41.83116697 | S65: 41.83116697 | T65: 41.83116697 | U65: 41.83116697 | W65: 165.8252983 | X65: 166.3481997 | Y65: 167.2144763 | Z65: 168.2867136 | AA65: 169.2487753 | AB65: 755.8115886 | AD65: 167.3246679 | AE65: 167.3246679 | AF65: 167.3246679 | AG65: 167.3246679 | AH65: 167.3246679 | AI65: 755.8115886 | AK65: 0 | AL65: 0
B66: ='Input - Inventory'!B62 -> 54 | C66: ='Input - Inventory'!C62 -> TF1x40 | D66: ='Input - Inventory'!D62 -> Lamp | E66: ='Input - Inventory'!R62 -> 123 | F66: ='Input - Inventory'!S62 -> 0 | G66: ='Input - Inventory'!T62 -> 0 | H66: ='Input - Inventory'!U62 -> 0 | I66: ='Input - Inventory'!V62 -> 0 | K66: ='Calc - Opex FY20'!I65/E$5 -> 66.2595584 | L66: ='Calc - Opex FY21'!I65/F$5 -> 66.50427099 | M66: ='Calc - Opex FY22'!I65/G$5 -> 66.90967976 | N66: ='Calc - Opex FY23'!I65/H$5 -> 67.41147608 | O66: ='Calc - Opex FY24'!I65/I$5 -> 67.8617113 | Q66: 66.2595584 | R66: 66.2595584 | S66: 66.2595584 | T66: 66.2595584 | U66: 66.2595584 | W66: 8149.925684 | X66: 0 | Y66: 0 | Z66: 0 | AA66: 0 | AB66: 7875.504455 | AD66: 8149.925684 | AE66: 0 | AF66: 0 | AG66: 0 | AH66: 0 | AI66: 7875.504455 | AK66: 0 | AL66: 0
B67: ='Input - Inventory'!B63 -> 55 | C67: ='Input - Inventory'!C63 -> TF1x80 | D67: ='Input - Inventory'!D63 -> Lamp | E67: ='Input - Inventory'!R63 -> 48 | F67: ='Input - Inventory'!S63 -> 0 | G67: ='Input - Inventory'!T63 -> 0 | H67: ='Input - Inventory'!U63 -> 0 | I67: ='Input - Inventory'!V63 -> 0 | K67: ='Calc - Opex FY20'!I66/E$5 -> 41.54261973 | L67: ='Calc - Opex FY21'!I66/F$5 -> 41.67334506 | M67: ='Calc - Opex FY22'!I66/G$5 -> 41.88991422 | N67: ='Calc - Opex FY23'!I66/H$5 -> 42.15797355 | O67: ='Calc - Opex FY24'!I66/I$5 -> 42.39848897 | Q67: 41.54261973 | R67: 41.54261973 | S67: 41.54261973 | T67: 41.54261973 | U67: 41.54261973 | W67: 1994.045747 | X67: 0 | Y67: 0 | Z67: 0 | AA67: 0 | AB67: 1926.902989 | AD67: 1994.045747 | AE67: 0 | AF67: 0 | AG67: 0 | AH67: 0 | AI67: 1926.902989 | AK67: 0 | AL67: 0
B68: ='Input - Inventory'!B64 -> 56 | C68: ='Input - Inventory'!C64 -> TF2x14 T5 | D68: ='Input - Inventory'!D64 -> Lamp | E68: ='Input - Inventory'!R64 -> 222 | F68: ='Input - Inventory'!S64 -> 222 | G68: ='Input - Inventory'!T64 -> 202 | H68: ='Input - Inventory'!U64 -> 182 | I68: ='Input - Inventory'!V64 -> 162 | K68: ='Calc - Opex FY20'!I67/E$5 -> 42.06456613 | L68: ='Calc - Opex FY21'!I67/F$5 -> 42.19529147 | M68: ='Calc - Opex FY22'!I67/G$5 -> 42.41186062 | N68: ='Calc - Opex FY23'!I67/H$5 -> 42.67991995 | O68: ='Calc - Opex FY24'!I67/I$5 -> 42.92043537 | Q68: 42.40359126 | R68: 42.40359126 | S68: 42.40359126 | T68: 42.40359126 | U68: 42.40359126 | W68: 9338.333681 | X68: 9367.354705 | Y68: 8567.195845 | Z68: 7767.745432 | AA68: 6953.11053 | AB68: 38133.55945 | AD68: 9413.597259 | AE68: 9413.597259 | AF68: 8565.525434 | AG68: 7717.453609 | AH68: 6869.381784 | AI68: 38133.55945 | AK68: 0 | AL68: 0
B69: ='Input - Inventory'!B65 -> 57 | C69: ='Input - Inventory'!C65 -> TF2x20 | D69: ='Input - Inventory'!D65 -> Lamp | E69: ='Input - Inventory'!R65 -> 4477 | F69: ='Input - Inventory'!S65 -> 0 | G69: ='Input - Inventory'!T65 -> 0 | H69: ='Input - Inventory'!U65 -> 0 | I69: ='Input - Inventory'!V65 -> 0 | K69: ='Calc - Opex FY20'!I68/E$5 -> 52.71670202 | L69: ='Calc - Opex FY21'!I68/F$5 -> 52.89732585 | M69: ='Calc - Opex FY22'!I68/G$5 -> 53.19656051 | N69: ='Calc - Opex FY23'!I68/H$5 -> 53.56693941 | O69: ='Calc - Opex FY24'!I68/I$5 -> 53.89926073 | Q69: 52.71670202 | R69: 52.71670202 | S69: 52.71670202 | T69: 52.71670202 | U69: 52.71670202 | W69: 236012.6749 | X69: 0 | Y69: 0 | Z69: 0 | AA69: 0 | AB69: 228065.745 | AD69: 236012.6749 | AE69: 0 | AF69: 0 | AG69: 0 | AH69: 0 | AI69: 228065.745 | AK69: 0 | AL69: 0
B70: ='Input - Inventory'!B66 -> 58 | C70: ='Input - Inventory'!C66 -> TF2x26 | D70: ='Input - Inventory'!D66 -> Lamp | E70: ='Input - Inventory'!R66 -> 7 | F70: ='Input - Inventory'!S66 -> 0 | G70: ='Input - Inventory'!T66 -> 0 | H70: ='Input - Inventory'!U66 -> 0 | I70: ='Input - Inventory'!V66 -> 0 | K70: ='Calc - Opex FY20'!I69/E$5 -> 42.06456613 | L70: ='Calc - Opex FY21'!I69/F$5 -> 42.19529147 | M70: ='Calc - Opex FY22'!I69/G$5 -> 42.41186062 | N70: ='Calc - Opex FY23'!I69/H$5 -> 42.67991995 | O70: ='Calc - Opex FY24'!I69/I$5 -> 42.92043537 | Q70: 42.06456613 | R70: 42.06456613 | S70: 42.06456613 | T70: 42.06456613 | U70: 42.06456613 | W70: 294.4519629 | X70: 0 | Y70: 0 | Z70: 0 | AA70: 0 | AB70: 284.5372873 | AD70: 294.4519629 | AE70: 0 | AF70: 0 | AG70: 0 | AH70: 0 | AI70: 284.5372873 | AK70: 0 | AL70: 0
B71: ='Input - Inventory'!B67 -> 59 | C71: ='Input - Inventory'!C67 -> TF2x40 | D71: ='Input - Inventory'!D67 -> Lamp | E71: ='Input - Inventory'!R67 -> 7 | F71: ='Input - Inventory'!S67 -> 0 | G71: ='Input - Inventory'!T67 -> 0 | H71: ='Input - Inventory'!U67 -> 0 | I71: ='Input - Inventory'!V67 -> 0 | K71: ='Calc - Opex FY20'!I70/E$5 -> 42.06456613 | L71: ='Calc - Opex FY21'!I70/F$5 -> 42.19529147 | M71: ='Calc - Opex FY22'!I70/G$5 -> 42.41186062 | N71: ='Calc - Opex FY23'!I70/H$5 -> 42.67991995 | O71: ='Calc - Opex FY24'!I70/I$5 -> 42.92043537 | Q71: 42.06456613 | R71: 42.06456613 | S71: 42.06456613 | T71: 42.06456613 | U71: 42.06456613 | W71: 294.4519629 | X71: 0 | Y71: 0 | Z71: 0 | AA71: 0 | AB71: 284.5372873 | AD71: 294.4519629 | AE71: 0 | AF71: 0 | AG71: 0 | AH71: 0 | AI71: 284.5372873 | AK71: 0 | AL71: 0
B72: ='Input - Inventory'!B68 -> 60 | C72: ='Input - Inventory'!C68 -> TF4x20 | D72: ='Input - Inventory'!D68 -> Lamp | E72: ='Input - Inventory'!R68 -> 6 | F72: ='Input - Inventory'!S68 -> 0 | G72: ='Input - Inventory'!T68 -> 0 | H72: ='Input - Inventory'!U68 -> 0 | I72: ='Input - Inventory'!V68 -> 0 | K72: ='Calc - Opex FY20'!I71/E$5 -> 41.90867814 | L72: ='Calc - Opex FY21'!I71/F$5 -> 42.03940347 | M72: ='Calc - Opex FY22'!I71/G$5 -> 42.25597263 | N72: ='Calc - Opex FY23'!I71/H$5 -> 42.52403196 | O72: ='Calc - Opex FY24'!I71/I$5 -> 42.76454738 | Q72: 41.90867814 | R72: 41.90867814 | S72: 41.90867814 | T72: 41.90867814 | U72: 41.90867814 | W72: 251.4520688 | X72: 0 | Y72: 0 | Z72: 0 | AA72: 0 | AB72: 242.9852694 | AD72: 251.4520688 | AE72: 0 | AF72: 0 | AG72: 0 | AH72: 0 | AI72: 242.9852694 | AK72: 0 | AL72: 0
B73: ='Input - Inventory'!B69 -> 61 | C73: ='Input - Inventory'!C69 -> TF4x40 | D73: ='Input - Inventory'!D69 -> Lamp | E73: ='Input - Inventory'!R69 -> 2 | F73: ='Input - Inventory'!S69 -> 2 | G73: ='Input - Inventory'!T69 -> 2 | H73: ='Input - Inventory'!U69 -> 2 | I73: ='Input - Inventory'!V69 -> 2 | K73: ='Calc - Opex FY20'!I72/E$5 -> 43.10845894 | L73: ='Calc - Opex FY21'!I72/F$5 -> 43.23918427 | M73: ='Calc - Opex FY22'!I72/G$5 -> 43.45575343 | N73: ='Calc - Opex FY23'!I72/H$5 -> 43.72381276 | O73: ='Calc - Opex FY24'!I72/I$5 -> 43.96432818 | Q73: 43.48330132 | R73: 43.48330132 | S73: 43.48330132 | T73: 43.48330132 | U73: 43.48330132 | W73: 86.21691787 | X73: 86.47836855 | Y73: 86.91150685 | Z73: 87.44762552 | AA73: 87.92865635 | AB73: 392.8312957 | AD73: 86.96660263 | AE73: 86.96660263 | AF73: 86.96660263 | AG73: 86.96660263 | AH73: 86.96660263 | AI73: 392.8312957 | AK73: 0 | AL73: 0
B74: ='Input - Inventory'!B70 -> 62 | C74: ='Input - Inventory'!C70 -> TH1x1500 | D74: ='Input - Inventory'!D70 -> Lamp | E74: ='Input - Inventory'!R70 -> 0 | F74: ='Input - Inventory'!S70 -> 0 | G74: ='Input - Inventory'!T70 -> 0 | H74: ='Input - Inventory'!U70 -> 0 | I74: ='Input - Inventory'!V70 -> 0 | K74: ='Calc - Opex FY20'!I73/E$5 -> 61.06952344 | L74: ='Calc - Opex FY21'!I73/F$5 -> 61.26561145 | M74: ='Calc - Opex FY22'!I73/G$5 -> 61.59046518 | N74: ='Calc - Opex FY23'!I73/H$5 -> 61.99255418 | O74: ='Calc - Opex FY24'!I73/I$5 -> 62.3533273 | Q74: 0 | R74: 0 | S74: 0 | T74: 0 | U74: 0 | W74: 0 | X74: 0 | Y74: 0 | Z74: 0 | AA74: 0 | AB74: 0 | AD74: 0 | AE74: 0 | AF74: 0 | AG74: 0 | AH74: 0 | AI74: 0 | AK74: 0 | AL74: 0
B75: ='Input - Inventory'!B71 -> 63 | C75: ='Input - Inventory'!C71 -> TH1x500 | D75: ='Input - Inventory'!D71 -> Lamp | E75: ='Input - Inventory'!R71 -> 0 | F75: ='Input - Inventory'!S71 -> 0 | G75: ='Input - Inventory'!T71 -> 0 | H75: ='Input - Inventory'!U71 -> 0 | I75: ='Input - Inventory'!V71 -> 0 | K75: ='Calc - Opex FY20'!I74/E$5 -> 61.06952344 | L75: ='Calc - Opex FY21'!I74/F$5 -> 61.26561145 | M75: ='Calc - Opex FY22'!I74/G$5 -> 61.59046518 | N75: ='Calc - Opex FY23'!I74/H$5 -> 61.99255418 | O75: ='Calc - Opex FY24'!I74/I$5 -> 62.3533273 | Q75: 0 | R75: 0 | S75: 0 | T75: 0 | U75: 0 | W75: 0 | X75: 0 | Y75: 0 | Z75: 0 | AA75: 0 | AB75: 0 | AD75: 0 | AE75: 0 | AF75: 0 | AG75: 0 | AH75: 0 | AI75: 0 | AK75: 0 | AL75: 0
B76: ='Input - Inventory'!B72 -> 64 | C76: ='Input - Inventory'!C72 -> TH1x750 | D76: ='Input - Inventory'!D72 -> Lamp | E76: ='Input - Inventory'!R72 -> 0 | F76: ='Input - Inventory'!S72 -> 0 | G76: ='Input - Inventory'!T72 -> 0 | H76: ='Input - Inventory'!U72 -> 0 | I76: ='Input - Inventory'!V72 -> 0 | K76: ='Calc - Opex FY20'!I75/E$5 -> 61.06952344 | L76: ='Calc - Opex FY21'!I75/F$5 -> 61.26561145 | M76: ='Calc - Opex FY22'!I75/G$5 -> 61.59046518 | N76: ='Calc - Opex FY23'!I75/H$5 -> 61.99255418 | O76: ='Calc - Opex FY24'!I75/I$5 -> 62.3533273 | Q76: 0 | R76: 0 | S76: 0 | T76: 0 | U76: 0 | W76: 0 | X76: 0 | Y76: 0 | Z76: 0 | AA76: =I76*O76 -> 0 | AB76: 0 | AD76: 0 | AE76: 0 | AF76: 0 | AG76: 0 | AH76: =I76*U76 -> 0 | AI76: 0 | AK76: 0 | AL76: 0
E78: =SUM(E13:E76) -> 503817.6667 | F78: =SUM(F13:F76) -> 503819 | G78: 503824 | H78: 503832 | I78: 503840 | W78: =SUM(W13:W76) -> 13895920.98 | X78: =SUM(X13:X76) -> 13178355.32 | Y78: 12608720.61 | Z78: 12572279.92 | AA78: 12597525.17 | AB78: 58688617.35 | AD78: =SUM(AD13:AD76) -> 13960581.63 | AE78: =SUM(AE13:AE76) -> 13222133.24 | AF78: 12617724.09 | AG78: 12530174.9 | AH78: 12508784.81 | AI78: 58688617.35 | AK78: =SUM(AK13:AK76) -> 0 | AL78: 0

Sheet Calc - Opex FY18
A1: ='Report - Summary'!$A$1 -> Ok
B2: =CONCATENATE("This sheet contains no inputs and all values are calculated for " & RIGHT(MID(CELL("filename",B2),FIND("]",CELL("filename",B2))+1,255),4) ) -> This sheet contains no inputs and all values are calculated for FY18 | AC2: Bulk contract | AM2: Bulk materials | AX2: Spot labour | BF2: Spot materials | BJ2: EWP costs | BL2: Connections | BP2: Overheads | BT2: CAM
J4: Totals ---> | K4: =SUM(K12:K75) -> 14050427.54 | M4: =SUMPRODUCT(M12:M75,N12:N75,$J$12:$J$75) -> 1014087.083 | O4: =SUMPRODUCT(O12:O75,P12:P75,$J$12:$J$75) -> 541219.3015 | Q4: =SUMPRODUCT(Q12:Q75,R12:R75,$J$12:$J$75) -> 20608.40791 | S4: =SUMPRODUCT(S12:S75,T12:T75,$J$12:$J$75) -> 0 | U4: =SUMPRODUCT(U12:U75,V12:V75,$J$12:$J$75) -> 36067.10327 | W4: =SUMPRODUCT(W12:W75,X12:X75,$J$12:$J$75) -> 72968.57263 | Y4: =SUMPRODUCT(Y12:Y75,Z12:Z75,$J$12:$J$75) -> 152271.5533 | AA4: =SUMPRODUCT(AA12:AA75,AB12:AB75,$J$12:$J$75) -> 128317.2538 | AC4: =SUMPRODUCT(AC12:AC75,$J$12:$J$75) -> 1965539.275 | AE4: =SUMPRODUCT(AE12:AE75,AF12:AF75,$J$12:$J$75) -> 0 | AG4: =SUMPRODUCT(AG12:AG75,AH12:AH75,$J$12:$J$75) -> 89215.86904 | AI4: =SUMPRODUCT(AI12:AI75,AJ12:AJ75,$J$12:$J$75) -> 0 | AK4: =SUMPRODUCT(AK12:AK75,AL12:AL75,$J$12:$J$75) -> 84935.65706 | AM4: =SUMPRODUCT(AM12:AM75,$J$12:$J$75) -> 174151.5261 | AO4: =SUMPRODUCT(AO12:AO75,AP12:AP75,$J$12:$J$75,AQ12:AQ75) -> 1748454.676 | AR4: =SUMPRODUCT(AR12:AR75,AS12:AS75,$J$12:$J$75,AT12:AT75) -> 743487.9091 | AU4: =SUMPRODUCT(AU12:AU75,AV12:AV75,$J$12:$J$75,AW12:AW75) -> 1220934.192 | AX4: =SUMPRODUCT(AX12:AX75,$J$12:$J$75) -> 3712876.777 | AZ4: =SUMPRODUCT(AZ12:AZ75,BA12:BA75,$J$12:$J$75) -> 58207.35125 | BB4: =SUMPRODUCT(BB12:BB75,BC12:BC75,$J$12:$J$75) -> 58191.48527 | BD4: =SUMPRODUCT(BD12:BD75,BE12:BE75,$J$12:$J$75) -> 123039.0933 | BF4: =SUMPRODUCT(BF12:BF75,$J$12:$J$75) -> 239437.9298 | BJ4: =SUMPRODUCT(BJ12:BJ75,$J$12:$J$75) -> 1392570.099 | BL4: =SUMPRODUCT(BL12:BL75,$J$12:$J$75) -> 2728792.042 | BP4: =SUMPRODUCT(BP12:BP75,$J$12:$J$75) -> 2398162.483 | BT4: =SUMPRODUCT(BT12:BT75,$J$12:$J$75) -> 1438897.41
J6: Percent ---> | AC6: =AC4/$K4 -> 0.1398917769 | AM6: =AM4/$K4 -> 0.01239474924 | AX6: =AX4/$K4 -> 0.2642536511 | BF6: =BF4/$K4 -> 0.01704132697 | BJ6: =BJ4/$K4 -> 0.09911229352 | BL6: =BL4/$K4 -> 0.1942141642 | BP6: =BP4/$K4 -> 0.1706825273 | BT6: =BT4/$K4 -> 0.1024095107
K8: Sub-total annual cost | M8: Task 1 | O8: Task 2 | Q8: Task 3 | S8: Task 4 | U8: Task 5 | W8: Task 6 | Y8: Task 7 | AA8: Task 8 | AC8: Sub-total annual cost per asset | AM8: Sub-total annual cost per asset | AX8: Sub-total annual cost per asset | BF8: Sub-total annual cost per asset | BJ8: Sub-total annual cost per asset | BL8: Sub-total annual cost per asset | BP8: Sub-total annual cost per asset | BT8: Sub-total annual cost per asset
M9: Minor | O9: Major | Q9: All | S9: All | U9: All | W9: All | Y9: All | AA9: All | AE9: Lamp | AG9: Visors | AI9: PE Cell | AK9: Misc | AO9: Lamp change | AR9: PE Cell change | AU9: Misc | AZ9: Lamp | BB9: PE Cell | BD9: Misc | BH9: Price | BI9: Hours (weighted by failure)
B10: # | C10: Description | D10: Type | E10: Route | F10: Category | G10: Lamps (#) | I10: Price | J10: Count | M10: Price | N10: Cycle | O10: Price | P10: Cycle | Q10: Price | R10: Cycle | S10: Price | T10: Cycle | U10: Price | V10: Cycle | W10: Price | X10: Cycle | Y10: Price | Z10: Cycle | AA10: Price | AB10: Cycle | AE10: Price | AF10: Cycle | AG10: Price | AH10: Cycle | AI10: Price | AJ10: Cycle | AK10: Price | AL10: Cycle | AO10: Price | AP10: Failure | AQ10: Hours | AR10: Price | AS10: Failure | AT10: Hours | AU10: Price | AV10: Failure | AW10: Hours | AZ10: Price | BA10: Failure | BB10: Price | BC10: Failure | BD10: Price | BE10: Failure | BN10: Rate | BO10: Cost | BR10: Rate | BS10: Cost
B12: ='Input - Inventory'!B9 -> 1 | C12: ='Input - Inventory'!C9 -> O/U | D12: ='Input - Inventory'!D9 -> Connection | E12: ='Input - Inventory'!E9 -> NonTraffic | F12: ='Input - Inventory'!F9 -> n/a | G12: ='Input - Inventory'!H9 -> 0 | I12: =AC12+AM12+AX12+BF12+BJ12+BL12+BP12+BT12 -> 101.5718712 | J12: =INDIRECT(J$10&$B12&RIGHT($B$2,4)) -> 576 | K12: =J12*I12 -> 58505.39781 | M12: 0 | N12: 0 | O12: 0 | P12: 0 | Q12: 0 | R12: 0 | S12: 0 | T12: 0 | U12: 0 | V12: 0 | W12: 0 | X12: 0 | Y12: 0 | Z12: 0 | AA12: 0 | AB12: 0 | AC12: =M12*N12+O12*P12+Q12*R12+S12*T12+U12*V12+W12*X12+Y12*Z12+AA12*AB12 -> 0 | AE12: =IF($D12="Lamp",$G12*INDIRECT("Price" & $B12 & RIGHT($B$2,4)),0) -> 0 | AF12: =MAX(N12,P12) -> 0 | AG12: =IF($D12="Lamp",INDIRECT("PriceVisor" & RIGHT($B$2,4)),0) -> 0 | AH12: =R12 -> 0 | AI12: =IF($D12="Lamp",INDIRECT("PricePECell" & RIGHT($B$2,4)),0) -> 0 | AJ12: =T12 -> 0 | AK12: =IF($D12="Lamp",IF($C12="SON1x400 AR",INDIRECT("SON400ARMiscMaterials" & RIGHT($B$2,4)),INDIRECT("PriceMisc" & RIGHT($B$2,4))),0) -> 0 | AL12: =IF(C12="SON1x400 AR",SON400ARMiscFailure,V12+Z12) -> 0 | AM12: =AE12*AF12+AG12*AH12+AI12*AJ12+AK12*AL12 -> 0 | AO12: =IF($D12=$AE$9,(INDIRECT("PriceLabour" & RIGHT($B$2,4))*ProportionStandardHours + INDIRECT("PriceLabourOvertime" & RIGHT($B$2,4))*ProportionOvertimeHours)*(1+RateOnCostAnnual),0) -> 0 | AP12: =BA12 -> 0 | AQ12: =IF($D12="Lamp",(NumberOfCrew+INDIRECT($E12)*TrafficController)*(TimeToReplaceLamp),0) -> 0 | AR12: =IF($D12=$AE$9,(INDIRECT("PriceLabour" & RIGHT($B$2,4))*ProportionStandardHours + INDIRECT("PriceLabourOvertime" & RIGHT($B$2,4))*ProportionOvertimeHours)*(1+RateOnCostAnnual),0) -> 0 | AS12: =BC12 -> 0 | AT12: =IF($D12="Lamp",(NumberOfCrew+INDIRECT($E12)*TrafficController)*(TimeForPECellReplace),0) -> 0 | AU12: =IF($D12=$AE$9,(INDIRECT("PriceLabour" & RIGHT($B$2,4))*ProportionStandardHours + INDIRECT("PriceLabourOvertime" & RIGHT($B$2,4))*ProportionOvertimeHours)*(1+RateOnCostAnnual),0) -> 0 | AV12: =BE12 -> 0 | AW12: =IF($D12="Lamp",(NumberOfCrew+INDIRECT($E12)*TrafficController)*(TimeForOtherSpot),0) -> 0 | AX12: =AO12*AP12*AQ12+AR12*AS12*AT12+AU12*AV12*AW12 -> 0 | AZ12: 0 | BA12: 0 | BB12: 0 | BC12: 0 | BD12: 0 | BE12: 0 | BF12: =AZ12*BA12+BB12*BC12+BD12*BE12 -> 0 | BH12: =IF(AND($D12="Lamp"),INDIRECT("PriceEWP"&RIGHT($B$2,4)),0) -> 0 | BI12: =AP12*AQ12+AS12*AT12+AV12*AW12 -> 0 | BJ12: =BH12*BI12 -> 0 | BL12: =IF($D12="Connection",INDIRECT("Price"&SUBSTITUTE(SUBSTITUTE($C12,"-",""),"/","")&RIGHT($B$2,4)),0) -> 74.36233111 | BN12: 0.2286905569 | BO12: 74.36233111 | BP12: =BO12*BN12 -> 17.00596291 | BR12: 0.1116752511 | BS12: 91.36829402 | BT12: =BS12*BR12 -> 10.20357718
B13: ='Input - Inventory'!B10 -> 2 | C13: ='Input - Inventory'!C10 -> OH | D13: ='Input - Inventory'!D10 -> Connection | E13: ='Input - Inventory'!E10 -> NonTraffic | F13: ='Input - Inventory'!F10 -> n/a | G13: ='Input - Inventory'!H10 -> 0 | I13: =AC13+AM13+AX13+BF13+BJ13+BL13+BP13+BT13 -> 0 | J13: =INDIRECT(J$10&$B13&RIGHT($B$2,4)) -> 196623 | K13: =J13*I13 -> 0 | M13: 0 | N13: 0 | O13: 0 | P13: 0 | Q13: 0 | R13: 0 | S13: 0 | T13: 0 | U13: 0 | V13: 0 | W13: 0 | X13: 0 | Y13: 0 | Z13: 0 | AA13: 0 | AB13: 0 | AC13: =M13*N13+O13*P13+Q13*R13+S13*T13+U13*V13+W13*X13+Y13*Z13+AA13*AB13 -> 0 | AE13: 0 | AF13: =MAX(N13,P13) -> 0 | AG13: 0 | AH13: =R13 -> 0 | AI13: 0 | AJ13: =T13 -> 0 | AK13: =IF($D13="Lamp",IF($C13="SON1x400 AR",INDIRECT("SON400ARMiscMaterials" & RIGHT($B$2,4)),INDIRECT("PriceMisc" & RIGHT($B$2,4))),0) -> 0 | AL13: 0 | AM13: =AE13*AF13+AG13*AH13+AI13*AJ13+AK13*AL13 -> 0 | AO13: 0 | AP13: =BA13 -> 0 | AQ13: 0 | AR13: 0 | AS13: =BC13 -> 0 | AT13: 0 | AU13: 0 | AV13: =BE13 -> 0 | AW13: 0 | AX13: =AO13*AP13*AQ13+AR13*AS13*AT13+AU13*AV13*AW13 -> 0 | AZ13: 0 | BA13: 0 | BB13: 0 | BC13: 0 | BD13: 0 | BE13: 0 | BF13: =AZ13*BA13+BB13*BC13+BD13*BE13 -> 0 | BH13: 0 | BI13: =AP13*AQ13+AS13*AT13+AV13*AW13 -> 0 | BJ13: =BH13*BI13 -> 0 | BL13: =IF($D13="Connection",INDIRECT("Price"&SUBSTITUTE(SUBSTITUTE($C13,"-",""),"/","")&RIGHT($B$2,4)),0) -> 0 | BN13: 0.2286905569 | BO13: 0 | BP13: =BO13*BN13 -> 0 | BR13: 0.1116752511 | BS13: 0 | BT13: =BS13*BR13 -> 0
B14: ='Input - Inventory'!B11 -> 3 | C14: ='Input - Inventory'!C11 -> OH2 | D14: ='Input - Inventory'!D11 -> Connection | E14: ='Input - Inventory'!E11 -> NonTraffic | F14: ='Input - Inventory'!F11 -> n/a | G14: ='Input - Inventory'!H11 -> 0 | I14: 0 | J14: 718 | K14: 0 | M14: 0 | N14: 0 | O14: 0 | P14: 0 | Q14: 0 | R14: 0 | S14: 0 | T14: 0 | U14: 0 | V14: 0 | W14: 0 | X14: 0 | Y14: 0 | Z14: 0 | AA14: 0 | AB14: 0 | AC14: 0 | AE14: 0 | AF14: 0 | AG14: 0 | AH14: 0 | AI14: 0 | AJ14: 0 | AK14: 0 | AL14: 0 | AM14: 0 | AO14: 0 | AP14: 0 | AQ14: 0 | AR14: 0 | AS14: 0 | AT14: 0 | AU14: 0 | AV14: 0 | AW14: 0 | AX14: 0 | AZ14: 0 | BA14: 0 | BB14: 0 | BC14: 0 | BD14: 0 | BE14: 0 | BF14: 0 | BH14: 0 | BI14: 0 | BJ14: 0 | BL14: 0 | BN14: 0.2286905569 | BO14: 0 | BP14: 0 | BR14: 0.1116752511 | BS14: 0 | BT14: 0
B15: ='Input - Inventory'!B12 -> 4 | C15: ='Input - Inventory'!C12 -> OHS | D15: ='Input - Inventory'!D12 -> Connection | E15: ='Input - Inventory'!E12 -> NonTraffic | F15: ='Input - Inventory'!F12 -> n/a | G15: ='Input - Inventory'!H12 -> 0 | I15: 0 | J15: 9 | K15: 0 | M15: 0 | N15: 0 | O15: 0 | P15: 0 | Q15: 0 | R15: 0 | S15: 0 | T15: 0 | U15: 0 | V15: 0 | W15: 0 | X15: 0 | Y15: 0 | Z15: 0 | AA15: 0 | AB15: 0 | AC15: 0 | AE15: 0 | AF15: 0 | AG15: 0 | AH15: 0 | AI15: 0 | AJ15: 0 | AK15: 0 | AL15: 0 | AM15: 0 | AO15: 0 | AP15: 0 | AQ15: 0 | AR15: 0 | AS15: 0 | AT15: 0 | AU15: 0 | AV15: 0 | AW15: 0 | AX15: 0 | AZ15: 0 | BA15: 0 | BB15: 0 | BC15: 0 | BD15: 0 | BE15: 0 | BF15: 0 | BH15: 0 | BI15: 0 | BJ15: 0 | BL15: 0 | BN15: 0.2286905569 | BO15: 0 | BP15: 0 | BR15: 0.1116752511 | BS15: 0 | BT15: 0
B16: ='Input - Inventory'!B13 -> 5 | C16: ='Input - Inventory'!C13 -> UG2 | D16: ='Input - Inventory'!D13 -> Connection | E16: ='Input - Inventory'!E13 -> NonTraffic | F16: ='Input - Inventory'!F13 -> n/a | G16: ='Input - Inventory'!H13 -> 0 | I16: 0 | J16: 1134 | K16: 0 | M16: 0 | N16: 0 | O16: 0 | P16: 0 | Q16: 0 | R16: 0 | S16: 0 | T16: 0 | U16: 0 | V16: 0 | W16: 0 | X16: 0 | Y16: 0 | Z16: 0 | AA16: 0 | AB16: 0 | AC16: 0 | AE16: 0 | AF16: 0 | AG16: 0 | AH16: 0 | AI16: 0 | AJ16: 0 | AK16: 0 | AL16: 0 | AM16: 0 | AO16: 0 | AP16: 0 | AQ16: 0 | AR16: 0 | AS16: 0 | AT16: 0 | AU16: 0 | AV16: 0 | AW16: 0 | AX16: 0 | AZ16: 0 | BA16: 0 | BB16: 0 | BC16: 0 | BD16: 0 | BE16: 0 | BF16: 0 | BH16: 0 | BI16: 0 | BJ16: 0 | BL16: 0 | BN16: 0.2286905569 | BO16: 0 | BP16: 0 | BR16: 0.1116752511 | BS16: 0 | BT16: 0
B17: ='Input - Inventory'!B14 -> 6 | C17: ='Input - Inventory'!C14 -> UGR1 | D17: ='Input - Inventory'!D14 -> Connection | E17: ='Input - Inventory'!E14 -> NonTraffic | F17: ='Input - Inventory'!F14 -> n/a | G17: ='Input - Inventory'!H14 -> 0 | I17: 93.10519485 | J17: 31792 | K17: 2960000.355 | M17: 0 | N17: 0 | O17: 0 | P17: 0 | Q17: 0 | R17: 0 | S17: 0 | T17: 0 | U17: 0 | V17: 0 | W17: 0 | X17: 0 | Y17: 0 | Z17: 0 | AA17: 0 | AB17: 0 | AC17: 0 | AE17: 0 | AF17: 0 | AG17: 0 | AH17: 0 | AI17: 0 | AJ17: 0 | AK17: 0 | AL17: 0 | AM17: 0 | AO17: 0 | AP17: 0 | AQ17: 0 | AR17: 0 | AS17: 0 | AT17: 0 | AU17: 0 | AV17: 0 | AW17: 0 | AX17: 0 | AZ17: 0 | BA17: 0 | BB17: 0 | BC17: 0 | BD17: 0 | BE17: 0 | BF17: 0 | BH17: 0 | BI17: 0 | BJ17: 0 | BL17: 68.16374696 | BN17: 0.2286905569 | BO17: 68.16374696 | BP17: 15.58840525 | BR17: 0.1116752511 | BS17: 83.75215221 | BT17: 9.353042632
B18: ='Input - Inventory'!B15 -> 7 | C18: ='Input - Inventory'!C15 -> UGR2 | D18: ='Input - Inventory'!D15 -> Connection | E18: ='Input - Inventory'!E15 -> NonTraffic | F18: ='Input - Inventory'!F15 -> n/a | G18: ='Input - Inventory'!H15 -> 0 | I18: 33.85225313 | J18: 20937 | K18: 708764.6239 | M18: 0 | N18: 0 | O18: 0 | P18: 0 | Q18: 0 | R18: 0 | S18: 0 | T18: 0 | U18: 0 | V18: 0 | W18: 0 | X18: 0 | Y18: 0 | Z18: 0 | AA18: 0 | AB18: 0 | AC18: 0 | AE18: 0 | AF18: 0 | AG18: 0 | AH18: 0 | AI18: 0 | AJ18: 0 | AK18: 0 | AL18: 0 | AM18: 0 | AO18: 0 | AP18: 0 | AQ18: 0 | AR18: 0 | AS18: 0 | AT18: 0 | AU18: 0 | AV18: 0 | AW18: 0 | AX18: 0 | AZ18: 0 | BA18: 0 | BB18: 0 | BC18: 0 | BD18: 0 | BE18: 0 | BF18: 0 | BH18: 0 | BI18: 0 | BJ18: 0 | BL18: 24.78375584 | BN18: 0.2286905569 | BO18: 24.78375584 | BP18: 5.667810925 | BR18: 0.1116752511 | BS18: 30.45156677 | BT18: 3.400686366
B19: ='Input - Inventory'!B16 -> 8 | C19: ='Input - Inventory'!C16 -> UGS | D19: ='Input - Inventory'!D16 -> Connection | E19: ='Input - Inventory'!E16 -> NonTraffic | F19: ='Input - Inventory'!F16 -> n/a | G19: ='Input - Inventory'!H16 -> 0 | I19: 0 | J19: 108 | K19: 0 | M19: 0 | N19: 0 | O19: 0 | P19: 0 | Q19: 0 | R19: 0 | S19: 0 | T19: 0 | U19: 0 | V19: 0 | W19: 0 | X19: 0 | Y19: 0 | Z19: 0 | AA19: 0 | AB19: 0 | AC19: 0 | AE19: 0 | AF19: 0 | AG19: 0 | AH19: 0 | AI19: 0 | AJ19: 0 | AK19: 0 | AL19: 0 | AM19: 0 | AO19: 0 | AP19: 0 | AQ19: 0 | AR19: 0 | AS19: 0 | AT19: 0 | AU19: 0 | AV19: 0 | AW19: 0 | AX19: 0 | AZ19: 0 | BA19: 0 | BB19: 0 | BC19: 0 | BD19: 0 | BE19: 0 | BF19: 0 | BH19: 0 | BI19: 0 | BJ19: 0 | BL19: 0 | BN19: 0.2286905569 | BO19: 0 | BP19: 0 | BR19: 0.1116752511 | BS19: 0 | BT19: 0
B20: ='Input - Inventory'!B17 -> 9 | C20: ='Input - Inventory'!C17 -> UG-SP | D20: ='Input - Inventory'!D17 -> Connection | E20: ='Input - Inventory'!E17 -> NonTraffic | F20: ='Input - Inventory'!F17 -> n/a | G20: ='Input - Inventory'!H17 -> 0 | I20: 0 | J20: 13 | K20: 0 | M20: 0 | N20: 0 | O20: 0 | P20: 0 | Q20: 0 | R20: 0 | S20: 0 | T20: 0 | U20: 0 | V20: 0 | W20: 0 | X20: 0 | Y20: 0 | Z20: 0 | AA20: 0 | AB20: 0 | AC20: 0 | AE20: 0 | AF20: 0 | AG20: 0 | AH20: 0 | AI20: 0 | AJ20: 0 | AK20: 0 | AL20: 0 | AM20: 0 | AO20: 0 | AP20: 0 | AQ20: 0 | AR20: 0 | AS20: 0 | AT20: 0 | AU20: 0 | AV20: 0 | AW20: 0 | AX20: 0 | AZ20: 0 | BA20: 0 | BB20: 0 | BC20: 0 | BD20: 0 | BE20: 0 | BF20: 0 | BH20: 0 | BI20: 0 | BJ20: 0 | BL20: 0 | BN20: 0.2286905569 | BO20: 0 | BP20: 0 | BR20: 0.1116752511 | BS20: 0 | BT20: 0
B21: ='Input - Inventory'!B18 -> 10 | C21: ='Input - Inventory'!C18 -> LED TRIAL | D21: ='Input - Inventory'!D18 -> Lamp | E21: ='Input - Inventory'!E18 -> NonTraffic | F21: ='Input - Inventory'!F18 -> Minor | G21: ='Input - Inventory'!H18 -> 1 | I21: 22.47835147 | J21: 67 | K21: 1506.049549 | M21: 24.6719008 | N21: 0.1666666667 | O21: 0 | P21: 0 | Q21: 11.48500442 | R21: 0.007123137293 | S21: 5.574180491 | T21: 0 | U21: 24.13954103 | V21: 0.005931168948 | W21: 14.46149856 | X21: 0.02002998353 | Y21: 40.19950453 | Z21: 0.01503682404 | AA21: 8290.488177 | AB21: 6.144166728e-05 | AC21: 5.740486297 | AE21: 0 | AF21: =MAX(N21,P21) -> 0.1666666667 | AG21: 49.71973843 | AH21: 0.007123137293 | AI21: 11.65 | AJ21: 0 | AK21: 15 | AL21: 0.02096799299 | AM21: 0.6686804178 | AO21: 85.56283983 | AP21: 0 | AQ21: 1.513333333 | AR21: 85.56283983 | AS21: 0.0198285774 | AT21: 1.513333333 | AU21: 85.56283983 | AV21: 0.03256191236 | AW21: 1.513333333 | AX21: 6.78378768 | AZ21: 0 | BA21: 0 | BB21: 11.65 | BC21: 0.0198285774 | BD21: 15 | BE21: 0.03256191236 | BF21: 0.7194316121 | BH21: 32.09162584 | BI21: 0.0792842745 | BJ21: 2.544361272 | BL21: =IF($D21="Connection",INDIRECT("Price"&SUBSTITUTE(SUBSTITUTE($C21,"-",""),"/","")&RIGHT($B$2,4)),0) -> 0 | BN21: 0.2286905569 | BO21: 16.45674728 | BP21: 3.763502699 | BR21: 0.1116752511 | BS21: 20.22024998 | BT21: 2.258101494
B22: ='Input - Inventory'!B19 -> 11 | C22: ='Input - Inventory'!C19 -> LED1x100 | D22: ='Input - Inventory'!D19 -> Lamp | E22: ='Input - Inventory'!E19 -> Traffic | F22: ='Input - Inventory'!F19 -> Major | G22: ='Input - Inventory'!H19 -> 1 | I22: 29.77487423 | J22: 6 | K22: 178.6492454 | M22: 0 | N22: 0 | O22: 28.738834 | P22: 0.1666666667 | Q22: 11.48500442 | R22: 0.007123137293 | S22: 5.574180491 | T22: 0 | U22: 24.13954103 | V22: 0.005931168948 | W22: 14.46149856 | X22: 0.02002998353 | Y22: 40.19950453 | Z22: 0.01503682404 | AA22: 8290.488177 | AB22: 6.144166728e-05 | AC22: 6.418308497 | AE22: 0 | AF22: 0.1666666667 | AG22: 49.71973843 | AH22: 0.007123137293 | AI22: 11.65 | AJ22: 0 | AK22: 15 | AL22: 0.02096799299 | AM22: 0.6686804178 | AO22: 85.56283983 | AP22: 0 | AQ22: 2.27 | AR22: 85.56283983 | AS22: 0.0198285774 | AT22: 2.27 | AU22: 85.56283983 | AV22: 0.03256191236 | AW22: 2.27 | AX22: 10.17568152 | AZ22: 0 | BA22: 0 | BB22: 11.65 | BC22: 0.0198285774 | BD22: 15 | BE22: 0.03256191236 | BF22: 0.7194316121 | BH22: 32.09162584 | BI22: 0.1189264117 | BJ22: 3.816541908 | BL22: =IF($D22="Connection",INDIRECT("Price"&SUBSTITUTE(SUBSTITUTE($C22,"-",""),"/","")&RIGHT($B$2,4)),0) -> 0 | BN22: 0.2286905569 | BO22: 21.79864395 | BP22: 4.985144025 | BR22: 0.1116752511 | BS22: 26.78378798 | BT22: 2.991086249
B23: ='Input - Inventory'!B20 -> 12 | C23: ='Input - Inventory'!C20 -> LED1x17 | D23: ='Input - Inventory'!D20 -> Lamp | E23: ='Input - Inventory'!E20 -> NonTraffic | F23: ='Input - Inventory'!F20 -> Minor | G23: ='Input - Inventory'!H20 -> 1 | I23: 22.47835147 | J23: 2793 | K23: 62782.03566 | M23: 24.6719008 | N23: 0.1666666667 | O23: 0 | P23: 0 | Q23: 11.48500442 | R23: 0.007123137293 | S23: 5.574180491 | T23: 0 | U23: 24.13954103 | V23: 0.005931168948 | W23: 14.46149856 | X23: 0.02002998353 | Y23: 40.19950453 | Z23: 0.01503682404 | AA23: 8290.488177 | AB23: 6.144166728e-05 | AC23: 5.740486297 | AE23: 0 | AF23: 0.1666666667 | AG23: 49.71973843 | AH23: 0.007123137293 | AI23: 11.65 | AJ23: 0 | AK23: 15 | AL23: 0.02096799299 | AM23: 0.6686804178 | AO23: 85.56283983 | AP23: 0 | AQ23: 1.513333333 | AR23: 85.56283983 | AS23: 0.0198285774 | AT23: 1.513333333 | AU23: 85.56283983 | AV23: 0.03256191236 | AW23: 1.513333333 | AX23: 6.78378768 | AZ23: 0 | BA23: 0 | BB23: 11.65 | BC23: 0.0198285774 | BD23: 15 | BE23: 0.03256191236 | BF23: 0.7194316121 | BH23: 32.09162584 | BI23: 0.0792842745 | BJ23: 2.544361272 | BL23: 0 | BN23: 0.2286905569 | BO23: 16.45674728 | BP23: 3.763502699 | BR23: 0.1116752511 | BS23: 20.22024998 | BT23: 2.258101494
B24: ='Input - Inventory'!B21 -> 13 | C24: ='Input - Inventory'!C21 -> LED1x18 | D24: ='Input - Inventory'!D21 -> Lamp | E24: ='Input - Inventory'!E21 -> NonTraffic | F24: ='Input - Inventory'!F21 -> Minor | G24: ='Input - Inventory'!H21 -> 1 | I24: 22.47835147 | J24: 0 | K24: 0 | M24: 24.6719008 | N24: 0.1666666667 | O24: 0 | P24: 0 | Q24: 11.48500442 | R24: 0.007123137293 | S24: 5.574180491 | T24: 0 | U24: 24.13954103 | V24: 0.005931168948 | W24: 14.46149856 | X24: 0.02002998353 | Y24: 40.19950453 | Z24: 0.01503682404 | AA24: 8290.488177 | AB24: 6.144166728e-05 | AC24: 5.740486297 | AE24: 0 | AF24: 0.1666666667 | AG24: 49.71973843 | AH24: 0.007123137293 | AI24: 11.65 | AJ24: 0 | AK24: 15 | AL24: 0.02096799299 | AM24: 0.6686804178 | AO24: 85.56283983 | AP24: 0 | AQ24: 1.513333333 | AR24: 85.56283983 | AS24: 0.0198285774 | AT24: 1.513333333 | AU24: 85.56283983 | AV24: 0.03256191236 | AW24: 1.513333333 | AX24: 6.78378768 | AZ24: 0 | BA24: 0 | BB24: 11.65 | BC24: 0.0198285774 | BD24: 15 | BE24: 0.03256191236 | BF24: 0.7194316121 | BH24: 32.09162584 | BI24: 0.0792842745 | BJ24: 2.544361272 | BL24: 0 | BN24: 0.2286905569 | BO24: 16.45674728 | BP24: 3.763502699 | BR24: 0.1116752511 | BS24: 20.22024998 | BT24: 2.258101494
B25: ='Input - Inventory'!B22 -> 14 | C25: ='Input - Inventory'!C22 -> LED1x20 | D25: ='Input - Inventory'!D22 -> Lamp | E25: ='Input - Inventory'!E22 -> NonTraffic | F25: ='Input - Inventory'!F22 -> Minor | G25: ='Input - Inventory'!H22 -> 1 | I25: 22.47835147 | J25: 0 | K25: 0 | M25: 24.6719008 | N25: 0.1666666667 | O25: 0 | P25: 0 | Q25: 11.48500442 | R25: 0.007123137293 | S25: 5.574180491 | T25: 0 | U25: 24.13954103 | V25: 0.005931168948 | W25: 14.46149856 | X25: 0.02002998353 | Y25: 40.19950453 | Z25: 0.01503682404 | AA25: 8290.488177 | AB25: 6.144166728e-05 | AC25: 5.740486297 | AE25: 0 | AF25: 0.1666666667 | AG25: 49.71973843 | AH25: 0.007123137293 | AI25: 11.65 | AJ25: 0 | AK25: 15 | AL25: 0.02096799299 | AM25: 0.6686804178 | AO25: 85.56283983 | AP25: 0 | AQ25: 1.513333333 | AR25: 85.56283983 | AS25: 0.0198285774 | AT25: 1.513333333 | AU25: 85.56283983 | AV25: 0.03256191236 | AW25: 1.513333333 | AX25: 6.78378768 | AZ25: 0 | BA25: 0 | BB25: 11.65 | BC25: 0.0198285774 | BD25: 15 | BE25: 0.03256191236 | BF25: 0.7194316121 | BH25: 32.09162584 | BI25: 0.0792842745 | BJ25: 2.544361272 | BL25: 0 | BN25: 0.2286905569 | BO25: 16.45674728 | BP25: 3.763502699 | BR25: 0.1116752511 | BS25: 20.22024998 | BT25: 2.258101494
B26: ='Input - Inventory'!B23 -> 15 | C26: ='Input - Inventory'!C23 -> LED1x200 | D26: ='Input - Inventory'!D23 -> Lamp | E26: ='Input - Inventory'!E23 -> Traffic | F26: ='Input - Inventory'!F23 -> Major | G26: ='Input - Inventory'!H23 -> 1 | I26: 29.77487423 | J26: 14 | K26: 416.8482392 | M26: 0 | N26: 0 | O26: 28.738834 | P26: 0.1666666667 | Q26: 11.48500442 | R26: 0.007123137293 | S26: 5.574180491 | T26: 0 | U26: 24.13954103 | V26: 0.005931168948 | W26: 14.46149856 | X26: 0.02002998353 | Y26: 40.19950453 | Z26: 0.01503682404 | AA26: 8290.488177 | AB26: 6.144166728e-05 | AC26: 6.418308497 | AE26: 0 | AF26: 0.1666666667 | AG26: 49.71973843 | AH26: 0.007123137293 | AI26: 11.65 | AJ26: 0 | AK26: 15 | AL26: 0.02096799299 | AM26: 0.6686804178 | AO26: 85.56283983 | AP26: 0 | AQ26: 2.27 | AR26: 85.56283983 | AS26: 0.0198285774 | AT26: 2.27 | AU26: 85.56283983 | AV26: 0.03256191236 | AW26: 2.27 | AX26: 10.17568152 | AZ26: 0 | BA26: 0 | BB26: 11.65 | BC26: 0.0198285774 | BD26: 15 | BE26: 0.03256191236 | BF26: 0.7194316121 | BH26: 32.09162584 | BI26: 0.1189264117 | BJ26: 3.816541908 | BL26: 0 | BN26: 0.2286905569 | BO26: 21.79864395 | BP26: 4.985144025 | BR26: 0.1116752511 | BS26: 26.78378798 | BT26: 2.991086249
B27: ='Input - Inventory'!B24 -> 16 | C27: ='Input - Inventory'!C24 -> LED1x22 | D27: ='Input - Inventory'!D24 -> Lamp | E27: ='Input - Inventory'!E24 -> NonTraffic | F27: ='Input - Inventory'!F24 -> Minor | G27: ='Input - Inventory'!H24 -> 1 | I27: 22.47835147 | J27: 14394 | K27: 323553.3911 | M27: 24.6719008 | N27: 0.1666666667 | O27: 0 | P27: 0 | Q27: 11.48500442 | R27: 0.007123137293 | S27: 5.574180491 | T27: 0 | U27: 24.13954103 | V27: 0.005931168948 | W27: 14.46149856 | X27: 0.02002998353 | Y27: 40.19950453 | Z27: 0.01503682404 | AA27: 8290.488177 | AB27: 6.144166728e-05 | AC27: 5.740486297 | AE27: 0 | AF27: 0.1666666667 | AG27: 49.71973843 | AH27: 0.007123137293 | AI27: 11.65 | AJ27: 0 | AK27: 15 | AL27: 0.02096799299 | AM27: 0.6686804178 | AO27: 85.56283983 | AP27: 0 | AQ27: 1.513333333 | AR27: 85.56283983 | AS27: 0.0198285774 | AT27: 1.513333333 | AU27: 85.56283983 | AV27: 0.03256191236 | AW27: 1.513333333 | AX27: 6.78378768 | AZ27: 0 | BA27: 0 | BB27: 11.65 | BC27: 0.0198285774 | BD27: 15 | BE27: 0.03256191236 | BF27: 0.7194316121 | BH27: 32.09162584 | BI27: 0.0792842745 | BJ27: 2.544361272 | BL27: 0 | BN27: 0.2286905569 | BO27: 16.45674728 | BP27: 3.763502699 | BR27: 0.1116752511 | BS27: 20.22024998 | BT27: 2.258101494
B28: ='Input - Inventory'!B25 -> 17 | C28: ='Input - Inventory'!C25 -> LED1x25 GE | D28: ='Input - Inventory'!D25 -> Lamp | E28: ='Input - Inventory'!E25 -> NonTraffic | F28: ='Input - Inventory'!F25 -> Minor | G28: ='Input - Inventory'!H25 -> 1 | I28: 22.47835147 | J28: 3665 | K28: 82383.15815 | M28: 24.6719008 | N28: 0.1666666667 | O28: 0 | P28: 0 | Q28: 11.48500442 | R28: 0.007123137293 | S28: 5.574180491 | T28: 0 | U28: 24.13954103 | V28: 0.005931168948 | W28: 14.46149856 | X28: 0.02002998353 | Y28: 40.19950453 | Z28: 0.01503682404 | AA28: 8290.488177 | AB28: 6.144166728e-05 | AC28: 5.740486297 | AE28: 0 | AF28: 0.1666666667 | AG28: 49.71973843 | AH28: 0.007123137293 | AI28: 11.65 | AJ28: 0 | AK28: 15 | AL28: 0.02096799299 | AM28: 0.6686804178 | AO28: 85.56283983 | AP28: 0 | AQ28: 1.513333333 | AR28: 85.56283983 | AS28: 0.0198285774 | AT28: 1.513333333 | AU28: 85.56283983 | AV28: 0.03256191236 | AW28: 1.513333333 | AX28: 6.78378768 | AZ28: 0 | BA28: 0 | BB28: 11.65 | BC28: 0.0198285774 | BD28: 15 | BE28: 0.03256191236 | BF28: 0.7194316121 | BH28: 32.09162584 | BI28: 0.0792842745 | BJ28: 2.544361272 | BL28: 0 | BN28: 0.2286905569 | BO28: 16.45674728 | BP28: 3.763502699 | BR28: 0.1116752511 | BS28: 20.22024998 | BT28: 2.258101494
B29: ='Input - Inventory'!B26 -> 18 | C29: ='Input - Inventory'!C26 -> LED1x28 | D29: ='Input - Inventory'!D26 -> Lamp | E29: ='Input - Inventory'!E26 -> NonTraffic | F29: ='Input - Inventory'!F26 -> Minor | G29: ='Input - Inventory'!H26 -> 1 | I29: 22.47835147 | J29: 0 | K29: 0 | M29: 24.6719008 | N29: 0.1666666667 | O29: 0 | P29: 0 | Q29: 11.48500442 | R29: 0.007123137293 | S29: 5.574180491 | T29: 0 | U29: 24.13954103 | V29: 0.005931168948 | W29: 14.46149856 | X29: 0.02002998353 | Y29: 40.19950453 | Z29: 0.01503682404 | AA29: 8290.488177 | AB29: 6.144166728e-05 | AC29: 5.740486297 | AE29: 0 | AF29: 0.1666666667 | AG29: 49.71973843 | AH29: 0.007123137293 | AI29: 11.65 | AJ29: 0 | AK29: 15 | AL29: 0.02096799299 | AM29: 0.6686804178 | AO29: 85.56283983 | AP29: 0 | AQ29: 1.513333333 | AR29: 85.56283983 | AS29: 0.0198285774 | AT29: 1.513333333 | AU29: 85.56283983 | AV29: 0.03256191236 | AW29: 1.513333333 | AX29: 6.78378768 | AZ29: 0 | BA29: 0 | BB29: 11.65 | BC29: 0.0198285774 | BD29: 15 | BE29: 0.03256191236 | BF29: 0.7194316121 | BH29: 32.09162584 | BI29: 0.0792842745 | BJ29: 2.544361272 | BL29: 0 | BN29: 0.2286905569 | BO29: 16.45674728 | BP29: 3.763502699 | BR29: 0.1116752511 | BS29: 20.22024998 | BT29: 2.258101494
B30: ='Input - Inventory'!B27 -> 19 | C30: ='Input - Inventory'!C27 -> LED1x29 | D30: ='Input - Inventory'!D27 -> Lamp | E30: ='Input - Inventory'!E27 -> NonTraffic | F30: ='Input - Inventory'!F27 -> Minor | G30: ='Input - Inventory'!H27 -> 1 | I30: 22.47835147 | J30: 15545 | K30: 349425.9736 | M30: 24.6719008 | N30: 0.1666666667 | O30: 0 | P30: 0 | Q30: 11.48500442 | R30: 0.007123137293 | S30: 5.574180491 | T30: 0 | U30: 24.13954103 | V30: 0.005931168948 | W30: 14.46149856 | X30: 0.02002998353 | Y30: 40.19950453 | Z30: 0.01503682404 | AA30: 8290.488177 | AB30: 6.144166728e-05 | AC30: 5.740486297 | AE30: 0 | AF30: 0.1666666667 | AG30: 49.71973843 | AH30: 0.007123137293 | AI30: 11.65 | AJ30: 0 | AK30: 15 | AL30: 0.02096799299 | AM30: 0.6686804178 | AO30: 85.56283983 | AP30: 0 | AQ30: 1.513333333 | AR30: 85.56283983 | AS30: 0.0198285774 | AT30: 1.513333333 | AU30: 85.56283983 | AV30: 0.03256191236 | AW30: 1.513333333 | AX30: 6.78378768 | AZ30: 0 | BA30: 0 | BB30: 11.65 | BC30: 0.0198285774 | BD30: 15 | BE30: 0.03256191236 | BF30: 0.7194316121 | BH30: 32.09162584 | BI30: 0.0792842745 | BJ30: 2.544361272 | BL30: 0 | BN30: 0.2286905569 | BO30: 16.45674728 | BP30: 3.763502699 | BR30: 0.1116752511 | BS30: 20.22024998 | BT30: 2.258101494
B31: ='Input - Inventory'!B28 -> 20 | C31: ='Input - Inventory'!C28 -> LED1x298 | D31: ='Input - Inventory'!D28 -> Lamp | E31: ='Input - Inventory'!E28 -> Traffic | F31: ='Input - Inventory'!F28 -> Major | G31: ='Input - Inventory'!H28 -> 1 | I31: 29.77487423 | J31: 0 | K31: 0 | M31: 0 | N31: 0 | O31: 28.738834 | P31: 0.1666666667 | Q31: 11.48500442 | R31: 0.007123137293 | S31: 5.574180491 | T31: 0 | U31: 24.13954103 | V31: 0.005931168948 | W31: 14.46149856 | X31: 0.02002998353 | Y31: 40.19950453 | Z31: 0.01503682404 | AA31: 8290.488177 | AB31: 6.144166728e-05 | AC31: 6.418308497 | AE31: 0 | AF31: 0.1666666667 | AG31: 49.71973843 | AH31: 0.007123137293 | AI31: 11.65 | AJ31: 0 | AK31: 15 | AL31: 0.02096799299 | AM31: 0.6686804178 | AO31: 85.56283983 | AP31: 0 | AQ31: 2.27 | AR31: 85.56283983 | AS31: 0.0198285774 | AT31: 2.27 | AU31: 85.56283983 | AV31: 0.03256191236 | AW31: 2.27 | AX31: 10.17568152 | AZ31: 0 | BA31: 0 | BB31: 11.65 | BC31: 0.0198285774 | BD31: 15 | BE31: 0.03256191236 | BF31: 0.7194316121 | BH31: 32.09162584 | BI31: 0.1189264117 | BJ31: 3.816541908 | BL31: 0 | BN31: 0.2286905569 | BO31: 21.79864395 | BP31: 4.985144025 | BR31: 0.1116752511 | BS31: 26.78378798 | BT31: 2.991086249
B32: ='Input - Inventory'!B29 -> 21 | C32: ='Input - Inventory'!C29 -> LED1x33 | D32: ='Input - Inventory'!D29 -> Lamp | E32: ='Input - Inventory'!E29 -> NonTraffic | F32: ='Input - Inventory'!F29 -> Minor | G32: ='Input - Inventory'!H29 -> 1 | I32: 22.47835147 | J32: 0 | K32: 0 | M32: 24.6719008 | N32: 0.1666666667 | O32: 0 | P32: 0 | Q32: 11.48500442 | R32: 0.007123137293 | S32: 5.574180491 | T32: 0 | U32: 24.13954103 | V32: 0.005931168948 | W32: 14.46149856 | X32: 0.02002998353 | Y32: 40.19950453 | Z32: 0.01503682404 | AA32: 8290.488177 | AB32: 6.144166728e-05 | AC32: 5.740486297 | AE32: 0 | AF32: 0.1666666667 | AG32: 49.71973843 | AH32: 0.007123137293 | AI32: 11.65 | AJ32: 0 | AK32: 15 | AL32: 0.02096799299 | AM32: 0.6686804178 | AO32: 85.56283983 | AP32: 0 | AQ32: 1.513333333 | AR32: 85.56283983 | AS32: 0.0198285774 | AT32: 1.513333333 | AU32: 85.56283983 | AV32: 0.03256191236 | AW32: 1.513333333 | AX32: 6.78378768 | AZ32: 0 | BA32: 0 | BB32: 11.65 | BC32: 0.0198285774 | BD32: 15 | BE32: 0.03256191236 | BF32: 0.7194316121 | BH32: 32.09162584 | BI32: 0.0792842745 | BJ32: 2.544361272 | BL32: 0 | BN32: 0.2286905569 | BO32: 16.45674728 | BP32: 3.763502699 | BR32: 0.1116752511 | BS32: 20.22024998 | BT32: 2.258101494
B33: ='Input - Inventory'!B30 -> 22 | C33: ='Input - Inventory'!C30 -> LED1x42 | D33: ='Input - Inventory'!D30 -> Lamp | E33: ='Input - Inventory'!E30 -> NonTraffic | F33: ='Input - Inventory'!F30 -> Minor | G33: ='Input - Inventory'!H30 -> 1 | I33: 22.47835147 | J33: 17 | K33: 382.131975 | M33: 24.6719008 | N33: 0.1666666667 | O33: 0 | P33: 0 | Q33: 11.48500442 | R33: 0.007123137293 | S33: 5.574180491 | T33: 0 | U33: 24.13954103 | V33: 0.005931168948 | W33: 14.46149856 | X33: 0.02002998353 | Y33: 40.19950453 | Z33: 0.01503682404 | AA33: 8290.488177 | AB33: 6.144166728e-05 | AC33: 5.740486297 | AE33: 0 | AF33: 0.1666666667 | AG33: 49.71973843 | AH33: 0.007123137293 | AI33: 11.65 | AJ33: 0 | AK33: 15 | AL33: 0.02096799299 | AM33: 0.6686804178 | AO33: 85.56283983 | AP33: 0 | AQ33: 1.513333333 | AR33: 85.56283983 | AS33: 0.0198285774 | AT33: 1.513333333 | AU33: 85.56283983 | AV33: 0.03256191236 | AW33: 1.513333333 | AX33: 6.78378768 | AZ33: 0 | BA33: 0 | BB33: 11.65 | BC33: 0.0198285774 | BD33: 15 | BE33: 0.03256191236 | BF33: 0.7194316121 | BH33: 32.09162584 | BI33: 0.0792842745 | BJ33: 2.544361272 | BL33: 0 | BN33: 0.2286905569 | BO33: 16.45674728 | BP33: 3.763502699 | BR33: 0.1116752511 | BS33: 20.22024998 | BT33: 2.258101494
B34: ='Input - Inventory'!B31 -> 23 | C34: ='Input - Inventory'!C31 -> MBF1x1000 | D34: ='Input - Inventory'!D31 -> Lamp | E34: ='Input - Inventory'!E31 -> Traffic | F34: ='Input - Inventory'!F31 -> Major | G34: ='Input - Inventory'!H31 -> 1 | I34: 67.81088846 | J34: 6 | K34: 406.8653307 | M34: 0 | N34: 0 | O34: 28.738834 | P34: 0.25 | Q34: 11.48500442 | R34: 0.007123137293 | S34: 5.574180491 | T34: 0 | U34: 24.13954103 | V34: 0.005931168948 | W34: 14.46149856 | X34: 0.02002998353 | Y34: 40.19950453 | Z34: 0.01503682404 | AA34: 8290.488177 | AB34: 6.144166728e-05 | AC34: 8.81321133 | AE34: 0 | AF34: 0.25 | AG34: 49.71973843 | AH34: 0.007123137293 | AI34: 11.65 | AJ34: 0 | AK34: 15 | AL34: 0.02096799299 | AM34: 0.6686804178 | AO34: 85.56283983 | AP34: 0.08 | AQ34: 2.27 | AR34: 85.56283983 | AS34: 0.0198285774 | AT34: 2.27 | AU34: 85.56283983 | AV34: 0.03256191236 | AW34: 2.27 | AX34: 25.71389323 | AZ34: 27.8 | BA34: 0.08 | BB34: 11.65 | BC34: 0.0198285774 | BD34: 15 | BE34: 0.03256191236 | BF34: 2.943431612 | BH34: 32.09162584 | BI34: 0.3005264117 | BJ34: 9.644381159 | BL34: 0 | BN34: 0.2286905569 | BO34: 54.73359775 | BP34: 12.51705695 | BR34: 0.1116752511 | BS34: 67.2506547 | BT34: 7.510233753
B35: ='Input - Inventory'!B32 -> 24 | C35: ='Input - Inventory'!C32 -> MBF1x125 | D35: ='Input - Inventory'!D32 -> Lamp | E35: ='Input - Inventory'!E32 -> NonTraffic | F35: ='Input - Inventory'!F32 -> Minor | G35: ='Input - Inventory'!H32 -> 1 | I35: 38.28648893 | J35: 4462 | K35: 170834.3136 | M35: 24.6719008 | N35: 0.25 | O35: 0 | P35: 0 | Q35: 11.48500442 | R35: 0.007123137293 | S35: 5.574180491 | T35: 0 | U35: 24.13954103 | V35: 0.005931168948 | W35: 14.46149856 | X35: 0.02002998353 | Y35: 40.19950453 | Z35: 0.01503682404 | AA35: 8290.488177 | AB35: 6.144166728e-05 | AC35: 7.79647803 | AE35: 0 | AF35: 0.25 | AG35: 49.71973843 | AH35: 0.007123137293 | AI35: 11.65 | AJ35: 0 | AK35: 15 | AL35: 0.02096799299 | AM35: 0.6686804178 | AO35: 85.56283983 | AP35: 0.0501 | AQ35: 1.513333333 | AR35: 85.56283983 | AS35: 0.0198285774 | AT35: 1.513333333 | AU35: 85.56283983 | AV35: 0.03256191236 | AW35: 1.513333333 | AX35: 13.27099107 | AZ35: 5.1 | BA35: 0.0501 | BB35: 11.65 | BC35: 0.0198285774 | BD35: 15 | BE35: 0.03256191236 | BF35: 0.9749416121 | BH35: 32.09162584 | BI35: 0.1551022745 | BJ35: 4.977484159 | BL35: 0 | BN35: 0.2286905569 | BO35: 28.96357529 | BP35: 6.623696162 | BR35: 0.1116752511 | BS35: 35.58727145 | BT35: 3.974217477
B36: ='Input - Inventory'!B33 -> 25 | C36: ='Input - Inventory'!C33 -> MBF1x250 | D36: ='Input - Inventory'!D33 -> Lamp | E36: ='Input - Inventory'!E33 -> Traffic | F36: ='Input - Inventory'!F33 -> Major | G36: ='Input - Inventory'!H33 -> 1 | I36: 52.20205385 | J36: 15031 | K36: 784649.0714 | M36: 0 | N36: 0 | O36: 28.738834 | P36: 0.25 | Q36: 11.48500442 | R36: 0.007123137293 | S36: 5.574180491 | T36: 0 | U36: 24.13954103 | V36: 0.005931168948 | W36: 14.46149856 | X36: 0.02002998353 | Y36: 40.19950453 | Z36: 0.01503682404 | AA36: 8290.488177 | AB36: 6.144166728e-05 | AC36: 8.81321133 | AE36: 0 | AF36: 0.25 | AG36: 49.71973843 | AH36: 0.007123137293 | AI36: 11.65 | AJ36: 0 | AK36: 15 | AL36: 0.02096799299 | AM36: 0.6686804178 | AO36: 85.56283983 | AP36: 0.0501 | AQ36: 2.27 | AR36: 85.56283983 | AS36: 0.0198285774 | AT36: 2.27 | AU36: 85.56283983 | AV36: 0.03256191236 | AW36: 2.27 | AX36: 19.90648661 | AZ36: 5.5 | BA36: 0.0501 | BB36: 11.65 | BC36: 0.0198285774 | BD36: 15 | BE36: 0.03256191236 | BF36: 0.9949816121 | BH36: 32.09162584 | BI36: 0.2326534117 | BJ36: 7.466226239 | BL36: 0 | BN36: 0.2286905569 | BO36: 39.22458621 | BP36: 8.970292462 | BR36: 0.1116752511 | BS36: 48.19487867 | BT36: 5.382175179
B37: ='Input - Inventory'!B34 -> 26 | C37: ='Input - Inventory'!C34 -> MBF1x400 | D37: ='Input - Inventory'!D34 -> Lamp | E37: ='Input - Inventory'!E34 -> Traffic | F37: ='Input - Inventory'!F34 -> Major | G37: ='Input - Inventory'!H34 -> 1 | I37: 52.20205385 | J37: 5491 | K37: 286641.4777 | M37: 0 | N37: 0 | O37: 28.738834 | P37: 0.25 | Q37: 11.48500442 | R37: 0.007123137293 | S37: 5.574180491 | T37: 0 | U37: 24.13954103 | V37: 0.005931168948 | W37: 14.46149856 | X37: 0.02002998353 | Y37: 40.19950453 | Z37: 0.01503682404 | AA37: 8290.488177 | AB37: 6.144166728e-05 | AC37: 8.81321133 | AE37: 0 | AF37: 0.25 | AG37: 49.71973843 | AH37: 0.007123137293 | AI37: 11.65 | AJ37: 0 | AK37: 15 | AL37: 0.02096799299 | AM37: 0.6686804178 | AO37: 85.56283983 | AP37: 0.0501 | AQ37: 2.27 | AR37: 85.56283983 | AS37: 0.0198285774 | AT37: 2.27 | AU37: 85.56283983 | AV37: 0.03256191236 | AW37: 2.27 | AX37: 19.90648661 | AZ37: 5.5 | BA37: 0.0501 | BB37: 11.65 | BC37: 0.0198285774 | BD37: 15 | BE37: 0.03256191236 | BF37: 0.9949816121 | BH37: 32.09162584 | BI37: 0.2326534117 | BJ37: 7.466226239 | BL37: 0 | BN37: 0.2286905569 | BO37: 39.22458621 | BP37: 8.970292462 | BR37: 0.1116752511 | BS37: 48.19487867 | BT37: 5.382175179
B38: ='Input - Inventory'!B35 -> 27 | C38: ='Input - Inventory'!C35 -> MBF1x42 | D38: ='Input - Inventory'!D35 -> Lamp | E38: ='Input - Inventory'!E35 -> NonTraffic | F38: ='Input - Inventory'!F35 -> Minor | G38: ='Input - Inventory'!H35 -> 1 | I38: 34.30464592 | J38: 42152 | K38: 1446009.435 | M38: 24.6719008 | N38: 0.25 | O38: 0 | P38: 0 | Q38: 11.48500442 | R38: 0.007123137293 | S38: 5.574180491 | T38: 0 | U38: 24.13954103 | V38: 0.005931168948 | W38: 14.46149856 | X38: 0.02002998353 | Y38: 40.19950453 | Z38: 0.01503682404 | AA38: 8290.488177 | AB38: 6.144166728e-05 | AC38: 7.79647803 | AE38: 0 | AF38: 0.25 | AG38: 49.71973843 | AH38: 0.007123137293 | AI38: 11.65 | AJ38: 0 | AK38: 15 | AL38: 0.02096799299 | AM38: 0.6686804178 | AO38: 85.56283983 | AP38: 0.0353 | AQ38: 1.513333333 | AR38: 85.56283983 | AS38: 0.0198285774 | AT38: 1.513333333 | AU38: 85.56283983 | AV38: 0.03256191236 | AW38: 1.513333333 | AX38: 11.35461163 | AZ38: 3.1 | BA38: 0.0353 | BB38: 11.65 | BC38: 0.0198285774 | BD38: 15 | BE38: 0.03256191236 | BF38: 0.8288616121 | BH38: 32.09162584 | BI38: 0.1327049412 | BJ38: 4.258717318 | BL38: 0 | BN38: 0.2286905569 | BO38: 25.682349 | BP38: 5.873310695 | BR38: 0.1116752511 | BS38: 31.5556597 | BT38: 3.523986222
B39: ='Input - Inventory'!B36 -> 28 | C39: ='Input - Inventory'!C36 -> MBF1x50 | D39: ='Input - Inventory'!D36 -> Lamp | E39: ='Input - Inventory'!E36 -> NonTraffic | F39: ='Input - Inventory'!F36 -> Minor | G39: ='Input - Inventory'!H36 -> 1 | I39: 38.34245675 | J39: 9467 | K39: 362988.038 | M39: 24.6719008 | N39: 0.25 | O39: 0 | P39: 0 | Q39: 11.48500442 | R39: 0.007123137293 | S39: 5.574180491 | T39: 0 | U39: 24.13954103 | V39: 0.005931168948 | W39: 14.46149856 | X39: 0.02002998353 | Y39: 40.19950453 | Z39: 0.01503682404 | AA39: 8290.488177 | AB39: 6.144166728e-05 | AC39: 7.79647803 | AE39: 0 | AF39: 0.25 | AG39: 49.71973843 | AH39: 0.007123137293 | AI39: 11.65 | AJ39: 0 | AK39: 15 | AL39: 0.02096799299 | AM39: 0.6686804178 | AO39: 85.56283983 | AP39: 0.0501 | AQ39: 1.513333333 | AR39: 85.56283983 | AS39: 0.0198285774 | AT39: 1.513333333 | AU39: 85.56283983 | AV39: 0.03256191236 | AW39: 1.513333333 | AX39: 13.27099107 | AZ39: 5.45 | BA39: 0.0501 | BB39: 11.65 | BC39: 0.0198285774 | BD39: 15 | BE39: 0.03256191236 | BF39: 0.9924766121 | BH39: 32.09162584 | BI39: 0.1551022745 | BJ39: 4.977484159 | BL39: 0 | BN39: 0.2286905569 | BO39: 29.06861029 | BP39: 6.647716674 | BR39: 0.1116752511 | BS39: 35.71632696 | BT39: 3.988629783
B40: ='Input - Inventory'!B37 -> 29 | C40: ='Input - Inventory'!C37 -> MBF1x80 | D40: ='Input - Inventory'!D37 -> Lamp | E40: ='Input - Inventory'!E37 -> NonTraffic | F40: ='Input - Inventory'!F37 -> Minor | G40: ='Input - Inventory'!H37 -> 1 | I40: 36.70679395 | J40: 70228 | K40: 2577844.726 | M40: 24.6719008 | N40: 0.25 | O40: 0 | P40: 0 | Q40: 11.48500442 | R40: 0.007123137293 | S40: 5.574180491 | T40: 0 | U40: 24.13954103 | V40: 0.005931168948 | W40: 14.46149856 | X40: 0.02002998353 | Y40: 40.19950453 | Z40: 0.01503682404 | AA40: 8290.488177 | AB40: 6.144166728e-05 | AC40: 7.79647803 | AE40: 0 | AF40: 0.25 | AG40: 49.71973843 | AH40: 0.007123137293 | AI40: 11.65 | AJ40: 0 | AK40: 15 | AL40: 0.02096799299 | AM40: 0.6686804178 | AO40: 85.56283983 | AP40: 0.0447 | AQ40: 1.513333333 | AR40: 85.56283983 | AS40: 0.0198285774 | AT40: 1.513333333 | AU40: 85.56283983 | AV40: 0.03256191236 | AW40: 1.513333333 | AX40: 12.57177154 | AZ40: 3.6 | BA40: 0.0447 | BB40: 11.65 | BC40: 0.0198285774 | BD40: 15 | BE40: 0.03256191236 | BF40: 0.8803516121 | BH40: 32.09162584 | BI40: 0.1469302745 | BJ40: 4.715231393 | BL40: 0 | BN40: 0.2286905569 | BO40: 27.532513 | BP40: 6.296425729 | BR40: 0.1116752511 | BS40: 33.82893873 | BT40: 3.777855228
B41: ='Input - Inventory'!B38 -> 30 | C41: ='Input - Inventory'!C38 -> MBF2x80 | D41: ='Input - Inventory'!D38 -> Lamp | E41: ='Input - Inventory'!E38 -> NonTraffic | F41: ='Input - Inventory'!F38 -> Minor | G41: ='Input - Inventory'!H38 -> 2 | I41: 45.79464559 | J41: 16 | K41: 732.7143294 | M41: 24.6719008 | N41: 0.25 | O41: 0 | P41: 0 | Q41: 11.48500442 | R41: 0.007123137293 | S41: 5.574180491 | T41: 0 | U41: 24.13954103 | V41: 0.005931168948 | W41: 14.46149856 | X41: 0.02002998353 | Y41: 40.19950453 | Z41: 0.01503682404 | AA41: 8290.488177 | AB41: 6.144166728e-05 | AC41: 7.79647803 | AE41: 0 | AF41: 0.25 | AG41: 49.71973843 | AH41: 0.007123137293 | AI41: 11.65 | AJ41: 0 | AK41: 15 | AL41: 0.02096799299 | AM41: 0.6686804178 | AO41: 85.56283983 | AP41: 0.08 | AQ41: 1.513333333 | AR41: 85.56283983 | AS41: 0.0198285774 | AT41: 1.513333333 | AU41: 85.56283983 | AV41: 0.03256191236 | AW41: 1.513333333 | AX41: 17.14259549 | AZ41: 3.6 | BA41: 0.08 | BB41: 11.65 | BC41: 0.0198285774 | BD41: 15 | BE41: 0.03256191236 | BF41: 1.007431612 | BH41: 32.09162584 | BI41: 0.2003509412 | BJ41: 6.42958744 | BL41: 0 | BN41: 0.2286905569 | BO41: 34.84477299 | BP41: 7.968670539 | BR41: 0.1116752511 | BS41: 42.81344353 | BT41: 4.781202058
B42: ='Input - Inventory'!B39 -> 31 | C42: ='Input - Inventory'!C39 -> MBI1x100 | D42: ='Input - Inventory'!D39 -> Lamp | E42: ='Input - Inventory'!E39 -> Traffic | F42: ='Input - Inventory'!F39 -> Major | G42: ='Input - Inventory'!H39 -> 1 | I42: 49.73917692 | J42: 30 | K42: 1492.175308 | M42: 0 | N42: 0 | O42: 28.738834 | P42: 0.25 | Q42: 11.48500442 | R42: 0.007123137293 | S42: 5.574180491 | T42: 0 | U42: 24.13954103 | V42: 0.005931168948 | W42: 14.46149856 | X42: 0.02002998353 | Y42: 40.19950453 | Z42: 0.01503682404 | AA42: 8290.488177 | AB42: 6.144166728e-05 | AC42: 8.81321133 | AE42: 0 | AF42: 0.25 | AG42: 49.71973843 | AH42: 0.007123137293 | AI42: 11.65 | AJ42: 0 | AK42: 15 | AL42: 0.02096799299 | AM42: 0.6686804178 | AO42: 85.56283983 | AP42: 0.04 | AQ42: 2.27 | AR42: 85.56283983 | AS42: 0.0198285774 | AT42: 2.27 | AU42: 85.56283983 | AV42: 0.03256191236 | AW42: 2.27 | AX42: 17.94478738 | AZ42: 14.38 | BA42: 0.04 | BB42: 11.65 | BC42: 0.0198285774 | BD42: 15 | BE42: 0.03256191236 | BF42: 1.294631612 | BH42: 32.09162584 | BI42: 0.2097264117 | BJ42: 6.730461534 | BL42: 0 | BN42: 0.2286905569 | BO42: 39.04677227 | BP42: 8.929628094 | BR42: 0.1116752511 | BS42: 47.97640037 | BT42: 5.357776559
B43: ='Input - Inventory'!B40 -> 32 | C43: ='Input - Inventory'!C40 -> MBI1x1000 | D43: ='Input - Inventory'!D40 -> Lamp | E43: ='Input - Inventory'!E40 -> Traffic | F43: ='Input - Inventory'!F40 -> Major | G43: ='Input - Inventory'!H40 -> 1 | I43: 54.72453256 | J43: 13 | K43: 711.4189233 | M43: 0 | N43: 0 | O43: 28.738834 | P43: 0.25 | Q43: 11.48500442 | R43: 0.007123137293 | S43: 5.574180491 | T43: 0 | U43: 24.13954103 | V43: 0.005931168948 | W43: 14.46149856 | X43: 0.02002998353 | Y43: 40.19950453 | Z43: 0.01503682404 | AA43: 8290.488177 | AB43: 6.144166728e-05 | AC43: 8.81321133 | AE43: 0 | AF43: 0.25 | AG43: 49.71973843 | AH43: 0.007123137293 | AI43: 11.65 | AJ43: 0 | AK43: 15 | AL43: 0.02096799299 | AM43: 0.6686804178 | AO43: 85.56283983 | AP43: 0.04 | AQ43: 2.27 | AR43: 85.56283983 | AS43: 0.0198285774 | AT43: 2.27 | AU43: 85.56283983 | AV43: 0.03256191236 | AW43: 2.27 | AX43: 17.94478738 | AZ43: 48.5 | BA43: 0.04 | BB43: 11.65 | BC43: 0.0198285774 | BD43: 15 | BE43: 0.03256191236 | BF43: 2.659431612 | BH43: 32.09162584 | BI43: 0.2097264117 | BJ43: 6.730461534 | BL43: 0 | BN43: 0.2286905569 | BO43: 48.94157227 | BP43: 11.19247542 | BR43: 0.1116752511 | BS43: 60.13404769 | BT43: 6.715484877
B44: ='Input - Inventory'!B41 -> 33 | C44: ='Input - Inventory'!C41 -> MBI1x150 | D44: ='Input - Inventory'!D41 -> Lamp | E44: ='Input - Inventory'!E41 -> Traffic | F44: ='Input - Inventory'!F41 -> Major | G44: ='Input - Inventory'!H41 -> 1 | I44: 49.73917692 | J44: =INDIRECT(J$10&$B44&RIGHT($B$2,4)) -> 4 | K44: 198.9567077 | M44: 0 | N44: 0 | O44: 28.738834 | P44: 0.25 | Q44: 11.48500442 | R44: 0.007123137293 | S44: 5.574180491 | T44: 0 | U44: 24.13954103 | V44: 0.005931168948 | W44: 14.46149856 | X44: 0.02002998353 | Y44: 40.19950453 | Z44: 0.01503682404 | AA44: 8290.488177 | AB44: 6.144166728e-05 | AC44: 8.81321133 | AE44: =IF($D44="Lamp",$G44*INDIRECT("Price" & $B44 & RIGHT($B$2,4)),0) -> 0 | AF44: 0.25 | AG44: =IF($D44="Lamp",INDIRECT("PriceVisor" & RIGHT($B$2,4)),0) -> 49.71973843 | AH44: 0.007123137293 | AI44: =IF($D44="Lamp",INDIRECT("PricePECell" & RIGHT($B$2,4)),0) -> 11.65 | AJ44: 0 | AK44: 15 | AL44: =IF(C44="SON1x400 AR",SON400ARMiscFailure,V44+Z44) -> 0.02096799299 | AM44: 0.6686804178 | AO44: =IF($D44=$AE$9,(INDIRECT("PriceLabour" & RIGHT($B$2,4))*ProportionStandardHours + INDIRECT("PriceLabourOvertime" & RIGHT($B$2,4))*ProportionOvertimeHours)*(1+RateOnCostAnnual),0) -> 85.56283983 | AP44: 0.04 | AQ44: 2.27 | AR44: =IF($D44=$AE$9,(INDIRECT("PriceLabour" & RIGHT($B$2,4))*ProportionStandardHours + INDIRECT("PriceLabourOvertime" & RIGHT($B$2,4))*ProportionOvertimeHours)*(1+RateOnCostAnnual),0) -> 85.56283983 | AS44: 0.0198285774 | AT44: 2.27 | AU44: =IF($D44=$AE$9,(INDIRECT("PriceLabour" & RIGHT($B$2,4))*ProportionStandardHours + INDIRECT("PriceLabourOvertime" & RIGHT($B$2,4))*ProportionOvertimeHours)*(1+RateOnCostAnnual),0) -> 85.56283983 | AV44: 0.03256191236 | AW44: 2.27 | AX44: 17.94478738 | AZ44: 14.38 | BA44: 0.04 | BB44: 11.65 | BC44: 0.0198285774 | BD44: 15 | BE44: 0.03256191236 | BF44: 1.294631612 | BH44: =IF(AND($D44="Lamp"),INDIRECT("PriceEWP"&RIGHT($B$2,4)),0) -> 32.09162584 | BI44: 0.2097264117 | BJ44: 6.730461534 | BL44: 0 | BN44: 0.2286905569 | BO44: 39.04677227 | BP44: 8.929628094 | BR44: 0.1116752511 | BS44: 47.97640037 | BT44: 5.357776559
B45: ='Input - Inventory'!B42 -> 34 | C45: ='Input - Inventory'!C42 -> MBI1x250 | D45: ='Input - Inventory'!D42 -> Lamp | E45: ='Input - Inventory'!E42 -> Traffic | F45: ='Input - Inventory'!F42 -> Major | G45: ='Input - Inventory'!H42 -> 1 | I45: 48.83620219 | J45: 57 | K45: 2783.663525 | M45: 0 | N45: 0 | O45: 28.738834 | P45: 0.25 | Q45: 11.48500442 | R45: 0.007123137293 | S45: 5.574180491 | T45: 0 | U45: 24.13954103 | V45: 0.005931168948 | W45: 14.46149856 | X45: 0.02002998353 | Y45: 40.19950453 | Z45: 0.01503682404 | AA45: 8290.488177 | AB45: 6.144166728e-05 | AC45: 8.81321133 | AE45: 0 | AF45: 0.25 | AG45: 49.71973843 | AH45: 0.007123137293 | AI45: 11.65 | AJ45: 0 | AK45: 15 | AL45: 0.02096799299 | AM45: 0.6686804178 | AO45: 85.56283983 | AP45: 0.04 | AQ45: 2.27 | AR45: 85.56283983 | AS45: 0.0198285774 | AT45: 2.27 | AU45: 85.56283983 | AV45: 0.03256191236 | AW45: 2.27 | AX45: 17.94478738 | AZ45: 8.2 | BA45: 0.04 | BB45: 11.65 | BC45: 0.0198285774 | BD45: 15 | BE45: 0.03256191236 | BF45: 1.047431612 | BH45: 32.09162584 | BI45: 0.2097264117 | BJ45: 6.730461534 | BL45: 0 | BN45: 0.2286905569 | BO45: 37.25457227 | BP45: 8.519768878 | BR45: 0.1116752511 | BS45: 45.77434115 | BT45: 5.111861043
B46: ='Input - Inventory'!B43 -> 35 | C46: ='Input - Inventory'!C43 -> MBI1x400 | D46: ='Input - Inventory'!D43 -> Lamp | E46: ='Input - Inventory'!E43 -> Traffic | F46: ='Input - Inventory'!F43 -> Major | G46: ='Input - Inventory'!H43 -> 1 | I46: 48.80697971 | J46: 128 | K46: 6247.293403 | M46: 0 | N46: 0 | O46: 28.738834 | P46: 0.25 | Q46: 11.48500442 | R46: 0.007123137293 | S46: 5.574180491 | T46: 0 | U46: 24.13954103 | V46: 0.005931168948 | W46: 14.46149856 | X46: 0.02002998353 | Y46: 40.19950453 | Z46: 0.01503682404 | AA46: 8290.488177 | AB46: 6.144166728e-05 | AC46: 8.81321133 | AE46: 0 | AF46: 0.25 | AG46: 49.71973843 | AH46: 0.007123137293 | AI46: 11.65 | AJ46: 0 | AK46: 15 | AL46: 0.02096799299 | AM46: 0.6686804178 | AO46: 85.56283983 | AP46: 0.04 | AQ46: 2.27 | AR46: 85.56283983 | AS46: 0.0198285774 | AT46: 2.27 | AU46: 85.56283983 | AV46: 0.03256191236 | AW46: 2.27 | AX46: 17.94478738 | AZ46: 8 | BA46: 0.04 | BB46: 11.65 | BC46: 0.0198285774 | BD46: 15 | BE46: 0.03256191236 | BF46: 1.039431612 | BH46: 32.09162584 | BI46: 0.2097264117 | BJ46: 6.730461534 | BL46: 0 | BN46: 0.2286905569 | BO46: 37.19657227 | BP46: 8.506504826 | BR46: 0.1116752511 | BS46: 45.7030771 | BT46: 5.103902612
B47: ='Input - Inventory'!B44 -> 36 | C47: ='Input - Inventory'!C44 -> MBI1x70 | D47: ='Input - Inventory'!D44 -> Lamp | E47: ='Input - Inventory'!E44 -> NonTraffic | F47: ='Input - Inventory'!F44 -> Minor | G47: ='Input - Inventory'!H44 -> 1 | I47: 37.13326844 | J47: 291 | K47: 10805.78112 | M47: 24.6719008 | N47: 0.25 | O47: 0 | P47: 0 | Q47: 11.48500442 | R47: 0.007123137293 | S47: 5.574180491 | T47: 0 | U47: 24.13954103 | V47: 0.005931168948 | W47: 14.46149856 | X47: 0.02002998353 | Y47: 40.19950453 | Z47: 0.01503682404 | AA47: 8290.488177 | AB47: 6.144166728e-05 | AC47: 7.79647803 | AE47: 0 | AF47: 0.25 | AG47: 49.71973843 | AH47: 0.007123137293 | AI47: 11.65 | AJ47: 0 | AK47: 15 | AL47: 0.02096799299 | AM47: 0.6686804178 | AO47: 85.56283983 | AP47: 0.04 | AQ47: 1.513333333 | AR47: 85.56283983 | AS47: 0.0198285774 | AT47: 1.513333333 | AU47: 85.56283983 | AV47: 0.03256191236 | AW47: 1.513333333 | AX47: 11.96319158 | AZ47: 14.5 | BA47: 0.04 | BB47: 11.65 | BC47: 0.0198285774 | BD47: 15 | BE47: 0.03256191236 | BF47: 1.299431612 | BH47: 32.09162584 | BI47: 0.1398176078 | BJ47: 4.486974356 | BL47: 0 | BN47: 0.2286905569 | BO47: 29.839756 | BP47: 6.824070416 | BR47: 0.1116752511 | BS47: 36.66382642 | BT47: 4.094442023
B48: ='Input - Inventory'!B45 -> 37 | C48: ='Input - Inventory'!C45 -> MBI1x70 II | D48: ='Input - Inventory'!D45 -> Lamp | E48: ='Input - Inventory'!E45 -> NonTraffic | F48: ='Input - Inventory'!F45 -> Minor | G48: ='Input - Inventory'!H45 -> 1 | I48: 43.48915854 | J48: 396 | K48: 17221.70678 | M48: 24.6719008 | N48: 0.25 | O48: 0 | P48: 0 | Q48: 11.48500442 | R48: 0.007123137293 | S48: 5.574180491 | T48: 0 | U48: 24.13954103 | V48: 0.005931168948 | W48: 14.46149856 | X48: 0.02002998353 | Y48: 40.19950453 | Z48: 0.01503682404 | AA48: 8290.488177 | AB48: 6.144166728e-05 | AC48: 7.79647803 | AE48: 0 | AF48: 0.25 | AG48: 49.71973843 | AH48: 0.007123137293 | AI48: 11.65 | AJ48: 0 | AK48: 15 | AL48: 0.02096799299 | AM48: 0.6686804178 | AO48: 85.56283983 | AP48: 0.04 | AQ48: 1.513333333 | AR48: 85.56283983 | AS48: 0.0198285774 | AT48: 1.513333333 | AU48: 85.56283983 | AV48: 0.03256191236 | AW48: 1.513333333 | AX48: 11.96319158 | AZ48: 58 | BA48: 0.04 | BB48: 11.65 | BC48: 0.0198285774 | BD48: 15 | BE48: 0.03256191236 | BF48: 3.039431612 | BH48: 32.09162584 | BI48: 0.1398176078 | BJ48: 4.486974356 | BL48: 0 | BN48: 0.2286905569 | BO48: 42.454756 | BP48: 9.709001791 | BR48: 0.1116752511 | BS48: 52.16375779 | BT48: 5.825400752
B49: ='Input - Inventory'!B46 -> 38 | C49: ='Input - Inventory'!C46 -> SON1x100 | D49: ='Input - Inventory'!D46 -> Lamp | E49: ='Input - Inventory'!E46 -> Traffic | F49: ='Input - Inventory'!F46 -> Major | G49: ='Input - Inventory'!H46 -> 1 | I49: 59.21421013 | J49: 1424 | K49: 84321.03523 | M49: 0 | N49: 0 | O49: 28.738834 | P49: 0.25 | Q49: 11.48500442 | R49: 0.007123137293 | S49: 5.574180491 | T49: 0 | U49: 24.13954103 | V49: 0.005931168948 | W49: 14.46149856 | X49: 0.02002998353 | Y49: 40.19950453 | Z49: 0.01503682404 | AA49: 8290.488177 | AB49: 6.144166728e-05 | AC49: 8.81321133 | AE49: 0 | AF49: 0.25 | AG49: 49.71973843 | AH49: 0.007123137293 | AI49: 11.65 | AJ49: 0 | AK49: 15 | AL49: 0.02096799299 | AM49: 0.6686804178 | AO49: 85.56283983 | AP49: 0.06518620254 | AQ49: 2.27 | AR49: 85.56283983 | AS49: 0.0198285774 | AT49: 2.27 | AU49: 85.56283983 | AV49: 0.03256191236 | AW49: 2.27 | AX49: 22.83664422 | AZ49: 13.23 | BA49: 0.06518620254 | BB49: 11.65 | BC49: 0.0198285774 | BD49: 15 | BE49: 0.03256191236 | BF49: 1.581845072 | BH49: 32.09162584 | BI49: 0.2668990915 | BJ49: 8.56522578 | BL49: 0 | BN49: 0.2286905569 | BO49: 45.77310682 | BP49: 10.46787729 | BR49: 0.1116752511 | BS49: 56.24098411 | BT49: 6.280726024
B50: ='Input - Inventory'!B47 -> 39 | C50: ='Input - Inventory'!C47 -> SON1x1000 | D50: ='Input - Inventory'!D47 -> Lamp | E50: ='Input - Inventory'!E47 -> Traffic | F50: ='Input - Inventory'!F47 -> Major | G50: ='Input - Inventory'!H47 -> 1 | I50: 61.84430455 | J50: 49 | K50: 3030.370923 | M50: 0 | N50: 0 | O50: 28.738834 | P50: 0.25 | Q50: 11.48500442 | R50: 0.007123137293 | S50: 5.574180491 | T50: 0 | U50: 24.13954103 | V50: 0.005931168948 | W50: 14.46149856 | X50: 0.02002998353 | Y50: 40.19950453 | Z50: 0.01503682404 | AA50: 8290.488177 | AB50: 6.144166728e-05 | AC50: 8.81321133 | AE50: 0 | AF50: 0.25 | AG50: 49.71973843 | AH50: 0.007123137293 | AI50: 11.65 | AJ50: 0 | AK50: 15 | AL50: 0.02096799299 | AM50: 0.6686804178 | AO50: 85.56283983 | AP50: 0.06518620254 | AQ50: 2.27 | AR50: 85.56283983 | AS50: 0.0198285774 | AT50: 2.27 | AU50: 85.56283983 | AV50: 0.03256191236 | AW50: 2.27 | AX50: 22.83664422 | AZ50: 27.8 | BA50: 0.06518620254 | BB50: 11.65 | BC50: 0.0198285774 | BD50: 15 | BE50: 0.03256191236 | BF50: 2.531608043 | BH50: 32.09162584 | BI50: 0.2668990915 | BJ50: 8.56522578 | BL50: 0 | BN50: 0.2286905569 | BO50: 50.36536979 | BP50: 11.51808446 | BR50: 0.1116752511 | BS50: 61.88345425 | BT50: 6.910850295
B51: ='Input - Inventory'!B48 -> 40 | C51: ='Input - Inventory'!C48 -> SON1x150 | D51: ='Input - Inventory'!D48 -> Lamp | E51: ='Input - Inventory'!E48 -> Traffic | F51: ='Input - Inventory'!F48 -> Major | G51: ='Input - Inventory'!H48 -> 1 | I51: 57.90909121 | J51: 19878 | K51: 1151116.915 | M51: 0 | N51: 0 | O51: 28.738834 | P51: 0.25 | Q51: 11.48500442 | R51: 0.007123137293 | S51: 5.574180491 | T51: 0 | U51: 24.13954103 | V51: 0.005931168948 | W51: 14.46149856 | X51: 0.02002998353 | Y51: 40.19950453 | Z51: 0.01503682404 | AA51: 8290.488177 | AB51: 6.144166728e-05 | AC51: 8.81321133 | AE51: 0 | AF51: 0.25 | AG51: 49.71973843 | AH51: 0.007123137293 | AI51: 11.65 | AJ51: 0 | AK51: 15 | AL51: 0.02096799299 | AM51: 0.6686804178 | AO51: 85.56283983 | AP51: 0.06518620254 | AQ51: 2.27 | AR51: 85.56283983 | AS51: 0.0198285774 | AT51: 2.27 | AU51: 85.56283983 | AV51: 0.03256191236 | AW51: 2.27 | AX51: 22.83664422 | AZ51: 6 | BA51: 0.06518620254 | BB51: 11.65 | BC51: 0.0198285774 | BD51: 15 | BE51: 0.03256191236 | BF51: 1.110548827 | BH51: 32.09162584 | BI51: 0.2668990915 | BJ51: 8.56522578 | BL51: 0 | BN51: 0.2286905569 | BO51: 43.49431057 | BP51: 9.946738105 | BR51: 0.1116752511 | BS51: 53.44104868 | BT51: 5.968042532
B52: ='Input - Inventory'!B49 -> 41 | C52: ='Input - Inventory'!C49 -> SON1x150 AR | D52: ='Input - Inventory'!D49 -> Lamp | E52: ='Input - Inventory'!E49 -> Traffic | F52: ='Input - Inventory'!F49 -> Major | G52: ='Input - Inventory'!H49 -> 1 | I52: 57.90909121 | J52: 2615 | K52: 151432.2735 | M52: 0 | N52: 0 | O52: 28.738834 | P52: 0.25 | Q52: 11.48500442 | R52: 0.007123137293 | S52: 5.574180491 | T52: 0 | U52: 24.13954103 | V52: 0.005931168948 | W52: 14.46149856 | X52: 0.02002998353 | Y52: 40.19950453 | Z52: 0.01503682404 | AA52: 8290.488177 | AB52: 6.144166728e-05 | AC52: 8.81321133 | AE52: 0 | AF52: 0.25 | AG52: 49.71973843 | AH52: 0.007123137293 | AI52: 11.65 | AJ52: 0 | AK52: 15 | AL52: 0.02096799299 | AM52: 0.6686804178 | AO52: 85.56283983 | AP52: 0.06518620254 | AQ52: 2.27 | AR52: 85.56283983 | AS52: 0.0198285774 | AT52: 2.27 | AU52: 85.56283983 | AV52: 0.03256191236 | AW52: 2.27 | AX52: 22.83664422 | AZ52: 6 | BA52: 0.06518620254 | BB52: 11.65 | BC52: 0.0198285774 | BD52: 15 | BE52: 0.03256191236 | BF52: 1.110548827 | BH52: 32.09162584 | BI52: 0.2668990915 | BJ52: 8.56522578 | BL52: 0 | BN52: 0.2286905569 | BO52: 43.49431057 | BP52: 9.946738105 | BR52: 0.1116752511 | BS52: 53.44104868 | BT52: 5.968042532
B53: ='Input - Inventory'!B50 -> 42 | C53: ='Input - Inventory'!C50 -> SON1x250 | D53: ='Input - Inventory'!D50 -> Lamp | E53: ='Input - Inventory'!E50 -> Traffic | F53: ='Input - Inventory'!F50 -> Major | G53: ='Input - Inventory'!H50 -> 1 | I53: 58.52284008 | J53: 24760 | K53: 1449025.52 | M53: 0 | N53: 0 | O53: 28.738834 | P53: 0.25 | Q53: 11.48500442 | R53: 0.007123137293 | S53: 5.574180491 | T53: 0 | U53: 24.13954103 | V53: 0.005931168948 | W53: 14.46149856 | X53: 0.02002998353 | Y53: 40.19950453 | Z53: 0.01503682404 | AA53: 8290.488177 | AB53: 6.144166728e-05 | AC53: 8.81321133 | AE53: 0 | AF53: 0.25 | AG53: 49.71973843 | AH53: 0.007123137293 | AI53: 11.65 | AJ53: 0 | AK53: 15 | AL53: 0.02096799299 | AM53: 0.6686804178 | AO53: 85.56283983 | AP53: 0.06518620254 | AQ53: 2.27 | AR53: 85.56283983 | AS53: 0.0198285774 | AT53: 2.27 | AU53: 85.56283983 | AV53: 0.03256191236 | AW53: 2.27 | AX53: 22.83664422 | AZ53: 9.4 | BA53: 0.06518620254 | BB53: 11.65 | BC53: 0.0198285774 | BD53: 15 | BE53: 0.03256191236 | BF53: 1.332181916 | BH53: 32.09162584 | BI53: 0.2668990915 | BJ53: 8.56522578 | BL53: 0 | BN53: 0.2286905569 | BO53: 44.56594366 | BP53: 10.19181047 | BR53: 0.1116752511 | BS53: 54.75775414 | BT53: 6.115085945
B54: ='Input - Inventory'!B51 -> 43 | C54: ='Input - Inventory'!C51 -> SON1x250 AR | D54: ='Input - Inventory'!D51 -> Lamp | E54: ='Input - Inventory'!E51 -> Traffic | F54: ='Input - Inventory'!F51 -> Major | G54: ='Input - Inventory'!H51 -> 1 | I54: 58.52284008 | J54: 3306 | K54: 193476.5093 | M54: 0 | N54: 0 | O54: 28.738834 | P54: 0.25 | Q54: 11.48500442 | R54: 0.007123137293 | S54: 5.574180491 | T54: 0 | U54: 24.13954103 | V54: 0.005931168948 | W54: 14.46149856 | X54: 0.02002998353 | Y54: 40.19950453 | Z54: 0.01503682404 | AA54: 8290.488177 | AB54: 6.144166728e-05 | AC54: 8.81321133 | AE54: 0 | AF54: 0.25 | AG54: 49.71973843 | AH54: 0.007123137293 | AI54: 11.65 | AJ54: 0 | AK54: 15 | AL54: 0.02096799299 | AM54: 0.6686804178 | AO54: 85.56283983 | AP54: 0.06518620254 | AQ54: 2.27 | AR54: 85.56283983 | AS54: 0.0198285774 | AT54: 2.27 | AU54: 85.56283983 | AV54: 0.03256191236 | AW54: 2.27 | AX54: 22.83664422 | AZ54: 9.4 | BA54: 0.06518620254 | BB54: 11.65 | BC54: 0.0198285774 | BD54: 15 | BE54: 0.03256191236 | BF54: 1.332181916 | BH54: 32.09162584 | BI54: 0.2668990915 | BJ54: 8.56522578 | BL54: 0 | BN54: 0.2286905569 | BO54: 44.56594366 | BP54: 10.19181047 | BR54: 0.1116752511 | BS54: 54.75775414 | BT54: 6.115085945
B55: ='Input - Inventory'!B52 -> 44 | C55: ='Input - Inventory'!C52 -> SON1x400 | D55: ='Input - Inventory'!D52 -> Lamp | E55: ='Input - Inventory'!E52 -> Traffic | F55: ='Input - Inventory'!F52 -> Major | G55: ='Input - Inventory'!H52 -> 1 | I55: 58.79361164 | J55: 2122 | K55: 124760.0439 | M55: 0 | N55: 0 | O55: 28.738834 | P55: 0.25 | Q55: 11.48500442 | R55: 0.007123137293 | S55: 5.574180491 | T55: 0 | U55: 24.13954103 | V55: 0.005931168948 | W55: 14.46149856 | X55: 0.02002998353 | Y55: 40.19950453 | Z55: 0.01503682404 | AA55: 8290.488177 | AB55: 6.144166728e-05 | AC55: 8.81321133 | AE55: 0 | AF55: 0.25 | AG55: 49.71973843 | AH55: 0.007123137293 | AI55: 11.65 | AJ55: 0 | AK55: 15 | AL55: 0.02096799299 | AM55: 0.6686804178 | AO55: 85.56283983 | AP55: 0.06518620254 | AQ55: 2.27 | AR55: 85.56283983 | AS55: 0.0198285774 | AT55: 2.27 | AU55: 85.56283983 | AV55: 0.03256191236 | AW55: 2.27 | AX55: 22.83664422 | AZ55: 10.9 | BA55: 0.06518620254 | BB55: 11.65 | BC55: 0.0198285774 | BD55: 15 | BE55: 0.03256191236 | BF55: 1.42996122 | BH55: 32.09162584 | BI55: 0.2668990915 | BJ55: 8.56522578 | BL55: 0 | BN55: 0.2286905569 | BO55: 45.03872297 | BP55: 10.29993064 | BR55: 0.1116752511 | BS55: 55.3386536 | BT55: 6.179958039
B56: ='Input - Inventory'!B53 -> 45 | C56: ='Input - Inventory'!C53 -> SON1x400 AR | D56: ='Input - Inventory'!D53 -> Lamp | E56: ='Input - Inventory'!E53 -> Traffic | F56: ='Input - Inventory'!F53 -> Major | G56: ='Input - Inventory'!H53 -> 1 | I56: 82.26734284 | J56: 332 | K56: 27312.75782 | M56: 0 | N56: 0 | O56: 28.738834 | P56: 0.25 | Q56: 11.48500442 | R56: 0.007123137293 | S56: 5.574180491 | T56: 0 | U56: 24.13954103 | V56: 0.005931168948 | W56: 14.46149856 | X56: 0.02002998353 | Y56: 40.19950453 | Z56: 0.01503682404 | AA56: 8290.488177 | AB56: 6.144166728e-05 | AC56: 8.81321133 | AE56: 0 | AF56: 0.25 | AG56: 49.71973843 | AH56: 0.007123137293 | AI56: 11.65 | AJ56: 0 | AK56: 140 | AL56: 0.125 | AM56: 17.85416052 | AO56: 85.56283983 | AP56: 0.06518620254 | AQ56: 2.27 | AR56: 85.56283983 | AS56: 0.0198285774 | AT56: 2.27 | AU56: 85.56283983 | AV56: 0.03256191236 | AW56: 2.27 | AX56: 22.83664422 | AZ56: 10.9 | BA56: 0.06518620254 | BB56: 11.65 | BC56: 0.0198285774 | BD56: 15 | BE56: 0.03256191236 | BF56: 1.42996122 | BH56: 32.09162584 | BI56: 0.2668990915 | BJ56: 8.56522578 | BL56: 0 | BN56: 0.2286905569 | BO56: 62.22420307 | BP56: 14.23008765 | BR56: 0.1116752511 | BS56: 76.45429072 | BT56: 8.538052117
B57: ='Input - Inventory'!B54 -> 46 | C57: ='Input - Inventory'!C54 -> SON1x50 | D57: ='Input - Inventory'!D54 -> Lamp | E57: ='Input - Inventory'!E54 -> NonTraffic | F57: ='Input - Inventory'!F54 -> Minor | G57: ='Input - Inventory'!H54 -> 1 | I57: 42.95589606 | J57: 465 | K57: 19974.49167 | M57: 24.6719008 | N57: 0.25 | O57: 0 | P57: 0 | Q57: 11.48500442 | R57: 0.007123137293 | S57: 5.574180491 | T57: 0 | U57: 24.13954103 | V57: 0.005931168948 | W57: 14.46149856 | X57: 0.02002998353 | Y57: 40.19950453 | Z57: 0.01503682404 | AA57: 8290.488177 | AB57: 6.144166728e-05 | AC57: 7.79647803 | AE57: 0 | AF57: 0.25 | AG57: 49.71973843 | AH57: 0.007123137293 | AI57: 11.65 | AJ57: 0 | AK57: 15 | AL57: 0.02096799299 | AM57: 0.6686804178 | AO57: 85.56283983 | AP57: 0.06518620254 | AQ57: 1.513333333 | AR57: 85.56283983 | AS57: 0.0198285774 | AT57: 1.513333333 | AU57: 85.56283983 | AV57: 0.03256191236 | AW57: 1.513333333 | AX57: 15.22442948 | AZ57: 10.06 | BA57: 0.06518620254 | BB57: 11.65 | BC57: 0.0198285774 | BD57: 15 | BE57: 0.03256191236 | BF57: 1.37520481 | BH57: 32.09162584 | BI57: 0.1779327277 | BJ57: 5.71015052 | BL57: 0 | BN57: 0.2286905569 | BO57: 33.28994326 | BP57: 7.613095661 | BR57: 0.1116752511 | BS57: 40.90303892 | BT57: 4.567857143
B58: ='Input - Inventory'!B55 -> 47 | C58: ='Input - Inventory'!C55 -> SON1x600 | D58: ='Input - Inventory'!D55 -> Lamp | E58: ='Input - Inventory'!E55 -> Traffic | F58: ='Input - Inventory'!F55 -> Major | G58: ='Input - Inventory'!H55 -> 1 | I58: 61.84430455 | J58: 1 | K58: 61.84430455 | M58: 0 | N58: 0 | O58: 28.738834 | P58: 0.25 | Q58: 11.48500442 | R58: 0.007123137293 | S58: 5.574180491 | T58: 0 | U58: 24.13954103 | V58: 0.005931168948 | W58: 14.46149856 | X58: 0.02002998353 | Y58: 40.19950453 | Z58: 0.01503682404 | AA58: 8290.488177 | AB58: 6.144166728e-05 | AC58: 8.81321133 | AE58: 0 | AF58: 0.25 | AG58: 49.71973843 | AH58: 0.007123137293 | AI58: 11.65 | AJ58: 0 | AK58: 15 | AL58: 0.02096799299 | AM58: 0.6686804178 | AO58: 85.56283983 | AP58: 0.06518620254 | AQ58: 2.27 | AR58: 85.56283983 | AS58: 0.0198285774 | AT58: 2.27 | AU58: 85.56283983 | AV58: 0.03256191236 | AW58: 2.27 | AX58: 22.83664422 | AZ58: 27.8 | BA58: 0.06518620254 | BB58: 11.65 | BC58: 0.0198285774 | BD58: 15 | BE58: 0.03256191236 | BF58: 2.531608043 | BH58: 32.09162584 | BI58: 0.2668990915 | BJ58: 8.56522578 | BL58: 0 | BN58: 0.2286905569 | BO58: 50.36536979 | BP58: 11.51808446 | BR58: 0.1116752511 | BS58: 61.88345425 | BT58: 6.910850295
B59: ='Input - Inventory'!B56 -> 48 | C59: ='Input - Inventory'!C56 -> SON1x70 | D59: ='Input - Inventory'!D56 -> Lamp | E59: ='Input - Inventory'!E56 -> NonTraffic | F59: ='Input - Inventory'!F56 -> Minor | G59: ='Input - Inventory'!H56 -> 1 | I59: 42.27716202 | J59: 2005 | K59: 84765.70985 | M59: 24.6719008 | N59: 0.25 | O59: 0 | P59: 0 | Q59: 11.48500442 | R59: 0.007123137293 | S59: 5.574180491 | T59: 0 | U59: 24.13954103 | V59: 0.005931168948 | W59: 14.46149856 | X59: 0.02002998353 | Y59: 40.19950453 | Z59: 0.01503682404 | AA59: 8290.488177 | AB59: 6.144166728e-05 | AC59: 7.79647803 | AE59: 0 | AF59: 0.25 | AG59: 49.71973843 | AH59: 0.007123137293 | AI59: 11.65 | AJ59: 0 | AK59: 15 | AL59: 0.02096799299 | AM59: 0.6686804178 | AO59: 85.56283983 | AP59: 0.06518620254 | AQ59: 1.513333333 | AR59: 85.56283983 | AS59: 0.0198285774 | AT59: 1.513333333 | AU59: 85.56283983 | AV59: 0.03256191236 | AW59: 1.513333333 | AX59: 15.22442948 | AZ59: 6.3 | BA59: 0.06518620254 | BB59: 11.65 | BC59: 0.0198285774 | BD59: 15 | BE59: 0.03256191236 | BF59: 1.130104688 | BH59: 32.09162584 | BI59: 0.1779327277 | BJ59: 5.71015052 | BL59: 0 | BN59: 0.2286905569 | BO59: 32.10484314 | BP59: 7.342074454 | BR59: 0.1116752511 | BS59: 39.44691759 | BT59: 4.405244428
B60: ='Input - Inventory'!B57 -> 49 | C60: ='Input - Inventory'!C57 -> SON2x250 | D60: ='Input - Inventory'!D57 -> Lamp | E60: ='Input - Inventory'!E57 -> Traffic | F60: ='Input - Inventory'!F57 -> Major | G60: ='Input - Inventory'!H57 -> 2 | I60: 82.39491554 | J60: 30 | K60: 2471.847466 | M60: 0 | N60: 0 | O60: 28.738834 | P60: 0.25 | Q60: 11.48500442 | R60: 0.007123137293 | S60: 5.574180491 | T60: 0 | U60: 24.13954103 | V60: 0.005931168948 | W60: 14.46149856 | X60: 0.02002998353 | Y60: 40.19950453 | Z60: 0.01503682404 | AA60: 8290.488177 | AB60: 6.144166728e-05 | AC60: 8.81321133 | AE60: 0 | AF60: 0.25 | AG60: 49.71973843 | AH60: 0.007123137293 | AI60: 11.65 | AJ60: 0 | AK60: 15 | AL60: 0.02096799299 | AM60: 0.6686804178 | AO60: 85.56283983 | AP60: 0.1261231641 | AQ60: 2.27 | AR60: 85.56283983 | AS60: 0.0198285774 | AT60: 2.27 | AU60: 85.56283983 | AV60: 0.03256191236 | AW60: 2.27 | AX60: 34.67228684 | AZ60: 9.4 | BA60: 0.1261231641 | BB60: 11.65 | BC60: 0.0198285774 | BD60: 15 | BE60: 0.03256191236 | BF60: 1.904989354 | BH60: 32.09162584 | BI60: 0.4052259942 | BJ60: 13.00436098 | BL60: 0 | BN60: 0.2286905569 | BO60: 63.76352892 | BP60: 14.58211694 | BR60: 0.1116752511 | BS60: 78.34564586 | BT60: 8.749269677
B61: ='Input - Inventory'!B58 -> 50 | C61: ='Input - Inventory'!C58 -> SON2x400 | D61: ='Input - Inventory'!D58 -> Lamp | E61: ='Input - Inventory'!E58 -> Traffic | F61: ='Input - Inventory'!F58 -> Major | G61: ='Input - Inventory'!H58 -> 2 | I61: 82.92775257 | J61: 4 | K61: 331.7110103 | M61: 0 | N61: 0 | O61: 28.738834 | P61: 0.25 | Q61: 11.48500442 | R61: 0.007123137293 | S61: 5.574180491 | T61: 0 | U61: 24.13954103 | V61: 0.005931168948 | W61: 14.46149856 | X61: 0.02002998353 | Y61: 40.19950453 | Z61: 0.01503682404 | AA61: 8290.488177 | AB61: 6.144166728e-05 | AC61: 8.81321133 | AE61: 0 | AF61: 0.25 | AG61: 49.71973843 | AH61: 0.007123137293 | AI61: 11.65 | AJ61: 0 | AK61: 15 | AL61: 0.02096799299 | AM61: 0.6686804178 | AO61: 85.56283983 | AP61: 0.1261231641 | AQ61: 2.27 | AR61: 85.56283983 | AS61: 0.0198285774 | AT61: 2.27 | AU61: 85.56283983 | AV61: 0.03256191236 | AW61: 2.27 | AX61: 34.67228684 | AZ61: 10.9 | BA61: 0.1261231641 | BB61: 11.65 | BC61: 0.0198285774 | BD61: 15 | BE61: 0.03256191236 | BF61: 2.0941741 | BH61: 32.09162584 | BI61: 0.4052259942 | BJ61: 13.00436098 | BL61: 0 | BN61: 0.2286905569 | BO61: 64.70271367 | BP61: 14.79689962 | BR61: 0.1116752511 | BS61: 79.49961329 | BT61: 8.878139279
B62: ='Input - Inventory'!B59 -> 51 | C62: ='Input - Inventory'!C59 -> SON4x250 | D62: ='Input - Inventory'!D59 -> Lamp | E62: ='Input - Inventory'!E59 -> Traffic | F62: ='Input - Inventory'!F59 -> Major | G62: ='Input - Inventory'!H59 -> 4 | I62: 125.7366172 | J62: 6 | K62: 754.4197035 | M62: 0 | N62: 0 | O62: 28.738834 | P62: 0.25 | Q62: 11.48500442 | R62: 0.007123137293 | S62: 5.574180491 | T62: 0 | U62: 24.13954103 | V62: 0.005931168948 | W62: 14.46149856 | X62: 0.02002998353 | Y62: 40.19950453 | Z62: 0.01503682404 | AA62: 8290.488177 | AB62: 6.144166728e-05 | AC62: 8.81321133 | AE62: 0 | AF62: 0.25 | AG62: 49.71973843 | AH62: 0.007123137293 | AI62: 11.65 | AJ62: 0 | AK62: 15 | AL62: 0.02096799299 | AM62: 0.6686804178 | AO62: 85.56283983 | AP62: 0.2363392756 | AQ62: 2.27 | AR62: 85.56283983 | AS62: 0.0198285774 | AT62: 2.27 | AU62: 85.56283983 | AV62: 0.03256191236 | AW62: 2.27 | AX62: 56.07930278 | AZ62: 9.4 | BA62: 0.2363392756 | BB62: 11.65 | BC62: 0.0198285774 | BD62: 15 | BE62: 0.03256191236 | BF62: 2.941020803 | BH62: 32.09162584 | BI62: 0.6554165674 | BJ62: 21.03338325 | BL62: 0 | BN62: 0.2286905569 | BO62: 98.93559858 | BP62: 22.62563713 | BR62: 0.1116752511 | BS62: 121.5612357 | BT62: 13.57538153
B63: ='Input - Inventory'!B60 -> 52 | C63: ='Input - Inventory'!C60 -> SON4x600 | D63: ='Input - Inventory'!D60 -> Lamp | E63: ='Input - Inventory'!E60 -> Traffic | F63: ='Input - Inventory'!F60 -> Major | G63: ='Input - Inventory'!H60 -> 4 | I63: 138.4090994 | J63: 2 | K63: 276.8181987 | M63: 0 | N63: 0 | O63: 28.738834 | P63: 0.25 | Q63: 11.48500442 | R63: 0.007123137293 | S63: 5.574180491 | T63: 0 | U63: 24.13954103 | V63: 0.005931168948 | W63: 14.46149856 | X63: 0.02002998353 | Y63: 40.19950453 | Z63: 0.01503682404 | AA63: 8290.488177 | AB63: 6.144166728e-05 | AC63: 8.81321133 | AE63: 0 | AF63: 0.25 | AG63: 49.71973843 | AH63: 0.007123137293 | AI63: 11.65 | AJ63: 0 | AK63: 15 | AL63: 0.02096799299 | AM63: 0.6686804178 | AO63: 85.56283983 | AP63: 0.2363392756 | AQ63: 2.27 | AR63: 85.56283983 | AS63: 0.0198285774 | AT63: 2.27 | AU63: 85.56283983 | AV63: 0.03256191236 | AW63: 2.27 | AX63: 56.07930278 | AZ63: 27.8 | BA63: 0.2363392756 | BB63: 11.65 | BC63: 0.0198285774 | BD63: 15 | BE63: 0.03256191236 | BF63: 7.289663475 | BH63: 32.09162584 | BI63: 0.6554165674 | BJ63: 21.03338325 | BL63: 0 | BN63: 0.2286905569 | BO63: 121.6842413 | BP63: 27.82803689 | BR63: 0.1116752511 | BS63: 149.5122781 | BT63: 16.69682121
B64: ='Input - Inventory'!B61 -> 53 | C64: ='Input - Inventory'!C61 -> TF1x20 | D64: ='Input - Inventory'!D61 -> Lamp | E64: ='Input - Inventory'!E61 -> NonTraffic | F64: ='Input - Inventory'!F61 -> Minor | G64: ='Input - Inventory'!H61 -> 1 | I64: 40.10409697 | J64: 4 | K64: 160.4163879 | M64: 24.6719008 | N64: 0.25 | O64: 0 | P64: 0 | Q64: 11.48500442 | R64: 0.007123137293 | S64: 5.574180491 | T64: 0 | U64: 24.13954103 | V64: 0.005931168948 | W64: 14.46149856 | X64: 0.02002998353 | Y64: 40.19950453 | Z64: 0.01503682404 | AA64: 8290.488177 | AB64: 6.144166728e-05 | AC64: 7.79647803 | AE64: 0 | AF64: 0.25 | AG64: 49.71973843 | AH64: 0.007123137293 | AI64: 11.65 | AJ64: 0 | AK64: 15 | AL64: 0.02096799299 | AM64: 0.6686804178 | AO64: 85.56283983 | AP64: 0.06 | AQ64: 1.513333333 | AR64: 85.56283983 | AS64: 0.0198285774 | AT64: 1.513333333 | AU64: 85.56283983 | AV64: 0.03256191236 | AW64: 1.513333333 | AX64: 14.55289354 | AZ64: 1.3 | BA64: 0.06 | BB64: 11.65 | BC64: 0.0198285774 | BD64: 15 | BE64: 0.03256191236 | BF64: 0.7974316121 | BH64: 32.09162584 | BI64: 0.1700842745 | BJ64: 5.458280898 | BL64: 0 | BN64: 0.2286905569 | BO64: 29.59876449 | BP64: 6.768957935 | BR64: 0.1116752511 | BS64: 36.36772243 | BT64: 4.061374536
B65: ='Input - Inventory'!B62 -> 54 | C65: ='Input - Inventory'!C62 -> TF1x40 | D65: ='Input - Inventory'!D62 -> Lamp | E65: ='Input - Inventory'!E62 -> NonTraffic | F65: ='Input - Inventory'!F62 -> Minor | G65: ='Input - Inventory'!H62 -> 1 | I65: 64.17316566 | J65: 292 | K65: 18738.56437 | M65: 24.6719008 | N65: 0.25 | O65: 0 | P65: 0 | Q65: 11.48500442 | R65: 0.007123137293 | S65: 5.574180491 | T65: 0 | U65: 24.13954103 | V65: 0.005931168948 | W65: 14.46149856 | X65: 0.02002998353 | Y65: 40.19950453 | Z65: 0.01503682404 | AA65: 8290.488177 | AB65: 6.144166728e-05 | AC65: 7.79647803 | AE65: 0 | AF65: 0.25 | AG65: 49.71973843 | AH65: 0.007123137293 | AI65: 11.65 | AJ65: 0 | AK65: 15 | AL65: 0.02096799299 | AM65: 0.6686804178 | AO65: 85.56283983 | AP65: 0.158 | AQ65: 1.513333333 | AR65: 85.56283983 | AS65: 0.0198285774 | AT65: 1.513333333 | AU65: 85.56283983 | AV65: 0.03256191236 | AW65: 1.513333333 | AX65: 27.2424331 | AZ65: 1.5 | BA65: 0.158 | BB65: 11.65 | BC65: 0.0198285774 | BD65: 15 | BE65: 0.03256191236 | BF65: 0.9564316121 | BH65: 32.09162584 | BI65: 0.3183909412 | BJ65: 10.21768295 | BL65: 0 | BN65: 0.2286905569 | BO65: 47.25670612 | BP65: 10.80716244 | BR65: 0.1116752511 | BS65: 58.06386855 | BT65: 6.484297103
B66: ='Input - Inventory'!B63 -> 55 | C66: ='Input - Inventory'!C63 -> TF1x80 | D66: ='Input - Inventory'!D63 -> Lamp | E66: ='Input - Inventory'!E63 -> NonTraffic | F66: ='Input - Inventory'!F63 -> Minor | G66: ='Input - Inventory'!H63 -> 1 | I66: 40.13878307 | J66: 97 | K66: 3893.461958 | M66: 24.6719008 | N66: 0.25 | O66: 0 | P66: 0 | Q66: 11.48500442 | R66: 0.007123137293 | S66: 5.574180491 | T66: 0 | U66: 24.13954103 | V66: 0.005931168948 | W66: 14.46149856 | X66: 0.02002998353 | Y66: 40.19950453 | Z66: 0.01503682404 | AA66: 8290.488177 | AB66: 6.144166728e-05 | AC66: 7.79647803 | AE66: 0 | AF66: 0.25 | AG66: 49.71973843 | AH66: 0.007123137293 | AI66: 11.65 | AJ66: 0 | AK66: 15 | AL66: 0.02096799299 | AM66: 0.6686804178 | AO66: 85.56283983 | AP66: 0.06 | AQ66: 1.513333333 | AR66: 85.56283983 | AS66: 0.0198285774 | AT66: 1.513333333 | AU66: 85.56283983 | AV66: 0.03256191236 | AW66: 1.513333333 | AX66: 14.55289354 | AZ66: 1.5 | BA66: 0.06 | BB66: 11.65 | BC66: 0.0198285774 | BD66: 15 | BE66: 0.03256191236 | BF66: 0.8094316121 | BH66: 32.09162584 | BI66: 0.1700842745 | BJ66: 5.458280898 | BL66: 0 | BN66: 0.2286905569 | BO66: 29.66076449 | BP66: 6.783136749 | BR66: 0.1116752511 | BS66: 36.44390124 | BT66: 4.069881824
B67: ='Input - Inventory'!B64 -> 56 | C67: ='Input - Inventory'!C64 -> TF2x14 T5 | D67: ='Input - Inventory'!D64 -> Lamp | E67: ='Input - Inventory'!E64 -> NonTraffic | F67: ='Input - Inventory'!F64 -> Minor | G67: ='Input - Inventory'!H64 -> 2 | I67: 40.2759974 | J67: 222 | K67: 8941.271423 | M67: 24.6719008 | N67: 0.25 | O67: 0 | P67: 0 | Q67: 11.48500442 | R67: 0.007123137293 | S67: 5.574180491 | T67: 0 | U67: 24.13954103 | V67: 0.005931168948 | W67: 14.46149856 | X67: 0.02002998353 | Y67: 40.19950453 | Z67: 0.01503682404 | AA67: 8290.488177 | AB67: 6.144166728e-05 | AC67: 7.79647803 | AE67: 0 | AF67: 0.25 | AG67: 49.71973843 | AH67: 0.007123137293 | AI67: 11.65 | AJ67: 0 | AK67: 15 | AL67: 0.02096799299 | AM67: 0.6686804178 | AO67: 85.56283983 | AP67: 0.06 | AQ67: 1.513333333 | AR67: 85.56283983 | AS67: 0.0198285774 | AT67: 1.513333333 | AU67: 85.56283983 | AV67: 0.03256191236 | AW67: 1.513333333 | AX67: 14.55289354 | AZ67: 1.5 | BA67: 0.06 | BB67: 11.65 | BC67: 0.0198285774 | BD67: 15 | BE67: 0.03256191236 | BF67: 0.8094316121 | BH67: 32.09162584 | BI67: 0.1700842745 | BJ67: 5.458280898 | BL67: 0 | BN67: 0.2286905569 | BO67: 30.03576449 | BP67: 6.868895708 | BR67: 0.1116752511 | BS67: 36.9046602 | BT67: 4.121337196
B68: ='Input - Inventory'!B65 -> 57 | C68: ='Input - Inventory'!C65 -> TF2x20 | D68: ='Input - Inventory'!D65 -> Lamp | E68: ='Input - Inventory'!E65 -> NonTraffic | F68: ='Input - Inventory'!F65 -> Minor | G68: ='Input - Inventory'!H65 -> 2 | I68: 50.73247019 | J68: 9952 | K68: 504889.5433 | M68: 24.6719008 | N68: 0.25 | O68: 0 | P68: 0 | Q68: 11.48500442 | R68: 0.007123137293 | S68: 5.574180491 | T68: 0 | U68: 24.13954103 | V68: 0.005931168948 | W68: 14.46149856 | X68: 0.02002998353 | Y68: 40.19950453 | Z68: 0.01503682404 | AA68: 8290.488177 | AB68: 6.144166728e-05 | AC68: 7.79647803 | AE68: 0 | AF68: 0.25 | AG68: 49.71973843 | AH68: 0.007123137293 | AI68: 11.65 | AJ68: 0 | AK68: 15 | AL68: 0.02096799299 | AM68: 0.6686804178 | AO68: 85.56283983 | AP68: 0.1029 | AQ68: 1.513333333 | AR68: 85.56283983 | AS68: 0.0198285774 | AT68: 1.513333333 | AU68: 85.56283983 | AV68: 0.03256191236 | AW68: 1.513333333 | AX68: 20.10780422 | AZ68: 1.3 | BA68: 0.1029 | BB68: 11.65 | BC68: 0.0198285774 | BD68: 15 | BE68: 0.03256191236 | BF68: 0.8532016121 | BH68: 32.09162584 | BI68: 0.2350062745 | BJ68: 7.54173343 | BL68: 0 | BN68: 0.2286905569 | BO68: 37.61789771 | BP68: 8.602857976 | BR68: 0.1116752511 | BS68: 46.22075569 | BT68: 5.1617145
B69: ='Input - Inventory'!B66 -> 58 | C69: ='Input - Inventory'!C66 -> TF2x26 | D69: ='Input - Inventory'!D66 -> Lamp | E69: ='Input - Inventory'!E66 -> NonTraffic | F69: ='Input - Inventory'!F66 -> Minor | G69: ='Input - Inventory'!H66 -> 2 | I69: 40.2759974 | J69: 14 | K69: 563.8639636 | M69: 24.6719008 | N69: 0.25 | O69: 0 | P69: 0 | Q69: 11.48500442 | R69: 0.007123137293 | S69: 5.574180491 | T69: 0 | U69: 24.13954103 | V69: 0.005931168948 | W69: 14.46149856 | X69: 0.02002998353 | Y69: 40.19950453 | Z69: 0.01503682404 | AA69: 8290.488177 | AB69: 6.144166728e-05 | AC69: 7.79647803 | AE69: 0 | AF69: 0.25 | AG69: 49.71973843 | AH69: 0.007123137293 | AI69: 11.65 | AJ69: 0 | AK69: 15 | AL69: 0.02096799299 | AM69: 0.6686804178 | AO69: 85.56283983 | AP69: 0.06 | AQ69: 1.513333333 | AR69: 85.56283983 | AS69: 0.0198285774 | AT69: 1.513333333 | AU69: 85.56283983 | AV69: 0.03256191236 | AW69: 1.513333333 | AX69: 14.55289354 | AZ69: 1.5 | BA69: 0.06 | BB69: 11.65 | BC69: 0.0198285774 | BD69: 15 | BE69: 0.03256191236 | BF69: 0.8094316121 | BH69: 32.09162584 | BI69: 0.1700842745 | BJ69: 5.458280898 | BL69: 0 | BN69: 0.2286905569 | BO69: 30.03576449 | BP69: 6.868895708 | BR69: 0.1116752511 | BS69: 36.9046602 | BT69: 4.121337196
B70: ='Input - Inventory'!B67 -> 59 | C70: ='Input - Inventory'!C67 -> TF2x40 | D70: ='Input - Inventory'!D67 -> Lamp | E70: ='Input - Inventory'!E67 -> NonTraffic | F70: ='Input - Inventory'!F67 -> Minor | G70: ='Input - Inventory'!H67 -> 2 | I70: 40.2759974 | J70: 14 | K70: 563.8639636 | M70: 24.6719008 | N70: 0.25 | O70: 0 | P70: 0 | Q70: 11.48500442 | R70: 0.007123137293 | S70: 5.574180491 | T70: 0 | U70: 24.13954103 | V70: 0.005931168948 | W70: 14.46149856 | X70: 0.02002998353 | Y70: 40.19950453 | Z70: 0.01503682404 | AA70: 8290.488177 | AB70: 6.144166728e-05 | AC70: 7.79647803 | AE70: 0 | AF70: 0.25 | AG70: 49.71973843 | AH70: 0.007123137293 | AI70: 11.65 | AJ70: 0 | AK70: 15 | AL70: 0.02096799299 | AM70: 0.6686804178 | AO70: 85.56283983 | AP70: 0.06 | AQ70: 1.513333333 | AR70: 85.56283983 | AS70: 0.0198285774 | AT70: 1.513333333 | AU70: 85.56283983 | AV70: 0.03256191236 | AW70: 1.513333333 | AX70: 14.55289354 | AZ70: 1.5 | BA70: 0.06 | BB70: 11.65 | BC70: 0.0198285774 | BD70: 15 | BE70: 0.03256191236 | BF70: 0.8094316121 | BH70: 32.09162584 | BI70: 0.1700842745 | BJ70: 5.458280898 | BL70: 0 | BN70: 0.2286905569 | BO70: 30.03576449 | BP70: 6.868895708 | BR70: 0.1116752511 | BS70: 36.9046602 | BT70: 4.121337196
B71: ='Input - Inventory'!B68 -> 60 | C71: ='Input - Inventory'!C68 -> TF4x20 | D71: ='Input - Inventory'!D68 -> Lamp | E71: ='Input - Inventory'!E68 -> NonTraffic | F71: ='Input - Inventory'!F68 -> Minor | G71: ='Input - Inventory'!H68 -> 2 | I71: 40.22301605 | J71: 12 | K71: 482.6761926 | M71: 24.6719008 | N71: 0.25 | O71: 0 | P71: 0 | Q71: 11.48500442 | R71: 0.007123137293 | S71: 5.574180491 | T71: 0 | U71: 24.13954103 | V71: 0.005931168948 | W71: 14.46149856 | X71: 0.02002998353 | Y71: 40.19950453 | Z71: 0.01503682404 | AA71: 8290.488177 | AB71: 6.144166728e-05 | AC71: 7.79647803 | AE71: 0 | AF71: 0.25 | AG71: 49.71973843 | AH71: 0.007123137293 | AI71: 11.65 | AJ71: 0 | AK71: 15 | AL71: 0.02096799299 | AM71: 0.6686804178 | AO71: 85.56283983 | AP71: 0.06 | AQ71: 1.513333333 | AR71: 85.56283983 | AS71: 0.0198285774 | AT71: 1.513333333 | AU71: 85.56283983 | AV71: 0.03256191236 | AW71: 1.513333333 | AX71: 14.55289354 | AZ71: 1.3 | BA71: 0.06 | BB71: 11.65 | BC71: 0.0198285774 | BD71: 15 | BE71: 0.03256191236 | BF71: 0.7974316121 | BH71: 32.09162584 | BI71: 0.1700842745 | BJ71: 5.458280898 | BL71: 0 | BN71: 0.2286905569 | BO71: 29.92376449 | BP71: 6.843282366 | BR71: 0.1116752511 | BS71: 36.76704686 | BT71: 4.105969192
B72: ='Input - Inventory'!B69 -> 61 | C72: ='Input - Inventory'!C69 -> TF4x40 | D72: ='Input - Inventory'!D69 -> Lamp | E72: ='Input - Inventory'!E69 -> NonTraffic | F72: ='Input - Inventory'!F69 -> Minor | G72: ='Input - Inventory'!H69 -> 4 | I72: 40.55042606 | J72: 2 | K72: 81.10085212 | M72: 24.6719008 | N72: 0.25 | O72: 0 | P72: 0 | Q72: 11.48500442 | R72: 0.007123137293 | S72: 5.574180491 | T72: 0 | U72: 24.13954103 | V72: 0.005931168948 | W72: 14.46149856 | X72: 0.02002998353 | Y72: 40.19950453 | Z72: 0.01503682404 | AA72: 8290.488177 | AB72: 6.144166728e-05 | AC72: 7.79647803 | AE72: 0 | AF72: 0.25 | AG72: 49.71973843 | AH72: 0.007123137293 | AI72: 11.65 | AJ72: 0 | AK72: 15 | AL72: 0.02096799299 | AM72: 0.6686804178 | AO72: 85.56283983 | AP72: 0.06 | AQ72: 1.513333333 | AR72: 85.56283983 | AS72: 0.0198285774 | AT72: 1.513333333 | AU72: 85.56283983 | AV72: 0.03256191236 | AW72: 1.513333333 | AX72: 14.55289354 | AZ72: 1.5 | BA72: 0.06 | BB72: 11.65 | BC72: 0.0198285774 | BD72: 15 | BE72: 0.03256191236 | BF72: 0.8094316121 | BH72: 32.09162584 | BI72: 0.1700842745 | BJ72: 5.458280898 | BL72: 0 | BN72: 0.2286905569 | BO72: 30.78576449 | BP72: 7.040413626 | BR72: 0.1116752511 | BS72: 37.82617812 | BT72: 4.224247941
B73: ='Input - Inventory'!B70 -> 62 | C73: ='Input - Inventory'!C70 -> TH1x1500 | D73: ='Input - Inventory'!D70 -> Lamp | E73: ='Input - Inventory'!E70 -> Traffic | F73: ='Input - Inventory'!F70 -> Major | G73: ='Input - Inventory'!H70 -> 1 | I73: 56.82447132 | J73: 10 | K73: 568.2447132 | M73: 0 | N73: 0 | O73: 28.738834 | P73: 0.25 | Q73: 11.48500442 | R73: 0.007123137293 | S73: 5.574180491 | T73: 0 | U73: 24.13954103 | V73: 0.005931168948 | W73: 14.46149856 | X73: 0.02002998353 | Y73: 40.19950453 | Z73: 0.01503682404 | AA73: 8290.488177 | AB73: 6.144166728e-05 | AC73: 8.81321133 | AE73: 0 | AF73: 0.25 | AG73: 49.71973843 | AH73: 0.007123137293 | AI73: 11.65 | AJ73: 0 | AK73: 15 | AL73: 0.02096799299 | AM73: 0.6686804178 | AO73: 85.56283983 | AP73: 0.06 | AQ73: 2.27 | AR73: 85.56283983 | AS73: 0.0198285774 | AT73: 2.27 | AU73: 85.56283983 | AV73: 0.03256191236 | AW73: 2.27 | AX73: 21.82934031 | AZ73: 10.9 | BA73: 0.06 | BB73: 11.65 | BC73: 0.0198285774 | BD73: 15 | BE73: 0.03256191236 | BF73: 1.373431612 | BH73: 32.09162584 | BI73: 0.2551264117 | BJ73: 8.187421346 | BL73: 0 | BN73: 0.2286905569 | BO73: 43.59708501 | BP73: 9.970241649 | BR73: 0.1116752511 | BS73: 53.56732666 | BT73: 5.982144658
B74: ='Input - Inventory'!B71 -> 63 | C74: ='Input - Inventory'!C71 -> TH1x500 | D74: ='Input - Inventory'!D71 -> Lamp | E74: ='Input - Inventory'!E71 -> Traffic | F74: ='Input - Inventory'!F71 -> Major | G74: ='Input - Inventory'!H71 -> 1 | I74: 56.82447132 | J74: 9 | K74: 511.4202419 | M74: 0 | N74: 0 | O74: 28.738834 | P74: 0.25 | Q74: 11.48500442 | R74: 0.007123137293 | S74: 5.574180491 | T74: 0 | U74: 24.13954103 | V74: 0.005931168948 | W74: 14.46149856 | X74: 0.02002998353 | Y74: 40.19950453 | Z74: 0.01503682404 | AA74: 8290.488177 | AB74: 6.144166728e-05 | AC74: 8.81321133 | AE74: 0 | AF74: 0.25 | AG74: 49.71973843 | AH74: 0.007123137293 | AI74: 11.65 | AJ74: 0 | AK74: 15 | AL74: 0.02096799299 | AM74: 0.6686804178 | AO74: 85.56283983 | AP74: 0.06 | AQ74: 2.27 | AR74: 85.56283983 | AS74: 0.0198285774 | AT74: 2.27 | AU74: 85.56283983 | AV74: 0.03256191236 | AW74: 2.27 | AX74: 21.82934031 | AZ74: 10.9 | BA74: 0.06 | BB74: 11.65 | BC74: 0.0198285774 | BD74: 15 | BE74: 0.03256191236 | BF74: 1.373431612 | BH74: 32.09162584 | BI74: 0.2551264117 | BJ74: 8.187421346 | BL74: 0 | BN74: 0.2286905569 | BO74: 43.59708501 | BP74: 9.970241649 | BR74: 0.1116752511 | BS74: 53.56732666 | BT74: 5.982144658
B75: ='Input - Inventory'!B72 -> 64 | C75: ='Input - Inventory'!C72 -> TH1x750 | D75: ='Input - Inventory'!D72 -> Lamp | E75: ='Input - Inventory'!E72 -> Traffic | F75: ='Input - Inventory'!F72 -> Major | G75: ='Input - Inventory'!H72 -> 1 | I75: 56.82447132 | J75: 8 | K75: 454.5957706 | M75: 0 | N75: 0 | O75: 28.738834 | P75: 0.25 | Q75: 11.48500442 | R75: 0.007123137293 | S75: 5.574180491 | T75: 0 | U75: 24.13954103 | V75: 0.005931168948 | W75: 14.46149856 | X75: 0.02002998353 | Y75: 40.19950453 | Z75: 0.01503682404 | AA75: 8290.488177 | AB75: 6.144166728e-05 | AC75: 8.81321133 | AE75: 0 | AF75: 0.25 | AG75: 49.71973843 | AH75: 0.007123137293 | AI75: 11.65 | AJ75: 0 | AK75: 15 | AL75: 0.02096799299 | AM75: 0.6686804178 | AO75: 85.56283983 | AP75: 0.06 | AQ75: 2.27 | AR75: 85.56283983 | AS75: 0.0198285774 | AT75: 2.27 | AU75: 85.56283983 | AV75: 0.03256191236 | AW75: 2.27 | AX75: 21.82934031 | AZ75: 10.9 | BA75: 0.06 | BB75: 11.65 | BC75: 0.0198285774 | BD75: 15 | BE75: 0.03256191236 | BF75: 1.373431612 | BH75: 32.09162584 | BI75: 0.2551264117 | BJ75: 8.187421346 | BL75: 0 | BN75: 0.2286905569 | BO75: 43.59708501 | BP75: 9.970241649 | BR75: 0.1116752511 | BS75: 53.56732666 | BT75: 5.982144658

Sheet Calc - Opex FY19
A1: ='Report - Summary'!$A$1 -> Ok
B2: =CONCATENATE("This sheet contains no inputs and all values are calculated for " & RIGHT(MID(CELL("filename",B2),FIND("]",CELL("filename",B2))+1,255),4) ) -> This sheet contains no inputs and all values are calculated for FY19 | AC2: Bulk contract | AM2: Bulk materials | AX2: Spot labour | BF2: Spot materials | BJ2: EWP costs | BL2: Connections | BP2: Overheads | BT2: CAM
J4: Totals ---> | K4: =SUM(K12:K75) -> 14644458.63 | M4: =SUMPRODUCT(M12:M75,N12:N75,$J$12:$J$75) -> 1033354.737 | O4: =SUMPRODUCT(O12:O75,P12:P75,$J$12:$J$75) -> 551502.4682 | Q4: =SUMPRODUCT(Q12:Q75,R12:R75,$J$12:$J$75) -> 20999.96766 | S4: =SUMPRODUCT(S12:S75,T12:T75,$J$12:$J$75) -> 0 | U4: =SUMPRODUCT(U12:U75,V12:V75,$J$12:$J$75) -> 36752.37824 | W4: =SUMPRODUCT(W12:W75,X12:X75,$J$12:$J$75) -> 74354.97551 | Y4: =SUMPRODUCT(Y12:Y75,Z12:Z75,$J$12:$J$75) -> 155164.7128 | AA4: =SUMPRODUCT(AA12:AA75,AB12:AB75,$J$12:$J$75) -> 130755.2816 | AC4: =SUMPRODUCT(AC12:AC75,$J$12:$J$75) -> 2002884.521 | AE4: =SUMPRODUCT(AE12:AE75,AF12:AF75,$J$12:$J$75) -> 278317.2257 | AG4: =SUMPRODUCT(AG12:AG75,AH12:AH75,$J$12:$J$75) -> 90910.97055 | AI4: =SUMPRODUCT(AI12:AI75,AJ12:AJ75,$J$12:$J$75) -> 0 | AK4: =SUMPRODUCT(AK12:AK75,AL12:AL75,$J$12:$J$75) -> 86439.04454 | AM4: =SUMPRODUCT(AM12:AM75,$J$12:$J$75) -> 455667.2407 | AO4: =SUMPRODUCT(AO12:AO75,AP12:AP75,$J$12:$J$75,AQ12:AQ75) -> 1798536.58 | AR4: =SUMPRODUCT(AR12:AR75,AS12:AS75,$J$12:$J$75,AT12:AT75) -> 764784.023 | AU4: =SUMPRODUCT(AU12:AU75,AV12:AV75,$J$12:$J$75,AW12:AW75) -> 1255906.05 | AX4: =SUMPRODUCT(AX12:AX75,$J$12:$J$75) -> 3819226.653 | AZ4: =SUMPRODUCT(AZ12:AZ75,BA12:BA75,$J$12:$J$75) -> 59313.29092 | BB4: =SUMPRODUCT(BB12:BB75,BC12:BC75,$J$12:$J$75) -> 59297.12349 | BD4: =SUMPRODUCT(BD12:BD75,BE12:BE75,$J$12:$J$75) -> 125376.836 | BF4: =SUMPRODUCT(BF12:BF75,$J$12:$J$75) -> 243987.2504 | BJ4: =SUMPRODUCT(BJ12:BJ75,$J$12:$J$75) -> 1419028.93 | BL4: =SUMPRODUCT(BL12:BL75,$J$12:$J$75) -> 2780639.091 | BP4: =SUMPRODUCT(BP12:BP75,$J$12:$J$75) -> 2451890.64 | BT4: =SUMPRODUCT(BT12:BT75,$J$12:$J$75) -> 1471134.303
J6: Percent ---> | AC6: =AC4/$K4 -> 0.1367673993 | AM6: =AM4/$K4 -> 0.03111533531 | AX6: =AX4/$K4 -> 0.2607967115 | BF6: =BF4/$K4 -> 0.01666072175 | BJ6: =BJ4/$K4 -> 0.09689869502 | BL6: =BL4/$K4 -> 0.189876537 | BP6: =BP4/$K4 -> 0.1674278785 | BT6: =BT4/$K4 -> 0.1004567215
K8: Sub-total annual cost | M8: Task 1 | O8: Task 2 | Q8: Task 3 | S8: Task 4 | U8: Task 5 | W8: Task 6 | Y8: Task 7 | AA8: Task 8 | AC8: Sub-total annual cost per asset | AM8: Sub-total annual cost per asset | AX8: Sub-total annual cost per asset | BF8: Sub-total annual cost per asset | BJ8: Sub-total annual cost per asset | BL8: Sub-total annual cost per asset | BP8: Sub-total annual cost per asset | BT8: Sub-total annual cost per asset
M9: Minor | O9: Major | Q9: All | S9: All | U9: All | W9: All | Y9: All | AA9: All | AE9: Lamp | AG9: Visors | AI9: PE Cell | AK9: Misc | AO9: Lamp change | AR9: PE Cell change | AU9: Misc | AZ9: Lamp | BB9: PE Cell | BD9: Misc | BH9: Price | BI9: Hours (weighted by failure)
B10: # | C10: Description | D10: Type | E10: Route | F10: Category | G10: Lamps (#) | I10: Price | J10: Count | M10: Price | N10: Cycle | O10: Price | P10: Cycle | Q10: Price | R10: Cycle | S10: Price | T10: Cycle | U10: Price | V10: Cycle | W10: Price | X10: Cycle | Y10: Price | Z10: Cycle | AA10: Price | AB10: Cycle | AE10: Price | AF10: Cycle | AG10: Price | AH10: Cycle | AI10: Price | AJ10: Cycle | AK10: Price | AL10: Cycle | AO10: Price | AP10: Failure | AQ10: Hours | AR10: Price | AS10: Failure | AT10: Hours | AU10: Price | AV10: Failure | AW10: Hours | AZ10: Price | BA10: Failure | BB10: Price | BC10: Failure | BD10: Price | BE10: Failure | BN10: Rate | BO10: Cost | BR10: Rate | BS10: Cost
B12: ='Input - Inventory'!B9 -> 1 | C12: ='Input - Inventory'!C9 -> O/U | D12: ='Input - Inventory'!D9 -> Connection | E12: ='Input - Inventory'!E9 -> NonTraffic | F12: ='Input - Inventory'!F9 -> n/a | G12: ='Input - Inventory'!H9 -> 0 | I12: =AC12+AM12+AX12+BF12+BJ12+BL12+BP12+BT12 -> 103.5017367 | J12: =INDIRECT(J$10&$B12&RIGHT($B$2,4)) -> 576 | K12: =J12*I12 -> 59617.00037 | M12: =IF(AND($D12="Lamp", OR($F12=M$9, M$9="All")),IF('Input - Inventory'!G9="N",INDIRECT("PriceBulkTask1" & RIGHT($B$2,4)),INDIRECT("PriceBulkTask1LED" & RIGHT($B$2,4))),0) -> 0 | N12: =IF(AND($D12="Lamp",CycleBulkTask1<>0, OR($F12=M$9,M$9="All")),IF('Input - Inventory'!G9="N",1/CycleBulkTask1,1/CycleBulkTask1LED),0) -> 0 | O12: =IF(AND($D12="Lamp", OR($F12=O$9, O$9="All")),IF('Input - Inventory'!G9="N",INDIRECT("PriceBulkTask2" & RIGHT($B$2,4)),INDIRECT("PriceBulkTask2LED" & RIGHT($B$2,4))),0) -> 0 | P12: =IF(AND($D12="Lamp",CycleBulkTask2<>0, OR($F12=O$9,O$9="All")),IF('Input - Inventory'!G9="N",1/CycleBulkTask2,1/CycleBulkTask2LED),0) -> 0 | Q12: =IF(AND($D12="Lamp", OR($F12=Q$9, Q$9="All")),INDIRECT("PriceBulkTask3" & RIGHT($B$2,4)),0) -> 0 | R12: =IF(AND($D12="Lamp",CycleBulkTask3<>0, OR($F12=Q$9,Q$9="All")),1/CycleBulkTask3,0) -> 0 | S12: =IF(AND($D12="Lamp", OR($F12=S$9, S$9="All")),INDIRECT("PriceBulkTask4" & RIGHT($B$2,4)),0) -> 0 | T12: =IF(AND($D12="Lamp",CycleBulkTask4<>0, OR($F12=S$9,S$9="All")),1/CycleBulkTask4,0) -> 0 | U12: =IF(AND($D12="Lamp", OR($F12=U$9, U$9="All")),INDIRECT("PriceBulkTask5" & RIGHT($B$2,4)),0) -> 0 | V12: =IF(AND($D12="Lamp",CycleBulkTask5<>0, OR($F12=U$9,U$9="All")),1/CycleBulkTask5,0) -> 0 | W12: =IF(AND($D12="Lamp", OR($F12=W$9, W$9="All")),INDIRECT("PriceBulkTask6" & RIGHT($B$2,4)),0) -> 0 | X12: =IF(AND($D12="Lamp",CycleBulkTask6<>0, OR($F12=W$9,W$9="All")),1/CycleBulkTask6,0) -> 0 | Y12: =IF(AND($D12="Lamp", OR($F12=Y$9, Y$9="All")),INDIRECT("PriceBulkTask7" & RIGHT($B$2,4)),0) -> 0 | Z12: =IF(AND($D12="Lamp",CycleBulkTask7<>0, OR($F12=Y$9,Y$9="All")),1/CycleBulkTask7,0) -> 0 | AA12: =IF(AND($D12="Lamp", OR($F12=AA$9, AA$9="All")),INDIRECT("PriceBulkTask8" & RIGHT($B$2,4)),0) -> 0 | AB12: =IF(AND($D12="Lamp",CycleBulkTask8<>0, OR($F12=AA$9,AA$9="All")),1/CycleBulkTask8,0) -> 0 | AC12: =M12*N12+O12*P12+Q12*R12+S12*T12+U12*V12+W12*X12+Y12*Z12+AA12*AB12 -> 0 | AE12: 0 | AF12: 0 | AG12: 0 | AH12: 0 | AI12: 0 | AJ12: 0 | AK12: 0 | AL12: 0 | AM12: =AE12*AF12+AG12*AH12+AI12*AJ12+AK12*AL12 -> 0 | AO12: =IF($D12=$AE$9,(INDIRECT("PriceLabour" & RIGHT($B$2,4))*ProportionStandardHours + INDIRECT("PriceLabourOvertime" & RIGHT($B$2,4))*ProportionOvertimeHours)*(1+RateOnCostAnnual),0) -> 0 | AP12: =BA12 -> 0 | AQ12: =IF($D12="Lamp",(NumberOfCrew+INDIRECT($E12)*TrafficController)*(TimeToReplaceLamp),0) -> 0 | AR12: =IF($D12=$AE$9,(INDIRECT("PriceLabour" & RIGHT($B$2,4))*ProportionStandardHours + INDIRECT("PriceLabourOvertime" & RIGHT($B$2,4))*ProportionOvertimeHours)*(1+RateOnCostAnnual),0) -> 0 | AS12: =BC12 -> 0 | AT12: =IF($D12="Lamp",(NumberOfCrew+INDIRECT($E12)*TrafficController)*(TimeForPECellReplace),0) -> 0 | AU12: =IF($D12=$AE$9,(INDIRECT("PriceLabour" & RIGHT($B$2,4))*ProportionStandardHours + INDIRECT("PriceLabourOvertime" & RIGHT($B$2,4))*ProportionOvertimeHours)*(1+RateOnCostAnnual),0) -> 0 | AV12: =BE12 -> 0 | AW12: =IF($D12="Lamp",(NumberOfCrew+INDIRECT($E12)*TrafficController)*(TimeForOtherSpot),0) -> 0 | AX12: =AO12*AP12*AQ12+AR12*AS12*AT12+AU12*AV12*AW12 -> 0 | AZ12: 0 | BA12: 0 | BB12: 0 | BC12: 0 | BD12: 0 | BE12: 0 | BF12: =AZ12*BA12+BB12*BC12+BD12*BE12 -> 0 | BH12: =IF(AND($D12="Lamp"),INDIRECT("PriceEWP"&RIGHT($B$2,4)),0) -> 0 | BI12: =AP12*AQ12+AS12*AT12+AV12*AW12 -> 0 | BJ12: =BH12*BI12 -> 0 | BL12: =IF($D12="Connection",INDIRECT("Price"&SUBSTITUTE(SUBSTITUTE($C12,"-",""),"/","")&RIGHT($B$2,4)),0) -> 75.7752154 | BN12: 0.2286905569 | BO12: 75.7752154 | BP12: =BO12*BN12 -> 17.32907621 | BR12: 0.1116752511 | BS12: 93.1042916 | BT12: =BS12*BR12 -> 10.39744515
B13: ='Input - Inventory'!B10 -> 2 | C13: ='Input - Inventory'!C10 -> OH | D13: ='Input - Inventory'!D10 -> Connection | E13: ='Input - Inventory'!E10 -> NonTraffic | F13: ='Input - Inventory'!F10 -> n/a | G13: ='Input - Inventory'!H10 -> 0 | I13: 0 | J13: =INDIRECT(J$10&$B13&RIGHT($B$2,4)) -> 196623 | K13: =J13*I13 -> 0 | M13: =IF(AND($D13="Lamp", OR($F13=M$9, M$9="All")),IF('Input - Inventory'!G10="N",INDIRECT("PriceBulkTask1" & RIGHT($B$2,4)),INDIRECT("PriceBulkTask1LED" & RIGHT($B$2,4))),0) -> 0 | N13: =IF(AND($D13="Lamp",CycleBulkTask1<>0, OR($F13=M$9,M$9="All")),IF('Input - Inventory'!G10="N",1/CycleBulkTask1,1/CycleBulkTask1LED),0) -> 0 | O13: =IF(AND($D13="Lamp", OR($F13=O$9, O$9="All")),IF('Input - Inventory'!G10="N",INDIRECT("PriceBulkTask2" & RIGHT($B$2,4)),INDIRECT("PriceBulkTask2LED" & RIGHT($B$2,4))),0) -> 0 | P13: =IF(AND($D13="Lamp",CycleBulkTask2<>0, OR($F13=O$9,O$9="All")),IF('Input - Inventory'!G10="N",1/CycleBulkTask2,1/CycleBulkTask2LED),0) -> 0 | Q13: 0 | R13: 0 | S13: 0 | T13: 0 | U13: 0 | V13: 0 | W13: 0 | X13: 0 | Y13: 0 | Z13: 0 | AA13: 0 | AB13: 0 | AC13: =M13*N13+O13*P13+Q13*R13+S13*T13+U13*V13+W13*X13+Y13*Z13+AA13*AB13 -> 0 | AE13: 0 | AF13: 0 | AG13: 0 | AH13: 0 | AI13: 0 | AJ13: 0 | AK13: 0 | AL13: 0 | AM13: 0 | AO13: 0 | AP13: 0 | AQ13: 0 | AR13: 0 | AS13: 0 | AT13: 0 | AU13: 0 | AV13: 0 | AW13: 0 | AX13: 0 | AZ13: 0 | BA13: 0 | BB13: 0 | BC13: 0 | BD13: 0 | BE13: 0 | BF13: 0 | BH13: 0 | BI13: 0 | BJ13: 0 | BL13: =IF($D13="Connection",INDIRECT("Price"&SUBSTITUTE(SUBSTITUTE($C13,"-",""),"/","")&RIGHT($B$2,4)),0) -> 0 | BN13: 0.2286905569 | BO13: 0 | BP13: 0 | BR13: 0.1116752511 | BS13: 0 | BT13: 0
B14: ='Input - Inventory'!B11 -> 3 | C14: ='Input - Inventory'!C11 -> OH2 | D14: ='Input - Inventory'!D11 -> Connection | E14: ='Input - Inventory'!E11 -> NonTraffic | F14: ='Input - Inventory'!F11 -> n/a | G14: ='Input - Inventory'!H11 -> 0 | I14: 0 | J14: 718 | K14: 0 | M14: =IF(AND($D14="Lamp", OR($F14=M$9, M$9="All")),IF('Input - Inventory'!G11="N",INDIRECT("PriceBulkTask1" & RIGHT($B$2,4)),INDIRECT("PriceBulkTask1LED" & RIGHT($B$2,4))),0) -> 0 | N14: =IF(AND($D14="Lamp",CycleBulkTask1<>0, OR($F14=M$9,M$9="All")),IF('Input - Inventory'!G11="N",1/CycleBulkTask1,1/CycleBulkTask1LED),0) -> 0 | O14: =IF(AND($D14="Lamp", OR($F14=O$9, O$9="All")),IF('Input - Inventory'!G11="N",INDIRECT("PriceBulkTask2" & RIGHT($B$2,4)),INDIRECT("PriceBulkTask2LED" & RIGHT($B$2,4))),0) -> 0 | P14: =IF(AND($D14="Lamp",CycleBulkTask2<>0, OR($F14=O$9,O$9="All")),IF('Input - Inventory'!G11="N",1/CycleBulkTask2,1/CycleBulkTask2LED),0) -> 0 | Q14: 0 | R14: 0 | S14: 0 | T14: 0 | U14: 0 | V14: 0 | W14: 0 | X14: 0 | Y14: 0 | Z14: 0 | AA14: 0 | AB14: 0 | AC14: 0 | AE14: 0 | AF14: 0 | AG14: 0 | AH14: 0 | AI14: 0 | AJ14: 0 | AK14: 0 | AL14: 0 | AM14: 0 | AO14: 0 | AP14: 0 | AQ14: 0 | AR14: 0 | AS14: 0 | AT14: 0 | AU14: 0 | AV14: 0 | AW14: 0 | AX14: 0 | AZ14: 0 | BA14: 0 | BB14: 0 | BC14: 0 | BD14: 0 | BE14: 0 | BF14: 0 | BH14: 0 | BI14: 0 | BJ14: 0 | BL14: 0 | BN14: 0.2286905569 | BO14: 0 | BP14: 0 | BR14: 0.1116752511 | BS14: 0 | BT14: 0
B15: ='Input - Inventory'!B12 -> 4 | C15: ='Input - Inventory'!C12 -> OHS | D15: ='Input - Inventory'!D12 -> Connection | E15: ='Input - Inventory'!E12 -> NonTraffic | F15: ='Input - Inventory'!F12 -> n/a | G15: ='Input - Inventory'!H12 -> 0 | I15: 0 | J15: 9 | K15: 0 | M15: =IF(AND($D15="Lamp", OR($F15=M$9, M$9="All")),IF('Input - Inventory'!G12="N",INDIRECT("PriceBulkTask1" & RIGHT($B$2,4)),INDIRECT("PriceBulkTask1LED" & RIGHT($B$2,4))),0) -> 0 | N15: =IF(AND($D15="Lamp",CycleBulkTask1<>0, OR($F15=M$9,M$9="All")),IF('Input - Inventory'!G12="N",1/CycleBulkTask1,1/CycleBulkTask1LED),0) -> 0 | O15: =IF(AND($D15="Lamp", OR($F15=O$9, O$9="All")),IF('Input - Inventory'!G12="N",INDIRECT("PriceBulkTask2" & RIGHT($B$2,4)),INDIRECT("PriceBulkTask2LED" & RIGHT($B$2,4))),0) -> 0 | P15: =IF(AND($D15="Lamp",CycleBulkTask2<>0, OR($F15=O$9,O$9="All")),IF('Input - Inventory'!G12="N",1/CycleBulkTask2,1/CycleBulkTask2LED),0) -> 0 | Q15: 0 | R15: 0 | S15: 0 | T15: 0 | U15: 0 | V15: 0 | W15: 0 | X15: 0 | Y15: 0 | Z15: 0 | AA15: 0 | AB15: 0 | AC15: 0 | AE15: 0 | AF15: 0 | AG15: 0 | AH15: 0 | AI15: 0 | AJ15: 0 | AK15: 0 | AL15: 0 | AM15: 0 | AO15: 0 | AP15: 0 | AQ15: 0 | AR15: 0 | AS15: 0 | AT15: 0 | AU15: 0 | AV15: 0 | AW15: 0 | AX15: 0 | AZ15: 0 | BA15: 0 | BB15: 0 | BC15: 0 | BD15: 0 | BE15: 0 | BF15: 0 | BH15: 0 | BI15: 0 | BJ15: 0 | BL15: 0 | BN15: 0.2286905569 | BO15: 0 | BP15: 0 | BR15: 0.1116752511 | BS15: 0 | BT15: 0
B16: ='Input - Inventory'!B13 -> 5 | C16: ='Input - Inventory'!C13 -> UG2 | D16: ='Input - Inventory'!D13 -> Connection | E16: ='Input - Inventory'!E13 -> NonTraffic | F16: ='Input - Inventory'!F13 -> n/a | G16: ='Input - Inventory'!H13 -> 0 | I16: 0 | J16: 1134 | K16: 0 | M16: =IF(AND($D16="Lamp", OR($F16=M$9, M$9="All")),IF('Input - Inventory'!G13="N",INDIRECT("PriceBulkTask1" & RIGHT($B$2,4)),INDIRECT("PriceBulkTask1LED" & RIGHT($B$2,4))),0) -> 0 | N16: =IF(AND($D16="Lamp",CycleBulkTask1<>0, OR($F16=M$9,M$9="All")),IF('Input - Inventory'!G13="N",1/CycleBulkTask1,1/CycleBulkTask1LED),0) -> 0 | O16: =IF(AND($D16="Lamp", OR($F16=O$9, O$9="All")),IF('Input - Inventory'!G13="N",INDIRECT("PriceBulkTask2" & RIGHT($B$2,4)),INDIRECT("PriceBulkTask2LED" & RIGHT($B$2,4))),0) -> 0 | P16: =IF(AND($D16="Lamp",CycleBulkTask2<>0, OR($F16=O$9,O$9="All")),IF('Input - Inventory'!G13="N",1/CycleBulkTask2,1/CycleBulkTask2LED),0) -> 0 | Q16: 0 | R16: 0 | S16: 0 | T16: 0 | U16: 0 | V16: 0 | W16: 0 | X16: 0 | Y16: 0 | Z16: 0 | AA16: 0 | AB16: 0 | AC16: 0 | AE16: 0 | AF16: 0 | AG16: 0 | AH16: 0 | AI16: 0 | AJ16: 0 | AK16: 0 | AL16: 0 | AM16: 0 | AO16: 0 | AP16: 0 | AQ16: 0 | AR16: 0 | AS16: 0 | AT16: 0 | AU16: 0 | AV16: 0 | AW16: 0 | AX16: 0 | AZ16: 0 | BA16: 0 | BB16: 0 | BC16: 0 | BD16: 0 | BE16: 0 | BF16: 0 | BH16: 0 | BI16: 0 | BJ16: 0 | BL16: 0 | BN16: 0.2286905569 | BO16: 0 | BP16: 0 | BR16: 0.1116752511 | BS16: 0 | BT16: 0
B17: ='Input - Inventory'!B14 -> 6 | C17: ='Input - Inventory'!C14 -> UGR1 | D17: ='Input - Inventory'!D14 -> Connection | E17: ='Input - Inventory'!E14 -> NonTraffic | F17: ='Input - Inventory'!F14 -> n/a | G17: ='Input - Inventory'!H14 -> 0 | I17: 94.87419355 | J17: 31792 | K17: 3016240.361 | M17: =IF(AND($D17="Lamp", OR($F17=M$9, M$9="All")),IF('Input - Inventory'!G14="N",INDIRECT("PriceBulkTask1" & RIGHT($B$2,4)),INDIRECT("PriceBulkTask1LED" & RIGHT($B$2,4))),0) -> 0 | N17: =IF(AND($D17="Lamp",CycleBulkTask1<>0, OR($F17=M$9,M$9="All")),IF('Input - Inventory'!G14="N",1/CycleBulkTask1,1/CycleBulkTask1LED),0) -> 0 | O17: =IF(AND($D17="Lamp", OR($F17=O$9, O$9="All")),IF('Input - Inventory'!G14="N",INDIRECT("PriceBulkTask2" & RIGHT($B$2,4)),INDIRECT("PriceBulkTask2LED" & RIGHT($B$2,4))),0) -> 0 | P17: =IF(AND($D17="Lamp",CycleBulkTask2<>0, OR($F17=O$9,O$9="All")),IF('Input - Inventory'!G14="N",1/CycleBulkTask2,1/CycleBulkTask2LED),0) -> 0 | Q17: 0 | R17: 0 | S17: 0 | T17: 0 | U17: 0 | V17: 0 | W17: 0 | X17: 0 | Y17: 0 | Z17: 0 | AA17: 0 | AB17: 0 | AC17: 0 | AE17: 0 | AF17: 0 | AG17: 0 | AH17: 0 | AI17: 0 | AJ17: 0 | AK17: 0 | AL17: 0 | AM17: 0 | AO17: 0 | AP17: 0 | AQ17: 0 | AR17: 0 | AS17: 0 | AT17: 0 | AU17: 0 | AV17: 0 | AW17: 0 | AX17: 0 | AZ17: 0 | BA17: 0 | BB17: 0 | BC17: 0 | BD17: 0 | BE17: 0 | BF17: 0 | BH17: 0 | BI17: 0 | BJ17: 0 | BL17: 69.45885816 | BN17: 0.2286905569 | BO17: 69.45885816 | BP17: 15.88458495 | BR17: 0.1116752511 | BS17: 85.34344311 | BT17: 9.530750442
B18: ='Input - Inventory'!B15 -> 7 | C18: ='Input - Inventory'!C15 -> UGR2 | D18: ='Input - Inventory'!D15 -> Connection | E18: ='Input - Inventory'!E15 -> NonTraffic | F18: ='Input - Inventory'!F15 -> n/a | G18: ='Input - Inventory'!H15 -> 0 | I18: 34.49544594 | J18: 20937 | K18: 722231.1517 | M18: =IF(AND($D18="Lamp", OR($F18=M$9, M$9="All")),IF('Input - Inventory'!G15="N",INDIRECT("PriceBulkTask1" & RIGHT($B$2,4)),INDIRECT("PriceBulkTask1LED" & RIGHT($B$2,4))),0) -> 0 | N18: =IF(AND($D18="Lamp",CycleBulkTask1<>0, OR($F18=M$9,M$9="All")),IF('Input - Inventory'!G15="N",1/CycleBulkTask1,1/CycleBulkTask1LED),0) -> 0 | O18: =IF(AND($D18="Lamp", OR($F18=O$9, O$9="All")),IF('Input - Inventory'!G15="N",INDIRECT("PriceBulkTask2" & RIGHT($B$2,4)),INDIRECT("PriceBulkTask2LED" & RIGHT($B$2,4))),0) -> 0 | P18: =IF(AND($D18="Lamp",CycleBulkTask2<>0, OR($F18=O$9,O$9="All")),IF('Input - Inventory'!G15="N",1/CycleBulkTask2,1/CycleBulkTask2LED),0) -> 0 | Q18: 0 | R18: 0 | S18: 0 | T18: 0 | U18: 0 | V18: 0 | W18: 0 | X18: 0 | Y18: 0 | Z18: 0 | AA18: 0 | AB18: 0 | AC18: 0 | AE18: 0 | AF18: 0 | AG18: 0 | AH18: 0 | AI18: 0 | AJ18: 0 | AK18: 0 | AL18: 0 | AM18: 0 | AO18: 0 | AP18: 0 | AQ18: 0 | AR18: 0 | AS18: 0 | AT18: 0 | AU18: 0 | AV18: 0 | AW18: 0 | AX18: 0 | AZ18: 0 | BA18: 0 | BB18: 0 | BC18: 0 | BD18: 0 | BE18: 0 | BF18: 0 | BH18: 0 | BI18: 0 | BJ18: 0 | BL18: 25.2546472 | BN18: 0.2286905569 | BO18: 25.2546472 | BP18: 5.775499332 | BR18: 0.1116752511 | BS18: 31.03014654 | BT18: 3.465299407
B19: ='Input - Inventory'!B16 -> 8 | C19: ='Input - Inventory'!C16 -> UGS | D19: ='Input - Inventory'!D16 -> Connection | E19: ='Input - Inventory'!E16 -> NonTraffic | F19: ='Input - Inventory'!F16 -> n/a | G19: ='Input - Inventory'!H16 -> 0 | I19: 0 | J19: 108 | K19: 0 | M19: =IF(AND($D19="Lamp", OR($F19=M$9, M$9="All")),IF('Input - Inventory'!G16="N",INDIRECT("PriceBulkTask1" & RIGHT($B$2,4)),INDIRECT("PriceBulkTask1LED" & RIGHT($B$2,4))),0) -> 0 | N19: =IF(AND($D19="Lamp",CycleBulkTask1<>0, OR($F19=M$9,M$9="All")),IF('Input - Inventory'!G16="N",1/CycleBulkTask1,1/CycleBulkTask1LED),0) -> 0 | O19: =IF(AND($D19="Lamp", OR($F19=O$9, O$9="All")),IF('Input - Inventory'!G16="N",INDIRECT("PriceBulkTask2" & RIGHT($B$2,4)),INDIRECT("PriceBulkTask2LED" & RIGHT($B$2,4))),0) -> 0 | P19: =IF(AND($D19="Lamp",CycleBulkTask2<>0, OR($F19=O$9,O$9="All")),IF('Input - Inventory'!G16="N",1/CycleBulkTask2,1/CycleBulkTask2LED),0) -> 0 | Q19: 0 | R19: 0 | S19: 0 | T19: 0 | U19: 0 | V19: 0 | W19: 0 | X19: 0 | Y19: 0 | Z19: 0 | AA19: 0 | AB19: 0 | AC19: 0 | AE19: 0 | AF19: 0 | AG19: 0 | AH19: 0 | AI19: 0 | AJ19: 0 | AK19: 0 | AL19: 0 | AM19: 0 | AO19: 0 | AP19: 0 | AQ19: 0 | AR19: 0 | AS19: 0 | AT19: 0 | AU19: 0 | AV19: 0 | AW19: 0 | AX19: 0 | AZ19: 0 | BA19: 0 | BB19: 0 | BC19: 0 | BD19: 0 | BE19: 0 | BF19: 0 | BH19: 0 | BI19: 0 | BJ19: 0 | BL19: 0 | BN19: 0.2286905569 | BO19: 0 | BP19: 0 | BR19: 0.1116752511 | BS19: 0 | BT19: 0
B20: ='Input - Inventory'!B17 -> 9 | C20: ='Input - Inventory'!C17 -> UG-SP | D20: ='Input - Inventory'!D17 -> Connection | E20: ='Input - Inventory'!E17 -> NonTraffic | F20: ='Input - Inventory'!F17 -> n/a | G20: ='Input - Inventory'!H17 -> 0 | I20: 0 | J20: 13 | K20: 0 | M20: =IF(AND($D20="Lamp", OR($F20=M$9, M$9="All")),IF('Input - Inventory'!G17="N",INDIRECT("PriceBulkTask1" & RIGHT($B$2,4)),INDIRECT("PriceBulkTask1LED" & RIGHT($B$2,4))),0) -> 0 | N20: =IF(AND($D20="Lamp",CycleBulkTask1<>0, OR($F20=M$9,M$9="All")),IF('Input - Inventory'!G17="N",1/CycleBulkTask1,1/CycleBulkTask1LED),0) -> 0 | O20: =IF(AND($D20="Lamp", OR($F20=O$9, O$9="All")),IF('Input - Inventory'!G17="N",INDIRECT("PriceBulkTask2" & RIGHT($B$2,4)),INDIRECT("PriceBulkTask2LED" & RIGHT($B$2,4))),0) -> 0 | P20: =IF(AND($D20="Lamp",CycleBulkTask2<>0, OR($F20=O$9,O$9="All")),IF('Input - Inventory'!G17="N",1/CycleBulkTask2,1/CycleBulkTask2LED),0) -> 0 | Q20: 0 | R20: 0 | S20: 0 | T20: 0 | U20: 0 | V20: 0 | W20: 0 | X20: 0 | Y20: 0 | Z20: 0 | AA20: 0 | AB20: 0 | AC20: 0 | AE20: 0 | AF20: 0 | AG20: 0 | AH20: 0 | AI20: 0 | AJ20: 0 | AK20: 0 | AL20: 0 | AM20: 0 | AO20: 0 | AP20: 0 | AQ20: 0 | AR20: 0 | AS20: 0 | AT20: 0 | AU20: 0 | AV20: 0 | AW20: 0 | AX20: 0 | AZ20: 0 | BA20: 0 | BB20: 0 | BC20: 0 | BD20: 0 | BE20: 0 | BF20: 0 | BH20: 0 | BI20: 0 | BJ20: 0 | BL20: 0 | BN20: 0.2286905569 | BO20: 0 | BP20: 0 | BR20: 0.1116752511 | BS20: 0 | BT20: 0
B21: ='Input - Inventory'!B18 -> 10 | C21: ='Input - Inventory'!C18 -> LED TRIAL | D21: ='Input - Inventory'!D18 -> Lamp | E21: ='Input - Inventory'!E18 -> NonTraffic | F21: ='Input - Inventory'!F18 -> Minor | G21: ='Input - Inventory'!H18 -> 1 | I21: 22.99479713 | J21: 67 | K21: 1540.651408 | M21: =IF(AND($D21="Lamp", OR($F21=M$9, M$9="All")),IF('Input - Inventory'!G18="N",INDIRECT("PriceBulkTask1" & RIGHT($B$2,4)),INDIRECT("PriceBulkTask1LED" & RIGHT($B$2,4))),0) -> 25.14066692 | N21: =IF(AND($D21="Lamp",CycleBulkTask1<>0, OR($F21=M$9,M$9="All")),IF('Input - Inventory'!G18="N",1/CycleBulkTask1,1/CycleBulkTask1LED),0) -> 0.1666666667 | O21: =IF(AND($D21="Lamp", OR($F21=O$9, O$9="All")),IF('Input - Inventory'!G18="N",INDIRECT("PriceBulkTask2" & RIGHT($B$2,4)),INDIRECT("PriceBulkTask2LED" & RIGHT($B$2,4))),0) -> 0 | P21: =IF(AND($D21="Lamp",CycleBulkTask2<>0, OR($F21=O$9,O$9="All")),IF('Input - Inventory'!G18="N",1/CycleBulkTask2,1/CycleBulkTask2LED),0) -> 0 | Q21: 11.70321951 | R21: 0.007123137293 | S21: 5.68008992 | T21: 0 | U21: 24.59819231 | V21: 0.005931168948 | W21: 14.73626703 | X21: 0.02002998353 | Y21: 40.96329512 | Z21: 0.01503682404 | AA21: 8448.007453 | AB21: 6.144166728e-05 | AC21: 5.849555536 | AE21: 0 | AF21: 0.1666666667 | AG21: 50.66441346 | AH21: 0.007123137293 | AI21: 11.87135 | AJ21: 0 | AK21: 15.285 | AL21: 0.02096799299 | AM21: 0.6813853458 | AO21: 88.01366111 | AP21: 0 | AQ21: 1.513333333 | AR21: 88.01366111 | AS21: 0.0198285774 | AT21: 1.513333333 | AU21: 88.01366111 | AV21: 0.03256191236 | AW21: 1.513333333 | AX21: 6.978099267 | AZ21: 0 | BA21: 0 | BB21: 11.87135 | BC21: 0.0198285774 | BD21: 15.285 | BE21: 0.03256191236 | BF21: 0.7331008127 | BH21: 32.70136673 | BI21: 0.0792842745 | BJ21: 2.592704136 | BL21: =IF($D21="Connection",INDIRECT("Price"&SUBSTITUTE(SUBSTITUTE($C21,"-",""),"/","")&RIGHT($B$2,4)),0) -> 0 | BN21: 0.2286905569 | BO21: 16.8348451 | BP21: 3.8499701 | BR21: 0.1116752511 | BS21: 20.6848152 | BT21: 2.309981932
B22: ='Input - Inventory'!B19 -> 11 | C22: ='Input - Inventory'!C19 -> LED1x100 | D22: ='Input - Inventory'!D19 -> Lamp | E22: ='Input - Inventory'!E19 -> Traffic | F22: ='Input - Inventory'!F19 -> Major | G22: ='Input - Inventory'!H19 -> 1 | I22: 30.47463231 | J22: 6 | K22: 182.8477938 | M22: =IF(AND($D22="Lamp", OR($F22=M$9, M$9="All")),IF('Input - Inventory'!G19="N",INDIRECT("PriceBulkTask1" & RIGHT($B$2,4)),INDIRECT("PriceBulkTask1LED" & RIGHT($B$2,4))),0) -> 0 | N22: =IF(AND($D22="Lamp",CycleBulkTask1<>0, OR($F22=M$9,M$9="All")),IF('Input - Inventory'!G19="N",1/CycleBulkTask1,1/CycleBulkTask1LED),0) -> 0 | O22: =IF(AND($D22="Lamp", OR($F22=O$9, O$9="All")),IF('Input - Inventory'!G19="N",INDIRECT("PriceBulkTask2" & RIGHT($B$2,4)),INDIRECT("PriceBulkTask2LED" & RIGHT($B$2,4))),0) -> 29.28487185 | P22: =IF(AND($D22="Lamp",CycleBulkTask2<>0, OR($F22=O$9,O$9="All")),IF('Input - Inventory'!G19="N",1/CycleBulkTask2,1/CycleBulkTask2LED),0) -> 0.1666666667 | Q22: 11.70321951 | R22: 0.007123137293 | S22: 5.68008992 | T22: 0 | U22: 24.59819231 | V22: 0.005931168948 | W22: 14.73626703 | X22: 0.02002998353 | Y22: 40.96329512 | Z22: 0.01503682404 | AA22: 8448.007453 | AB22: 6.144166728e-05 | AC22: 6.540256358 | AE22: 0 | AF22: 0.1666666667 | AG22: 50.66441346 | AH22: 0.007123137293 | AI22: 11.87135 | AJ22: 0 | AK22: 15.285 | AL22: 0.02096799299 | AM22: 0.6813853458 | AO22: 88.01366111 | AP22: 0 | AQ22: 2.27 | AR22: 88.01366111 | AS22: 0.0198285774 | AT22: 2.27 | AU22: 88.01366111 | AV22: 0.03256191236 | AW22: 2.27 | AX22: 10.4671489 | AZ22: 0 | BA22: 0 | BB22: 11.87135 | BC22: 0.0198285774 | BD22: 15.285 | BE22: 0.03256191236 | BF22: 0.7331008127 | BH22: 32.70136673 | BI22: 0.1189264117 | BJ22: 3.889056204 | BL22: =IF($D22="Connection",INDIRECT("Price"&SUBSTITUTE(SUBSTITUTE($C22,"-",""),"/","")&RIGHT($B$2,4)),0) -> 0 | BN22: 0.2286905569 | BO22: 22.31094762 | BP22: 5.102303036 | BR22: 0.1116752511 | BS22: 27.41325066 | BT22: 3.061381652
B23: ='Input - Inventory'!B20 -> 12 | C23: ='Input - Inventory'!C20 -> LED1x17 | D23: ='Input - Inventory'!D20 -> Lamp | E23: ='Input - Inventory'!E20 -> NonTraffic | F23: ='Input - Inventory'!F20 -> Minor | G23: ='Input - Inventory'!H20 -> 1 | I23: 22.99479713 | J23: 2793 | K23: 64224.46838 | M23: =IF(AND($D23="Lamp", OR($F23=M$9, M$9="All")),IF('Input - Inventory'!G20="N",INDIRECT("PriceBulkTask1" & RIGHT($B$2,4)),INDIRECT("PriceBulkTask1LED" & RIGHT($B$2,4))),0) -> 25.14066692 | N23: =IF(AND($D23="Lamp",CycleBulkTask1<>0, OR($F23=M$9,M$9="All")),IF('Input - Inventory'!G20="N",1/CycleBulkTask1,1/CycleBulkTask1LED),0) -> 0.1666666667 | O23: =IF(AND($D23="Lamp", OR($F23=O$9, O$9="All")),IF('Input - Inventory'!G20="N",INDIRECT("PriceBulkTask2" & RIGHT($B$2,4)),INDIRECT("PriceBulkTask2LED" & RIGHT($B$2,4))),0) -> 0 | P23: =IF(AND($D23="Lamp",CycleBulkTask2<>0, OR($F23=O$9,O$9="All")),IF('Input - Inventory'!G20="N",1/CycleBulkTask2,1/CycleBulkTask2LED),0) -> 0 | Q23: 11.70321951 | R23: 0.007123137293 | S23: 5.68008992 | T23: 0 | U23: 24.59819231 | V23: 0.005931168948 | W23: 14.73626703 | X23: 0.02002998353 | Y23: 40.96329512 | Z23: 0.01503682404 | AA23: 8448.007453 | AB23: 6.144166728e-05 | AC23: 5.849555536 | AE23: 0 | AF23: 0.1666666667 | AG23: 50.66441346 | AH23: 0.007123137293 | AI23: 11.87135 | AJ23: 0 | AK23: 15.285 | AL23: 0.02096799299 | AM23: 0.6813853458 | AO23: 88.01366111 | AP23: 0 | AQ23: 1.513333333 | AR23: 88.01366111 | AS23: 0.0198285774 | AT23: 1.513333333 | AU23: 88.01366111 | AV23: 0.03256191236 | AW23: 1.513333333 | AX23: 6.978099267 | AZ23: 0 | BA23: 0 | BB23: 11.87135 | BC23: 0.0198285774 | BD23: 15.285 | BE23: 0.03256191236 | BF23: 0.7331008127 | BH23: 32.70136673 | BI23: 0.0792842745 | BJ23: 2.592704136 | BL23: 0 | BN23: 0.2286905569 | BO23: 16.8348451 | BP23: 3.8499701 | BR23: 0.1116752511 | BS23: 20.6848152 | BT23: 2.309981932
B24: ='Input - Inventory'!B21 -> 13 | C24: ='Input - Inventory'!C21 -> LED1x18 | D24: ='Input - Inventory'!D21 -> Lamp | E24: ='Input - Inventory'!E21 -> NonTraffic | F24: ='Input - Inventory'!F21 -> Minor | G24: ='Input - Inventory'!H21 -> 1 | I24: 22.99479713 | J24: 0 | K24: 0 | M24: =IF(AND($D24="Lamp", OR($F24=M$9, M$9="All")),IF('Input - Inventory'!G21="N",INDIRECT("PriceBulkTask1" & RIGHT($B$2,4)),INDIRECT("PriceBulkTask1LED" & RIGHT($B$2,4))),0) -> 25.14066692 | N24: =IF(AND($D24="Lamp",CycleBulkTask1<>0, OR($F24=M$9,M$9="All")),IF('Input - Inventory'!G21="N",1/CycleBulkTask1,1/CycleBulkTask1LED),0) -> 0.1666666667 | O24: =IF(AND($D24="Lamp", OR($F24=O$9, O$9="All")),IF('Input - Inventory'!G21="N",INDIRECT("PriceBulkTask2" & RIGHT($B$2,4)),INDIRECT("PriceBulkTask2LED" & RIGHT($B$2,4))),0) -> 0 | P24: =IF(AND($D24="Lamp",CycleBulkTask2<>0, OR($F24=O$9,O$9="All")),IF('Input - Inventory'!G21="N",1/CycleBulkTask2,1/CycleBulkTask2LED),0) -> 0 | Q24: 11.70321951 | R24: 0.007123137293 | S24: 5.68008992 | T24: 0 | U24: 24.59819231 | V24: 0.005931168948 | W24: 14.73626703 | X24: 0.02002998353 | Y24: 40.96329512 | Z24: 0.01503682404 | AA24: 8448.007453 | AB24: 6.144166728e-05 | AC24: 5.849555536 | AE24: 0 | AF24: 0.1666666667 | AG24: 50.66441346 | AH24: 0.007123137293 | AI24: 11.87135 | AJ24: 0 | AK24: 15.285 | AL24: 0.02096799299 | AM24: 0.6813853458 | AO24: 88.01366111 | AP24: 0 | AQ24: 1.513333333 | AR24: 88.01366111 | AS24: 0.0198285774 | AT24: 1.513333333 | AU24: 88.01366111 | AV24: 0.03256191236 | AW24: 1.513333333 | AX24: 6.978099267 | AZ24: 0 | BA24: 0 | BB24: 11.87135 | BC24: 0.0198285774 | BD24: 15.285 | BE24: 0.03256191236 | BF24: 0.7331008127 | BH24: 32.70136673 | BI24: 0.0792842745 | BJ24: 2.592704136 | BL24: 0 | BN24: 0.2286905569 | BO24: 16.8348451 | BP24: 3.8499701 | BR24: 0.1116752511 | BS24: 20.6848152 | BT24: 2.309981932
B25: ='Input - Inventory'!B22 -> 14 | C25: ='Input - Inventory'!C22 -> LED1x20 | D25: ='Input - Inventory'!D22 -> Lamp | E25: ='Input - Inventory'!E22 -> NonTraffic | F25: ='Input - Inventory'!F22 -> Minor | G25: ='Input - Inventory'!H22 -> 1 | I25: 22.99479713 | J25: 0 | K25: 0 | M25: =IF(AND($D25="Lamp", OR($F25=M$9, M$9="All")),IF('Input - Inventory'!G22="N",INDIRECT("PriceBulkTask1" & RIGHT($B$2,4)),INDIRECT("PriceBulkTask1LED" & RIGHT($B$2,4))),0) -> 25.14066692 | N25: =IF(AND($D25="Lamp",CycleBulkTask1<>0, OR($F25=M$9,M$9="All")),IF('Input - Inventory'!G22="N",1/CycleBulkTask1,1/CycleBulkTask1LED),0) -> 0.1666666667 | O25: =IF(AND($D25="Lamp", OR($F25=O$9, O$9="All")),IF('Input - Inventory'!G22="N",INDIRECT("PriceBulkTask2" & RIGHT($B$2,4)),INDIRECT("PriceBulkTask2LED" & RIGHT($B$2,4))),0) -> 0 | P25: =IF(AND($D25="Lamp",CycleBulkTask2<>0, OR($F25=O$9,O$9="All")),IF('Input - Inventory'!G22="N",1/CycleBulkTask2,1/CycleBulkTask2LED),0) -> 0 | Q25: 11.70321951 | R25: 0.007123137293 | S25: 5.68008992 | T25: 0 | U25: 24.59819231 | V25: 0.005931168948 | W25: 14.73626703 | X25: 0.02002998353 | Y25: 40.96329512 | Z25: 0.01503682404 | AA25: 8448.007453 | AB25: 6.144166728e-05 | AC25: 5.849555536 | AE25: 0 | AF25: 0.1666666667 | AG25: 50.66441346 | AH25: 0.007123137293 | AI25: 11.87135 | AJ25: 0 | AK25: 15.285 | AL25: 0.02096799299 | AM25: 0.6813853458 | AO25: 88.01366111 | AP25: 0 | AQ25: 1.513333333 | AR25: 88.01366111 | AS25: 0.0198285774 | AT25: 1.513333333 | AU25: 88.01366111 | AV25: 0.03256191236 | AW25: 1.513333333 | AX25: 6.978099267 | AZ25: 0 | BA25: 0 | BB25: 11.87135 | BC25: 0.0198285774 | BD25: 15.285 | BE25: 0.03256191236 | BF25: 0.7331008127 | BH25: 32.70136673 | BI25: 0.0792842745 | BJ25: 2.592704136 | BL25: 0 | BN25: 0.2286905569 | BO25: 16.8348451 | BP25: 3.8499701 | BR25: 0.1116752511 | BS25: 20.6848152 | BT25: 2.309981932
B26: ='Input - Inventory'!B23 -> 15 | C26: ='Input - Inventory'!C23 -> LED1x200 | D26: ='Input - Inventory'!D23 -> Lamp | E26: ='Input - Inventory'!E23 -> Traffic | F26: ='Input - Inventory'!F23 -> Major | G26: ='Input - Inventory'!H23 -> 1 | I26: 30.47463231 | J26: 14 | K26: 426.6448523 | M26: =IF(AND($D26="Lamp", OR($F26=M$9, M$9="All")),IF('Input - Inventory'!G23="N",INDIRECT("PriceBulkTask1" & RIGHT($B$2,4)),INDIRECT("PriceBulkTask1LED" & RIGHT($B$2,4))),0) -> 0 | N26: =IF(AND($D26="Lamp",CycleBulkTask1<>0, OR($F26=M$9,M$9="All")),IF('Input - Inventory'!G23="N",1/CycleBulkTask1,1/CycleBulkTask1LED),0) -> 0 | O26: =IF(AND($D26="Lamp", OR($F26=O$9, O$9="All")),IF('Input - Inventory'!G23="N",INDIRECT("PriceBulkTask2" & RIGHT($B$2,4)),INDIRECT("PriceBulkTask2LED" & RIGHT($B$2,4))),0) -> 29.28487185 | P26: =IF(AND($D26="Lamp",CycleBulkTask2<>0, OR($F26=O$9,O$9="All")),IF('Input - Inventory'!G23="N",1/CycleBulkTask2,1/CycleBulkTask2LED),0) -> 0.1666666667 | Q26: 11.70321951 | R26: 0.007123137293 | S26: 5.68008992 | T26: 0 | U26: 24.59819231 | V26: 0.005931168948 | W26: 14.73626703 | X26: 0.02002998353 | Y26: 40.96329512 | Z26: 0.01503682404 | AA26: 8448.007453 | AB26: 6.144166728e-05 | AC26: 6.540256358 | AE26: 0 | AF26: 0.1666666667 | AG26: 50.66441346 | AH26: 0.007123137293 | AI26: 11.87135 | AJ26: 0 | AK26: 15.285 | AL26: 0.02096799299 | AM26: 0.6813853458 | AO26: 88.01366111 | AP26: 0 | AQ26: 2.27 | AR26: 88.01366111 | AS26: 0.0198285774 | AT26: 2.27 | AU26: 88.01366111 | AV26: 0.03256191236 | AW26: 2.27 | AX26: 10.4671489 | AZ26: 0 | BA26: 0 | BB26: 11.87135 | BC26: 0.0198285774 | BD26: 15.285 | BE26: 0.03256191236 | BF26: 0.7331008127 | BH26: 32.70136673 | BI26: 0.1189264117 | BJ26: 3.889056204 | BL26: 0 | BN26: 0.2286905569 | BO26: 22.31094762 | BP26: 5.102303036 | BR26: 0.1116752511 | BS26: 27.41325066 | BT26: 3.061381652
B27: ='Input - Inventory'!B24 -> 16 | C27: ='Input - Inventory'!C24 -> LED1x22 | D27: ='Input - Inventory'!D24 -> Lamp | E27: ='Input - Inventory'!E24 -> NonTraffic | F27: ='Input - Inventory'!F24 -> Minor | G27: ='Input - Inventory'!H24 -> 1 | I27: 22.99479713 | J27: 14394 | K27: 330987.1099 | M27: =IF(AND($D27="Lamp", OR($F27=M$9, M$9="All")),IF('Input - Inventory'!G24="N",INDIRECT("PriceBulkTask1" & RIGHT($B$2,4)),INDIRECT("PriceBulkTask1LED" & RIGHT($B$2,4))),0) -> 25.14066692 | N27: =IF(AND($D27="Lamp",CycleBulkTask1<>0, OR($F27=M$9,M$9="All")),IF('Input - Inventory'!G24="N",1/CycleBulkTask1,1/CycleBulkTask1LED),0) -> 0.1666666667 | O27: =IF(AND($D27="Lamp", OR($F27=O$9, O$9="All")),IF('Input - Inventory'!G24="N",INDIRECT("PriceBulkTask2" & RIGHT($B$2,4)),INDIRECT("PriceBulkTask2LED" & RIGHT($B$2,4))),0) -> 0 | P27: =IF(AND($D27="Lamp",CycleBulkTask2<>0, OR($F27=O$9,O$9="All")),IF('Input - Inventory'!G24="N",1/CycleBulkTask2,1/CycleBulkTask2LED),0) -> 0 | Q27: 11.70321951 | R27: 0.007123137293 | S27: 5.68008992 | T27: 0 | U27: 24.59819231 | V27: 0.005931168948 | W27: 14.73626703 | X27: 0.02002998353 | Y27: 40.96329512 | Z27: 0.01503682404 | AA27: 8448.007453 | AB27: 6.144166728e-05 | AC27: 5.849555536 | AE27: 0 | AF27: 0.1666666667 | AG27: 50.66441346 | AH27: 0.007123137293 | AI27: 11.87135 | AJ27: 0 | AK27: 15.285 | AL27: 0.02096799299 | AM27: 0.6813853458 | AO27: 88.01366111 | AP27: 0 | AQ27: 1.513333333 | AR27: 88.01366111 | AS27: 0.0198285774 | AT27: 1.513333333 | AU27: 88.01366111 | AV27: 0.03256191236 | AW27: 1.513333333 | AX27: 6.978099267 | AZ27: 0 | BA27: 0 | BB27: 11.87135 | BC27: 0.0198285774 | BD27: 15.285 | BE27: 0.03256191236 | BF27: 0.7331008127 | BH27: 32.70136673 | BI27: 0.0792842745 | BJ27: 2.592704136 | BL27: 0 | BN27: 0.2286905569 | BO27: 16.8348451 | BP27: 3.8499701 | BR27: 0.1116752511 | BS27: 20.6848152 | BT27: 2.309981932
B28: ='Input - Inventory'!B25 -> 17 | C28: ='Input - Inventory'!C25 -> LED1x25 GE | D28: ='Input - Inventory'!D25 -> Lamp | E28: ='Input - Inventory'!E25 -> NonTraffic | F28: ='Input - Inventory'!F25 -> Minor | G28: ='Input - Inventory'!H25 -> 1 | I28: 22.99479713 | J28: 3665 | K28: 84275.93148 | M28: =IF(AND($D28="Lamp", OR($F28=M$9, M$9="All")),IF('Input - Inventory'!G25="N",INDIRECT("PriceBulkTask1" & RIGHT($B$2,4)),INDIRECT("PriceBulkTask1LED" & RIGHT($B$2,4))),0) -> 25.14066692 | N28: =IF(AND($D28="Lamp",CycleBulkTask1<>0, OR($F28=M$9,M$9="All")),IF('Input - Inventory'!G25="N",1/CycleBulkTask1,1/CycleBulkTask1LED),0) -> 0.1666666667 | O28: =IF(AND($D28="Lamp", OR($F28=O$9, O$9="All")),IF('Input - Inventory'!G25="N",INDIRECT("PriceBulkTask2" & RIGHT($B$2,4)),INDIRECT("PriceBulkTask2LED" & RIGHT($B$2,4))),0) -> 0 | P28: =IF(AND($D28="Lamp",CycleBulkTask2<>0, OR($F28=O$9,O$9="All")),IF('Input - Inventory'!G25="N",1/CycleBulkTask2,1/CycleBulkTask2LED),0) -> 0 | Q28: 11.70321951 | R28: 0.007123137293 | S28: 5.68008992 | T28: 0 | U28: 24.59819231 | V28: 0.005931168948 | W28: 14.73626703 | X28: 0.02002998353 | Y28: 40.96329512 | Z28: 0.01503682404 | AA28: 8448.007453 | AB28: 6.144166728e-05 | AC28: 5.849555536 | AE28: 0 | AF28: 0.1666666667 | AG28: 50.66441346 | AH28: 0.007123137293 | AI28: 11.87135 | AJ28: 0 | AK28: 15.285 | AL28: 0.02096799299 | AM28: 0.6813853458 | AO28: 88.01366111 | AP28: 0 | AQ28: 1.513333333 | AR28: 88.01366111 | AS28: 0.0198285774 | AT28: 1.513333333 | AU28: 88.01366111 | AV28: 0.03256191236 | AW28: 1.513333333 | AX28: 6.978099267 | AZ28: 0 | BA28: 0 | BB28: 11.87135 | BC28: 0.0198285774 | BD28: 15.285 | BE28: 0.03256191236 | BF28: 0.7331008127 | BH28: 32.70136673 | BI28: 0.0792842745 | BJ28: 2.592704136 | BL28: 0 | BN28: 0.2286905569 | BO28: 16.8348451 | BP28: 3.8499701 | BR28: 0.1116752511 | BS28: 20.6848152 | BT28: 2.309981932
B29: ='Input - Inventory'!B26 -> 18 | C29: ='Input - Inventory'!C26 -> LED1x28 | D29: ='Input - Inventory'!D26 -> Lamp | E29: ='Input - Inventory'!E26 -> NonTraffic | F29: ='Input - Inventory'!F26 -> Minor | G29: ='Input - Inventory'!H26 -> 1 | I29: 22.99479713 | J29: 0 | K29: 0 | M29: =IF(AND($D29="Lamp", OR($F29=M$9, M$9="All")),IF('Input - Inventory'!G26="N",INDIRECT("PriceBulkTask1" & RIGHT($B$2,4)),INDIRECT("PriceBulkTask1LED" & RIGHT($B$2,4))),0) -> 25.14066692 | N29: =IF(AND($D29="Lamp",CycleBulkTask1<>0, OR($F29=M$9,M$9="All")),IF('Input - Inventory'!G26="N",1/CycleBulkTask1,1/CycleBulkTask1LED),0) -> 0.1666666667 | O29: =IF(AND($D29="Lamp", OR($F29=O$9, O$9="All")),IF('Input - Inventory'!G26="N",INDIRECT("PriceBulkTask2" & RIGHT($B$2,4)),INDIRECT("PriceBulkTask2LED" & RIGHT($B$2,4))),0) -> 0 | P29: =IF(AND($D29="Lamp",CycleBulkTask2<>0, OR($F29=O$9,O$9="All")),IF('Input - Inventory'!G26="N",1/CycleBulkTask2,1/CycleBulkTask2LED),0) -> 0 | Q29: 11.70321951 | R29: 0.007123137293 | S29: 5.68008992 | T29: 0 | U29: 24.59819231 | V29: 0.005931168948 | W29: 14.73626703 | X29: 0.02002998353 | Y29: 40.96329512 | Z29: 0.01503682404 | AA29: 8448.007453 | AB29: 6.144166728e-05 | AC29: 5.849555536 | AE29: 0 | AF29: 0.1666666667 | AG29: 50.66441346 | AH29: 0.007123137293 | AI29: 11.87135 | AJ29: 0 | AK29: 15.285 | AL29: 0.02096799299 | AM29: 0.6813853458 | AO29: 88.01366111 | AP29: 0 | AQ29: 1.513333333 | AR29: 88.01366111 | AS29: 0.0198285774 | AT29: 1.513333333 | AU29: 88.01366111 | AV29: 0.03256191236 | AW29: 1.513333333 | AX29: 6.978099267 | AZ29: 0 | BA29: 0 | BB29: 11.87135 | BC29: 0.0198285774 | BD29: 15.285 | BE29: 0.03256191236 | BF29: 0.7331008127 | BH29: 32.70136673 | BI29: 0.0792842745 | BJ29: 2.592704136 | BL29: 0 | BN29: 0.2286905569 | BO29: 16.8348451 | BP29: 3.8499701 | BR29: 0.1116752511 | BS29: 20.6848152 | BT29: 2.309981932
B30: ='Input - Inventory'!B27 -> 19 | C30: ='Input - Inventory'!C27 -> LED1x29 | D30: ='Input - Inventory'!D27 -> Lamp | E30: ='Input - Inventory'!E27 -> NonTraffic | F30: ='Input - Inventory'!F27 -> Minor | G30: ='Input - Inventory'!H27 -> 1 | I30: 22.99479713 | J30: 15545 | K30: 357454.1214 | M30: =IF(AND($D30="Lamp", OR($F30=M$9, M$9="All")),IF('Input - Inventory'!G27="N",INDIRECT("PriceBulkTask1" & RIGHT($B$2,4)),INDIRECT("PriceBulkTask1LED" & RIGHT($B$2,4))),0) -> 25.14066692 | N30: =IF(AND($D30="Lamp",CycleBulkTask1<>0, OR($F30=M$9,M$9="All")),IF('Input - Inventory'!G27="N",1/CycleBulkTask1,1/CycleBulkTask1LED),0) -> 0.1666666667 | O30: =IF(AND($D30="Lamp", OR($F30=O$9, O$9="All")),IF('Input - Inventory'!G27="N",INDIRECT("PriceBulkTask2" & RIGHT($B$2,4)),INDIRECT("PriceBulkTask2LED" & RIGHT($B$2,4))),0) -> 0 | P30: =IF(AND($D30="Lamp",CycleBulkTask2<>0, OR($F30=O$9,O$9="All")),IF('Input - Inventory'!G27="N",1/CycleBulkTask2,1/CycleBulkTask2LED),0) -> 0 | Q30: 11.70321951 | R30: 0.007123137293 | S30: 5.68008992 | T30: 0 | U30: 24.59819231 | V30: 0.005931168948 | W30: 14.73626703 | X30: 0.02002998353 | Y30: 40.96329512 | Z30: 0.01503682404 | AA30: 8448.007453 | AB30: 6.144166728e-05 | AC30: 5.849555536 | AE30: 0 | AF30: 0.1666666667 | AG30: 50.66441346 | AH30: 0.007123137293 | AI30: 11.87135 | AJ30: 0 | AK30: 15.285 | AL30: 0.02096799299 | AM30: 0.6813853458 | AO30: 88.01366111 | AP30: 0 | AQ30: 1.513333333 | AR30: 88.01366111 | AS30: 0.0198285774 | AT30: 1.513333333 | AU30: 88.01366111 | AV30: 0.03256191236 | AW30: 1.513333333 | AX30: 6.978099267 | AZ30: 0 | BA30: 0 | BB30: 11.87135 | BC30: 0.0198285774 | BD30: 15.285 | BE30: 0.03256191236 | BF30: 0.7331008127 | BH30: 32.70136673 | BI30: 0.0792842745 | BJ30: 2.592704136 | BL30: 0 | BN30: 0.2286905569 | BO30: 16.8348451 | BP30: 3.8499701 | BR30: 0.1116752511 | BS30: 20.6848152 | BT30: 2.309981932
B31: ='Input - Inventory'!B28 -> 20 | C31: ='Input - Inventory'!C28 -> LED1x298 | D31: ='Input - Inventory'!D28 -> Lamp | E31: ='Input - Inventory'!E28 -> Traffic | F31: ='Input - Inventory'!F28 -> Major | G31: ='Input - Inventory'!H28 -> 1 | I31: 30.47463231 | J31: 0 | K31: 0 | M31: =IF(AND($D31="Lamp", OR($F31=M$9, M$9="All")),IF('Input - Inventory'!G28="N",INDIRECT("PriceBulkTask1" & RIGHT($B$2,4)),INDIRECT("PriceBulkTask1LED" & RIGHT($B$2,4))),0) -> 0 | N31: =IF(AND($D31="Lamp",CycleBulkTask1<>0, OR($F31=M$9,M$9="All")),IF('Input - Inventory'!G28="N",1/CycleBulkTask1,1/CycleBulkTask1LED),0) -> 0 | O31: =IF(AND($D31="Lamp", OR($F31=O$9, O$9="All")),IF('Input - Inventory'!G28="N",INDIRECT("PriceBulkTask2" & RIGHT($B$2,4)),INDIRECT("PriceBulkTask2LED" & RIGHT($B$2,4))),0) -> 29.28487185 | P31: =IF(AND($D31="Lamp",CycleBulkTask2<>0, OR($F31=O$9,O$9="All")),IF('Input - Inventory'!G28="N",1/CycleBulkTask2,1/CycleBulkTask2LED),0) -> 0.1666666667 | Q31: 11.70321951 | R31: 0.007123137293 | S31: 5.68008992 | T31: 0 | U31: 24.59819231 | V31: 0.005931168948 | W31: 14.73626703 | X31: 0.02002998353 | Y31: 40.96329512 | Z31: 0.01503682404 | AA31: 8448.007453 | AB31: 6.144166728e-05 | AC31: 6.540256358 | AE31: 0 | AF31: 0.1666666667 | AG31: 50.66441346 | AH31: 0.007123137293 | AI31: 11.87135 | AJ31: 0 | AK31: 15.285 | AL31: 0.02096799299 | AM31: 0.6813853458 | AO31: 88.01366111 | AP31: 0 | AQ31: 2.27 | AR31: 88.01366111 | AS31: 0.0198285774 | AT31: 2.27 | AU31: 88.01366111 | AV31: 0.03256191236 | AW31: 2.27 | AX31: 10.4671489 | AZ31: 0 | BA31: 0 | BB31: 11.87135 | BC31: 0.0198285774 | BD31: 15.285 | BE31: 0.03256191236 | BF31: 0.7331008127 | BH31: 32.70136673 | BI31: 0.1189264117 | BJ31: 3.889056204 | BL31: 0 | BN31: 0.2286905569 | BO31: 22.31094762 | BP31: 5.102303036 | BR31: 0.1116752511 | BS31: 27.41325066 | BT31: 3.061381652
B32: ='Input - Inventory'!B29 -> 21 | C32: ='Input - Inventory'!C29 -> LED1x33 | D32: ='Input - Inventory'!D29 -> Lamp | E32: ='Input - Inventory'!E29 -> NonTraffic | F32: ='Input - Inventory'!F29 -> Minor | G32: ='Input - Inventory'!H29 -> 1 | I32: 22.99479713 | J32: 0 | K32: 0 | M32: =IF(AND($D32="Lamp", OR($F32=M$9, M$9="All")),IF('Input - Inventory'!G29="N",INDIRECT("PriceBulkTask1" & RIGHT($B$2,4)),INDIRECT("PriceBulkTask1LED" & RIGHT($B$2,4))),0) -> 25.14066692 | N32: =IF(AND($D32="Lamp",CycleBulkTask1<>0, OR($F32=M$9,M$9="All")),IF('Input - Inventory'!G29="N",1/CycleBulkTask1,1/CycleBulkTask1LED),0) -> 0.1666666667 | O32: =IF(AND($D32="Lamp", OR($F32=O$9, O$9="All")),IF('Input - Inventory'!G29="N",INDIRECT("PriceBulkTask2" & RIGHT($B$2,4)),INDIRECT("PriceBulkTask2LED" & RIGHT($B$2,4))),0) -> 0 | P32: =IF(AND($D32="Lamp",CycleBulkTask2<>0, OR($F32=O$9,O$9="All")),IF('Input - Inventory'!G29="N",1/CycleBulkTask2,1/CycleBulkTask2LED),0) -> 0 | Q32: 11.70321951 | R32: 0.007123137293 | S32: 5.68008992 | T32: 0 | U32: 24.59819231 | V32: 0.005931168948 | W32: 14.73626703 | X32: 0.02002998353 | Y32: 40.96329512 | Z32: 0.01503682404 | AA32: 8448.007453 | AB32: 6.144166728e-05 | AC32: 5.849555536 | AE32: 0 | AF32: 0.1666666667 | AG32: 50.66441346 | AH32: 0.007123137293 | AI32: 11.87135 | AJ32: 0 | AK32: 15.285 | AL32: 0.02096799299 | AM32: 0.6813853458 | AO32: 88.01366111 | AP32: 0 | AQ32: 1.513333333 | AR32: 88.01366111 | AS32: 0.0198285774 | AT32: 1.513333333 | AU32: 88.01366111 | AV32: 0.03256191236 | AW32: 1.513333333 | AX32: 6.978099267 | AZ32: 0 | BA32: 0 | BB32: 11.87135 | BC32: 0.0198285774 | BD32: 15.285 | BE32: 0.03256191236 | BF32: 0.7331008127 | BH32: 32.70136673 | BI32: 0.0792842745 | BJ32: 2.592704136 | BL32: 0 | BN32: 0.2286905569 | BO32: 16.8348451 | BP32: 3.8499701 | BR32: 0.1116752511 | BS32: 20.6848152 | BT32: 2.309981932
B33: ='Input - Inventory'!B30 -> 22 | C33: ='Input - Inventory'!C30 -> LED1x42 | D33: ='Input - Inventory'!D30 -> Lamp | E33: ='Input - Inventory'!E30 -> NonTraffic | F33: ='Input - Inventory'!F30 -> Minor | G33: ='Input - Inventory'!H30 -> 1 | I33: 22.99479713 | J33: 17 | K33: 390.9115512 | M33: =IF(AND($D33="Lamp", OR($F33=M$9, M$9="All")),IF('Input - Inventory'!G30="N",INDIRECT("PriceBulkTask1" & RIGHT($B$2,4)),INDIRECT("PriceBulkTask1LED" & RIGHT($B$2,4))),0) -> 25.14066692 | N33: =IF(AND($D33="Lamp",CycleBulkTask1<>0, OR($F33=M$9,M$9="All")),IF('Input - Inventory'!G30="N",1/CycleBulkTask1,1/CycleBulkTask1LED),0) -> 0.1666666667 | O33: =IF(AND($D33="Lamp", OR($F33=O$9, O$9="All")),IF('Input - Inventory'!G30="N",INDIRECT("PriceBulkTask2" & RIGHT($B$2,4)),INDIRECT("PriceBulkTask2LED" & RIGHT($B$2,4))),0) -> 0 | P33: =IF(AND($D33="Lamp",CycleBulkTask2<>0, OR($F33=O$9,O$9="All")),IF('Input - Inventory'!G30="N",1/CycleBulkTask2,1/CycleBulkTask2LED),0) -> 0 | Q33: 11.70321951 | R33: 0.007123137293 | S33: 5.68008992 | T33: 0 | U33: 24.59819231 | V33: 0.005931168948 | W33: 14.73626703 | X33: 0.02002998353 | Y33: 40.96329512 | Z33: 0.01503682404 | AA33: 8448.007453 | AB33: 6.144166728e-05 | AC33: 5.849555536 | AE33: 0 | AF33: 0.1666666667 | AG33: 50.66441346 | AH33: 0.007123137293 | AI33: 11.87135 | AJ33: 0 | AK33: 15.285 | AL33: 0.02096799299 | AM33: 0.6813853458 | AO33: 88.01366111 | AP33: 0 | AQ33: 1.513333333 | AR33: 88.01366111 | AS33: 0.0198285774 | AT33: 1.513333333 | AU33: 88.01366111 | AV33: 0.03256191236 | AW33: 1.513333333 | AX33: 6.978099267 | AZ33: 0 | BA33: 0 | BB33: 11.87135 | BC33: 0.0198285774 | BD33: 15.285 | BE33: 0.03256191236 | BF33: 0.7331008127 | BH33: 32.70136673 | BI33: 0.0792842745 | BJ33: 2.592704136 | BL33: 0 | BN33: 0.2286905569 | BO33: 16.8348451 | BP33: 3.8499701 | BR33: 0.1116752511 | BS33: 20.6848152 | BT33: 2.309981932
B34: ='Input - Inventory'!B31 -> 23 | C34: ='Input - Inventory'!C31 -> MBF1x1000 | D34: ='Input - Inventory'!D31 -> Lamp | E34: ='Input - Inventory'!E31 -> Traffic | F34: ='Input - Inventory'!F31 -> Major | G34: ='Input - Inventory'!H31 -> 1 | I34: 76.52005226 | J34: 6 | K34: 459.1203135 | M34: =IF(AND($D34="Lamp", OR($F34=M$9, M$9="All")),IF('Input - Inventory'!G31="N",INDIRECT("PriceBulkTask1" & RIGHT($B$2,4)),INDIRECT("PriceBulkTask1LED" & RIGHT($B$2,4))),0) -> 0 | N34: =IF(AND($D34="Lamp",CycleBulkTask1<>0, OR($F34=M$9,M$9="All")),IF('Input - Inventory'!G31="N",1/CycleBulkTask1,1/CycleBulkTask1LED),0) -> 0 | O34: =IF(AND($D34="Lamp", OR($F34=O$9, O$9="All")),IF('Input - Inventory'!G31="N",INDIRECT("PriceBulkTask2" & RIGHT($B$2,4)),INDIRECT("PriceBulkTask2LED" & RIGHT($B$2,4))),0) -> 29.28487185 | P34: =IF(AND($D34="Lamp",CycleBulkTask2<>0, OR($F34=O$9,O$9="All")),IF('Input - Inventory'!G31="N",1/CycleBulkTask2,1/CycleBulkTask2LED),0) -> 0.25 | Q34: 11.70321951 | R34: 0.007123137293 | S34: 5.68008992 | T34: 0 | U34: 24.59819231 | V34: 0.005931168948 | W34: 14.73626703 | X34: 0.02002998353 | Y34: 40.96329512 | Z34: 0.01503682404 | AA34: 8448.007453 | AB34: 6.144166728e-05 | AC34: 8.980662345 | AE34: 28.3282 | AF34: 0.25 | AG34: 50.66441346 | AH34: 0.007123137293 | AI34: 11.87135 | AJ34: 0 | AK34: 15.285 | AL34: 0.02096799299 | AM34: 7.763435346 | AO34: 88.01366111 | AP34: 0.08 | AQ34: 2.27 | AR34: 88.01366111 | AS34: 0.0198285774 | AT34: 2.27 | AU34: 88.01366111 | AV34: 0.03256191236 | AW34: 2.27 | AX34: 26.45042976 | AZ34: 28.3282 | BA34: 0.08 | BB34: 11.87135 | BC34: 0.0198285774 | BD34: 15.285 | BE34: 0.03256191236 | BF34: 2.999356813 | BH34: 32.70136673 | BI34: 0.3005264117 | BJ34: 9.827624401 | BL34: 0 | BN34: 0.2286905569 | BO34: 56.02150866 | BP34: 12.81159001 | BR34: 0.1116752511 | BS34: 68.83309868 | BT34: 7.686953581
B35: ='Input - Inventory'!B32 -> 24 | C35: ='Input - Inventory'!C32 -> MBF1x125 | D35: ='Input - Inventory'!D32 -> Lamp | E35: ='Input - Inventory'!E32 -> NonTraffic | F35: ='Input - Inventory'!F32 -> Minor | G35: ='Input - Inventory'!H32 -> 1 | I35: 40.48796453 | J35: 4462 | K35: 180657.2977 | M35: =IF(AND($D35="Lamp", OR($F35=M$9, M$9="All")),IF('Input - Inventory'!G32="N",INDIRECT("PriceBulkTask1" & RIGHT($B$2,4)),INDIRECT("PriceBulkTask1LED" & RIGHT($B$2,4))),0) -> 25.14066692 | N35: =IF(AND($D35="Lamp",CycleBulkTask1<>0, OR($F35=M$9,M$9="All")),IF('Input - Inventory'!G32="N",1/CycleBulkTask1,1/CycleBulkTask1LED),0) -> 0.25 | O35: =IF(AND($D35="Lamp", OR($F35=O$9, O$9="All")),IF('Input - Inventory'!G32="N",INDIRECT("PriceBulkTask2" & RIGHT($B$2,4)),INDIRECT("PriceBulkTask2LED" & RIGHT($B$2,4))),0) -> 0 | P35: =IF(AND($D35="Lamp",CycleBulkTask2<>0, OR($F35=O$9,O$9="All")),IF('Input - Inventory'!G32="N",1/CycleBulkTask2,1/CycleBulkTask2LED),0) -> 0 | Q35: 11.70321951 | R35: 0.007123137293 | S35: 5.68008992 | T35: 0 | U35: 24.59819231 | V35: 0.005931168948 | W35: 14.73626703 | X35: 0.02002998353 | Y35: 40.96329512 | Z35: 0.01503682404 | AA35: 8448.007453 | AB35: 6.144166728e-05 | AC35: 7.944611113 | AE35: 5.1969 | AF35: 0.25 | AG35: 50.66441346 | AH35: 0.007123137293 | AI35: 11.87135 | AJ35: 0 | AK35: 15.285 | AL35: 0.02096799299 | AM35: 1.980610346 | AO35: 88.01366111 | AP35: 0.0501 | AQ35: 1.513333333 | AR35: 88.01366111 | AS35: 0.0198285774 | AT35: 1.513333333 | AU35: 88.01366111 | AV35: 0.03256191236 | AW35: 1.513333333 | AX35: 13.65111902 | AZ35: 5.1969 | BA35: 0.0501 | BB35: 11.87135 | BC35: 0.0198285774 | BD35: 15.285 | BE35: 0.03256191236 | BF35: 0.9934655027 | BH35: 32.70136673 | BI35: 0.1551022745 | BJ35: 5.072056358 | BL35: 0 | BN35: 0.2286905569 | BO35: 29.64186234 | BP35: 6.778814006 | BR35: 0.1116752511 | BS35: 36.42067635 | BT35: 4.067288178
B36: ='Input - Inventory'!B33 -> 25 | C36: ='Input - Inventory'!C33 -> MBF1x250 | D36: ='Input - Inventory'!D33 -> Lamp | E36: ='Input - Inventory'!E33 -> Traffic | F36: ='Input - Inventory'!F33 -> Major | G36: ='Input - Inventory'!H33 -> 1 | I36: 54.85722883 | J36: 15031 | K36: 824559.0066 | M36: =IF(AND($D36="Lamp", OR($F36=M$9, M$9="All")),IF('Input - Inventory'!G33="N",INDIRECT("PriceBulkTask1" & RIGHT($B$2,4)),INDIRECT("PriceBulkTask1LED" & RIGHT($B$2,4))),0) -> 0 | N36: =IF(AND($D36="Lamp",CycleBulkTask1<>0, OR($F36=M$9,M$9="All")),IF('Input - Inventory'!G33="N",1/CycleBulkTask1,1/CycleBulkTask1LED),0) -> 0 | O36: =IF(AND($D36="Lamp", OR($F36=O$9, O$9="All")),IF('Input - Inventory'!G33="N",INDIRECT("PriceBulkTask2" & RIGHT($B$2,4)),INDIRECT("PriceBulkTask2LED" & RIGHT($B$2,4))),0) -> 29.28487185 | P36: =IF(AND($D36="Lamp",CycleBulkTask2<>0, OR($F36=O$9,O$9="All")),IF('Input - Inventory'!G33="N",1/CycleBulkTask2,1/CycleBulkTask2LED),0) -> 0.25 | Q36: 11.70321951 | R36: 0.007123137293 | S36: 5.68008992 | T36: 0 | U36: 24.59819231 | V36: 0.005931168948 | W36: 14.73626703 | X36: 0.02002998353 | Y36: 40.96329512 | Z36: 0.01503682404 | AA36: 8448.007453 | AB36: 6.144166728e-05 | AC36: 8.980662345 | AE36: 5.6045 | AF36: 0.25 | AG36: 50.66441346 | AH36: 0.007123137293 | AI36: 11.87135 | AJ36: 0 | AK36: 15.285 | AL36: 0.02096799299 | AM36: 2.082510346 | AO36: 88.01366111 | AP36: 0.0501 | AQ36: 2.27 | AR36: 88.01366111 | AS36: 0.0198285774 | AT36: 2.27 | AU36: 88.01366111 | AV36: 0.03256191236 | AW36: 2.27 | AX36: 20.47667854 | AZ36: 5.6045 | BA36: 0.0501 | BB36: 11.87135 | BC36: 0.0198285774 | BD36: 15.285 | BE36: 0.03256191236 | BF36: 1.013886263 | BH36: 32.70136673 | BI36: 0.2326534117 | BJ36: 7.608084538 | BL36: 0 | BN36: 0.2286905569 | BO36: 40.16182203 | BP36: 9.184629444 | BR36: 0.1116752511 | BS36: 49.34645147 | BT36: 5.510777361
B37: ='Input - Inventory'!B34 -> 26 | C37: ='Input - Inventory'!C34 -> MBF1x400 | D37: ='Input - Inventory'!D34 -> Lamp | E37: ='Input - Inventory'!E34 -> Traffic | F37: ='Input - Inventory'!F34 -> Major | G37: ='Input - Inventory'!H34 -> 1 | I37: 54.85722883 | J37: 5491 | K37: 301221.0435 | M37: =IF(AND($D37="Lamp", OR($F37=M$9, M$9="All")),IF('Input - Inventory'!G34="N",INDIRECT("PriceBulkTask1" & RIGHT($B$2,4)),INDIRECT("PriceBulkTask1LED" & RIGHT($B$2,4))),0) -> 0 | N37: =IF(AND($D37="Lamp",CycleBulkTask1<>0, OR($F37=M$9,M$9="All")),IF('Input - Inventory'!G34="N",1/CycleBulkTask1,1/CycleBulkTask1LED),0) -> 0 | O37: =IF(AND($D37="Lamp", OR($F37=O$9, O$9="All")),IF('Input - Inventory'!G34="N",INDIRECT("PriceBulkTask2" & RIGHT($B$2,4)),INDIRECT("PriceBulkTask2LED" & RIGHT($B$2,4))),0) -> 29.28487185 | P37: =IF(AND($D37="Lamp",CycleBulkTask2<>0, OR($F37=O$9,O$9="All")),IF('Input - Inventory'!G34="N",1/CycleBulkTask2,1/CycleBulkTask2LED),0) -> 0.25 | Q37: 11.70321951 | R37: 0.007123137293 | S37: 5.68008992 | T37: 0 | U37: 24.59819231 | V37: 0.005931168948 | W37: 14.73626703 | X37: 0.02002998353 | Y37: 40.96329512 | Z37: 0.01503682404 | AA37: 8448.007453 | AB37: 6.144166728e-05 | AC37: 8.980662345 | AE37: 5.6045 | AF37: 0.25 | AG37: 50.66441346 | AH37: 0.007123137293 | AI37: 11.87135 | AJ37: 0 | AK37: 15.285 | AL37: 0.02096799299 | AM37: 2.082510346 | AO37: 88.01366111 | AP37: 0.0501 | AQ37: 2.27 | AR37: 88.01366111 | AS37: 0.0198285774 | AT37: 2.27 | AU37: 88.01366111 | AV37: 0.03256191236 | AW37: 2.27 | AX37: 20.47667854 | AZ37: 5.6045 | BA37: 0.0501 | BB37: 11.87135 | BC37: 0.0198285774 | BD37: 15.285 | BE37: 0.03256191236 | BF37: 1.013886263 | BH37: 32.70136673 | BI37: 0.2326534117 | BJ37: 7.608084538 | BL37: 0 | BN37: 0.2286905569 | BO37: 40.16182203 | BP37: 9.184629444 | BR37: 0.1116752511 | BS37: 49.34645147 | BT37: 5.510777361
B38: ='Input - Inventory'!B35 -> 27 | C38: ='Input - Inventory'!C35 -> MBF1x42 | D38: ='Input - Inventory'!D35 -> Lamp | E38: ='Input - Inventory'!E35 -> NonTraffic | F38: ='Input - Inventory'!F35 -> Minor | G38: ='Input - Inventory'!H35 -> 1 | I38: 35.89572369 | J38: 42152 | K38: 1513076.545 | M38: =IF(AND($D38="Lamp", OR($F38=M$9, M$9="All")),IF('Input - Inventory'!G35="N",INDIRECT("PriceBulkTask1" & RIGHT($B$2,4)),INDIRECT("PriceBulkTask1LED" & RIGHT($B$2,4))),0) -> 25.14066692 | N38: =IF(AND($D38="Lamp",CycleBulkTask1<>0, OR($F38=M$9,M$9="All")),IF('Input - Inventory'!G35="N",1/CycleBulkTask1,1/CycleBulkTask1LED),0) -> 0.25 | O38: =IF(AND($D38="Lamp", OR($F38=O$9, O$9="All")),IF('Input - Inventory'!G35="N",INDIRECT("PriceBulkTask2" & RIGHT($B$2,4)),INDIRECT("PriceBulkTask2LED" & RIGHT($B$2,4))),0) -> 0 | P38: =IF(AND($D38="Lamp",CycleBulkTask2<>0, OR($F38=O$9,O$9="All")),IF('Input - Inventory'!G35="N",1/CycleBulkTask2,1/CycleBulkTask2LED),0) -> 0 | Q38: 11.70321951 | R38: 0.007123137293 | S38: 5.68008992 | T38: 0 | U38: 24.59819231 | V38: 0.005931168948 | W38: 14.73626703 | X38: 0.02002998353 | Y38: 40.96329512 | Z38: 0.01503682404 | AA38: 8448.007453 | AB38: 6.144166728e-05 | AC38: 7.944611113 | AE38: 3.1589 | AF38: 0.25 | AG38: 50.66441346 | AH38: 0.007123137293 | AI38: 11.87135 | AJ38: 0 | AK38: 15.285 | AL38: 0.02096799299 | AM38: 1.471110346 | AO38: 88.01366111 | AP38: 0.0353 | AQ38: 1.513333333 | AR38: 88.01366111 | AS38: 0.0198285774 | AT38: 1.513333333 | AU38: 88.01366111 | AV38: 0.03256191236 | AW38: 1.513333333 | AX38: 11.67984772 | AZ38: 3.1589 | BA38: 0.0353 | BB38: 11.87135 | BC38: 0.0198285774 | BD38: 15.285 | BE38: 0.03256191236 | BF38: 0.8446099827 | BH38: 32.70136673 | BI38: 0.1327049412 | BJ38: 4.339632947 | BL38: 0 | BN38: 0.2286905569 | BO38: 26.27981211 | BP38: 6.009944865 | BR38: 0.1116752511 | BS38: 32.28975697 | BT38: 3.605966719
B39: ='Input - Inventory'!B36 -> 28 | C39: ='Input - Inventory'!C36 -> MBF1x50 | D39: ='Input - Inventory'!D36 -> Lamp | E39: ='Input - Inventory'!E36 -> NonTraffic | F39: ='Input - Inventory'!F36 -> Minor | G39: ='Input - Inventory'!H36 -> 1 | I39: 40.63415824 | J39: 9467 | K39: 384683.576 | M39: =IF(AND($D39="Lamp", OR($F39=M$9, M$9="All")),IF('Input - Inventory'!G36="N",INDIRECT("PriceBulkTask1" & RIGHT($B$2,4)),INDIRECT("PriceBulkTask1LED" & RIGHT($B$2,4))),0) -> 25.14066692 | N39: =IF(AND($D39="Lamp",CycleBulkTask1<>0, OR($F39=M$9,M$9="All")),IF('Input - Inventory'!G36="N",1/CycleBulkTask1,1/CycleBulkTask1LED),0) -> 0.25 | O39: =IF(AND($D39="Lamp", OR($F39=O$9, O$9="All")),IF('Input - Inventory'!G36="N",INDIRECT("PriceBulkTask2" & RIGHT($B$2,4)),INDIRECT("PriceBulkTask2LED" & RIGHT($B$2,4))),0) -> 0 | P39: =IF(AND($D39="Lamp",CycleBulkTask2<>0, OR($F39=O$9,O$9="All")),IF('Input - Inventory'!G36="N",1/CycleBulkTask2,1/CycleBulkTask2LED),0) -> 0 | Q39: 11.70321951 | R39: 0.007123137293 | S39: 5.68008992 | T39: 0 | U39: 24.59819231 | V39: 0.005931168948 | W39: 14.73626703 | X39: 0.02002998353 | Y39: 40.96329512 | Z39: 0.01503682404 | AA39: 8448.007453 | AB39: 6.144166728e-05 | AC39: 7.944611113 | AE39: 5.55355 | AF39: 0.25 | AG39: 50.66441346 | AH39: 0.007123137293 | AI39: 11.87135 | AJ39: 0 | AK39: 15.285 | AL39: 0.02096799299 | AM39: 2.069772846 | AO39: 88.01366111 | AP39: 0.0501 | AQ39: 1.513333333 | AR39: 88.01366111 | AS39: 0.0198285774 | AT39: 1.513333333 | AU39: 88.01366111 | AV39: 0.03256191236 | AW39: 1.513333333 | AX39: 13.65111902 | AZ39: 5.55355 | BA39: 0.0501 | BB39: 11.87135 | BC39: 0.0198285774 | BD39: 15.285 | BE39: 0.03256191236 | BF39: 1.011333668 | BH39: 32.70136673 | BI39: 0.1551022745 | BJ39: 5.072056358 | BL39: 0 | BN39: 0.2286905569 | BO39: 29.74889301 | BP39: 6.803290908 | BR39: 0.1116752511 | BS39: 36.55218392 | BT39: 4.081974319
B40: ='Input - Inventory'!B37 -> 29 | C40: ='Input - Inventory'!C37 -> MBF1x80 | D40: ='Input - Inventory'!D37 -> Lamp | E40: ='Input - Inventory'!E37 -> NonTraffic | F40: ='Input - Inventory'!F37 -> Minor | G40: ='Input - Inventory'!H37 -> 1 | I40: 38.48692013 | J40: 70228 | K40: 2702859.427 | M40: =IF(AND($D40="Lamp", OR($F40=M$9, M$9="All")),IF('Input - Inventory'!G37="N",INDIRECT("PriceBulkTask1" & RIGHT($B$2,4)),INDIRECT("PriceBulkTask1LED" & RIGHT($B$2,4))),0) -> 25.14066692 | N40: =IF(AND($D40="Lamp",CycleBulkTask1<>0, OR($F40=M$9,M$9="All")),IF('Input - Inventory'!G37="N",1/CycleBulkTask1,1/CycleBulkTask1LED),0) -> 0.25 | O40: =IF(AND($D40="Lamp", OR($F40=O$9, O$9="All")),IF('Input - Inventory'!G37="N",INDIRECT("PriceBulkTask2" & RIGHT($B$2,4)),INDIRECT("PriceBulkTask2LED" & RIGHT($B$2,4))),0) -> 0 | P40: =IF(AND($D40="Lamp",CycleBulkTask2<>0, OR($F40=O$9,O$9="All")),IF('Input - Inventory'!G37="N",1/CycleBulkTask2,1/CycleBulkTask2LED),0) -> 0 | Q40: 11.70321951 | R40: 0.007123137293 | S40: 5.68008992 | T40: 0 | U40: 24.59819231 | V40: 0.005931168948 | W40: 14.73626703 | X40: 0.02002998353 | Y40: 40.96329512 | Z40: 0.01503682404 | AA40: 8448.007453 | AB40: 6.144166728e-05 | AC40: 7.944611113 | AE40: 3.6684 | AF40: 0.25 | AG40: 50.66441346 | AH40: 0.007123137293 | AI40: 11.87135 | AJ40: 0 | AK40: 15.285 | AL40: 0.02096799299 | AM40: 1.598485346 | AO40: 88.01366111 | AP40: 0.0447 | AQ40: 1.513333333 | AR40: 88.01366111 | AS40: 0.0198285774 | AT40: 1.513333333 | AU40: 88.01366111 | AV40: 0.03256191236 | AW40: 1.513333333 | AX40: 12.93187139 | AZ40: 3.6684 | BA40: 0.0447 | BB40: 11.87135 | BC40: 0.0198285774 | BD40: 15.285 | BE40: 0.03256191236 | BF40: 0.8970782927 | BH40: 32.70136673 | BI40: 0.1469302745 | BJ40: 4.80482079 | BL40: 0 | BN40: 0.2286905569 | BO40: 28.17686693 | BP40: 6.443783388 | BR40: 0.1116752511 | BS40: 34.62065032 | BT40: 3.866269818
B41: ='Input - Inventory'!B38 -> 30 | C41: ='Input - Inventory'!C38 -> MBF2x80 | D41: ='Input - Inventory'!D38 -> Lamp | E41: ='Input - Inventory'!E38 -> NonTraffic | F41: ='Input - Inventory'!F38 -> Minor | G41: ='Input - Inventory'!H38 -> 2 | I41: 48.72474846 | J41: 16 | K41: 779.5959754 | M41: =IF(AND($D41="Lamp", OR($F41=M$9, M$9="All")),IF('Input - Inventory'!G38="N",INDIRECT("PriceBulkTask1" & RIGHT($B$2,4)),INDIRECT("PriceBulkTask1LED" & RIGHT($B$2,4))),0) -> 25.14066692 | N41: =IF(AND($D41="Lamp",CycleBulkTask1<>0, OR($F41=M$9,M$9="All")),IF('Input - Inventory'!G38="N",1/CycleBulkTask1,1/CycleBulkTask1LED),0) -> 0.25 | O41: =IF(AND($D41="Lamp", OR($F41=O$9, O$9="All")),IF('Input - Inventory'!G38="N",INDIRECT("PriceBulkTask2" & RIGHT($B$2,4)),INDIRECT("PriceBulkTask2LED" & RIGHT($B$2,4))),0) -> 0 | P41: =IF(AND($D41="Lamp",CycleBulkTask2<>0, OR($F41=O$9,O$9="All")),IF('Input - Inventory'!G38="N",1/CycleBulkTask2,1/CycleBulkTask2LED),0) -> 0 | Q41: 11.70321951 | R41: 0.007123137293 | S41: 5.68008992 | T41: 0 | U41: 24.59819231 | V41: 0.005931168948 | W41: 14.73626703 | X41: 0.02002998353 | Y41: 40.96329512 | Z41: 0.01503682404 | AA41: 8448.007453 | AB41: 6.144166728e-05 | AC41: 7.944611113 | AE41: 7.3368 | AF41: 0.25 | AG41: 50.66441346 | AH41: 0.007123137293 | AI41: 11.87135 | AJ41: 0 | AK41: 15.285 | AL41: 0.02096799299 | AM41: 2.515585346 | AO41: 88.01366111 | AP41: 0.08 | AQ41: 1.513333333 | AR41: 88.01366111 | AS41: 0.0198285774 | AT41: 1.513333333 | AU41: 88.01366111 | AV41: 0.03256191236 | AW41: 1.513333333 | AX41: 17.63361984 | AZ41: 3.6684 | BA41: 0.08 | BB41: 11.87135 | BC41: 0.0198285774 | BD41: 15.285 | BE41: 0.03256191236 | BF41: 1.026572813 | BH41: 32.70136673 | BI41: 0.2003509412 | BJ41: 6.551749601 | BL41: 0 | BN41: 0.2286905569 | BO41: 35.67213871 | BP41: 8.157881266 | BR41: 0.1116752511 | BS41: 43.83001998 | BT41: 4.894728488
B42: ='Input - Inventory'!B39 -> 31 | C42: ='Input - Inventory'!C39 -> MBI1x100 | D42: ='Input - Inventory'!D39 -> Lamp | E42: ='Input - Inventory'!E39 -> Traffic | F42: ='Input - Inventory'!F39 -> Major | G42: ='Input - Inventory'!H39 -> 1 | I42: 54.58389748 | J42: 30 | K42: 1637.516924 | M42: =IF(AND($D42="Lamp", OR($F42=M$9, M$9="All")),IF('Input - Inventory'!G39="N",INDIRECT("PriceBulkTask1" & RIGHT($B$2,4)),INDIRECT("PriceBulkTask1LED" & RIGHT($B$2,4))),0) -> 0 | N42: =IF(AND($D42="Lamp",CycleBulkTask1<>0, OR($F42=M$9,M$9="All")),IF('Input - Inventory'!G39="N",1/CycleBulkTask1,1/CycleBulkTask1LED),0) -> 0 | O42: =IF(AND($D42="Lamp", OR($F42=O$9, O$9="All")),IF('Input - Inventory'!G39="N",INDIRECT("PriceBulkTask2" & RIGHT($B$2,4)),INDIRECT("PriceBulkTask2LED" & RIGHT($B$2,4))),0) -> 29.28487185 | P42: =IF(AND($D42="Lamp",CycleBulkTask2<>0, OR($F42=O$9,O$9="All")),IF('Input - Inventory'!G39="N",1/CycleBulkTask2,1/CycleBulkTask2LED),0) -> 0.25 | Q42: 11.70321951 | R42: 0.007123137293 | S42: 5.68008992 | T42: 0 | U42: 24.59819231 | V42: 0.005931168948 | W42: 14.73626703 | X42: 0.02002998353 | Y42: 40.96329512 | Z42: 0.01503682404 | AA42: 8448.007453 | AB42: 6.144166728e-05 | AC42: 8.980662345 | AE42: 14.65322 | AF42: 0.25 | AG42: 50.66441346 | AH42: 0.007123137293 | AI42: 11.87135 | AJ42: 0 | AK42: 15.285 | AL42: 0.02096799299 | AM42: 4.344690346 | AO42: 88.01366111 | AP42: 0.04 | AQ42: 2.27 | AR42: 88.01366111 | AS42: 0.0198285774 | AT42: 2.27 | AU42: 88.01366111 | AV42: 0.03256191236 | AW42: 2.27 | AX42: 18.45878933 | AZ42: 14.65322 | BA42: 0.04 | BB42: 11.87135 | BC42: 0.0198285774 | BD42: 15.285 | BE42: 0.03256191236 | BF42: 1.319229613 | BH42: 32.70136673 | BI42: 0.2097264117 | BJ42: 6.858340303 | BL42: 0 | BN42: 0.2286905569 | BO42: 39.96171194 | BP42: 9.138866156 | BR42: 0.1116752511 | BS42: 49.10057809 | BT42: 5.483319389
B43: ='Input - Inventory'!B40 -> 32 | C43: ='Input - Inventory'!C40 -> MBI1x1000 | D43: ='Input - Inventory'!D40 -> Lamp | E43: ='Input - Inventory'!E40 -> Traffic | F43: ='Input - Inventory'!F40 -> Major | G43: ='Input - Inventory'!H40 -> 1 | I43: 68.35604488 | J43: 13 | K43: 888.6285834 | M43: =IF(AND($D43="Lamp", OR($F43=M$9, M$9="All")),IF('Input - Inventory'!G40="N",INDIRECT("PriceBulkTask1" & RIGHT($B$2,4)),INDIRECT("PriceBulkTask1LED" & RIGHT($B$2,4))),0) -> 0 | N43: =IF(AND($D43="Lamp",CycleBulkTask1<>0, OR($F43=M$9,M$9="All")),IF('Input - Inventory'!G40="N",1/CycleBulkTask1,1/CycleBulkTask1LED),0) -> 0 | O43: =IF(AND($D43="Lamp", OR($F43=O$9, O$9="All")),IF('Input - Inventory'!G40="N",INDIRECT("PriceBulkTask2" & RIGHT($B$2,4)),INDIRECT("PriceBulkTask2LED" & RIGHT($B$2,4))),0) -> 29.28487185 | P43: =IF(AND($D43="Lamp",CycleBulkTask2<>0, OR($F43=O$9,O$9="All")),IF('Input - Inventory'!G40="N",1/CycleBulkTask2,1/CycleBulkTask2LED),0) -> 0.25 | Q43: 11.70321951 | R43: 0.007123137293 | S43: 5.68008992 | T43: 0 | U43: 24.59819231 | V43: 0.005931168948 | W43: 14.73626703 | X43: 0.02002998353 | Y43: 40.96329512 | Z43: 0.01503682404 | AA43: 8448.007453 | AB43: 6.144166728e-05 | AC43: 8.980662345 | AE43: 49.4215 | AF43: 0.25 | AG43: 50.66441346 | AH43: 0.007123137293 | AI43: 11.87135 | AJ43: 0 | AK43: 15.285 | AL43: 0.02096799299 | AM43: 13.03676035 | AO43: 88.01366111 | AP43: 0.04 | AQ43: 2.27 | AR43: 88.01366111 | AS43: 0.0198285774 | AT43: 2.27 | AU43: 88.01366111 | AV43: 0.03256191236 | AW43: 2.27 | AX43: 18.45878933 | AZ43: 49.4215 | BA43: 0.04 | BB43: 11.87135 | BC43: 0.0198285774 | BD43: 15.285 | BE43: 0.03256191236 | BF43: 2.709960813 | BH43: 32.70136673 | BI43: 0.2097264117 | BJ43: 6.858340303 | BL43: 0 | BN43: 0.2286905569 | BO43: 50.04451314 | BP43: 11.44470758 | BR43: 0.1116752511 | BS43: 61.48922071 | BT43: 6.866824165
B44: ='Input - Inventory'!B41 -> 33 | C44: ='Input - Inventory'!C41 -> MBI1x150 | D44: ='Input - Inventory'!D41 -> Lamp | E44: ='Input - Inventory'!E41 -> Traffic | F44: ='Input - Inventory'!F41 -> Major | G44: ='Input - Inventory'!H41 -> 1 | I44: 54.58389748 | J44: 4 | K44: 218.3355899 | M44: =IF(AND($D44="Lamp", OR($F44=M$9, M$9="All")),IF('Input - Inventory'!G41="N",INDIRECT("PriceBulkTask1" & RIGHT($B$2,4)),INDIRECT("PriceBulkTask1LED" & RIGHT($B$2,4))),0) -> 0 | N44: =IF(AND($D44="Lamp",CycleBulkTask1<>0, OR($F44=M$9,M$9="All")),IF('Input - Inventory'!G41="N",1/CycleBulkTask1,1/CycleBulkTask1LED),0) -> 0 | O44: =IF(AND($D44="Lamp", OR($F44=O$9, O$9="All")),IF('Input - Inventory'!G41="N",INDIRECT("PriceBulkTask2" & RIGHT($B$2,4)),INDIRECT("PriceBulkTask2LED" & RIGHT($B$2,4))),0) -> 29.28487185 | P44: =IF(AND($D44="Lamp",CycleBulkTask2<>0, OR($F44=O$9,O$9="All")),IF('Input - Inventory'!G41="N",1/CycleBulkTask2,1/CycleBulkTask2LED),0) -> 0.25 | Q44: 11.70321951 | R44: 0.007123137293 | S44: 5.68008992 | T44: 0 | U44: 24.59819231 | V44: 0.005931168948 | W44: 14.73626703 | X44: 0.02002998353 | Y44: 40.96329512 | Z44: 0.01503682404 | AA44: 8448.007453 | AB44: 6.144166728e-05 | AC44: 8.980662345 | AE44: 14.65322 | AF44: 0.25 | AG44: 50.66441346 | AH44: 0.007123137293 | AI44: 11.87135 | AJ44: 0 | AK44: 15.285 | AL44: 0.02096799299 | AM44: 4.344690346 | AO44: =IF($D44=$AE$9,(INDIRECT("PriceLabour" & RIGHT($B$2,4))*ProportionStandardHours + INDIRECT("PriceLabourOvertime" & RIGHT($B$2,4))*ProportionOvertimeHours)*(1+RateOnCostAnnual),0) -> 88.01366111 | AP44: 0.04 | AQ44: 2.27 | AR44: =IF($D44=$AE$9,(INDIRECT("PriceLabour" & RIGHT($B$2,4))*ProportionStandardHours + INDIRECT("PriceLabourOvertime" & RIGHT($B$2,4))*ProportionOvertimeHours)*(1+RateOnCostAnnual),0) -> 88.01366111 | AS44: 0.0198285774 | AT44: 2.27 | AU44: =IF($D44=$AE$9,(INDIRECT("PriceLabour" & RIGHT($B$2,4))*ProportionStandardHours + INDIRECT("PriceLabourOvertime" & RIGHT($B$2,4))*ProportionOvertimeHours)*(1+RateOnCostAnnual),0) -> 88.01366111 | AV44: 0.03256191236 | AW44: 2.27 | AX44: 18.45878933 | AZ44: 14.65322 | BA44: 0.04 | BB44: 11.87135 | BC44: 0.0198285774 | BD44: 15.285 | BE44: 0.03256191236 | BF44: 1.319229613 | BH44: 32.70136673 | BI44: 0.2097264117 | BJ44: 6.858340303 | BL44: 0 | BN44: 0.2286905569 | BO44: 39.96171194 | BP44: 9.138866156 | BR44: 0.1116752511 | BS44: 49.10057809 | BT44: 5.483319389
B45: ='Input - Inventory'!B42 -> 34 | C45: ='Input - Inventory'!C42 -> MBI1x250 | D45: ='Input - Inventory'!D42 -> Lamp | E45: ='Input - Inventory'!E42 -> Traffic | F45: ='Input - Inventory'!F42 -> Major | G45: ='Input - Inventory'!H42 -> 1 | I45: 52.08941123 | J45: 57 | K45: 2969.09644 | M45: =IF(AND($D45="Lamp", OR($F45=M$9, M$9="All")),IF('Input - Inventory'!G42="N",INDIRECT("PriceBulkTask1" & RIGHT($B$2,4)),INDIRECT("PriceBulkTask1LED" & RIGHT($B$2,4))),0) -> 0 | N45: =IF(AND($D45="Lamp",CycleBulkTask1<>0, OR($F45=M$9,M$9="All")),IF('Input - Inventory'!G42="N",1/CycleBulkTask1,1/CycleBulkTask1LED),0) -> 0 | O45: =IF(AND($D45="Lamp", OR($F45=O$9, O$9="All")),IF('Input - Inventory'!G42="N",INDIRECT("PriceBulkTask2" & RIGHT($B$2,4)),INDIRECT("PriceBulkTask2LED" & RIGHT($B$2,4))),0) -> 29.28487185 | P45: =IF(AND($D45="Lamp",CycleBulkTask2<>0, OR($F45=O$9,O$9="All")),IF('Input - Inventory'!G42="N",1/CycleBulkTask2,1/CycleBulkTask2LED),0) -> 0.25 | Q45: 11.70321951 | R45: 0.007123137293 | S45: 5.68008992 | T45: 0 | U45: 24.59819231 | V45: 0.005931168948 | W45: 14.73626703 | X45: 0.02002998353 | Y45: 40.96329512 | Z45: 0.01503682404 | AA45: 8448.007453 | AB45: 6.144166728e-05 | AC45: 8.980662345 | AE45: 8.3558 | AF45: 0.25 | AG45: 50.66441346 | AH45: 0.007123137293 | AI45: 11.87135 | AJ45: 0 | AK45: 15.285 | AL45: 0.02096799299 | AM45: 2.770335346 | AO45: 88.01366111 | AP45: 0.04 | AQ45: 2.27 | AR45: 88.01366111 | AS45: 0.0198285774 | AT45: 2.27 | AU45: 88.01366111 | AV45: 0.03256191236 | AW45: 2.27 | AX45: 18.45878933 | AZ45: 8.3558 | BA45: 0.04 | BB45: 11.87135 | BC45: 0.0198285774 | BD45: 15.285 | BE45: 0.03256191236 | BF45: 1.067332813 | BH45: 32.70136673 | BI45: 0.2097264117 | BJ45: 6.858340303 | BL45: 0 | BN45: 0.2286905569 | BO45: 38.13546014 | BP45: 8.721219615 | BR45: 0.1116752511 | BS45: 46.85667975 | BT45: 5.232731479
B46: ='Input - Inventory'!B43 -> 35 | C46: ='Input - Inventory'!C43 -> MBI1x400 | D46: ='Input - Inventory'!D43 -> Lamp | E46: ='Input - Inventory'!E43 -> Traffic | F46: ='Input - Inventory'!F43 -> Major | G46: ='Input - Inventory'!H43 -> 1 | I46: 52.00868352 | J46: 128 | K46: 6657.11149 | M46: =IF(AND($D46="Lamp", OR($F46=M$9, M$9="All")),IF('Input - Inventory'!G43="N",INDIRECT("PriceBulkTask1" & RIGHT($B$2,4)),INDIRECT("PriceBulkTask1LED" & RIGHT($B$2,4))),0) -> 0 | N46: =IF(AND($D46="Lamp",CycleBulkTask1<>0, OR($F46=M$9,M$9="All")),IF('Input - Inventory'!G43="N",1/CycleBulkTask1,1/CycleBulkTask1LED),0) -> 0 | O46: =IF(AND($D46="Lamp", OR($F46=O$9, O$9="All")),IF('Input - Inventory'!G43="N",INDIRECT("PriceBulkTask2" & RIGHT($B$2,4)),INDIRECT("PriceBulkTask2LED" & RIGHT($B$2,4))),0) -> 29.28487185 | P46: =IF(AND($D46="Lamp",CycleBulkTask2<>0, OR($F46=O$9,O$9="All")),IF('Input - Inventory'!G43="N",1/CycleBulkTask2,1/CycleBulkTask2LED),0) -> 0.25 | Q46: 11.70321951 | R46: 0.007123137293 | S46: 5.68008992 | T46: 0 | U46: 24.59819231 | V46: 0.005931168948 | W46: 14.73626703 | X46: 0.02002998353 | Y46: 40.96329512 | Z46: 0.01503682404 | AA46: 8448.007453 | AB46: 6.144166728e-05 | AC46: 8.980662345 | AE46: 8.152 | AF46: 0.25 | AG46: 50.66441346 | AH46: 0.007123137293 | AI46: 11.87135 | AJ46: 0 | AK46: 15.285 | AL46: 0.02096799299 | AM46: 2.719385346 | AO46: 88.01366111 | AP46: 0.04 | AQ46: 2.27 | AR46: 88.01366111 | AS46: 0.0198285774 | AT46: 2.27 | AU46: 88.01366111 | AV46: 0.03256191236 | AW46: 2.27 | AX46: 18.45878933 | AZ46: 8.152 | BA46: 0.04 | BB46: 11.87135 | BC46: 0.0198285774 | BD46: 15.285 | BE46: 0.03256191236 | BF46: 1.059180813 | BH46: 32.70136673 | BI46: 0.2097264117 | BJ46: 6.858340303 | BL46: 0 | BN46: 0.2286905569 | BO46: 38.07635814 | BP46: 8.707703545 | BR46: 0.1116752511 | BS46: 46.78406168 | BT46: 5.224621837
B47: ='Input - Inventory'!B44 -> 36 | C47: ='Input - Inventory'!C44 -> MBI1x70 | D47: ='Input - Inventory'!D44 -> Lamp | E47: ='Input - Inventory'!E44 -> NonTraffic | F47: ='Input - Inventory'!F44 -> Minor | G47: ='Input - Inventory'!H44 -> 1 | I47: 41.69025634 | J47: 291 | K47: 12131.86459 | M47: =IF(AND($D47="Lamp", OR($F47=M$9, M$9="All")),IF('Input - Inventory'!G44="N",INDIRECT("PriceBulkTask1" & RIGHT($B$2,4)),INDIRECT("PriceBulkTask1LED" & RIGHT($B$2,4))),0) -> 25.14066692 | N47: =IF(AND($D47="Lamp",CycleBulkTask1<>0, OR($F47=M$9,M$9="All")),IF('Input - Inventory'!G44="N",1/CycleBulkTask1,1/CycleBulkTask1LED),0) -> 0.25 | O47: =IF(AND($D47="Lamp", OR($F47=O$9, O$9="All")),IF('Input - Inventory'!G44="N",INDIRECT("PriceBulkTask2" & RIGHT($B$2,4)),INDIRECT("PriceBulkTask2LED" & RIGHT($B$2,4))),0) -> 0 | P47: =IF(AND($D47="Lamp",CycleBulkTask2<>0, OR($F47=O$9,O$9="All")),IF('Input - Inventory'!G44="N",1/CycleBulkTask2,1/CycleBulkTask2LED),0) -> 0 | Q47: 11.70321951 | R47: 0.007123137293 | S47: 5.68008992 | T47: 0 | U47: 24.59819231 | V47: 0.005931168948 | W47: 14.73626703 | X47: 0.02002998353 | Y47: 40.96329512 | Z47: 0.01503682404 | AA47: 8448.007453 | AB47: 6.144166728e-05 | AC47: 7.944611113 | AE47: 14.7755 | AF47: 0.25 | AG47: 50.66441346 | AH47: 0.007123137293 | AI47: 11.87135 | AJ47: 0 | AK47: 15.285 | AL47: 0.02096799299 | AM47: 4.375260346 | AO47: 88.01366111 | AP47: 0.04 | AQ47: 1.513333333 | AR47: 88.01366111 | AS47: 0.0198285774 | AT47: 1.513333333 | AU47: 88.01366111 | AV47: 0.03256191236 | AW47: 1.513333333 | AX47: 12.30585955 | AZ47: 14.7755 | BA47: 0.04 | BB47: 11.87135 | BC47: 0.0198285774 | BD47: 15.285 | BE47: 0.03256191236 | BF47: 1.324120813 | BH47: 32.70136673 | BI47: 0.1398176078 | BJ47: 4.572226868 | BL47: 0 | BN47: 0.2286905569 | BO47: 30.52207869 | BP47: 6.980111173 | BR47: 0.1116752511 | BS47: 37.50218986 | BT47: 4.188066471
B48: ='Input - Inventory'!B45 -> 37 | C48: ='Input - Inventory'!C45 -> MBI1x70 II | D48: ='Input - Inventory'!D45 -> Lamp | E48: ='Input - Inventory'!E45 -> NonTraffic | F48: ='Input - Inventory'!F45 -> Minor | G48: ='Input - Inventory'!H45 -> 1 | I48: 59.24853335 | J48: 396 | K48: 23462.41921 | M48: =IF(AND($D48="Lamp", OR($F48=M$9, M$9="All")),IF('Input - Inventory'!G45="N",INDIRECT("PriceBulkTask1" & RIGHT($B$2,4)),INDIRECT("PriceBulkTask1LED" & RIGHT($B$2,4))),0) -> 25.14066692 | N48: =IF(AND($D48="Lamp",CycleBulkTask1<>0, OR($F48=M$9,M$9="All")),IF('Input - Inventory'!G45="N",1/CycleBulkTask1,1/CycleBulkTask1LED),0) -> 0.25 | O48: =IF(AND($D48="Lamp", OR($F48=O$9, O$9="All")),IF('Input - Inventory'!G45="N",INDIRECT("PriceBulkTask2" & RIGHT($B$2,4)),INDIRECT("PriceBulkTask2LED" & RIGHT($B$2,4))),0) -> 0 | P48: =IF(AND($D48="Lamp",CycleBulkTask2<>0, OR($F48=O$9,O$9="All")),IF('Input - Inventory'!G45="N",1/CycleBulkTask2,1/CycleBulkTask2LED),0) -> 0 | Q48: 11.70321951 | R48: 0.007123137293 | S48: 5.68008992 | T48: 0 | U48: 24.59819231 | V48: 0.005931168948 | W48: 14.73626703 | X48: 0.02002998353 | Y48: 40.96329512 | Z48: 0.01503682404 | AA48: 8448.007453 | AB48: 6.144166728e-05 | AC48: 7.944611113 | AE48: 59.102 | AF48: 0.25 | AG48: 50.66441346 | AH48: 0.007123137293 | AI48: 11.87135 | AJ48: 0 | AK48: 15.285 | AL48: 0.02096799299 | AM48: 15.45688535 | AO48: 88.01366111 | AP48: 0.04 | AQ48: 1.513333333 | AR48: 88.01366111 | AS48: 0.0198285774 | AT48: 1.513333333 | AU48: 88.01366111 | AV48: 0.03256191236 | AW48: 1.513333333 | AX48: 12.30585955 | AZ48: 59.102 | BA48: 0.04 | BB48: 11.87135 | BC48: 0.0198285774 | BD48: 15.285 | BE48: 0.03256191236 | BF48: 3.097180813 | BH48: 32.70136673 | BI48: 0.1398176078 | BJ48: 4.572226868 | BL48: 0 | BN48: 0.2286905569 | BO48: 43.37676369 | BP48: 9.919856244 | BR48: 0.1116752511 | BS48: 53.29661994 | BT48: 5.951913416
B49: ='Input - Inventory'!B46 -> 38 | C49: ='Input - Inventory'!C46 -> SON1x100 | D49: ='Input - Inventory'!D46 -> Lamp | E49: ='Input - Inventory'!E46 -> Traffic | F49: ='Input - Inventory'!F46 -> Major | G49: ='Input - Inventory'!H46 -> 1 | I49: 64.01043002 | J49: 1424 | K49: 91150.85236 | M49: =IF(AND($D49="Lamp", OR($F49=M$9, M$9="All")),IF('Input - Inventory'!G46="N",INDIRECT("PriceBulkTask1" & RIGHT($B$2,4)),INDIRECT("PriceBulkTask1LED" & RIGHT($B$2,4))),0) -> 0 | N49: =IF(AND($D49="Lamp",CycleBulkTask1<>0, OR($F49=M$9,M$9="All")),IF('Input - Inventory'!G46="N",1/CycleBulkTask1,1/CycleBulkTask1LED),0) -> 0 | O49: =IF(AND($D49="Lamp", OR($F49=O$9, O$9="All")),IF('Input - Inventory'!G46="N",INDIRECT("PriceBulkTask2" & RIGHT($B$2,4)),INDIRECT("PriceBulkTask2LED" & RIGHT($B$2,4))),0) -> 29.28487185 | P49: =IF(AND($D49="Lamp",CycleBulkTask2<>0, OR($F49=O$9,O$9="All")),IF('Input - Inventory'!G46="N",1/CycleBulkTask2,1/CycleBulkTask2LED),0) -> 0.25 | Q49: 11.70321951 | R49: 0.007123137293 | S49: 5.68008992 | T49: 0 | U49: 24.59819231 | V49: 0.005931168948 | W49: 14.73626703 | X49: 0.02002998353 | Y49: 40.96329512 | Z49: 0.01503682404 | AA49: 8448.007453 | AB49: 6.144166728e-05 | AC49: 8.980662345 | AE49: 13.48137 | AF49: 0.25 | AG49: 50.66441346 | AH49: 0.007123137293 | AI49: 11.87135 | AJ49: 0 | AK49: 15.285 | AL49: 0.02096799299 | AM49: 4.051727846 | AO49: 88.01366111 | AP49: 0.06518620254 | AQ49: 2.27 | AR49: 88.01366111 | AS49: 0.0198285774 | AT49: 2.27 | AU49: 88.01366111 | AV49: 0.03256191236 | AW49: 2.27 | AX49: 23.49076619 | AZ49: 13.48137 | BA49: 0.06518620254 | BB49: 11.87135 | BC49: 0.0198285774 | BD49: 15.285 | BE49: 0.03256191236 | BF49: 1.611900128 | BH49: 32.70136673 | BI49: 0.2668990915 | BJ49: 8.72796507 | BL49: 0 | BN49: 0.2286905569 | BO49: 46.86302158 | BP49: 10.7171305 | BR49: 0.1116752511 | BS49: 57.58015208 | BT49: 6.430277944
B50: ='Input - Inventory'!B47 -> 39 | C50: ='Input - Inventory'!C47 -> SON1x1000 | D50: ='Input - Inventory'!D47 -> Lamp | E50: ='Input - Inventory'!E47 -> Traffic | F50: ='Input - Inventory'!F47 -> Major | G50: ='Input - Inventory'!H47 -> 1 | I50: 70.40220374 | J50: 49 | K50: 3449.707983 | M50: =IF(AND($D50="Lamp", OR($F50=M$9, M$9="All")),IF('Input - Inventory'!G47="N",INDIRECT("PriceBulkTask1" & RIGHT($B$2,4)),INDIRECT("PriceBulkTask1LED" & RIGHT($B$2,4))),0) -> 0 | N50: =IF(AND($D50="Lamp",CycleBulkTask1<>0, OR($F50=M$9,M$9="All")),IF('Input - Inventory'!G47="N",1/CycleBulkTask1,1/CycleBulkTask1LED),0) -> 0 | O50: =IF(AND($D50="Lamp", OR($F50=O$9, O$9="All")),IF('Input - Inventory'!G47="N",INDIRECT("PriceBulkTask2" & RIGHT($B$2,4)),INDIRECT("PriceBulkTask2LED" & RIGHT($B$2,4))),0) -> 29.28487185 | P50: =IF(AND($D50="Lamp",CycleBulkTask2<>0, OR($F50=O$9,O$9="All")),IF('Input - Inventory'!G47="N",1/CycleBulkTask2,1/CycleBulkTask2LED),0) -> 0.25 | Q50: 11.70321951 | R50: 0.007123137293 | S50: 5.68008992 | T50: 0 | U50: 24.59819231 | V50: 0.005931168948 | W50: 14.73626703 | X50: 0.02002998353 | Y50: 40.96329512 | Z50: 0.01503682404 | AA50: 8448.007453 | AB50: 6.144166728e-05 | AC50: 8.980662345 | AE50: 28.3282 | AF50: 0.25 | AG50: 50.66441346 | AH50: 0.007123137293 | AI50: 11.87135 | AJ50: 0 | AK50: 15.285 | AL50: 0.02096799299 | AM50: 7.763435346 | AO50: 88.01366111 | AP50: 0.06518620254 | AQ50: 2.27 | AR50: 88.01366111 | AS50: 0.0198285774 | AT50: 2.27 | AU50: 88.01366111 | AV50: 0.03256191236 | AW50: 2.27 | AX50: 23.49076619 | AZ50: 28.3282 | BA50: 0.06518620254 | BB50: 11.87135 | BC50: 0.0198285774 | BD50: 15.285 | BE50: 0.03256191236 | BF50: 2.579708595 | BH50: 32.70136673 | BI50: 0.2668990915 | BJ50: 8.72796507 | BL50: 0 | BN50: 0.2286905569 | BO50: 51.54253755 | BP50: 11.78729161 | BR50: 0.1116752511 | BS50: 63.32982916 | BT50: 7.072374576
B51: ='Input - Inventory'!B48 -> 40 | C51: ='Input - Inventory'!C48 -> SON1x150 | D51: ='Input - Inventory'!D48 -> Lamp | E51: ='Input - Inventory'!E48 -> Traffic | F51: ='Input - Inventory'!F48 -> Major | G51: ='Input - Inventory'!H48 -> 1 | I51: 60.83867135 | J51: 19878 | K51: 1209351.109 | M51: =IF(AND($D51="Lamp", OR($F51=M$9, M$9="All")),IF('Input - Inventory'!G48="N",INDIRECT("PriceBulkTask1" & RIGHT($B$2,4)),INDIRECT("PriceBulkTask1LED" & RIGHT($B$2,4))),0) -> 0 | N51: =IF(AND($D51="Lamp",CycleBulkTask1<>0, OR($F51=M$9,M$9="All")),IF('Input - Inventory'!G48="N",1/CycleBulkTask1,1/CycleBulkTask1LED),0) -> 0 | O51: =IF(AND($D51="Lamp", OR($F51=O$9, O$9="All")),IF('Input - Inventory'!G48="N",INDIRECT("PriceBulkTask2" & RIGHT($B$2,4)),INDIRECT("PriceBulkTask2LED" & RIGHT($B$2,4))),0) -> 29.28487185 | P51: =IF(AND($D51="Lamp",CycleBulkTask2<>0, OR($F51=O$9,O$9="All")),IF('Input - Inventory'!G48="N",1/CycleBulkTask2,1/CycleBulkTask2LED),0) -> 0.25 | Q51: 11.70321951 | R51: 0.007123137293 | S51: 5.68008992 | T51: 0 | U51: 24.59819231 | V51: 0.005931168948 | W51: 14.73626703 | X51: 0.02002998353 | Y51: 40.96329512 | Z51: 0.01503682404 | AA51: 8448.007453 | AB51: 6.144166728e-05 | AC51: 8.980662345 | AE51: 6.114 | AF51: 0.25 | AG51: 50.66441346 | AH51: 0.007123137293 | AI51: 11.87135 | AJ51: 0 | AK51: 15.285 | AL51: 0.02096799299 | AM51: 2.209885346 | AO51: 88.01366111 | AP51: 0.06518620254 | AQ51: 2.27 | AR51: 88.01366111 | AS51: 0.0198285774 | AT51: 2.27 | AU51: 88.01366111 | AV51: 0.03256191236 | AW51: 2.27 | AX51: 23.49076619 | AZ51: 6.114 | BA51: 0.06518620254 | BB51: 11.87135 | BC51: 0.0198285774 | BD51: 15.285 | BE51: 0.03256191236 | BF51: 1.131649255 | BH51: 32.70136673 | BI51: 0.2668990915 | BJ51: 8.72796507 | BL51: 0 | BN51: 0.2286905569 | BO51: 44.54092821 | BP51: 10.18608967 | BR51: 0.1116752511 | BS51: 54.72701788 | BT51: 6.111653466
B52: ='Input - Inventory'!B49 -> 41 | C52: ='Input - Inventory'!C49 -> SON1x150 AR | D52: ='Input - Inventory'!D49 -> Lamp | E52: ='Input - Inventory'!E49 -> Traffic | F52: ='Input - Inventory'!F49 -> Major | G52: ='Input - Inventory'!H49 -> 1 | I52: 60.83867135 | J52: 2615 | K52: 159093.1256 | M52: =IF(AND($D52="Lamp", OR($F52=M$9, M$9="All")),IF('Input - Inventory'!G49="N",INDIRECT("PriceBulkTask1" & RIGHT($B$2,4)),INDIRECT("PriceBulkTask1LED" & RIGHT($B$2,4))),0) -> 0 | N52: =IF(AND($D52="Lamp",CycleBulkTask1<>0, OR($F52=M$9,M$9="All")),IF('Input - Inventory'!G49="N",1/CycleBulkTask1,1/CycleBulkTask1LED),0) -> 0 | O52: =IF(AND($D52="Lamp", OR($F52=O$9, O$9="All")),IF('Input - Inventory'!G49="N",INDIRECT("PriceBulkTask2" & RIGHT($B$2,4)),INDIRECT("PriceBulkTask2LED" & RIGHT($B$2,4))),0) -> 29.28487185 | P52: =IF(AND($D52="Lamp",CycleBulkTask2<>0, OR($F52=O$9,O$9="All")),IF('Input - Inventory'!G49="N",1/CycleBulkTask2,1/CycleBulkTask2LED),0) -> 0.25 | Q52: 11.70321951 | R52: 0.007123137293 | S52: 5.68008992 | T52: 0 | U52: 24.59819231 | V52: 0.005931168948 | W52: 14.73626703 | X52: 0.02002998353 | Y52: 40.96329512 | Z52: 0.01503682404 | AA52: 8448.007453 | AB52: 6.144166728e-05 | AC52: 8.980662345 | AE52: 6.114 | AF52: 0.25 | AG52: 50.66441346 | AH52: 0.007123137293 | AI52: 11.87135 | AJ52: 0 | AK52: 15.285 | AL52: 0.02096799299 | AM52: 2.209885346 | AO52: 88.01366111 | AP52: 0.06518620254 | AQ52: 2.27 | AR52: 88.01366111 | AS52: 0.0198285774 | AT52: 2.27 | AU52: 88.01366111 | AV52: 0.03256191236 | AW52: 2.27 | AX52: 23.49076619 | AZ52: 6.114 | BA52: 0.06518620254 | BB52: 11.87135 | BC52: 0.0198285774 | BD52: 15.285 | BE52: 0.03256191236 | BF52: 1.131649255 | BH52: 32.70136673 | BI52: 0.2668990915 | BJ52: 8.72796507 | BL52: 0 | BN52: 0.2286905569 | BO52: 44.54092821 | BP52: 10.18608967 | BR52: 0.1116752511 | BS52: 54.72701788 | BT52: 6.111653466
B53: ='Input - Inventory'!B50 -> 42 | C53: ='Input - Inventory'!C50 -> SON1x250 | D53: ='Input - Inventory'!D50 -> Lamp | E53: ='Input - Inventory'!E50 -> Traffic | F53: ='Input - Inventory'!F50 -> Major | G53: ='Input - Inventory'!H50 -> 1 | I53: 62.33023144 | J53: 24760 | K53: 1543296.531 | M53: =IF(AND($D53="Lamp", OR($F53=M$9, M$9="All")),IF('Input - Inventory'!G50="N",INDIRECT("PriceBulkTask1" & RIGHT($B$2,4)),INDIRECT("PriceBulkTask1LED" & RIGHT($B$2,4))),0) -> 0 | N53: =IF(AND($D53="Lamp",CycleBulkTask1<>0, OR($F53=M$9,M$9="All")),IF('Input - Inventory'!G50="N",1/CycleBulkTask1,1/CycleBulkTask1LED),0) -> 0 | O53: =IF(AND($D53="Lamp", OR($F53=O$9, O$9="All")),IF('Input - Inventory'!G50="N",INDIRECT("PriceBulkTask2" & RIGHT($B$2,4)),INDIRECT("PriceBulkTask2LED" & RIGHT($B$2,4))),0) -> 29.28487185 | P53: =IF(AND($D53="Lamp",CycleBulkTask2<>0, OR($F53=O$9,O$9="All")),IF('Input - Inventory'!G50="N",1/CycleBulkTask2,1/CycleBulkTask2LED),0) -> 0.25 | Q53: 11.70321951 | R53: 0.007123137293 | S53: 5.68008992 | T53: 0 | U53: 24.59819231 | V53: 0.005931168948 | W53: 14.73626703 | X53: 0.02002998353 | Y53: 40.96329512 | Z53: 0.01503682404 | AA53: 8448.007453 | AB53: 6.144166728e-05 | AC53: 8.980662345 | AE53: 9.5786 | AF53: 0.25 | AG53: 50.66441346 | AH53: 0.007123137293 | AI53: 11.87135 | AJ53: 0 | AK53: 15.285 | AL53: 0.02096799299 | AM53: 3.076035346 | AO53: 88.01366111 | AP53: 0.06518620254 | AQ53: 2.27 | AR53: 88.01366111 | AS53: 0.0198285774 | AT53: 2.27 | AU53: 88.01366111 | AV53: 0.03256191236 | AW53: 2.27 | AX53: 23.49076619 | AZ53: 9.5786 | BA53: 0.06518620254 | BB53: 11.87135 | BC53: 0.0198285774 | BD53: 15.285 | BE53: 0.03256191236 | BF53: 1.357493372 | BH53: 32.70136673 | BI53: 0.2668990915 | BJ53: 8.72796507 | BL53: 0 | BN53: 0.2286905569 | BO53: 45.63292232 | BP53: 10.43581842 | BR53: 0.1116752511 | BS53: 56.06874074 | BT53: 6.261490703
B54: ='Input - Inventory'!B51 -> 43 | C54: ='Input - Inventory'!C51 -> SON1x250 AR | D54: ='Input - Inventory'!D51 -> Lamp | E54: ='Input - Inventory'!E51 -> Traffic | F54: ='Input - Inventory'!F51 -> Major | G54: ='Input - Inventory'!H51 -> 1 | I54: 62.33023144 | J54: 3306 | K54: 206063.7452 | M54: =IF(AND($D54="Lamp", OR($F54=M$9, M$9="All")),IF('Input - Inventory'!G51="N",INDIRECT("PriceBulkTask1" & RIGHT($B$2,4)),INDIRECT("PriceBulkTask1LED" & RIGHT($B$2,4))),0) -> 0 | N54: =IF(AND($D54="Lamp",CycleBulkTask1<>0, OR($F54=M$9,M$9="All")),IF('Input - Inventory'!G51="N",1/CycleBulkTask1,1/CycleBulkTask1LED),0) -> 0 | O54: =IF(AND($D54="Lamp", OR($F54=O$9, O$9="All")),IF('Input - Inventory'!G51="N",INDIRECT("PriceBulkTask2" & RIGHT($B$2,4)),INDIRECT("PriceBulkTask2LED" & RIGHT($B$2,4))),0) -> 29.28487185 | P54: =IF(AND($D54="Lamp",CycleBulkTask2<>0, OR($F54=O$9,O$9="All")),IF('Input - Inventory'!G51="N",1/CycleBulkTask2,1/CycleBulkTask2LED),0) -> 0.25 | Q54: 11.70321951 | R54: 0.007123137293 | S54: 5.68008992 | T54: 0 | U54: 24.59819231 | V54: 0.005931168948 | W54: 14.73626703 | X54: 0.02002998353 | Y54: 40.96329512 | Z54: 0.01503682404 | AA54: 8448.007453 | AB54: 6.144166728e-05 | AC54: 8.980662345 | AE54: 9.5786 | AF54: 0.25 | AG54: 50.66441346 | AH54: 0.007123137293 | AI54: 11.87135 | AJ54: 0 | AK54: 15.285 | AL54: 0.02096799299 | AM54: 3.076035346 | AO54: 88.01366111 | AP54: 0.06518620254 | AQ54: 2.27 | AR54: 88.01366111 | AS54: 0.0198285774 | AT54: 2.27 | AU54: 88.01366111 | AV54: 0.03256191236 | AW54: 2.27 | AX54: 23.49076619 | AZ54: 9.5786 | BA54: 0.06518620254 | BB54: 11.87135 | BC54: 0.0198285774 | BD54: 15.285 | BE54: 0.03256191236 | BF54: 1.357493372 | BH54: 32.70136673 | BI54: 0.2668990915 | BJ54: 8.72796507 | BL54: 0 | BN54: 0.2286905569 | BO54: 45.63292232 | BP54: 10.43581842 | BR54: 0.1116752511 | BS54: 56.06874074 | BT54: 6.261490703
B55: ='Input - Inventory'!B52 -> 44 | C55: ='Input - Inventory'!C52 -> SON1x400 | D55: ='Input - Inventory'!D52 -> Lamp | E55: ='Input - Inventory'!E52 -> Traffic | F55: ='Input - Inventory'!F52 -> Major | G55: ='Input - Inventory'!H52 -> 1 | I55: 62.98827266 | J55: 2122 | K55: 133661.1146 | M55: =IF(AND($D55="Lamp", OR($F55=M$9, M$9="All")),IF('Input - Inventory'!G52="N",INDIRECT("PriceBulkTask1" & RIGHT($B$2,4)),INDIRECT("PriceBulkTask1LED" & RIGHT($B$2,4))),0) -> 0 | N55: =IF(AND($D55="Lamp",CycleBulkTask1<>0, OR($F55=M$9,M$9="All")),IF('Input - Inventory'!G52="N",1/CycleBulkTask1,1/CycleBulkTask1LED),0) -> 0 | O55: =IF(AND($D55="Lamp", OR($F55=O$9, O$9="All")),IF('Input - Inventory'!G52="N",INDIRECT("PriceBulkTask2" & RIGHT($B$2,4)),INDIRECT("PriceBulkTask2LED" & RIGHT($B$2,4))),0) -> 29.28487185 | P55: =IF(AND($D55="Lamp",CycleBulkTask2<>0, OR($F55=O$9,O$9="All")),IF('Input - Inventory'!G52="N",1/CycleBulkTask2,1/CycleBulkTask2LED),0) -> 0.25 | Q55: 11.70321951 | R55: 0.007123137293 | S55: 5.68008992 | T55: 0 | U55: 24.59819231 | V55: 0.005931168948 | W55: 14.73626703 | X55: 0.02002998353 | Y55: 40.96329512 | Z55: 0.01503682404 | AA55: 8448.007453 | AB55: 6.144166728e-05 | AC55: 8.980662345 | AE55: 11.1071 | AF55: 0.25 | AG55: 50.66441346 | AH55: 0.007123137293 | AI55: 11.87135 | AJ55: 0 | AK55: 15.285 | AL55: 0.02096799299 | AM55: 3.458160346 | AO55: 88.01366111 | AP55: 0.06518620254 | AQ55: 2.27 | AR55: 88.01366111 | AS55: 0.0198285774 | AT55: 2.27 | AU55: 88.01366111 | AV55: 0.03256191236 | AW55: 2.27 | AX55: 23.49076619 | AZ55: 11.1071 | BA55: 0.06518620254 | BB55: 11.87135 | BC55: 0.0198285774 | BD55: 15.285 | BE55: 0.03256191236 | BF55: 1.457130483 | BH55: 32.70136673 | BI55: 0.2668990915 | BJ55: 8.72796507 | BL55: 0 | BN55: 0.2286905569 | BO55: 46.11468443 | BP55: 10.54599286 | BR55: 0.1116752511 | BS55: 56.6606773 | BT55: 6.327595367
B56: ='Input - Inventory'!B53 -> 45 | C56: ='Input - Inventory'!C53 -> SON1x400 AR | D56: ='Input - Inventory'!D53 -> Lamp | E56: ='Input - Inventory'!E53 -> Traffic | F56: ='Input - Inventory'!F53 -> Major | G56: ='Input - Inventory'!H53 -> 1 | I56: 86.45384138 | J56: 332 | K56: 28702.67534 | M56: =IF(AND($D56="Lamp", OR($F56=M$9, M$9="All")),IF('Input - Inventory'!G53="N",INDIRECT("PriceBulkTask1" & RIGHT($B$2,4)),INDIRECT("PriceBulkTask1LED" & RIGHT($B$2,4))),0) -> 0 | N56: =IF(AND($D56="Lamp",CycleBulkTask1<>0, OR($F56=M$9,M$9="All")),IF('Input - Inventory'!G53="N",1/CycleBulkTask1,1/CycleBulkTask1LED),0) -> 0 | O56: =IF(AND($D56="Lamp", OR($F56=O$9, O$9="All")),IF('Input - Inventory'!G53="N",INDIRECT("PriceBulkTask2" & RIGHT($B$2,4)),INDIRECT("PriceBulkTask2LED" & RIGHT($B$2,4))),0) -> 29.28487185 | P56: =IF(AND($D56="Lamp",CycleBulkTask2<>0, OR($F56=O$9,O$9="All")),IF('Input - Inventory'!G53="N",1/CycleBulkTask2,1/CycleBulkTask2LED),0) -> 0.25 | Q56: 11.70321951 | R56: 0.007123137293 | S56: 5.68008992 | T56: 0 | U56: 24.59819231 | V56: 0.005931168948 | W56: 14.73626703 | X56: 0.02002998353 | Y56: 40.96329512 | Z56: 0.01503682404 | AA56: 8448.007453 | AB56: 6.144166728e-05 | AC56: 8.980662345 | AE56: 11.1071 | AF56: 0.25 | AG56: 50.66441346 | AH56: 0.007123137293 | AI56: 11.87135 | AJ56: 0 | AK56: 140 | AL56: 0.125 | AM56: 20.63766457 | AO56: 88.01366111 | AP56: 0.06518620254 | AQ56: 2.27 | AR56: 88.01366111 | AS56: 0.0198285774 | AT56: 2.27 | AU56: 88.01366111 | AV56: 0.03256191236 | AW56: 2.27 | AX56: 23.49076619 | AZ56: 11.1071 | BA56: 0.06518620254 | BB56: 11.87135 | BC56: 0.0198285774 | BD56: 15.285 | BE56: 0.03256191236 | BF56: 1.457130483 | BH56: 32.70136673 | BI56: 0.2668990915 | BJ56: 8.72796507 | BL56: 0 | BN56: 0.2286905569 | BO56: 63.29418866 | BP56: 14.47478325 | BR56: 0.1116752511 | BS56: 77.76897191 | BT56: 8.684869469
B57: ='Input - Inventory'!B54 -> 46 | C57: ='Input - Inventory'!C54 -> SON1x50 | D57: ='Input - Inventory'!D54 -> Lamp | E57: ='Input - Inventory'!E54 -> NonTraffic | F57: ='Input - Inventory'!F54 -> Minor | G57: ='Input - Inventory'!H54 -> 1 | I57: 46.53538135 | J57: 465 | K57: 21638.95233 | M57: =IF(AND($D57="Lamp", OR($F57=M$9, M$9="All")),IF('Input - Inventory'!G54="N",INDIRECT("PriceBulkTask1" & RIGHT($B$2,4)),INDIRECT("PriceBulkTask1LED" & RIGHT($B$2,4))),0) -> 25.14066692 | N57: =IF(AND($D57="Lamp",CycleBulkTask1<>0, OR($F57=M$9,M$9="All")),IF('Input - Inventory'!G54="N",1/CycleBulkTask1,1/CycleBulkTask1LED),0) -> 0.25 | O57: =IF(AND($D57="Lamp", OR($F57=O$9, O$9="All")),IF('Input - Inventory'!G54="N",INDIRECT("PriceBulkTask2" & RIGHT($B$2,4)),INDIRECT("PriceBulkTask2LED" & RIGHT($B$2,4))),0) -> 0 | P57: =IF(AND($D57="Lamp",CycleBulkTask2<>0, OR($F57=O$9,O$9="All")),IF('Input - Inventory'!G54="N",1/CycleBulkTask2,1/CycleBulkTask2LED),0) -> 0 | Q57: 11.70321951 | R57: 0.007123137293 | S57: 5.68008992 | T57: 0 | U57: 24.59819231 | V57: 0.005931168948 | W57: 14.73626703 | X57: 0.02002998353 | Y57: 40.96329512 | Z57: 0.01503682404 | AA57: 8448.007453 | AB57: 6.144166728e-05 | AC57: 7.944611113 | AE57: 10.25114 | AF57: 0.25 | AG57: 50.66441346 | AH57: 0.007123137293 | AI57: 11.87135 | AJ57: 0 | AK57: 15.285 | AL57: 0.02096799299 | AM57: 3.244170346 | AO57: 88.01366111 | AP57: 0.06518620254 | AQ57: 1.513333333 | AR57: 88.01366111 | AS57: 0.0198285774 | AT57: 1.513333333 | AU57: 88.01366111 | AV57: 0.03256191236 | AW57: 1.513333333 | AX57: 15.66051079 | AZ57: 10.25114 | BA57: 0.06518620254 | BB57: 11.87135 | BC57: 0.0198285774 | BD57: 15.285 | BE57: 0.03256191236 | BF57: 1.401333701 | BH57: 32.70136673 | BI57: 0.1779327277 | BJ57: 5.81864338 | BL57: 0 | BN57: 0.2286905569 | BO57: 34.06926933 | BP57: 7.791320176 | BR57: 0.1116752511 | BS57: 41.86058951 | BT57: 4.674791846
B58: ='Input - Inventory'!B55 -> 47 | C58: ='Input - Inventory'!C55 -> SON1x600 | D58: ='Input - Inventory'!D55 -> Lamp | E58: ='Input - Inventory'!E55 -> Traffic | F58: ='Input - Inventory'!F55 -> Major | G58: ='Input - Inventory'!H55 -> 1 | I58: 70.40220374 | J58: 1 | K58: 70.40220374 | M58: =IF(AND($D58="Lamp", OR($F58=M$9, M$9="All")),IF('Input - Inventory'!G55="N",INDIRECT("PriceBulkTask1" & RIGHT($B$2,4)),INDIRECT("PriceBulkTask1LED" & RIGHT($B$2,4))),0) -> 0 | N58: =IF(AND($D58="Lamp",CycleBulkTask1<>0, OR($F58=M$9,M$9="All")),IF('Input - Inventory'!G55="N",1/CycleBulkTask1,1/CycleBulkTask1LED),0) -> 0 | O58: =IF(AND($D58="Lamp", OR($F58=O$9, O$9="All")),IF('Input - Inventory'!G55="N",INDIRECT("PriceBulkTask2" & RIGHT($B$2,4)),INDIRECT("PriceBulkTask2LED" & RIGHT($B$2,4))),0) -> 29.28487185 | P58: =IF(AND($D58="Lamp",CycleBulkTask2<>0, OR($F58=O$9,O$9="All")),IF('Input - Inventory'!G55="N",1/CycleBulkTask2,1/CycleBulkTask2LED),0) -> 0.25 | Q58: 11.70321951 | R58: 0.007123137293 | S58: 5.68008992 | T58: 0 | U58: 24.59819231 | V58: 0.005931168948 | W58: 14.73626703 | X58: 0.02002998353 | Y58: 40.96329512 | Z58: 0.01503682404 | AA58: 8448.007453 | AB58: 6.144166728e-05 | AC58: 8.980662345 | AE58: 28.3282 | AF58: 0.25 | AG58: 50.66441346 | AH58: 0.007123137293 | AI58: 11.87135 | AJ58: 0 | AK58: 15.285 | AL58: 0.02096799299 | AM58: 7.763435346 | AO58: 88.01366111 | AP58: 0.06518620254 | AQ58: 2.27 | AR58: 88.01366111 | AS58: 0.0198285774 | AT58: 2.27 | AU58: 88.01366111 | AV58: 0.03256191236 | AW58: 2.27 | AX58: 23.49076619 | AZ58: 28.3282 | BA58: 0.06518620254 | BB58: 11.87135 | BC58: 0.0198285774 | BD58: 15.285 | BE58: 0.03256191236 | BF58: 2.579708595 | BH58: 32.70136673 | BI58: 0.2668990915 | BJ58: 8.72796507 | BL58: 0 | BN58: 0.2286905569 | BO58: 51.54253755 | BP58: 11.78729161 | BR58: 0.1116752511 | BS58: 63.32982916 | BT58: 7.072374576
B59: ='Input - Inventory'!B56 -> 48 | C59: ='Input - Inventory'!C56 -> SON1x70 | D59: ='Input - Inventory'!D56 -> Lamp | E59: ='Input - Inventory'!E56 -> NonTraffic | F59: ='Input - Inventory'!F56 -> Minor | G59: ='Input - Inventory'!H56 -> 1 | I59: 44.88589136 | J59: 2005 | K59: 89996.21219 | M59: =IF(AND($D59="Lamp", OR($F59=M$9, M$9="All")),IF('Input - Inventory'!G56="N",INDIRECT("PriceBulkTask1" & RIGHT($B$2,4)),INDIRECT("PriceBulkTask1LED" & RIGHT($B$2,4))),0) -> 25.14066692 | N59: =IF(AND($D59="Lamp",CycleBulkTask1<>0, OR($F59=M$9,M$9="All")),IF('Input - Inventory'!G56="N",1/CycleBulkTask1,1/CycleBulkTask1LED),0) -> 0.25 | O59: =IF(AND($D59="Lamp", OR($F59=O$9, O$9="All")),IF('Input - Inventory'!G56="N",INDIRECT("PriceBulkTask2" & RIGHT($B$2,4)),INDIRECT("PriceBulkTask2LED" & RIGHT($B$2,4))),0) -> 0 | P59: =IF(AND($D59="Lamp",CycleBulkTask2<>0, OR($F59=O$9,O$9="All")),IF('Input - Inventory'!G56="N",1/CycleBulkTask2,1/CycleBulkTask2LED),0) -> 0 | Q59: 11.70321951 | R59: 0.007123137293 | S59: 5.68008992 | T59: 0 | U59: 24.59819231 | V59: 0.005931168948 | W59: 14.73626703 | X59: 0.02002998353 | Y59: 40.96329512 | Z59: 0.01503682404 | AA59: 8448.007453 | AB59: 6.144166728e-05 | AC59: 7.944611113 | AE59: 6.4197 | AF59: 0.25 | AG59: 50.66441346 | AH59: 0.007123137293 | AI59: 11.87135 | AJ59: 0 | AK59: 15.285 | AL59: 0.02096799299 | AM59: 2.286310346 | AO59: 88.01366111 | AP59: 0.06518620254 | AQ59: 1.513333333 | AR59: 88.01366111 | AS59: 0.0198285774 | AT59: 1.513333333 | AU59: 88.01366111 | AV59: 0.03256191236 | AW59: 1.513333333 | AX59: 15.66051079 | AZ59: 6.4197 | BA59: 0.06518620254 | BB59: 11.87135 | BC59: 0.0198285774 | BD59: 15.285 | BE59: 0.03256191236 | BF59: 1.151576677 | BH59: 32.70136673 | BI59: 0.1779327277 | BJ59: 5.81864338 | BL59: 0 | BN59: 0.2286905569 | BO59: 32.86165231 | BP59: 7.515149566 | BR59: 0.1116752511 | BS59: 40.37680188 | BT59: 4.509089489
B60: ='Input - Inventory'!B57 -> 49 | C60: ='Input - Inventory'!C57 -> SON2x250 | D60: ='Input - Inventory'!D57 -> Lamp | E60: ='Input - Inventory'!E57 -> Traffic | F60: ='Input - Inventory'!F57 -> Major | G60: ='Input - Inventory'!H57 -> 2 | I60: 89.20642704 | J60: 30 | K60: 2676.192811 | M60: =IF(AND($D60="Lamp", OR($F60=M$9, M$9="All")),IF('Input - Inventory'!G57="N",INDIRECT("PriceBulkTask1" & RIGHT($B$2,4)),INDIRECT("PriceBulkTask1LED" & RIGHT($B$2,4))),0) -> 0 | N60: =IF(AND($D60="Lamp",CycleBulkTask1<>0, OR($F60=M$9,M$9="All")),IF('Input - Inventory'!G57="N",1/CycleBulkTask1,1/CycleBulkTask1LED),0) -> 0 | O60: =IF(AND($D60="Lamp", OR($F60=O$9, O$9="All")),IF('Input - Inventory'!G57="N",INDIRECT("PriceBulkTask2" & RIGHT($B$2,4)),INDIRECT("PriceBulkTask2LED" & RIGHT($B$2,4))),0) -> 29.28487185 | P60: =IF(AND($D60="Lamp",CycleBulkTask2<>0, OR($F60=O$9,O$9="All")),IF('Input - Inventory'!G57="N",1/CycleBulkTask2,1/CycleBulkTask2LED),0) -> 0.25 | Q60: 11.70321951 | R60: 0.007123137293 | S60: 5.68008992 | T60: 0 | U60: 24.59819231 | V60: 0.005931168948 | W60: 14.73626703 | X60: 0.02002998353 | Y60: 40.96329512 | Z60: 0.01503682404 | AA60: 8448.007453 | AB60: 6.144166728e-05 | AC60: 8.980662345 | AE60: 19.1572 | AF60: 0.25 | AG60: 50.66441346 | AH60: 0.007123137293 | AI60: 11.87135 | AJ60: 0 | AK60: 15.285 | AL60: 0.02096799299 | AM60: 5.470685346 | AO60: 88.01366111 | AP60: 0.1261231641 | AQ60: 2.27 | AR60: 88.01366111 | AS60: 0.0198285774 | AT60: 2.27 | AU60: 88.01366111 | AV60: 0.03256191236 | AW60: 2.27 | AX60: 35.66542333 | AZ60: 9.5786 | BA60: 0.1261231641 | BB60: 11.87135 | BC60: 0.0198285774 | BD60: 15.285 | BE60: 0.03256191236 | BF60: 1.941184152 | BH60: 32.70136673 | BI60: 0.4052259942 | BJ60: 13.25144384 | BL60: 0 | BN60: 0.2286905569 | BO60: 65.30939901 | BP60: 14.93564283 | BR60: 0.1116752511 | BS60: 80.24504184 | BT60: 8.9613852
B61: ='Input - Inventory'!B58 -> 50 | C61: ='Input - Inventory'!C58 -> SON2x400 | D61: ='Input - Inventory'!D58 -> Lamp | E61: ='Input - Inventory'!E58 -> Traffic | F61: ='Input - Inventory'!F58 -> Major | G61: ='Input - Inventory'!H58 -> 2 | I61: 90.51363797 | J61: 4 | K61: 362.0545519 | M61: =IF(AND($D61="Lamp", OR($F61=M$9, M$9="All")),IF('Input - Inventory'!G58="N",INDIRECT("PriceBulkTask1" & RIGHT($B$2,4)),INDIRECT("PriceBulkTask1LED" & RIGHT($B$2,4))),0) -> 0 | N61: =IF(AND($D61="Lamp",CycleBulkTask1<>0, OR($F61=M$9,M$9="All")),IF('Input - Inventory'!G58="N",1/CycleBulkTask1,1/CycleBulkTask1LED),0) -> 0 | O61: =IF(AND($D61="Lamp", OR($F61=O$9, O$9="All")),IF('Input - Inventory'!G58="N",INDIRECT("PriceBulkTask2" & RIGHT($B$2,4)),INDIRECT("PriceBulkTask2LED" & RIGHT($B$2,4))),0) -> 29.28487185 | P61: =IF(AND($D61="Lamp",CycleBulkTask2<>0, OR($F61=O$9,O$9="All")),IF('Input - Inventory'!G58="N",1/CycleBulkTask2,1/CycleBulkTask2LED),0) -> 0.25 | Q61: 11.70321951 | R61: 0.007123137293 | S61: 5.68008992 | T61: 0 | U61: 24.59819231 | V61: 0.005931168948 | W61: 14.73626703 | X61: 0.02002998353 | Y61: 40.96329512 | Z61: 0.01503682404 | AA61: 8448.007453 | AB61: 6.144166728e-05 | AC61: 8.980662345 | AE61: 22.2142 | AF61: 0.25 | AG61: 50.66441346 | AH61: 0.007123137293 | AI61: 11.87135 | AJ61: 0 | AK61: 15.285 | AL61: 0.02096799299 | AM61: 6.234935346 | AO61: 88.01366111 | AP61: 0.1261231641 | AQ61: 2.27 | AR61: 88.01366111 | AS61: 0.0198285774 | AT61: 2.27 | AU61: 88.01366111 | AV61: 0.03256191236 | AW61: 2.27 | AX61: 35.66542333 | AZ61: 11.1071 | BA61: 0.1261231641 | BB61: 11.87135 | BC61: 0.0198285774 | BD61: 15.285 | BE61: 0.03256191236 | BF61: 2.133963408 | BH61: 32.70136673 | BI61: 0.4052259942 | BJ61: 13.25144384 | BL61: 0 | BN61: 0.2286905569 | BO61: 66.26642827 | BP61: 15.15450638 | BR61: 0.1116752511 | BS61: 81.42093465 | BT61: 9.092703325
B62: ='Input - Inventory'!B59 -> 51 | C62: ='Input - Inventory'!C59 -> SON4x250 | D62: ='Input - Inventory'!D59 -> Lamp | E62: ='Input - Inventory'!E59 -> Traffic | F62: ='Input - Inventory'!F59 -> Major | G62: ='Input - Inventory'!H59 -> 4 | I62: 138.4428972 | J62: 6 | K62: 830.6573833 | M62: =IF(AND($D62="Lamp", OR($F62=M$9, M$9="All")),IF('Input - Inventory'!G59="N",INDIRECT("PriceBulkTask1" & RIGHT($B$2,4)),INDIRECT("PriceBulkTask1LED" & RIGHT($B$2,4))),0) -> 0 | N62: =IF(AND($D62="Lamp",CycleBulkTask1<>0, OR($F62=M$9,M$9="All")),IF('Input - Inventory'!G59="N",1/CycleBulkTask1,1/CycleBulkTask1LED),0) -> 0 | O62: =IF(AND($D62="Lamp", OR($F62=O$9, O$9="All")),IF('Input - Inventory'!G59="N",INDIRECT("PriceBulkTask2" & RIGHT($B$2,4)),INDIRECT("PriceBulkTask2LED" & RIGHT($B$2,4))),0) -> 29.28487185 | P62: =IF(AND($D62="Lamp",CycleBulkTask2<>0, OR($F62=O$9,O$9="All")),IF('Input - Inventory'!G59="N",1/CycleBulkTask2,1/CycleBulkTask2LED),0) -> 0.25 | Q62: 11.70321951 | R62: 0.007123137293 | S62: 5.68008992 | T62: 0 | U62: 24.59819231 | V62: 0.005931168948 | W62: 14.73626703 | X62: 0.02002998353 | Y62: 40.96329512 | Z62: 0.01503682404 | AA62: 8448.007453 | AB62: 6.144166728e-05 | AC62: 8.980662345 | AE62: 38.3144 | AF62: 0.25 | AG62: 50.66441346 | AH62: 0.007123137293 | AI62: 11.87135 | AJ62: 0 | AK62: 15.285 | AL62: 0.02096799299 | AM62: 10.25998535 | AO62: 88.01366111 | AP62: 0.2363392756 | AQ62: 2.27 | AR62: 88.01366111 | AS62: 0.0198285774 | AT62: 2.27 | AU62: 88.01366111 | AV62: 0.03256191236 | AW62: 2.27 | AX62: 57.68561165 | AZ62: 9.5786 | BA62: 0.2363392756 | BB62: 11.87135 | BC62: 0.0198285774 | BD62: 15.285 | BE62: 0.03256191236 | BF62: 2.996900198 | BH62: 32.70136673 | BI62: 0.6554165674 | BJ62: 21.43301753 | BL62: 0 | BN62: 0.2286905569 | BO62: 101.3561771 | BP62: 23.17920058 | BR62: 0.1116752511 | BS62: 124.5353776 | BT62: 13.90751957
B63: ='Input - Inventory'!B60 -> 52 | C63: ='Input - Inventory'!C60 -> SON4x600 | D63: ='Input - Inventory'!D60 -> Lamp | E63: ='Input - Inventory'!E60 -> Traffic | F63: ='Input - Inventory'!F60 -> Major | G63: ='Input - Inventory'!H60 -> 4 | I63: 170.1057565 | J63: 2 | K63: 340.211513 | M63: =IF(AND($D63="Lamp", OR($F63=M$9, M$9="All")),IF('Input - Inventory'!G60="N",INDIRECT("PriceBulkTask1" & RIGHT($B$2,4)),INDIRECT("PriceBulkTask1LED" & RIGHT($B$2,4))),0) -> 0 | N63: =IF(AND($D63="Lamp",CycleBulkTask1<>0, OR($F63=M$9,M$9="All")),IF('Input - Inventory'!G60="N",1/CycleBulkTask1,1/CycleBulkTask1LED),0) -> 0 | O63: =IF(AND($D63="Lamp", OR($F63=O$9, O$9="All")),IF('Input - Inventory'!G60="N",INDIRECT("PriceBulkTask2" & RIGHT($B$2,4)),INDIRECT("PriceBulkTask2LED" & RIGHT($B$2,4))),0) -> 29.28487185 | P63: =IF(AND($D63="Lamp",CycleBulkTask2<>0, OR($F63=O$9,O$9="All")),IF('Input - Inventory'!G60="N",1/CycleBulkTask2,1/CycleBulkTask2LED),0) -> 0.25 | Q63: 11.70321951 | R63: 0.007123137293 | S63: 5.68008992 | T63: 0 | U63: 24.59819231 | V63: 0.005931168948 | W63: 14.73626703 | X63: 0.02002998353 | Y63: 40.96329512 | Z63: 0.01503682404 | AA63: 8448.007453 | AB63: 6.144166728e-05 | AC63: 8.980662345 | AE63: 113.3128 | AF63: 0.25 | AG63: 50.66441346 | AH63: 0.007123137293 | AI63: 11.87135 | AJ63: 0 | AK63: 15.285 | AL63: 0.02096799299 | AM63: 29.00958535 | AO63: 88.01366111 | AP63: 0.2363392756 | AQ63: 2.27 | AR63: 88.01366111 | AS63: 0.0198285774 | AT63: 2.27 | AU63: 88.01366111 | AV63: 0.03256191236 | AW63: 2.27 | AX63: 57.68561165 | AZ63: 28.3282 | BA63: 0.2363392756 | BB63: 11.87135 | BC63: 0.0198285774 | BD63: 15.285 | BE63: 0.03256191236 | BF63: 7.428167081 | BH63: 32.70136673 | BI63: 0.6554165674 | BJ63: 21.43301753 | BL63: 0 | BN63: 0.2286905569 | BO63: 124.537044 | BP63: 28.48044593 | BR63: 0.1116752511 | BS63: 153.0174899 | BT63: 17.08826661
